Workbook

Sheet README
B3: FRAME Report: 2022/23 ACTUAL
B5: All pages of the FRAME report containing the tables of financial and statistical data are included in this file.
B7: In most cases, formulas have been left intact to show how statistics such as percentages and average costs per pupil are derived.
B10: Each worksheet tab is numbered to match the corresponding page found in the published document so for example to see page 15, click the worksheet tab - 15 - .
B13: This file is unprotected for data analysis by the user. Data can also be copied to other files or additional data copied to this one. In cases of dispute however, the published FRAME reports and the corresponding files located on the Manitoba Govenment web site remain the final authority.
B17: This report uses Evergreen School Division's 2021/22 Financial Statements, as they have not submitted 2022/23 statements in time for consolidation.
B20: http://www.edu.gov.mb.ca/k12/finance/frame_report/index.html

Sheet VersionNotes (hidden)
A1: FILE WORKFLOW, NOTES, and VERSION DETAILS
A2: Hide this worksheet for publication
A5: File Preparation workflow and notes
A6: Date | B6: Notes
A7: 2024-05-31 | B7: primary file work completed
B8: need Evergreen SD 2022/23 school fiscal year financial report for updates and final completion
A10: 2024-08-02 | B10: Semifinal version created
C11: Key changes
D12: EPTC on page 41 moved from under Education to as Other Provincial Govt
A30: Final Report Version Control

Sheet 2022 2023 (hidden)
B1: DRAFT - SUBJECT TO FINAL RECONCILIATION WITH FRAME REPORT | H1: Internal links
H2: External source links
A3: PROVINCIAL CONTRIBUTION TO PUBLIC EDUCATION | H3: Input cells
G6: Tot Exp | H6: Prov Govt
G7: =C31 -> 2750380598 | H7: =D31 -> 1549296861
G8: Net Trans to Cap | H8: TIG
G9: ='- 46 -'!$F$48 -> 32531199 | H9: 36894532
G10: TRUE
C12: 2022/2023 ($ millions)
C14: Total Expenditure | D14: Provincial | E14: Provincial
C15: on Public Education | D15: Contribution | E15: Contribution as % | G15: Principal | H15: 93848.20561 | I15: =CurrY&" School year" -> 2022/23 School year | J15: Prior Year | K15: Change
G16: Interest | H16: 53950.36777 | I16: =CurrY&" School year" -> 2022/23 School year
A17: 1 | B17: FRAME Operating Fund | C17: =G7/1000000 -> 2750.380598 | D17: =H7/1000000 -> 1549.296861 | E17: =D17/C17 -> 0.563302716 | J17: 1562.527278 | K17: =D17-J17 -> -13.23041704 | M17: =K17 -> -13.23041704 | N17: Ops Funding
A18: 2 | B18: School division capital (net transfers to capital fund) | C18: =G9/1000000 -> 32.531199 | D18: 0 | E18: 0 | J18: 0 | K18: =D18-J18 -> 0 | M18: =K19 -> 13.12767808 | N18: Cap Funding
A19: 3 | B19: Provincial Capital Grant Funding and Other | C19: =H19/1000 -> 147.7985734 | D19: =C19 -> 147.7985734 | E19: =D19/C19 -> 1 | H19: =SUM(H15:H18) -> 147798.5734 | J19: 134.6708953 | K19: 13.12767808 | M19: =SUM(M17:M18) -> -0.1027389626 | N19: Net grants funding
A20: 4 | B20: Manitoba Education Property Tax Credit and School Tax Rebate (1) | C20: n/a | D20: =(G20-H20)/1000000 -> 25.092069 | E20: 1 | G20: =C63*1000 -> 139913000 | H20: ='- 41 -'!$G$48+'- 41 -'!$G$50*0 -> 114820931 | J20: 79.102553 | K20: -54.010484
A21: 5 | B21: Farmland School Tax Rebate | C21: n/a | D21: =G27/1000 -> 26.398 | E21: 1 | G21: (Total EPTC | H21: (EPTC from | J21: 31.395 | K21: -4.997 | M21: =K20+K21+K22+K24 -> 33.972516 | N21: Tax Cr & Rebates
A22: 6 | B22: Pensioners' School Tax Assistance | C22: n/a | D22: =G28/1000 -> 0.148 | E22: 1 | G22: from Annual Rpt) | H22: FRAME) | J22: 0.213 | K22: -0.065 | M22: =K23 -> -89.079 | N22: TRAF
A23: 7 | B23: Teachers' Retirement Allowances Fund | C23: =D23 -> 233.627 | D23: =G29/1000 -> 233.627 | E23: =D23/C23 -> 1 | J23: 322.706 | K23: -89.079 | L23: =SUM(K17:K23) -> -148.254223
A24: 8 | B24: Education Property Tax Rebate | C24: n/a | D24: =D44 -> 403.545 | E24: 1 | J24: 310.5 | K24: 93.045
B25: Adjusted Total | C25: =SUM(C17:C24) -> 3164.33737 | D25: =SUM(D17:D24) -> 2385.905503 | E25: =ROUND(D25/C25,3) -> 0.754 | J25: 2441.114726 | K25: -55.20922296
G26: =G20 -> 139913000 | H26: EPTC | J26: 0.7773364428
G27: =D33 -> 26398 | H27: Farmland | J27: =ROUND(E25-J26,3) -> -0.023
G28: =D38 -> 148 | H28: School Tax Assistance for Tenants and Homeowners
G29: =D40 -> 233627 | H29: Teachers’ Retirement Allowances Fund
A31: 1 | B31: FRAME Operating Fund | C31: ='- 3 -'!$B$48+('- 3 -'!$B$50)*0 -> 2750380598 | D31: ='- 41 -'!$I$48+('- 41 -'!$I$50)*0 -> 1549296861
A33: 5 | B33: Farmland School Tax Rebate | D33: 26398 | H33: MB FINANCE EDUCATION CREDITS & REBATES
B34: MASC - Publications | D34: MASC Annual Report 2022 to 2023 - page 61 | H34: Email contacts: Wang.Cheng@gov.mb.ca ; Gladys.Genetiano-Si@gov.mb.ca; Babatunde.Busari@gov.mb.ca
H35: MB Finance/publications/Annual Reports - Enabling Appropriations Part A : Expenditure Summary by Appropriation table
A36: 4 | B36: Manitoba Education Property Tax Credit and School Tax Rebate (1) | D36: =EPTC -> 18734 | H36: Amount | I36: Description | J36: Section | K36: Cell Name | L36: Prior Year
H37: 18734 | I37: Education Property Tax Credit | J37: 33-1 c | K37: EPTC | L37: 75623
A38: 6 | B38: School Tax Assistance (Pensioners) | D38: =STA -> 148 | H38: 148 | I38: School Tax Assisitance (pensioners) | J38: 33-1 c | K38: STA | L38: 213
H39: 121031 | I39: Homeowners Education Property tax Rebate | J39: 33-2 a | K39: HEPTR | L39: 148480
A40: 7 | B40: Teachers' Retirement Allowances Fund | D40: 233627 | H40: 403545 | I40: School tax rebate | J40: 33-3 | K40: STR | L40: 310515
B41: W:\Edusfb\Frame\REPORTS\Provincial Contribution\TRAF Pension Projections xxx | D41: W:\Edusfb\Frame\REPORTS\Provincial Contribution\TRAF Pension Projections 23-24.xlsx
B42: Updates from Michel.St.Amant@gov.mb.ca | H42: =EPTC+STA -> 18882 | I42: School Tax Assistance for Tennants & Homeowners | K42: STATH
A44: 8 | B44: Education Property Tax Rebate | D44: =STR/1000 -> 403.545
H46: Other Tax Details & sources
I47: 2021-22 Education Annual Report | J47: Page | L47: Prior Year
H48: 23.9 | I48: PTOG | J48: 60 | L48: 22.8
A49: 1) | B49: 4. Manitoba Education Property Tax Credit and School Tax Rebate- DETAILS | H49: 180344 | I49: Education Support Levy | J49: 52 | L49: 179784
H50: 36.5 | I50: GSG | J50: 16-4d - 47 | L50: 36.7
C51: Actual | D51: Actual | H51: 250 | I51: Education Property tax rebate | J51: pg 16 | L51: 250
C52: =CurrY -> 2022/23 | D52: =PrevY -> 2021/22 | I52: Agrees to calculated total EPTC
B54: School Tax Assistance (Pensioners / Seniors) | C54: =H38 -> 148 | D54: =L38 -> 213
B55: Education Property Tax Credit | C55: =H37 -> 18734 | D55: =L37 -> 75623
B56: Homeowners Education Property Tax Rebaate | C56: =H39 -> 121031 | D56: =L39 -> 148480
C57: =SUM(C54:C56) -> 139913 | D57: =SUM(D54:D56) -> 224316
B61: Income tax | C61: =C54+C56+C55-C62 -> 25092.069 | D61: =D54+D56+D55-D62 -> 79102.553
B62: EPTCA (w/o XW) | C62: =('- 41 -'!G48/1000) -> 114820.931 | D62: 145213.447
B63: Total per estimate | C63: =SUM(C60:C62) -> 139913 | D63: =SUM(D60:D62) -> 224316
C64: =ROUND(C63/1000,1) -> 139.9 | D64: =ROUND(D63/1000,1) -> 224.3
C65: =+E25 -> 0.754 | D65: =J26 -> 0.7773364428
C66: =C65-D65 -> -0.02333644277
C67: =IF(C66>0,"more", "less") -> less

Sheet viii
A1: PROVINCIAL CONTRIBUTION TO PUBLIC EDUCATION
A3: ="The total cost of public education in Manitoba includes direct expenditures for the operation of schools (e.g. educator and administrator salaries, teaching supplies, pupil transportation, utilities, building maintenance)"&" and capital expenditures for school building construction and major building repairs and renovations. "&"Also included are provincial expenditures for pensions for retired teachers and the provincial education tax credit programs for homeowners, tenants and farmers which results in reduced property tax bills. "&"The total provincial contribution to public education accounts for "&E25*100&"% of the total of these expenditures." -> The total cost of public education in Manitoba includes direct expenditures for the operation of schools (e.g. educator and administrator salaries, teaching supplies, pupil transportation, utilities, building maintenance) and capital expenditures for school building construction and major building repairs and renovations. Also included are provincial expenditures for pensions for retired teachers and the provincial education tax credit programs for homeowners, tenants and farmers which results in reduced property tax bills. The total provincial contribution to public education accounts for 75.4% of the total of these expenditures.
C11: 2022/2023 ($ millions)
C13: Total Expense on Public Education | D13: Provincial Contribution | E13: Provincial Contribution as %
A16: 1 | B16: FRAME Operating Fund | C16: ='2022 2023'!C17 -> 2750.380598 | D16: ='2022 2023'!D17 -> 1549.296861 | E16: =D16/C16 -> 0.563302716 | F16: (2)
A17: 2 | B17: School Division Capital (transfers to capital fund) | C17: ='2022 2023'!C18 -> 32.531199 | D17: ='2022 2023'!D18 -> 0 | E17: 0
A18: 3 | B18: Provincial Capital Grant Funding and Other | C18: ='2022 2023'!C19 -> 147.7985734 | D18: ='2022 2023'!D19 -> 147.7985734 | E18: =D18/C18 -> 1
A19: 4 | B19: Manitoba Education Property Tax Credit (1) | C19: ='2022 2023'!C20 -> n/a | D19: ='2022 2023'!D20 -> 25.092069 | E19: 1
A20: 5 | B20: Farmland School Tax Rebate | C20: ='2022 2023'!C21 -> n/a | D20: ='2022 2023'!D21 -> 26.398 | E20: 1
A21: 6 | B21: School Tax Assistance for Tenants and Homeowners (55+) | C21: ='2022 2023'!C22 -> n/a | D21: ='2022 2023'!D22 -> 0.148 | E21: 1
A22: 7 | B22: Teachers' Retirement Allowances Fund | C22: ='2022 2023'!C23 -> 233.627 | D22: ='2022 2023'!D23 -> 233.627 | E22: =D22/C22 -> 1
A23: 8 | B23: Education Property Tax Rebate | C23: ='2022 2023'!C24 -> n/a | D23: ='2022 2023'!D24 -> 403.545 | E23: 1
B25: Adjusted Total | C25: =SUM(C16:C23) -> 3164.33737 | D25: =SUM(D16:D23) -> 2385.905503 | E25: =ROUND(D25/C25,3) -> 0.754 | F25: (3)
A27: (1) | B27: ="The portion of the Education Property Tax Credit (EPTC) delivered through the income tax system directly to homeowners and renters. "&"Starting in the 2022 taxation year, the renters component of the EPTC has been replaced with a new Residential Renters Tax Credit. EPTC reported by school divisions of $"&ROUND('- 41 -'!G48/1000000,1)&" million is adjusted by $"&ROUND(D19,1)&" million to equal total education tax-related credits of $"&'2022 2023'!C64&" million as per Manitoba Finance's Enabling Appropriations, Tax Credits and Public Debt 2023 Annual Report. See page 41 for more information." -> The portion of the Education Property Tax Credit (EPTC) delivered through the income tax system directly to homeowners and renters. Starting in the 2022 taxation year, the renters component of the EPTC has been replaced with a new Residential Renters Tax Credit. EPTC reported by school divisions of $114.8 million is adjusted by $25.1 million to equal total education tax-related credits of $139.9 million as per Manitoba Finance's Enabling Appropriations, Tax Credits and Public Debt 2023 Annual Report. See page 41 for more information.
A29: (2) | B29: ="Total expense on public education is based on school divisions' education expenses as reported in their "&CurrY&" financial statements. The total provincial contribution towards these expenses is "&ROUND(CYOpRevprcnt,1)&"%. The "&ChngOpRvPrcnt&"% "&OpRvChng&" from 2021/22 is due to the net reduction in revenue related to tax credits and grants received by divisions and increases in non-provincial funding." -> Total expense on public education is based on school divisions' education expenses as reported in their 2022/23 financial statements. The total provincial contribution towards these expenses is 56.1%. The -1.7% decrease from 2021/22 is due to the net reduction in revenue related to tax credits and grants received by divisions and increases in non-provincial funding.
A31: (3) | B31: ="The provincial contribution to public education which, in addition to operating grants, accounts for government funding for capital, teachers' pensions and relevant tax credit programs is at "&ROUND(E25*100,1)&"%, "&ROUND('2022 2023'!C66*100,1)&"% "&'2022 2023'!$C$67&" compared to "&PrevY&" due to a decrease in Teachers Retirement Allowance Fund contributions not being fully offset by an increase to the Education Property Tax Credit. " -> The provincial contribution to public education which, in addition to operating grants, accounts for government funding for capital, teachers' pensions and relevant tax credit programs is at 75.4%, -2.3% less compared to 2021/22 due to a decrease in Teachers Retirement Allowance Fund contributions not being fully offset by an increase to the Education Property Tax Credit.
A35: Sources:
A37: 1 | B37: ="FRAME "&Data!B$5&" Actual page 3, page 41" -> FRAME 2022/23 Actual page 3, page 41
A38: 2 | B38: ="FRAME "&Data!B$5&" Actual page 46" -> FRAME 2022/23 Actual page 46
A39: 3 | B39: Manitoba Education and Early Childhood Learning
A40: 4 | B40: Manitoba Finance Enabling Appropriations, Tax Credits and Public Debt 2023 Annual Report
A41: 5 | B41: Manitoba Finance Enabling Appropriations, Tax Credits and Public Debt 2023 Annual Report
A42: 6 | B42: Manitoba Finance Enabling Appropriations, Tax Credits and Public Debt 2023 Annual Report
A43: 7 | B43: ="Manitoba Finance " -> Manitoba Finance
A44: 8 | B44: Manitoba Finance Enabling Appropriations, Tax Credits and Public Debt 2023 Annual Report

Sheet - 1 -
X1: ="MANITOBA PUBLIC SCHOOLS ENROLMENT "&$Z$3&" - "&AN3 -> MANITOBA PUBLIC SCHOOLS ENROLMENT 2008 - 2022
X3: YEAR | Z3: 2008 | AA3: =+Z3+1 -> 2009 | AB3: 2010 | AC3: 2011 | AD3: =+AC3+1 -> 2012 | AE3: 2013 | AF3: 2014 | AG3: 2015 | AH3: 2016 | AI3: 2017 | AJ3: 2018 | AK3: 2019 | AL3: =+AK3+1 -> 2020 | AM3: =+AL3+1 -> 2021 | AN3: =+AM3+1 -> 2022
X4: ENROLMENT | Z4: 179.892 | AA4: 179.593 | AB4: 179.784 | AC4: 181.147 | AD4: 181.561 | AE4: 181.278 | AF4: 181.901 | AG4: 183.13 | AH4: 185.225 | AI4: 186.872 | AJ4: 188.54 | AK4: 189.9 | AL4: 180.9 | AM4: 184.1 | AN4: 189.7
X6: PY | Z6: 1968 | AA6: 1969 | AB6: 1970 | AC6: 1971 | AD6: 1972 | AE6: 1973 | AF6: 1974 | AG6: 1975 | AH6: 1976 | AI6: 1977 | AJ6: 1978 | AK6: 1979 | AL6: 1980 | AM6: 1981 | AN6: 1982 | AO6: 1983 | AP6: 1984 | AQ6: 1985 | AR6: 1986 | AS6: 1987 | AT6: 1988 | AU6: 1989 | AV6: 1990 | AW6: 1991 | AX6: 1992 | AY6: 1993 | AZ6: 1994 | BA6: 1995 | BB6: 1996 | BC6: 1997 | BD6: 1998 | BE6: 1999 | BF6: 2000 | BG6: 2001 | BH6: 2002 | BI6: 2003 | BJ6: 2004 | BK6: 2005 | BL6: 2006 | BM6: 2007
X7: Enrol | Z7: 232.2 | AA7: 245.5 | AB7: 247.5 | AC7: 245.6 | AD7: 239.7 | AE7: 231.4 | AF7: 227.5 | AG7: 225.6 | AH7: 223.2 | AI7: 219.2 | AJ7: 213.4 | AK7: 206.7 | AL7: 202.4 | AM7: 199.1 | AN7: 199 | AO7: 198.2 | AP7: 198 | AQ7: 197.6 | AR7: 197.7 | AS7: 198.3 | AT7: 197.7 | AU7: 196.7 | AV7: 196.4 | AW7: 195.9 | AX7: 195.6 | AY7: 195.2 | AZ7: 194.2 | BA7: 194.7 | BB7: 194.7 | BC7: 194.3 | BD7: 194.7 | BE7: 191.8 | BF7: 191.9 | BG7: 190.7 | BH7: 188.8 | BI7: 188.1 | BJ7: 186.3 | BK7: 184.3 | BL7: 181.9 | BM7: 181.227

Sheet - 2 -
Y1: ="OPERATING FUND EXPENSES 20"&$B$64&" - 20"&$B$77&" CURRENT AND CONSTANT DOLLARS" -> OPERATING FUND EXPENSES 2009/10 - 2022/23 CURRENT AND CONSTANT DOLLARS
S24: - 2 -
C61: TOTAL | D61: CPI | F61: Actual | G61: Adjusted
C62: EXPENSES | D62: 2002 = 100 | E62: CPI ADJUSTED | F62: $millions | G62: $millions
A64: * | B64: 09/10 | C64: 1818421619 | D64: 114.6333333 | E64: =C64*(100/D64) -> 1586293939 | F64: =C64/1000000 -> 1818.421619 | G64: =E64/1000000 -> 1586.293939 | I64: ="20"&B64 -> 2009/10
A65: * | B65: 10/11 | C65: 1875139076 | D65: 116.6583333 | E65: 1607376878 | F65: 1875.139076 | G65: 1607.376878
A66: * | B66: 11/12 | C66: 1945942424 | D66: 119.4166667 | E66: 1629540062 | F66: 1945.942424 | G66: 1629.540062
A67: * | B67: 12/13 | C67: 2017420276 | D67: 121.4833333 | E67: 1660656010 | F67: 2017.420276 | G67: 1660.65601
A68: * | B68: 13/14 | C68: 2086402489 | D68: 124.4 | E68: 1677172419 | F68: 2086.402489 | G68: 1677.172419
A69: * | B69: 14/15 | C69: 2156918416 | D69: 125.7833333 | E69: 1714788723 | F69: 2156.918416 | G69: 1714.788723
A70: * | B70: 15/16 | C70: 2235012397 | D70: 127.725 | E70: 1749862906 | F70: =C70/1000000 -> 2235.012397 | G70: =E70/1000000 -> 1749.862906
A71: * | B71: 16/17 | C71: 2313048846 | D71: 129.325 | E71: 1788555071 | F71: 2313.048846 | G71: 1788.555071
A72: * | B72: 17/18 | C72: 2377682744 | D72: 132.1333333 | E72: 1799457173 | F72: 2313.048846 | G72: 1788.555071
A73: * | B73: 18/19 | C73: 2418150519 | D73: 135.2916667 | E73: 1787361024 | F73: 2377.682744 | G73: 1799.457173
A74: * | B74: 19/20 | C74: 2431876352 | D74: 137.4 | E74: 1769924565 | F74: 2418.150519 | G74: 1846.268768
A75: * | B75: 20/21 | C75: 2590841680 | D75: 138.9 | E75: 1865256789 | F75: 2431.876352 | G75: 1769.924565
A76: * | B76: 21/22 | C76: 2625995962 | D76: 147.2083333 | E76: 1783863659 | F76: 2625.995962 | G76: =E76/1000000 -> 1783.863659 | H76: File CPI sheet ANNUAL AVGS 2002 BASE
B77: 22/23 | C77: ='- 3 -'!B48 -> 2750380598 | D77: 156.0583333 | E77: 1762405467 | F77: =C77/1000000 -> 2750.380598 | G77: =E77/1000000 -> 1762.405467 | H77: 'W:\Edusfb\CPI\[CPI.xlsx]ANNUAL AVGS 2002 BASE

Sheet - 3 -
A2: RECONCILIATION OF EXPENSES
A3: ="OPERATING FUND "&FALLYR&"/"&SPRINGYR&" ACTUAL" -> OPERATING FUND 2022/2023 ACTUAL
C6: LESS OPERATING FUND TRANSFERS (2) | D6: EXPENSES NET OF TRANFERS (3) | E6: LESS NON K-12 EDUCATION & SERVICES (4) | F6: TOTAL EXPENSES FOR PER PUPIL COSTS (5)
B8: TOTAL EXPENSES (1)
A9: DIVISION / DISTRICT
A11: BEAUTIFUL PLAINS | B11: 25237195 | C11: =-Data!K11 -> -90317 | D11: =B11+C11 -> 25146878 | E11: =-'- 15 -'!H11-'- 16 -'!B11 -> -16882 | F11: =D11+E11 -> 25129996
A12: BORDER LAND | B12: 37822876 | C12: =-Data!K12 -> -546437 | D12: =B12+C12 -> 37276439 | E12: =-'- 15 -'!H12-'- 16 -'!B12 -> -422545 | F12: =D12+E12 -> 36853894
A13: BRANDON | B13: 114964087 | C13: =-Data!K13 -> -78000 | D13: 114886087 | E13: =-'- 15 -'!H13-'- 16 -'!B13 -> -324626 | F13: 114561461
A14: DSFM | B14: 106356027 | C14: =-Data!K14 -> -866357 | D14: 105489670 | E14: =-'- 15 -'!H14-'- 16 -'!B14 -> -976808 | F14: 104512862
A15: EVERGREEN | B15: 32683927 | C15: =-Data!K15 -> -111635 | D15: 32572292 | E15: =-'- 15 -'!H15-'- 16 -'!B15 -> -223868 | F15: 32348424
A16: FLIN FLON | B16: 16660041 | C16: =-Data!K16 -> -2600 | D16: 16657441 | E16: =-'- 15 -'!H16-'- 16 -'!B16 -> -111866 | F16: 16545575
A17: FORT LA BOSSE | B17: 20782067 | C17: =-Data!K17 -> -59733 | D17: 20722334 | E17: =-'- 15 -'!H17-'- 16 -'!B17 -> -209188 | F17: 20513146
A18: FRONTIER | B18: 163766232 | C18: =-Data!K18 -> -2318018 | D18: 161448214 | E18: =-'- 15 -'!H18-'- 16 -'!B18 -> -5168638 | F18: 156279576
A19: GARDEN VALLEY | B19: 54916345 | C19: =-Data!K19 -> -542712 | D19: 54373633 | E19: =-'- 15 -'!H19-'- 16 -'!B19 -> -76448 | F19: 54297185
A20: HANOVER | B20: 104828811 | C20: =-Data!K20 -> -2780511 | D20: 102048300 | E20: =-'- 15 -'!H20-'- 16 -'!B20 -> -153256 | F20: 101895044
A21: INTERLAKE | B21: 40964660 | C21: =-Data!K21 -> -247440 | D21: 40717220 | E21: =-'- 15 -'!H21-'- 16 -'!B21 -> 0 | F21: 40717220
A22: KELSEY | B22: 22075594 | C22: =-Data!K22 -> -4246 | D22: 22071348 | E22: =-'- 15 -'!H22-'- 16 -'!B22 -> -707513 | F22: 21363835
A23: LAKESHORE | B23: 16570811 | C23: =-Data!K23 -> -84830 | D23: 16485981 | E23: =-'- 15 -'!H23-'- 16 -'!B23 -> -409491 | F23: 16076490
A24: LORD SELKIRK | B24: 64120001 | C24: =-Data!K24 -> -175830 | D24: 63944171 | E24: =-'- 15 -'!H24-'- 16 -'!B24 -> -819286 | F24: 63124885
A25: LOUIS RIEL | B25: 220165583 | C25: =-Data!K25 -> -877416 | D25: 219288167 | E25: =-'- 15 -'!H25-'- 16 -'!B25 -> -4163700 | F25: 215124467
A26: MOUNTAIN VIEW | B26: 45847675 | C26: =-Data!K26 -> -4655 | D26: 45843020 | E26: =-'- 15 -'!H26-'- 16 -'!B26 -> -126762 | F26: 45716258
A27: MYSTERY LAKE | B27: 46100869 | C27: =-Data!K27 -> -17000 | D27: 46083869 | E27: =-'- 15 -'!H27-'- 16 -'!B27 -> -60491 | F27: 46023378
A28: PARK WEST | B28: 32683927 | C28: =-Data!K28 -> -111635 | D28: 32572292 | E28: =-'- 15 -'!H28-'- 16 -'!B28 -> -223868 | F28: 32348424
A29: PEMBINA TRAILS | B29: 197889680 | C29: =-Data!K29 -> -2334049 | D29: 195555631 | E29: =-'- 15 -'!H29-'- 16 -'!B29 -> -243018 | F29: 195312613
A30: PINE CREEK | B30: 17333643 | C30: =-Data!K30 -> -36009 | D30: 17297634 | E30: =-'- 15 -'!H30-'- 16 -'!B30 -> -12333 | F30: 17285301
A31: PORTAGE LA PRAIRIE | B31: 46085808 | C31: =-Data!K31 -> -39650 | D31: 46046158 | E31: =-'- 15 -'!H31-'- 16 -'!B31 -> -59379 | F31: 45986779
A32: PRAIRIE ROSE | B32: 33649577 | C32: =-Data!K32 -> -166293 | D32: 33483284 | E32: =-'- 15 -'!H32-'- 16 -'!B32 -> -334377 | F32: 33148907
A33: PRAIRIE SPIRIT | B33: 30687837 | C33: =-Data!K33 -> -85528 | D33: 30602309 | E33: =-'- 15 -'!H33-'- 16 -'!B33 -> -41693 | F33: 30560616
A34: RED RIVER VALLEY | B34: 35770870 | C34: =-Data!K34 -> -392359 | D34: 35378511 | E34: =-'- 15 -'!H34-'- 16 -'!B34 -> -41842 | F34: 35336669
A35: RIVER EAST TRANSCONA | B35: 222244729 | C35: =-Data!K35 -> -542384 | D35: 221702345 | E35: =-'- 15 -'!H35-'- 16 -'!B35 -> -2952407 | F35: 218749938
A36: ROLLING RIVER | B36: 27182890 | C36: =-Data!K36 -> -353456 | D36: 26829434 | E36: =-'- 15 -'!H36-'- 16 -'!B36 -> -144680 | F36: 26684754
A37: SEINE RIVER | B37: 64348453 | C37: =-Data!K37 -> -634505 | D37: 63713948 | E37: =-'- 15 -'!H37-'- 16 -'!B37 -> -1124602 | F37: 62589346
A38: SEVEN OAKS | B38: 167174761 | C38: =-Data!K38 -> -929288 | D38: 166245473 | E38: =-'- 15 -'!H38-'- 16 -'!B38 -> -5909642 | F38: 160335831
A39: SOUTHWEST HORIZON | B39: 24257704 | C39: =-Data!K39 -> -292270 | D39: 23965434 | E39: =-'- 15 -'!H39-'- 16 -'!B39 -> -193328 | F39: 23772106
A40: ST. JAMES-ASSINIBOIA | B40: 120394469 | C40: =-Data!K40 -> -352384 | D40: 120042085 | E40: =-'- 15 -'!H40-'- 16 -'!B40 -> -915139 | F40: 119126946
A41: SUNRISE | B41: 73817347 | C41: =-Data!K41 -> -471589 | D41: 73345758 | E41: =-'- 15 -'!H41-'- 16 -'!B41 -> -1048443 | F41: 72297315
A42: SWAN VALLEY | B42: 24321250 | C42: =-Data!K42 -> -60000 | D42: 24261250 | E42: =-'- 15 -'!H42-'- 16 -'!B42 -> -88912 | F42: 24172338
A43: TURTLE MOUNTAIN | B43: 14914465 | C43: =-Data!K43 -> -18200 | D43: 14896265 | E43: =-'- 15 -'!H43-'- 16 -'!B43 -> -217378 | F43: 14678887
A44: TURTLE RIVER | B44: 12181380 | C44: =-Data!K44 -> -133280 | D44: 12048100 | E44: =-'- 15 -'!H44-'- 16 -'!B44 -> -28131 | F44: 12019969
A45: WESTERN | B45: 25407961 | C45: =-Data!K45 -> -49374 | D45: 25358587 | E45: =-'- 15 -'!H45-'- 16 -'!B45 -> -448450 | F45: 24910137
A46: WINNIPEG | B46: 446171046 | C46: =-Data!K46 -> -2040494 | D46: 444130552 | E46: =-'- 15 -'!H46-'- 16 -'!B46 -> -8580606 | F46: 435549946
A48: PROVINCE | B48: =SUM(B11:B46) -> 2750380598 | C48: =SUM(C11:C46) -> -17850484 | D48: =SUM(D11:D46) -> 2732530114 | E48: =SUM(E11:E46) -> -36579596 | F48: =SUM(F11:F46) -> 2695950518
A50: WHITESHELL | B50: 3808523 | C50: =-Data!K50 -> -10400 | D50: =B50+C50 -> 3798123 | E50: =-'- 15 -'!H50-'- 16 -'!B50 -> -113115 | F50: =D50+E50 -> 3685008
A52: (1) Total operating expenses as reported on the Schedule of Revenue, Expenses and Accumulated Surplus by each school division.
A53: (2) Operating fund transfers are payments to other school divisions, organizations and individuals. These are removed to provide more accurate per-pupil costs.
A55: (3) As reported on pages 10 and 13 (on a provincial basis).
A56: (4) Expenses for Adult Learning Centres and Community Education and Services (Functions 300 and 400).
A57: (5) As reported on page 4.

Sheet - 4 -
A2: OPERATING FUND COST PER PUPIL
A3: 2021/22 and 2022/23 ACTUAL
B7: =PrevY&" ACTUAL" -> 2021/22 ACTUAL | D7: =CurrY&" ACTUAL" -> 2022/23 ACTUAL
A9: DIVISION / DISTRICT | B9: EXPENSES (1)X | C9: PER PUPIL | D9: EXPENSES (1)X | E9: PER PUPIL
A11: BEAUTIFUL PLAINS | B11: 24052044 | C11: 12679 | D11: ='- 3 -'!F11 -> 25129996 | E11: =ROUND(D11/'- 7 -'!E11,0) -> 12540
A12: BORDER LAND | B12: 35014472 | C12: 18101 | D12: ='- 3 -'!F12 -> 36853894 | E12: =ROUND(D12/'- 7 -'!E12,0) -> 18064
A13: BRANDON | B13: 112312679 | C13: 12939 | D13: ='- 3 -'!F13 -> 114561461 | E13: =ROUND(D13/'- 7 -'!E13,0) -> 12629
A14: DSFM | B14: 98259415 | C14: 16926 | D14: ='- 3 -'!F14 -> 104512862 | E14: =ROUND(D14/'- 7 -'!E14,0) -> 17905
A15: EVERGREEN | B15: 21750468 | C15: 15125 | D15: ='- 3 -'!F15 -> 32348424 | E15: =ROUND(D15/'- 7 -'!E15,0) -> 15650
A16: FLIN FLON | B16: 15968013 | C16: 16888 | D16: ='- 3 -'!F16 -> 16545575 | E16: =ROUND(D16/'- 7 -'!E16,0) -> 17675
A17: FORT LA BOSSE | B17: 20202709 | C17: 14148 | D17: ='- 3 -'!F17 -> 20513146 | E17: =ROUND(D17/'- 7 -'!E17,0) -> 13635
A18: FRONTIER | B18: 141363196 | C18: 22908 | D18: ='- 3 -'!F18 -> 156279576 | E18: =ROUND(D18/'- 7 -'!E18,0) -> 24644
A19: GARDEN VALLEY | B19: 53097351 | C19: 14103 | D19: ='- 3 -'!F19 -> 54297185 | E19: =ROUND(D19/'- 7 -'!E19,0) -> 13298
A20: HANOVER | B20: 99052617 | C20: 12774 | D20: ='- 3 -'!F20 -> 101895044 | E20: =ROUND(D20/'- 7 -'!E20,0) -> 12622
A21: INTERLAKE | B21: 40952329 | C21: 14027 | D21: ='- 3 -'!F21 -> 40717220 | E21: =ROUND(D21/'- 7 -'!E21,0) -> 13916
A22: KELSEY | B22: 20480871 | C22: 14134 | D22: ='- 3 -'!F22 -> 21363835 | E22: =ROUND(D22/'- 7 -'!E22,0) -> 14464
A23: LAKESHORE | B23: 15944112 | C23: 17284 | D23: ='- 3 -'!F23 -> 16076490 | E23: =ROUND(D23/'- 7 -'!E23,0) -> 17637
A24: LORD SELKIRK | B24: 61747669 | C24: 16816 | D24: ='- 3 -'!F24 -> 63124885 | E24: =ROUND(D24/'- 7 -'!E24,0) -> 16726
A25: LOUIS RIEL | B25: 205177311 | C25: 13732 | D25: ='- 3 -'!F25 -> 215124467 | E25: =ROUND(D25/'- 7 -'!E25,0) -> 13203
A26: MOUNTAIN VIEW | B26: 44335246 | C26: 14778 | D26: ='- 3 -'!F26 -> 45716258 | E26: =ROUND(D26/'- 7 -'!E26,0) -> 14962
A27: MYSTERY LAKE | B27: 44353195 | C27: 16067 | D27: ='- 3 -'!F27 -> 46023378 | E27: =ROUND(D27/'- 7 -'!E27,0) -> 16855
A28: PARK WEST | B28: 30402808 | C28: 15092 | D28: ='- 3 -'!F28 -> 32348424 | E28: =ROUND(D28/'- 7 -'!E28,0) -> 15650
A29: PEMBINA TRAILS | B29: 184872518 | C29: 12577 | D29: ='- 3 -'!F29 -> 195312613 | E29: =ROUND(D29/'- 7 -'!E29,0) -> 12894
A30: PINE CREEK | B30: 16787857 | C30: 15193 | D30: ='- 3 -'!F30 -> 17285301 | E30: =ROUND(D30/'- 7 -'!E30,0) -> 15829
A31: PORTAGE LA PRAIRIE | B31: 43366208 | C31: 13254 | D31: ='- 3 -'!F31 -> 45986779 | E31: =ROUND(D31/'- 7 -'!E31,0) -> 13697
A32: PRAIRIE ROSE | B32: 33269189 | C32: 14803 | D32: ='- 3 -'!F32 -> 33148907 | E32: =ROUND(D32/'- 7 -'!E32,0) -> 14558
A33: PRAIRIE SPIRIT | B33: 29875153 | C33: 14659 | D33: ='- 3 -'!F33 -> 30560616 | E33: =ROUND(D33/'- 7 -'!E33,0) -> 14675
A34: RED RIVER VALLEY | B34: 33825259 | C34: 15431 | D34: ='- 3 -'!F34 -> 35336669 | E34: =ROUND(D34/'- 7 -'!E34,0) -> 15605
A35: RIVER EAST TRANSCONA | B35: 211010098 | C35: 12874 | D35: ='- 3 -'!F35 -> 218749938 | E35: =ROUND(D35/'- 7 -'!E35,0) -> 12953
A36: ROLLING RIVER | B36: 25832010 | C36: 14753 | D36: ='- 3 -'!F36 -> 26684754 | E36: =ROUND(D36/'- 7 -'!E36,0) -> 15149
A37: SEINE RIVER | B37: 57425994 | C37: 12957 | D37: ='- 3 -'!F37 -> 62589346 | E37: =ROUND(D37/'- 7 -'!E37,0) -> 14027
A38: SEVEN OAKS | B38: 156990343 | C38: 13829 | D38: ='- 3 -'!F38 -> 160335831 | E38: =ROUND(D38/'- 7 -'!E38,0) -> 13930
A39: SOUTHWEST HORIZON | B39: 23933403 | C39: 16342 | D39: ='- 3 -'!F39 -> 23772106 | E39: =ROUND(D39/'- 7 -'!E39,0) -> 16266
A40: ST. JAMES-ASSINIBOIA | B40: 115725664 | C40: 14517 | D40: ='- 3 -'!F40 -> 119126946 | E40: =ROUND(D40/'- 7 -'!E40,0) -> 14789
A41: SUNRISE | B41: 71176025 | C41: 15826 | D41: ='- 3 -'!F41 -> 72297315 | E41: =ROUND(D41/'- 7 -'!E41,0) -> 15744
A42: SWAN VALLEY | B42: 21810004 | C42: 16483 | D42: ='- 3 -'!F42 -> 24172338 | E42: =ROUND(D42/'- 7 -'!E42,0) -> 17866
A43: TURTLE MOUNTAIN | B43: 14191950 | C43: 13826 | D43: ='- 3 -'!F43 -> 14678887 | E43: =ROUND(D43/'- 7 -'!E43,0) -> 14258
A44: TURTLE RIVER | B44: 11964815 | C44: 18550 | D44: ='- 3 -'!F44 -> 12019969 | E44: =ROUND(D44/'- 7 -'!E44,0) -> 20202
A45: WESTERN | B45: 23590930 | C45: 13124 | D45: ='- 3 -'!F45 -> 24910137 | E45: =ROUND(D45/'- 7 -'!E45,0) -> 12559
A46: WINNIPEG | B46: 413598042 | C46: 15127 | D46: ='- 3 -'!F46 -> 435549946 | E46: =ROUND(D46/'- 7 -'!E46,0) -> 15656
A48: PROVINCE | B48: =SUM(B11:B46) -> 2573711967 | C48: 14537 | D48: =SUM(D11:D46) -> 2695950518 | E48: =ROUND(D48/'- 7 -'!E48,0) -> 14738
A50: WHITESHELL | B50: 3430835 | C50: 17415 | D50: ='- 3 -'!F50 -> 3685008 | E50: =ROUND(D50/'- 7 -'!E50,0) -> 18333
A52: (1) As calculated on page 3. Operating fund transfers (i.e. payments to other school divisions, organizations and individuals) are excluded to provide more accurate per pupil costs. Also excluded are expenditures on educational services not provided to K-12 pupils: Function 300 (Adult Learning Centres) and Function 400 (Community Education and Services).

Sheet - 5 -
X3: =CurrY&" OPERATING FUND COST PER PUPIL" -> 2022/23 OPERATING FUND COST PER PUPIL
S25: - 5 -

Sheet - 6 -
B2: FRAME STUDENT STATISTICS | H2: PAGE 1 OF 2
B3: ="ACTUAL SEPTEMBER 30, "&FALLYR -> ACTUAL SEPTEMBER 30, 2022
B6: REGULAR INSTRUCTION
B7: SINGLE TRACK (1) | E7: DUAL TRACK (2)
B8: ENGLISH LANGUAGE | D8: FRENCH IMMERSION | E8: ENGLISH LANGUAGE | G8: FRENCH IMMERSION | H8: OTHER BILINGUAL
A9: DIVISION / DISTRICT | C9: FRANÇAIS | F9: FRANÇAIS
A11: BEAUTIFUL PLAINS | B11: 2004 | C11: 0 | D11: 0 | E11: 0 | F11: 0 | G11: 0 | H11: 0
A12: BORDER LAND | B12: 1308.2 | C12: 0 | D12: 0 | E12: 487.5 | F12: 0 | G12: 128.5 | H12: 0
A13: BRANDON | B13: 7095.5 | C13: 0 | D13: 317 | E13: 647 | F13: 0 | G13: 514 | H13: 0
A14: DSFM | B14: 0 | C14: 5808 | D14: 0 | E14: 0 | F14: 0 | G14: 0 | H14: 0
A15: EVERGREEN | B15: 2067 | C15: 0 | D15: 0 | E15: 0 | F15: 0 | G15: 0 | H15: 0
A16: FLIN FLON | B16: 578.6 | C16: 0 | D16: 0 | E16: 258.5 | F16: 0 | G16: 99 | H16: 0
A17: FORT LA BOSSE | B17: 1476.5 | C17: 0 | D17: 0 | E17: 0 | F17: 0 | G17: 0 | H17: 0
A18: FRONTIER | B18: 6224.5 | C18: 0 | D18: 0 | E18: 0 | F18: 0 | G18: 0 | H18: 0
A19: GARDEN VALLEY | B19: 4083 | C19: 0 | D19: 0 | E19: 0 | F19: 0 | G19: 0 | H19: 0
A20: HANOVER | B20: 7518 | C20: 0 | D20: 0 | E20: 0 | F20: 0 | G20: 0 | H20: 0
A21: INTERLAKE | B21: 1603 | C21: 0 | D21: 0 | E21: 933.5 | F21: 0 | G21: 389.5 | H21: 0
A22: KELSEY | B22: 837.6 | C22: 0 | D22: 0 | E22: 459 | F22: 0 | G22: 166 | H22: 0
A23: LAKESHORE | B23: 899.5 | C23: 0 | D23: 0 | E23: 0 | F23: 0 | G23: 0 | H23: 0
A24: LORD SELKIRK | B24: 2667.5 | C24: 0 | D24: 222.5 | E24: 523 | F24: 0 | G24: 72 | H24: 81
A25: LOUIS RIEL | B25: 11819 | C25: 0 | D25: 3679 | E25: 306 | F25: 0 | G25: 441 | H25: 0
A26: MOUNTAIN VIEW | B26: 2307.8 | C26: 0 | D26: 128.5 | E26: 330 | F26: 0 | G26: 69 | H26: 65.5
A27: MYSTERY LAKE | B27: 2293 | C27: 0 | D27: 0 | E27: 155 | F27: 0 | G27: 195 | H27: 0
A28: PARK WEST | B28: 2067 | C28: 0 | D28: 0 | E28: 0 | F28: 0 | G28: 0 | H28: 0
A29: PEMBINA TRAILS | B29: 9045 | C29: 0 | D29: 1413 | E29: 2704 | F29: 0 | G29: 1985 | H29: 0
A30: PINE CREEK | B30: 1020 | C30: 0 | D30: 0 | E30: 0 | F30: 0 | G30: 0 | H30: 0
A31: PORTAGE LA PRAIRIE | B31: 2369.5 | C31: 0 | D31: 0 | E31: 519 | F31: 365 | G31: 0 | H31: 0
A32: PRAIRIE ROSE | B32: 1675.5 | C32: 0 | D32: 115.5 | E32: 330.5 | F32: 0 | G32: 155.5 | H32: 0
A33: PRAIRIE SPIRIT | B33: 1636 | C33: 0 | D33: 0 | E33: 242.5 | F33: 112 | G33: 92 | H33: 0
A34: RED RIVER VALLEY | B34: 1682.5 | C34: 0 | D34: 326.5 | E34: 96 | F34: 131 | G34: 0 | H34: 0
A35: RIVER EAST TRANSCONA | B35: 8217 | C35: 0 | D35: 1516.5 | E35: 3808 | F35: 0 | G35: 1942 | H35: 551
A36: ROLLING RIVER | B36: 1751.5 | C36: 0 | D36: 0 | E36: 0 | F36: 0 | G36: 0 | H36: 0
A37: SEINE RIVER | B37: 2250 | C37: 0 | D37: 810.5 | E37: 737 | F37: 0 | G37: 664.5 | H37: 0
A38: SEVEN OAKS | B38: 6862.7 | C38: 0 | D38: 1080.5 | E38: 1782.8 | F38: 0 | G38: 1238 | H38: 349.5
A39: SOUTHWEST HORIZON | B39: 1461.5 | C39: 0 | D39: 0 | E39: 0 | F39: 0 | G39: 0 | H39: 0
A40: ST. JAMES-ASSINIBOIA | B40: 5440.2 | C40: 0 | D40: 1364.5 | E40: 590.2 | F40: 0 | G40: 439 | H40: 0
A41: SUNRISE | B41: 2056.5 | C41: 0 | D41: 0 | E41: 1680.5 | F41: 0 | G41: 788 | H41: 67
A42: SWAN VALLEY | B42: 943.9 | C42: 0 | D42: 0 | E42: 163.5 | F42: 0 | G42: 56 | H42: 0
A43: TURTLE MOUNTAIN | B43: 1018 | C43: 0 | D43: 0 | E43: 0 | F43: 0 | G43: 0 | H43: 0
A44: TURTLE RIVER | B44: 567 | C44: 0 | D44: 28 | E44: 0 | F44: 0 | G44: 0 | H44: 0
A45: WESTERN | B45: 847 | C45: 0 | D45: 0 | E45: 811 | F45: 0 | G45: 293.5 | H45: 0
A46: WINNIPEG | B46: 17307 | C46: 0 | D46: 1376 | E46: 4982 | F46: 0 | G46: 2858.5 | H46: 599.5
A48: PROVINCE | B48: =SUM(B11:B46) -> 123000.5 | C48: 5808 | D48: 12378 | E48: 22546.5 | F48: 608 | G48: 12586 | H48: 1713.5
A50: WHITESHELL | B50: 201 | C50: 0 | D50: 0 | E50: 0 | F50: 0 | G50: 0 | H50: 0
A52: (1) 90% or more of Regular Instruction enrolment is in one language program.
A53: (2) No one language program comprises 90% or more of Regular Instruction enrolment.

Sheet - 7 -
B2: FRAME STUDENT STATISTICS | G2: PAGE 2 OF 2
B3: =STATDATE -> ACTUAL SEPTEMBER 30, 2022
B7: REGULAR INSTRUCTION (1) | E7: TOTAL
B8: SENIOR YEARS TECHNOLOGY | E8: K-12 F.T.E. ENROLMENT
A9: DIVISION / DISTRICT | C9: TOTAL
A11: BEAUTIFUL PLAINS | B11: 0 | C11: =SUM('- 6 -'!B11:H11,B11) -> 2004 | E11: =C11 -> 2004
A12: BORDER LAND | B12: 116.02 | C12: =SUM('- 6 -'!B12:H12,B12) -> 2040.22 | E12: =C12 -> 2040.22
A13: BRANDON | B13: 497.9 | C13: =SUM('- 6 -'!B13:H13,B13) -> 9071.4 | E13: 9071.4
A14: DSFM | B14: 29.19 | C14: =SUM('- 6 -'!B14:H14,B14) -> 5837.19 | E14: 5837.19
A15: EVERGREEN | B15: 0 | C15: =SUM('- 6 -'!B15:H15,B15) -> 2067 | E15: 2067
A16: FLIN FLON | B16: 0 | C16: =SUM('- 6 -'!B16:H16,B16) -> 936.1 | E16: 936.1
A17: FORT LA BOSSE | B17: 28 | C17: =SUM('- 6 -'!B17:H17,B17) -> 1504.5 | E17: 1504.5
A18: FRONTIER | B18: 117 | C18: =SUM('- 6 -'!B18:H18,B18) -> 6341.5 | E18: 6341.5
A19: GARDEN VALLEY | B19: 0 | C19: =SUM('- 6 -'!B19:H19,B19) -> 4083 | E19: 4083
A20: HANOVER | B20: 555 | C20: =SUM('- 6 -'!B20:H20,B20) -> 8073 | E20: 8073
A21: INTERLAKE | B21: 0 | C21: =SUM('- 6 -'!B21:H21,B21) -> 2926 | E21: 2926
A22: KELSEY | B22: 14.4 | C22: =SUM('- 6 -'!B22:H22,B22) -> 1477 | E22: 1477
A23: LAKESHORE | B23: 12 | C23: =SUM('- 6 -'!B23:H23,B23) -> 911.5 | E23: 911.5
A24: LORD SELKIRK | B24: 208 | C24: =SUM('- 6 -'!B24:H24,B24) -> 3774 | E24: 3774
A25: LOUIS RIEL | B25: 48 | C25: =SUM('- 6 -'!B25:H25,B25) -> 16293 | E25: 16293
A26: MOUNTAIN VIEW | B26: 154.7 | C26: =SUM('- 6 -'!B26:H26,B26) -> 3055.5 | E26: 3055.5
A27: MYSTERY LAKE | B27: 87.5 | C27: =SUM('- 6 -'!B27:H27,B27) -> 2730.5 | E27: 2730.5
A28: PARK WEST | B28: 0 | C28: =SUM('- 6 -'!B28:H28,B28) -> 2067 | E28: 2067
A29: PEMBINA TRAILS | B29: 0 | C29: =SUM('- 6 -'!B29:H29,B29) -> 15147 | E29: 15147
A30: PINE CREEK | B30: 72 | C30: =SUM('- 6 -'!B30:H30,B30) -> 1092 | E30: 1092
A31: PORTAGE LA PRAIRIE | B31: 104 | C31: =SUM('- 6 -'!B31:H31,B31) -> 3357.5 | E31: 3357.5
A32: PRAIRIE ROSE | B32: 0 | C32: =SUM('- 6 -'!B32:H32,B32) -> 2277 | E32: 2277
A33: PRAIRIE SPIRIT | B33: 0 | C33: =SUM('- 6 -'!B33:H33,B33) -> 2082.5 | E33: 2082.5
A34: RED RIVER VALLEY | B34: 28.5 | C34: =SUM('- 6 -'!B34:H34,B34) -> 2264.5 | E34: 2264.5
A35: RIVER EAST TRANSCONA | B35: 854 | C35: =SUM('- 6 -'!B35:H35,B35) -> 16888.5 | E35: 16888.5
A36: ROLLING RIVER | B36: 10 | C36: =SUM('- 6 -'!B36:H36,B36) -> 1761.5 | E36: 1761.5
A37: SEINE RIVER | B37: 0 | C37: =SUM('- 6 -'!B37:H37,B37) -> 4462 | E37: 4462
A38: SEVEN OAKS | B38: 197 | C38: =SUM('- 6 -'!B38:H38,B38) -> 11510.5 | E38: 11510.5
A39: SOUTHWEST HORIZON | B39: 0 | C39: =SUM('- 6 -'!B39:H39,B39) -> 1461.5 | E39: 1461.5
A40: ST. JAMES-ASSINIBOIA | B40: 221 | C40: =SUM('- 6 -'!B40:H40,B40) -> 8054.9 | E40: 8054.9
A41: SUNRISE | B41: 0 | C41: =SUM('- 6 -'!B41:H41,B41) -> 4592 | E41: 4592
A42: SWAN VALLEY | B42: 189.6 | C42: =SUM('- 6 -'!B42:H42,B42) -> 1353 | E42: 1353
A43: TURTLE MOUNTAIN | B43: 11.5 | C43: =SUM('- 6 -'!B43:H43,B43) -> 1029.5 | E43: 1029.5
A44: TURTLE RIVER | B44: 0 | C44: =SUM('- 6 -'!B44:H44,B44) -> 595 | E44: 595
A45: WESTERN | B45: 32 | C45: =SUM('- 6 -'!B45:H45,B45) -> 1983.5 | E45: 1983.5
A46: WINNIPEG | B46: 697.56 | C46: =SUM('- 6 -'!B46:H46,B46) -> 27820.56 | E46: 27820.56
A48: PROVINCE | B48: =SUM(B11:B46) -> 4284.87 | C48: =SUM(C11:C46) -> 182925.37 | E48: =SUM(E11:E46) -> 182925.37
A50: WHITESHELL | B50: 0 | C50: =SUM('- 6 -'!B50:H50,B50) -> 201 | E50: =C50 -> 201
A52: (1) Special Placement students are no longer reported separately. They are included in Regular Instruction Enrolment. As a result, total enrolment in Regular Instruction is equal to Total K-12 F.T.E. enrolment.

Sheet - 8 -
B2: ENROLMENTS - HEADCOUNT, FRAME AND ELIGIBLE
B3: ACTUAL
B6: HEADCOUNT (1) | E6: FRAME (2) | F6: ELIGIBLE (3) | G6: ELIGIBLE (3)
B7: ="SEPT.30, "&FALLYR -> SEPT.30, 2022 | E7: =B7 -> SEPT.30, 2022 | F7: ="SEPT.30, "&FALLYR-1 -> SEPT.30, 2021 | G7: ="SEPT.30, "&FALLYR-2 -> SEPT.30, 2020
B8: N-12 ENROLMENT | C8: NURSERY ENROLMENT | D8: K-12 ENROLMENT | E8: K-12 F.T.E. ENROLMENT | F8: K-12 ENROLMENT | G8: K-12 ENROLMENT
A9: DIVISION / DISTRICT
A11: BEAUTIFUL PLAINS | B11: 2092 | C11: 0 | D11: =+B11-C11 -> 2092 | E11: ='- 7 -'!E11 -> 2004 | F11: 1911 | G11: 1900.3
A12: BORDER LAND | B12: 2103 | C12: 0 | D12: 2103 | E12: ='- 7 -'!E12 -> 2040.22 | F12: 1845.1 | G12: 1892
A13: BRANDON | B13: 9366 | C13: 0 | D13: 9366 | E13: ='- 7 -'!E13 -> 9071.4 | F13: 8649 | G13: 8478.9
A14: DSFM | B14: 5898 | C14: 44 | D14: 5854 | E14: ='- 7 -'!E14 -> 5837.19 | F14: 5529.1 | G14: 5514.5
A15: EVERGREEN | B15: 1441 | C15: 0 | D15: 1441 | E15: ='- 7 -'!E15 -> 2067 | F15: 1354.9 | G15: 1313.3
A16: FLIN FLON | B16: 866 | C16: 0 | D16: 866 | E16: ='- 7 -'!E16 -> 936.1 | F16: 869.6 | G16: 844.1
A17: FORT LA BOSSE | B17: 1548 | C17: 0 | D17: 1548 | E17: ='- 7 -'!E17 -> 1504.5 | F17: 1367 | G17: 1341.9
A18: FRONTIER | B18: 6858 | C18: 431 | D18: 6427 | E18: ='- 7 -'!E18 -> 6341.5 | F18: 2027.2 | G18: 2034.4
A19: GARDEN VALLEY | B19: 4098 | C19: 0 | D19: 4098 | E19: ='- 7 -'!E19 -> 4083 | F19: 3516.3 | G19: 3952.6
A20: HANOVER | B20: 8421 | C20: 0 | D20: 8421 | E20: ='- 7 -'!E20 -> 8073 | F20: 7511.3 | G20: 7470.9
A21: INTERLAKE | B21: 3010 | C21: 0 | D21: 3010 | E21: ='- 7 -'!E21 -> 2926 | F21: 2915 | G21: 2805.6
A22: KELSEY | B22: 1466 | C22: 0 | D22: 1466 | E22: ='- 7 -'!E22 -> 1477 | F22: 1388 | G22: 1411.6
A23: LAKESHORE | B23: 952 | C23: 0 | D23: 952 | E23: ='- 7 -'!E23 -> 911.5 | F23: 906.5 | G23: 874.5
A24: LORD SELKIRK | B24: 3912 | C24: 0 | D24: 3912 | E24: ='- 7 -'!E24 -> 3774 | F24: 3621.1 | G24: 3578.8
A25: LOUIS RIEL | B25: 16293 | C25: 0 | D25: 16293 | E25: ='- 7 -'!E25 -> 16293 | F25: 14783.1 | G25: 14509.4
A26: MOUNTAIN VIEW | B26: 3138 | C26: 0 | D26: 3138 | E26: ='- 7 -'!E26 -> 3055.5 | F26: 2874.4 | G26: 2846.7
A27: MYSTERY LAKE | B27: 2886 | C27: 0 | D27: 2886 | E27: ='- 7 -'!E27 -> 2730.5 | F27: 2750.1 | G27: 2803.3
A28: PARK WEST | B28: 2178 | C28: 35 | D28: 2143 | E28: ='- 7 -'!E28 -> 2067 | F28: 1522 | G28: 1440.5
A29: PEMBINA TRAILS | B29: 15963 | C29: 0 | D29: 15963 | E29: ='- 7 -'!E29 -> 15147 | F29: 14564.5 | G29: 14168.3
A30: PINE CREEK | B30: 1088 | C30: 0 | D30: 1088 | E30: ='- 7 -'!E30 -> 1092 | F30: 1045.9 | G30: 997.5
A31: PORTAGE LA PRAIRIE | B31: 3481 | C31: 0 | D31: 3481 | E31: ='- 7 -'!E31 -> 3357.5 | F31: 3002.6 | G31: 2955.6
A32: PRAIRIE ROSE | B32: 2367 | C32: 0 | D32: 2367 | E32: ='- 7 -'!E32 -> 2277 | F32: 2246.2 | G32: 2213.9
A33: PRAIRIE SPIRIT | B33: 2247 | C33: 0 | D33: 2247 | E33: ='- 7 -'!E33 -> 2082.5 | F33: 2038 | G33: 1956.5
A34: RED RIVER VALLEY | B34: 2348 | C34: 0 | D34: 2348 | E34: ='- 7 -'!E34 -> 2264.5 | F34: 2192.5 | G34: 2159.9
A35: RIVER EAST TRANSCONA | B35: 17719 | C35: 0 | D35: 17719 | E35: ='- 7 -'!E35 -> 16888.5 | F35: 16259.7 | G35: 15754.1
A36: ROLLING RIVER | B36: 1822 | C36: 0 | D36: 1822 | E36: ='- 7 -'!E36 -> 1761.5 | F36: 1642.5 | G36: 1600.5
A37: SEINE RIVER | B37: 4663 | C37: 0 | D37: 4663 | E37: ='- 7 -'!E37 -> 4462 | F37: 4256.4 | G37: 4073.7
A38: SEVEN OAKS | B38: 11838 | C38: 0 | D38: 11838 | E38: ='- 7 -'!E38 -> 11510.5 | F38: 11156.1 | G38: 11007.1
A39: SOUTHWEST HORIZON | B39: 1507 | C39: 0 | D39: 1507 | E39: ='- 7 -'!E39 -> 1461.5 | F39: 1464.7 | G39: 1460.3
A40: ST. JAMES-ASSINIBOIA | B40: 8319 | C40: 0 | D40: 8319 | E40: ='- 7 -'!E40 -> 8054.9 | F40: 7917.4 | G40: 7881.9
A41: SUNRISE | B41: 4754 | C41: 0 | D41: 4754 | E41: ='- 7 -'!E41 -> 4592 | F41: 4466.4 | G41: 4308.5
A42: SWAN VALLEY | B42: 1403 | C42: 0 | D42: 1403 | E42: ='- 7 -'!E42 -> 1353 | F42: 1281.2 | G42: 1265.2
A43: TURTLE MOUNTAIN | B43: 1066 | C43: 0 | D43: 1066 | E43: ='- 7 -'!E43 -> 1029.5 | F43: 1010.5 | G43: 964.9
A44: TURTLE RIVER | B44: 620 | C44: 7 | D44: 613 | E44: ='- 7 -'!E44 -> 595 | F44: 643 | G44: 648
A45: WESTERN | B45: 2093 | C45: 0 | D45: 2093 | E45: ='- 7 -'!E45 -> 1983.5 | F45: 1807.1 | G45: 1783
A46: WINNIPEG | B46: 29902 | C46: 1261 | D46: 28641 | E46: ='- 7 -'!E46 -> 27820.56 | F46: 26737.3 | G46: 26958.2
A48: PROVINCE | B48: =SUM(B11:B46) -> 189726 | C48: 1778 | D48: 187948 | E48: 182925.37 | F48: 169072.7 | G48: 167170.4
A50: WHITESHELL | B50: 200 | C50: 10 | D50: =+B50-C50 -> 190 | E50: ='- 7 -'!E50 -> 201 | F50: 173 | G50: 184
A52: (1) Pupils taught in schools, whether or not they are counted for grant purposes.
A53: (2) The total number of pupils enrolled in schools adjusted for full time equivalence (F.T.E.). Full time equivalent means pupils are counted on the basis of time attending school - eg. Kindergarten as 1/2. This total is the same as reported on page 7.
A54: ="(3) 'Eligible Enrolment' count is the number of provincially supported pupils (actual September 30, "&FALLYR-1&" for "&CurrY&" and actual September 30,"&FALLYR-2&" for "&PrevY&"). These figures are not comparative to FTE enrolment reported for Sept 30, "&FALLYR&" in the previous column. The Whiteshell Special Revenue District includes out-of-district pupils." -> (3) 'Eligible Enrolment' count is the number of provincially supported pupils (actual September 30, 2021 for 2022/23 and actual September 30,2020 for 2021/22). These figures are not comparative to FTE enrolment reported for Sept 30, 2022 in the previous column. The Whiteshell Special Revenue District includes out-of-district pupils.
C64: `

Sheet - 9 -
B2: PUPIL / TEACHER RATIOS
B3: =STATDATE -> ACTUAL SEPTEMBER 30, 2022
B7: PUPIL / TEACHER RATIOS
B8: REGULAR INSTRUCTION (1)
A9: DIVISION / DISTRICT | C9: EDUCATOR (2)
A11: BEAUTIFUL PLAINS | B11: 16.22672065 | C11: 13.9895288
A12: BORDER LAND | B12: 13.25506757 | C12: 10.79224523
A13: BRANDON | B13: 17.04861959 | C13: 13.18670776
A14: DSFM | B14: 14.51928961 | C14: 11.57552502
A15: EVERGREEN | B15: 14.46010703 | C15: 11.85852385
A16: FLIN FLON | B16: 14.54135922 | C16: 11.84936709
A17: FORT LA BOSSE | B17: 14.79642014 | C17: 12.88540596
A18: FRONTIER | B18: 13.65231432 | C18: 10.86729273
A19: GARDEN VALLEY | B19: 18.47511312 | C19: 14.60822898
A20: HANOVER | B20: 16.94819181 | C20: 13.78529568
A21: INTERLAKE | B21: 17.4145935 | C21: 13.13167579
A22: KELSEY | B22: 16.54901961 | C22: 12.66180883
A23: LAKESHORE | B23: 14.64257028 | C23: 11.40801001
A24: LORD SELKIRK | B24: 14.01671309 | C24: 11.37603617
A25: LOUIS RIEL | B25: 19.47805088 | C25: 14.59763112
A26: MOUNTAIN VIEW | B26: 16.30034676 | C26: 12.77382943
A27: MYSTERY LAKE | B27: 14.88010899 | C27: 11.93922169
A28: PARK WEST | B28: 14.46010703 | C28: 11.85852385
A29: PEMBINA TRAILS | B29: 19.22208122 | C29: 14.6783212
A30: PINE CREEK | B30: 12.21886539 | C30: 10.61533975
A31: PORTAGE LA PRAIRIE | B31: 15.73336457 | C31: 12.75403609
A32: PRAIRIE ROSE | B32: 14.77132663 | C32: 11.96783349
A33: PRAIRIE SPIRIT | B33: 15.71535622 | C33: 12.88152032
A34: RED RIVER VALLEY | B34: 15.93932568 | C34: 12.65932469
A35: RIVER EAST TRANSCONA | B35: 17.66930666 | C35: 13.88788382
A36: ROLLING RIVER | B36: 15.89371109 | C36: 13.137679
A37: SEINE RIVER | B37: 18.19219636 | C37: 13.99447999
A38: SEVEN OAKS | B38: 16.48147883 | C38: 13.4706082
A39: SOUTHWEST HORIZON | B39: 13.88994488 | C39: 11.65935381
A40: ST. JAMES-ASSINIBOIA | B40: 17.02506764 | C40: 13.12279044
A41: SUNRISE | B41: 17.09350804 | C41: 13.30243337
A42: SWAN VALLEY | B42: 14.89268024 | C42: 12.01491875
A43: TURTLE MOUNTAIN | B43: 15.02042603 | C43: 12.64742015
A44: TURTLE RIVER | B44: 10.67456046 | C44: 9.422011085
A45: WESTERN | B45: 16.22096827 | C45: 13.54294688
A46: WINNIPEG | B46: 16.73920578 | C46: 12.87392874
A48: PROVINCE | B48: 16.6330377 | C48: 13.10918522
A50: WHITESHELL | B50: 12.25609756 | C50: 10.20304569
A52: (1) Based on object code 330 Instructional-Teaching personnel and FTE students in Function 100. Included are teachers in physical education, music, EAL, etc. in addition to regular classroom teachers. School-based administrative personnel and teachers in Student Support Services (Function 200) are excluded.
A54: (2) Based on total Instructional-Teaching (excluding Community Education and Adult Learning Centres) as well as school-based administrative staff. eg. department heads, coordinators, principals and vice-principals - and K-12 FTE enrolment. Division administrators (Function 500) are excluded.

Sheet - 10 -
C2: =OPYEAR -> OPERATING FUND 2022/2023 ACTUAL
C5: EXPENSE BY FUNCTION AND OBJECT
C8: OBJECT
D10: EMPLOYEE BENEFITS | F10: SUPPLIES AND MATERIALS | G10: DEBT SERVICES | H10: BAD DEBT EXPENSE
A11: FUNCTION | C11: SALARIES | E11: SERVICES | I11: TRANSFERS | K11: TOTALS
A13: 100 | B13: REGULAR INSTRUCTION | C13: ='- 12 -'!B21 -> 1301526613 | D13: ='- 12 -'!B22 -> 89050064 | E13: ='- 12 -'!B39 -> 36740465 | F13: ='- 12 -'!B45 -> 84362445 | K13: =SUM(C13:F13) -> 1511679587
A14: 200 | B14: STUDENT SUPPORT SERVICES | C14: ='- 12 -'!D21 -> 459767347 | D14: ='- 12 -'!D22 -> 49914433 | E14: ='- 12 -'!D39 -> 13426237 | F14: ='- 12 -'!D45 -> 4923445 | K14: =SUM(C14:F14) -> 528031462
A15: 300 | B15: ADULT LEARNING CENTRES | C15: ='- 12 -'!F21 -> 10754007 | D15: ='- 12 -'!F22 -> 820381 | E15: ='- 12 -'!F39 -> 1140030 | F15: ='- 12 -'!F45 -> 700392 | I15: ='- 12 -'!F47 -> 66900 | J15: (1) | K15: =SUM(C15:F15,I15) -> 13481710
A16: 400 | B16: COMMUNITY EDUCATION & SERVICES | C16: ='- 12 -'!H21 -> 17342045 | D16: ='- 12 -'!H22 -> 1915646 | E16: ='- 12 -'!H39 -> 2001643 | F16: ='- 12 -'!H45 -> 1607123 | I16: ='- 12 -'!H47 -> 231429 | J16: (1) | K16: =SUM(C16:F16,I16) -> 23097886
A17: 500 | B17: DIVISIONAL ADMINISTRATION | C17: ='- 12 -'!J21 -> 54293434 | D17: ='- 12 -'!J22 -> 8770388 | E17: ='- 12 -'!J39 -> 21995810 | F17: ='- 12 -'!J45 -> 2262941 | I17: ='- 12 -'!J47 -> -298329 | J17: (1) | K17: =SUM(C17:F17,I17) -> 87024244
A19: 600 | B19: INSTRUCTIONAL AND OTHER SUPPORT SERVICES | C19: ='- 13 -'!B21 -> 54856257 | D19: ='- 13 -'!B22 -> 6025091 | E19: ='- 13 -'!B39 -> 16082959 | F19: ='- 13 -'!B45 -> 9296607 | K19: =SUM(C19:F19) -> 86260914
A20: 700 | B20: TRANSPORTATION OF PUPILS | C20: ='- 13 -'!D21 -> 53056009 | D20: ='- 13 -'!D22 -> 8402839 | E20: ='- 13 -'!D39 -> 34087270 | F20: ='- 13 -'!D45 -> 25578514 | K20: =SUM(C20:F20) -> 121124632 | L20: - 10 -
A21: 800 | B21: OPERATIONS AND MAINTENANCE | C21: ='- 13 -'!F21 -> 131916304 | D21: ='- 13 -'!F22 -> 23570837 | E21: ='- 13 -'!F39 -> 131089355 | F21: ='- 13 -'!F45 -> 28099502 | I21: ='- 13 -'!F47 -> 0 | K21: =SUM(C21:F21,I21) -> 314675998
A22: 900 | B22: FISCAL | G22: 3810587 | H22: 11110 | I22: 43331984 | J22: (2) | K22: =SUM(G22:I22) -> 47153681
B25: TOTALS | C25: =SUM(C13:C22) -> 2083512016 | D25: =SUM(D13:D22) -> 188469679 | E25: =SUM(E13:E22) -> 256563769 | F25: =SUM(F13:F22) -> 156830969 | G25: =G22 -> 3810587 | H25: =H22 -> 11110 | I25: =SUM(I13:I22) -> 43331984 | K25: =SUM(K13:K22) -> 2732530114 | M25: =K25-'- 3 -'!D48 -> 0
A27: (1) | B27: Reallocation of administration costs associated with Adult Learning Centre operations from Function 500 to Function 300.
A28: (2) | B28: Health and Post Secondary Education Levy

Sheet - 11 -
AE1: =CurrY&" OPERATING FUND EXPENSE BY OBJECT" -> 2022/23 OPERATING FUND EXPENSE BY OBJECT
U29: - 11 -

Sheet - 12 -
D2: =OPYEAR -> OPERATING FUND 2022/2023 ACTUAL | K2: PAGE 1 OF 2
B4: EXPENSE BY 2ND LEVEL OBJECT
B5: AS A PERCENTAGE OF TOTAL OPERATING FUND EXPENSES
B7: FUNCTION
B8: REGULAR INSTRUCTION | D8: STUDENT SUPPORT SERVICES | F8: ADULT LEARNING CENTRES | H8: COMMUNITY EDUCATION | J8: DIVISIONAL ADMINISTRATION
A10: OBJECT | B10: AMOUNT | C10: % | D10: AMOUNT | E10: % | F10: AMOUNT | G10: % | H10: AMOUNT | I10: % | J10: AMOUNT | K10: %
A12: SALARIES
A13: TRUSTEES REMUNERATION | J13: 4234653
A14: EXECUTIVE, MANAGERIAL & SUPERVISORY | B14: 110258791 | C14: =B14/'- 13 -'!$J$53*100 -> 4.035043948 | D14: 7701888 | E14: =D14/'- 13 -'!$J$53*100 -> 0.2818592176 | F14: 1223564 | G14: =F14/'- 13 -'!$J$53*100 -> 0.04477769499 | H14: 896013 | I14: =H14/'- 13 -'!$J$53*100 -> 0.03279059928 | J14: 23123089 | K14: =J14/'- 13 -'!$J$53*100 -> 0.8462153402
A15: INSTRUCTIONAL - TEACHING | B15: 1102321670 | C15: =B15/'- 13 -'!$J$53*100 -> 40.34069613 | D15: 192247657 | E15: =D15/'- 13 -'!$J$53*100 -> 7.035518328 | F15: 8012712 | G15: =F15/'- 13 -'!$J$53*100 -> 0.29323417 | H15: 8146841 | I15: =H15/'- 13 -'!$J$53*100 -> 0.298142771 | K15: =J15/'- 13 -'!$J$53*100 -> 0
A16: INSTRUCTIONAL - OTHER | B16: 23913081 | C16: =B16/'- 13 -'!$J$53*100 -> 0.8751259822 | D16: 203345693 | E16: =D16/'- 13 -'!$J$53*100 -> 7.441663386 | F16: 364342 | G16: =F16/'- 13 -'!$J$53*100 -> 0.01333350356 | H16: 5376661 | I16: =H16/'- 13 -'!$J$53*100 -> 0.1967649312 | K16: =J16/'- 13 -'!$J$53*100 -> 0
A17: TECHNICAL, SPECIALIZED AND SERVICE | B17: 7914312 | C17: =B17/'- 13 -'!$J$53*100 -> 0.2896331118 | D17: 2070851 | E17: =D17/'- 13 -'!$J$53*100 -> 0.07578511173 | F17: 457062 | G17: =F17/'- 13 -'!$J$53*100 -> 0.01672669581 | H17: 1803311 | I17: =H17/'- 13 -'!$J$53*100 -> 0.06599418578 | J17: 8371232 | K17: =J17/'- 13 -'!$J$53*100 -> 0.306354611
A18: SECRETARIAL, CLERICAL AND OTHER | B18: 42297880 | C18: =B18/'- 13 -'!$J$53*100 -> 1.547938293 | D18: 2425827 | E18: =D18/'- 13 -'!$J$53*100 -> 0.08877585603 | F18: 696327 | G18: =F18/'- 13 -'!$J$53*100 -> 0.02548286646 | H18: 551791 | I18: =H18/'- 13 -'!$J$53*100 -> 0.02019340966 | J18: 16380561 | K18: =J18/'- 13 -'!$J$53*100 -> 0.5994649763
A19: CLINICIAN | D19: 51811500 | E19: =D19/'- 13 -'!$J$53*100 -> 1.896099872 | H19: 567428
A20: INFORMATION TECHNOLOGY | B20: 14820879 | C20: =B20/'- 13 -'!$J$53*100 -> 0.5423866666 | D20: 163931 | E20: =D20/'- 13 -'!$J$53*100 -> 0.00599923855 | F20: 0 | G20: =F20/'- 13 -'!$J$53*100 -> 0 | H20: 0 | I20: =H20/'- 13 -'!$J$53*100 -> 0 | J20: 2183899 | K20: =J20/'- 13 -'!$J$53*100 -> 0.07992222991
A21: TOTAL SALARIES | B21: =SUM(B13:B20) -> 1301526613 | C21: =B21/'- 13 -'!$J$53*100 -> 47.63082413 | D21: =SUM(D13:D20) -> 459767347 | E21: =D21/'- 13 -'!$J$53*100 -> 16.82570101 | F21: =SUM(F13:F20) -> 10754007 | G21: =F21/'- 13 -'!$J$53*100 -> 0.3935549308 | H21: =SUM(H13:H20) -> 17342045 | I21: =H21/'- 13 -'!$J$53*100 -> 0.6346515601 | J21: =SUM(J13:J20) -> 54293434 | K21: =J21/'- 13 -'!$J$53*100 -> 1.986929027
A22: EMPLOYEE BENEFITS AND ALLOWANCES | B22: 89050064 | C22: =B22/'- 13 -'!$J$53*100 -> 3.25888683 | D22: 49914433 | E22: =D22/'- 13 -'!$J$53*100 -> 1.826674581 | F22: 820381 | G22: =F22/'- 13 -'!$J$53*100 -> 0.03002276154 | H22: 1915646 | I22: =H22/'- 13 -'!$J$53*100 -> 0.07010521092 | J22: 8770388 | K22: =J22/'- 13 -'!$J$53*100 -> 0.3209621718
A23: SERVICES
A24: PROFESSIONAL, TECHNICAL & SPECIALIZED | B24: 7165890 | C24: =B24/'- 13 -'!$J$53*100 -> 0.2622437705 | D24: 8409151 | E24: =D24/'- 13 -'!$J$53*100 -> 0.3077422992 | F24: 57085 | G24: =F24/'- 13 -'!$J$53*100 -> 0.002089089511 | H24: 899872 | I24: =H24/'- 13 -'!$J$53*100 -> 0.03293182371 | J24: 7922539 | K24: =J24/'- 13 -'!$J$53*100 -> 0.2899341881
A25: COMMUNICATIONS | B25: 3662740 | C25: =B25/'- 13 -'!$J$53*100 -> 0.1340420726 | D25: 298264 | E25: =D25/'- 13 -'!$J$53*100 -> 0.01091530514 | F25: 54467 | G25: =F25/'- 13 -'!$J$53*100 -> 0.001993280869 | H25: 31584 | I25: =H25/'- 13 -'!$J$53*100 -> 0.001155851855 | J25: 876189 | K25: =J25/'- 13 -'!$J$53*100 -> 0.0320651178
A26: UTILITY SERVICES | C26: =B26/'- 13 -'!$J$53*100 -> 0 | E26: =D26/'- 13 -'!$J$53*100 -> 0 | F26: 58661 | G26: =F26/'- 13 -'!$J$53*100 -> 0.002146764996 | I26: =H26/'- 13 -'!$J$53*100 -> 0 | K26: =J26/'- 13 -'!$J$53*100 -> 0
A27: TRAVEL AND MEETINGS | B27: 3149331 | C27: =B27/'- 13 -'!$J$53*100 -> 0.1152532952 | D27: 2595144 | E27: =D27/'- 13 -'!$J$53*100 -> 0.09497220128 | F27: 88993 | G27: =F27/'- 13 -'!$J$53*100 -> 0.003256798509 | H27: 117846 | I27: =H27/'- 13 -'!$J$53*100 -> 0.004312706359 | J27: 1952737 | K27: =J27/'- 13 -'!$J$53*100 -> 0.07146259761 | L27: - 12 -
A28: TRANSPORTATION OF PUPILS | C28: =B28/'- 13 -'!$J$53*100 -> 0 | E28: =D28/'- 13 -'!$J$53*100 -> 0 | G28: =F28/'- 13 -'!$J$53*100 -> 0 | I28: =H28/'- 13 -'!$J$53*100 -> 0 | K28: =J28/'- 13 -'!$J$53*100 -> 0
A29: TUITION | B29: 925427 | C29: =B29/'- 13 -'!$J$53*100 -> 0.03386703756 | D29: 938865 | E29: =D29/'- 13 -'!$J$53*100 -> 0.03435881622 | F29: 0 | G29: =F29/'- 13 -'!$J$53*100 -> 0 | I29: =H29/'- 13 -'!$J$53*100 -> 0 | K29: =J29/'- 13 -'!$J$53*100 -> 0
A30: PRINTING AND BINDING | B30: 298376 | C30: =B30/'- 13 -'!$J$53*100 -> 0.01091940391 | D30: 19428 | E30: =D30/'- 13 -'!$J$53*100 -> 0.0007109894197 | F30: 5119 | G30: =F30/'- 13 -'!$J$53*100 -> 0.0001873355384 | H30: 14969 | I30: =H30/'- 13 -'!$J$53*100 -> 0.0005478073205 | J30: 87763 | K30: =J30/'- 13 -'!$J$53*100 -> 0.003211785281
A31: INSURANCE AND BOND PREMIUMS | B31: 234518 | C31: =B31/'- 13 -'!$J$53*100 -> 0.008582448874 | D31: 145977 | E31: =D31/'- 13 -'!$J$53*100 -> 0.005342191812 | F31: 2331 | G31: =F31/'- 13 -'!$J$53*100 -> 8.530555576e-05 | H31: 16266 | I31: =H31/'- 13 -'!$J$53*100 -> 0.0005952724882 | J31: 2391669 | K31: =J31/'- 13 -'!$J$53*100 -> 0.08752580576
A32: MAINTENANCE AND REPAIR SERVICES | B32: 2598814 | C32: =B32/'- 13 -'!$J$53*100 -> 0.09510650904 | D32: 116590 | E32: =D32/'- 13 -'!$J$53*100 -> 0.004266741633 | F32: 41510 | G32: =F32/'- 13 -'!$J$53*100 -> 0.001519104942 | H32: 49136 | I32: =H32/'- 13 -'!$J$53*100 -> 0.001798186953 | J32: 118216 | K32: =J32/'- 13 -'!$J$53*100 -> 0.004326246924
A33: RENTALS | B33: 3322091 | C33: =B33/'- 13 -'!$J$53*100 -> 0.1215756409 | D33: 278789 | E33: =D33/'- 13 -'!$J$53*100 -> 0.0102025957 | F33: 763375 | G33: =F33/'- 13 -'!$J$53*100 -> 0.02793656312 | H33: 794428 | I33: =H33/'- 13 -'!$J$53*100 -> 0.02907298243 | J33: 331512 | K33: =J33/'- 13 -'!$J$53*100 -> 0.01213205294
A34: PROPERTY TAXES | C34: =B34/'- 13 -'!$J$53*100 -> 0 | E34: =D34/'- 13 -'!$J$53*100 -> 0 | F34: 2137 | G34: =F34/'- 13 -'!$J$53*100 -> 7.820590847e-05 | I34: =H34/'- 13 -'!$J$53*100 -> 0 | K34: =J34/'- 13 -'!$J$53*100 -> 0
A35: ADVERTISING | B35: 242041 | C35: =B35/'- 13 -'!$J$53*100 -> 0.008857761485 | D35: 24899 | E35: =D35/'- 13 -'!$J$53*100 -> 0.0009112067923 | F35: 24515 | G35: =F35/'- 13 -'!$J$53*100 -> 0.0008971538822 | H35: 24193 | I35: =H35/'- 13 -'!$J$53*100 -> 0.0008853699316 | J35: 665095 | K35: =J35/'- 13 -'!$J$53*100 -> 0.02433989644
A36: DUES AND FEES | B36: 1026324 | C36: =B36/'- 13 -'!$J$53*100 -> 0.03755947628 | D36: 229558 | E36: =D36/'- 13 -'!$J$53*100 -> 0.008400932119 | F36: 0 | G36: =F36/'- 13 -'!$J$53*100 -> 0 | H36: 2552 | I36: =H36/'- 13 -'!$J$53*100 -> 9.339329828e-05 | J36: 3241515 | K36: =J36/'- 13 -'!$J$53*100 -> 0.118626872
A37: PROFESSIONAL AND STAFF DEVELOPMENT | B37: 314662 | C37: =B37/'- 13 -'!$J$53*100 -> 0.01151540832 | D37: 185666 | E37: =D37/'- 13 -'!$J$53*100 -> 0.006794655219 | F37: 24071 | G37: =F37/'- 13 -'!$J$53*100 -> 0.0008809052049 | H37: 38111 | I37: =H37/'- 13 -'!$J$53*100 -> 0.00139471473 | J37: 945679 | K37: =J37/'- 13 -'!$J$53*100 -> 0.03460818218
A38: INFORMATION TECHNOLOGY SERVICES | B38: 13800251 | C38: =B38/'- 13 -'!$J$53*100 -> 0.5050356419 | D38: 183906 | E38: =D38/'- 13 -'!$J$53*100 -> 0.006730246048 | F38: 17766 | G38: =F38/'- 13 -'!$J$53*100 -> 0.0006501666682 | H38: 12686 | I38: =H38/'- 13 -'!$J$53*100 -> 0.0004642583785 | J38: 3462896 | K38: =J38/'- 13 -'!$J$53*100 -> 0.1267285576
A39: TOTAL SERVICES | B39: =SUM(B24:B38) -> 36740465 | C39: =B39/'- 13 -'!$J$53*100 -> 1.344558467 | D39: =SUM(D24:D38) -> 13426237 | E39: =D39/'- 13 -'!$J$53*100 -> 0.4913481806 | F39: =SUM(F24:F38) -> 1140030 | G39: =F39/'- 13 -'!$J$53*100 -> 0.0417206747 | H39: =SUM(H24:H38) -> 2001643 | I39: =H39/'- 13 -'!$J$53*100 -> 0.07325236746 | J39: =SUM(J24:J38) -> 21995810 | K39: =J39/'- 13 -'!$J$53*100 -> 0.8049613026
A40: SUPPLIES AND EQUIPMENT
A41: SUPPLIES | B41: 41073613 | C41: =B41/'- 13 -'!$J$53*100 -> 1.503134871 | D41: 3035361 | E41: =D41/'- 13 -'!$J$53*100 -> 0.1110824354 | F41: 338965 | G41: =F41/'- 13 -'!$J$53*100 -> 0.01240480382 | H41: 1309428 | I41: =H41/'- 13 -'!$J$53*100 -> 0.04791998424 | J41: 1203380 | K41: =J41/'- 13 -'!$J$53*100 -> 0.04403903891
A42: CURRICULAR AND MEDIA MATERIALS | B42: 8884255 | C42: =B42/'- 13 -'!$J$53*100 -> 0.3251292622 | D42: 728459 | E42: =D42/'- 13 -'!$J$53*100 -> 0.02665877299 | F42: 88596 | G42: =F42/'- 13 -'!$J$53*100 -> 0.003242269849 | H42: 82314 | I42: =H42/'- 13 -'!$J$53*100 -> 0.003012373023 | J42: 66853 | K42: =J42/'- 13 -'!$J$53*100 -> 0.002446560411
A43: MINOR EQUIPMENT | B43: 11869930 | C43: =B43/'- 13 -'!$J$53*100 -> 0.4343933829 | D43: 541766 | E43: =D43/'- 13 -'!$J$53*100 -> 0.01982653356 | F43: 89944 | G43: =F43/'- 13 -'!$J$53*100 -> 0.003291601419 | H43: 145106 | I43: =H43/'- 13 -'!$J$53*100 -> 0.005310316591 | J43: 257195 | K43: =J43/'- 13 -'!$J$53*100 -> 0.009412339088
A44: INFORMATION TECHNOLOGY EQUIPMENT | B44: 22534647 | C44: =B44/'- 13 -'!$J$53*100 -> 0.8246806461 | D44: 617859 | E44: =D44/'- 13 -'!$J$53*100 -> 0.02261124212 | F44: 182887 | G44: =F44/'- 13 -'!$J$53*100 -> 0.006692954601 | H44: 70275 | I44: =H44/'- 13 -'!$J$53*100 -> 0.002571792334 | J44: 735513 | K44: =J44/'- 13 -'!$J$53*100 -> 0.02691692202
A45: TOTAL SUPPLIES AND EQUIPMENT | B45: =SUM(B41:B44) -> 84362445 | C45: =B45/'- 13 -'!$J$53*100 -> 3.087338162 | D45: =SUM(D41:D44) -> 4923445 | E45: =D45/'- 13 -'!$J$53*100 -> 0.1801789841 | F45: =SUM(F41:F44) -> 700392 | G45: =F45/'- 13 -'!$J$53*100 -> 0.02563162969 | H45: =SUM(H41:H44) -> 1607123 | I45: =H45/'- 13 -'!$J$53*100 -> 0.05881446619 | J45: =SUM(J41:J44) -> 2262941 | K45: =J45/'- 13 -'!$J$53*100 -> 0.08281486043
A46: TRANSFERS
A47: RECHARGE (1) | F47: 66900 | H47: 231429 | J47: -298329
A48: TOTAL TRANSFERS | F48: =F47 -> 66900 | H48: =H47 -> 231429 | J48: =J47 -> -298329
A50: PROVINCE | B50: =SUM(B48,B45,B39,B22,B21) -> 1511679587 | C50: =B50/'- 13 -'!$J$53*100 -> 55.32160759 | D50: =SUM(D48,D45,D39,D22,D21) -> 528031462 | E50: =D50/'- 13 -'!$J$53*100 -> 19.32390276 | F50: =SUM(F48,F45,F39,F22,F21) -> 13481710 | G50: =F50/'- 13 -'!$J$53*100 -> 0.4933782772 | H50: =SUM(H48,H45,H39,H22,H21) -> 23097886 | I50: =H50/'- 13 -'!$J$53*100 -> 0.8452930082 | J50: =SUM(J48,J45,J39,J22,J21) -> 87024244 | K50: =J50/'- 13 -'!$J$53*100 -> 3.184749678
A51: (1) Reallocation of administration costs associated with Adult Learning Centres and Community Education.
B52: =+B50-'- 15 -'!B48 -> 0 | D52: =+D50-'- 15 -'!E48 -> 0 | F52: =+F50-'- 15 -'!H48 -> 0 | H52: =H50-'- 16 -'!B48 -> 0 | J52: =+J50-'- 16 -'!D48 -> 0
F54: =+F50-'- 15 -'!H48 -> 0 | J54: =+J50-'- 16 -'!D48 -> 0

Sheet - 13 -
C2: =OPYEAR -> OPERATING FUND 2022/2023 ACTUAL | K2: PAGE 2 OF 2
B4: EXPENSE BY 2ND LEVEL OBJECT
B5: AS A PERCENTAGE OF TOTAL OPERATING FUND EXPENSES
B7: FUNCTION
B8: INSTRUCTIONAL & OTHER SUPPORT SERVICES | D8: TRANSPORTATION OF PUPILS | F8: OPERATIONS AND MAINTENANCE
H9: FISCAL | J9: TOTAL
A10: OBJECT | B10: AMOUNT | C10: % | D10: AMOUNT | E10: % | F10: AMOUNT | G10: % | H10: AMOUNT | I10: % | J10: AMOUNT | K10: %
A12: SALARIES | M12: SALARIES | N12: =K21/100 -> 0.7624845579
A13: TRUSTEES REMUNERATION | J13: =SUM(F13,D13,B13,'- 12 -'!J13,'- 12 -'!H13,'- 12 -'!F13,'- 12 -'!D13,'- 12 -'!B13) -> 4234653 | K13: =J13/$J$53*100 -> 0.1549718694 | M13: EMPLOYEE BENEFITS | N13: =K22/100 -> 0.06897258992
A14: EXECUTIVE, MANAGERIAL & SUPERVISORY | B14: 4476914 | C14: =B14/$J$53*100 -> 0.163837682 | D14: 3440641 | E14: =D14/$J$53*100 -> 0.125914111 | F14: 5640887 | G14: =F14/$J$53*100 -> 0.2064345777 | J14: =SUM(F14,D14,B14,'- 12 -'!J14,'- 12 -'!H14,'- 12 -'!F14,'- 12 -'!D14,'- 12 -'!B14) -> 156761787 | K14: 5.736873171 | M14: SERVICES | N14: =K39/100 -> 0.09389238482
A15: INSTRUCTIONAL - TEACHING | B15: 25962887 | C15: =B15/$J$53*100 -> 0.9501409286 | E15: =D15/$J$53*100 -> 0 | G15: =F15/$J$53*100 -> 0 | J15: =SUM(F15,D15,B15,'- 12 -'!J15,'- 12 -'!H15,'- 12 -'!F15,'- 12 -'!D15,'- 12 -'!B15) -> 1336691767 | K15: 48.91773233 | M15: SUPPLIES & MATERIALS | N15: =K45/100 -> 0.05739404964
A16: INSTRUCTIONAL - OTHER | B16: 16067345 | C16: =B16/$J$53*100 -> 0.588002486 | D16: 595289 | E16: =D16/$J$53*100 -> 0.02178526769 | G16: =F16/$J$53*100 -> 0 | J16: =SUM(F16,D16,B16,'- 12 -'!J16,'- 12 -'!H16,'- 12 -'!F16,'- 12 -'!D16,'- 12 -'!B16) -> 249662411 | K16: 9.136675557 | M16: DEBT SERVICES | N16: =K48/100 -> 0.001394526992
A17: TECHNICAL, SPECIALIZED AND SERVICE | B17: 5799971 | C17: =B17/$J$53*100 -> 0.2122564348 | D17: 47010108 | E17: =D17/$J$53*100 -> 1.720387554 | F17: 124010343 | G17: =F17/$J$53*100 -> 4.538297396 | J17: =SUM(F17,D17,B17,'- 12 -'!J17,'- 12 -'!H17,'- 12 -'!F17,'- 12 -'!D17,'- 12 -'!B17) -> 197437190 | K17: 7.225435101 | M17: TRANSFERS | N17: =K51/100-N16 -> 0.0158618907
A18: SECRETARIAL, CLERICAL AND OTHER | B18: 2301922 | C18: =B18/$J$53*100 -> 0.08424141378 | D18: 2009971 | E18: =D18/$J$53*100 -> 0.07355713995 | F18: 2265074 | G18: =F18/$J$53*100 -> 0.08289291995 | J18: =SUM(F18,D18,B18,'- 12 -'!J18,'- 12 -'!H18,'- 12 -'!F18,'- 12 -'!D18,'- 12 -'!B18) -> 68929353 | K18: 2.522546875
A19: CLINICIAN | J19: =SUM(F19,D19,B19,'- 12 -'!J19,'- 12 -'!H19,'- 12 -'!F19,'- 12 -'!D19,'- 12 -'!B19) -> 52378928 | K19: 1.916865535 | N19: =SUM(N12:N17) -> 1
A20: INFORMATION TECHNOLOGY | B20: 247218 | C20: =B20/'- 13 -'!$J$53*100 -> 0.009047219598 | D20: 0 | E20: =D20/'- 13 -'!$J$53*100 -> 0 | F20: 0 | G20: =F20/'- 13 -'!$J$53*100 -> 0 | J20: =SUM(F20,D20,B20,'- 12 -'!J20,'- 12 -'!H20,'- 12 -'!F20,'- 12 -'!D20,'- 12 -'!B20) -> 17415927 | K20: 0.6373553547
A21: TOTAL SALARIES | B21: =SUM(B13:B20) -> 54856257 | C21: =B21/$J$53*100 -> 2.007526165 | D21: =SUM(D13:D20) -> 53056009 | E21: =D21/$J$53*100 -> 1.941644073 | F21: =SUM(F13:F20) -> 131916304 | G21: =F21/$J$53*100 -> 4.827624893 | J21: =SUM(F21,D21,B21,'- 12 -'!J21,'- 12 -'!H21,'- 12 -'!F21,'- 12 -'!D21,'- 12 -'!B21) -> 2083512016 | K21: 76.24845579
A22: EMPLOYEE BENEFITS AND ALLOWANCES | B22: 6025091 | C22: =B22/$J$53*100 -> 0.2204949533 | D22: 8402839 | E22: =D22/$J$53*100 -> 0.3075113045 | F22: 23570837 | G22: =F22/$J$53*100 -> 0.8626011797 | J22: =SUM(F22,D22,B22,'- 12 -'!J22,'- 12 -'!H22,'- 12 -'!F22,'- 12 -'!D22,'- 12 -'!B22) -> 188469679 | K22: 6.897258992
A23: SERVICES | M23: REGULAR INSTRUCTION | N23: ='- 12 -'!C50/100 -> 0.5532160759 | O23: REGULAR INSTRUCTION
A24: PROFESSIONAL, TECHNICAL & SPECIALIZED | B24: 3118171 | C24: =B24/$J$53*100 -> 0.1141129601 | D24: 489198 | E24: =D24/$J$53*100 -> 0.01790274872 | F24: 6718274 | G24: =F24/$J$53*100 -> 0.2458627616 | J24: =SUM(F24,D24,B24,'- 12 -'!J24,'- 12 -'!H24,'- 12 -'!F24,'- 12 -'!D24,'- 12 -'!B24) -> 34780180 | K24: =J24/$J$53*100 -> 1.272819641 | M24: EXCEPTIONAL | N24: ='- 12 -'!E50/100 -> 0.1932390276 | O24: STUDENT SUPPORT SERVICES
A25: COMMUNICATIONS | B25: 117273 | C25: 0.004291736783 | D25: 405737 | E25: 0.01484839995 | F25: 592752 | G25: 0.02169242333 | J25: =SUM(F25,D25,B25,'- 12 -'!J25,'- 12 -'!H25,'- 12 -'!F25,'- 12 -'!D25,'- 12 -'!B25) -> 6039006 | K25: 0.2210041884 | M25: ADULT LEARNING CENTRES | N25: ='- 12 -'!G50/100 -> 0.004933782772 | O25: ADULT LEARNING CENTRES
A26: UTILITY SERVICES | C26: 0 | E26: 0 | F26: 57480882 | G26: 2.103577256 | J26: =SUM(F26,D26,B26,'- 12 -'!J26,'- 12 -'!H26,'- 12 -'!F26,'- 12 -'!D26,'- 12 -'!B26) -> 57539543 | K26: 2.105724021 | L26: - 13 - | M26: COMMUNITY EDUCATION | N26: ='- 12 -'!I50/100 -> 0.008452930082 | O26: COMMUNITY EDUCATION
A27: TRAVEL AND MEETINGS | B27: 1329271 | C27: 0.04864616105 | D27: 1772090 | E27: 0.06485161832 | F27: 959069 | G27: 0.03509820423 | J27: =SUM(F27,D27,B27,'- 12 -'!J27,'- 12 -'!H27,'- 12 -'!F27,'- 12 -'!D27,'- 12 -'!B27) -> 11964481 | K27: 0.4378535826 | M27: DIVISIONAL ADMINISTRATION | N27: ='- 12 -'!K50/100 -> 0.03184749678 | O27: DIVISIONAL ADMINISTRATION
A28: TRANSPORTATION OF PUPILS | C28: 0 | D28: 23817981 | E28: 0.8716456912 | G28: 0 | J28: =SUM(F28,D28,B28,'- 12 -'!J28,'- 12 -'!H28,'- 12 -'!F28,'- 12 -'!D28,'- 12 -'!B28) -> 23817981 | K28: 0.8716456912 | M28: INSTRUCTIONAL & PUPIL SUPPORT SERVICES | N28: =C53/100 -> 0.03156814761 | O28: INSTRUCTIONAL & PUPIL SUPPORT SERVICES
A29: TUITION | B29: 13319 | C29: 0.0004874237225 | E29: 0 | G29: 0 | J29: =SUM(F29,D29,B29,'- 12 -'!J29,'- 12 -'!H29,'- 12 -'!F29,'- 12 -'!D29,'- 12 -'!B29) -> 1877611 | K29: 0.0687132775 | M29: TRANSPORTATION OF PUPILS | N29: =E53/100 -> 0.0443269157 | O29: TRANSPORTATION OF PUPILS
A30: PRINTING AND BINDING | B30: 155320 | C30: 0.005684109361 | D30: 9623 | E30: 0.0003521644629 | F30: 3292 | G30: 0.0001204744271 | J30: =SUM(F30,D30,B30,'- 12 -'!J30,'- 12 -'!H30,'- 12 -'!F30,'- 12 -'!D30,'- 12 -'!B30) -> 593890 | K30: 0.02173406972 | M30: OPERATIONS & MAINTENANCE | N30: =G53/100 -> 0.1151592059 | O30: OPERATIONS & MAINTENANCE
A31: INSURANCE AND BOND PREMIUMS | B31: 192374 | C31: 0.007040141992 | D31: 1545105 | E31: 0.05654484802 | F31: 14284382 | G31: 0.522752958 | J31: =SUM(F31,D31,B31,'- 12 -'!J31,'- 12 -'!H31,'- 12 -'!F31,'- 12 -'!D31,'- 12 -'!B31) -> 18812622 | K31: 0.6884689725 | M31: FISCAL | N31: =I53/100 -> 0.01725641769 | O31: FISCAL
A32: MAINTENANCE AND REPAIR SERVICES | B32: 79933 | C32: 0.002925237661 | D32: 3985000 | E32: 0.1458355383 | F32: 40768672 | G32: 1.491975213 | J32: =SUM(F32,D32,B32,'- 12 -'!J32,'- 12 -'!H32,'- 12 -'!F32,'- 12 -'!D32,'- 12 -'!B32) -> 47757871 | K32: 1.747752779
A33: RENTALS | B33: 349113 | C33: 0.01277618125 | D33: 1335590 | E33: 0.04887741193 | F33: 4295256 | G33: 0.1571897041 | J33: =SUM(F33,D33,B33,'- 12 -'!J33,'- 12 -'!H33,'- 12 -'!F33,'- 12 -'!D33,'- 12 -'!B33) -> 11470154 | K33: 0.4197631324 | N33: =SUM(N23:N31) -> 1
A34: PROPERTY TAXES | C34: 0 | E34: 0 | F34: 5137563 | G34: 0.1880148721 | J34: =SUM(F34,D34,B34,'- 12 -'!J34,'- 12 -'!H34,'- 12 -'!F34,'- 12 -'!D34,'- 12 -'!B34) -> 5139700 | K34: 0.188093078
A35: ADVERTISING | B35: 15816 | C35: =B35/J53 -> 5.788042342e-06 | D35: 33662 | E35: =D35/J53 -> 1.231898592e-05 | F35: 36964 | G35: =F35/J53 -> 1.35273898e-05 | J35: =SUM(F35,D35,B35,'- 12 -'!J35,'- 12 -'!H35,'- 12 -'!F35,'- 12 -'!D35,'- 12 -'!B35) -> 1067185 | K35: 0.03905483034
A36: DUES AND FEES | B36: 183092 | C36: =B36/$J$53*100 -> 0.006700456806 | D36: 80885 | E36: =D36/$J$53*100 -> 0.002960077168 | F36: 110568 | G36: =F36/$J$53*100 -> 0.004046359798 | J36: =SUM(F36,D36,B36,'- 12 -'!J36,'- 12 -'!H36,'- 12 -'!F36,'- 12 -'!D36,'- 12 -'!B36) -> 4874494 | K36: 0.1783875674
A37: PROFESSIONAL AND STAFF DEVELOPMENT | B37: 9888936 | C37: =B37/'- 13 -'!$J$53*100 -> 0.3618966887 | D37: 151912 | E37: =D37/'- 13 -'!$J$53*100 -> 0.005559389784 | F37: 188600 | G37: =F37/'- 13 -'!$J$53*100 -> 0.006902028235 | J37: =SUM(F37,D37,B37,'- 12 -'!J37,'- 12 -'!H37,'- 12 -'!F37,'- 12 -'!D37,'- 12 -'!B37) -> 11737637 | K37: 0.4295519724
A38: INFORMATION TECHNOLOGY SERVICES | B38: 640341 | C38: =B38/$J$53*100 -> 0.02343399609 | D38: 460487 | E38: =D38/$J$53*100 -> 0.01685203752 | F38: 513081 | G38: =F38/$J$53*100 -> 0.01877677385 | J38: =SUM(F38,D38,B38,'- 12 -'!J38,'- 12 -'!H38,'- 12 -'!F38,'- 12 -'!D38,'- 12 -'!B38) -> 19091414 | K38: 0.698671678
A39: TOTAL SERVICES | B39: =SUM(B24:B38) -> 16082959 | C39: =B39/$J$53*100 -> 0.5885738978 | D39: =SUM(D24:D38) -> 34087270 | E39: =D39/$J$53*100 -> 1.247461824 | F39: =SUM(F24:F38) -> 131089355 | G39: =F39/$J$53*100 -> 4.797361768 | J39: =SUM(F39,D39,B39,'- 12 -'!J39,'- 12 -'!H39,'- 12 -'!F39,'- 12 -'!D39,'- 12 -'!B39) -> 256563769 | K39: 9.389238482
A40: SUPPLIES AND EQUIPMENT
A41: SUPPLIES | B41: 5262345 | C41: =B41/$J$53*100 -> 0.1925814092 | D41: 24814096 | E41: =D41/$J$53*100 -> 0.9080996353 | F41: 24430057 | G41: =F41/$J$53*100 -> 0.894045298 | J41: =SUM(F41,D41,B41,'- 12 -'!J41,'- 12 -'!H41,'- 12 -'!F41,'- 12 -'!D41,'- 12 -'!B41) -> 101467245 | K41: =J41/$J$53*100 -> 3.713307476
A42: CURRICULAR AND MEDIA MATERIALS | B42: 2822519 | C42: =B42/$J$53*100 -> 0.1032932441 | D42: 17186 | E42: =D42/$J$53*100 -> 0.0006289409186 | F42: 331000 | G42: =F42/$J$53*100 -> 0.01211331573 | J42: =SUM(F42,D42,B42,'- 12 -'!J42,'- 12 -'!H42,'- 12 -'!F42,'- 12 -'!D42,'- 12 -'!B42) -> 13021182 | K42: =J42/$J$53*100 -> 0.4765247392
A43: MINOR EQUIPMENT | B43: 622980 | C43: =B43/$J$53*100 -> 0.02279865085 | D43: 487493 | E43: =D43/$J$53*100 -> 0.01784035234 | F43: 3187652 | G43: =F43/$J$53*100 -> 0.1166556952 | J43: =SUM(F43,D43,B43,'- 12 -'!J43,'- 12 -'!H43,'- 12 -'!F43,'- 12 -'!D43,'- 12 -'!B43) -> 17202066 | K43: =J43/$J$53*100 -> 0.6295288719
A44: INFORMATION TECHNOLOGY EQUIPMENT | B44: 588763 | C44: =B44/$J$53*100 -> 0.02154644141 | D44: 259739 | E44: =D44/$J$53*100 -> 0.009505439617 | F44: 150793 | G44: =F44/$J$53*100 -> 0.005518438726 | J44: =SUM(F44,D44,B44,'- 12 -'!J44,'- 12 -'!H44,'- 12 -'!F44,'- 12 -'!D44,'- 12 -'!B44) -> 25140476 | K44: =J44/$J$53*100 -> 0.920043877
A45: TOTAL SUPPLIES AND EQUIPMENT | B45: =SUM(B41:B44) -> 9296607 | C45: =B45/$J$53*100 -> 0.3402197455 | D45: =SUM(D41:D44) -> 25578514 | E45: =D45/$J$53*100 -> 0.9360743682 | F45: =SUM(F41:F44) -> 28099502 | G45: =F45/$J$53*100 -> 1.028332748 | J45: =SUM(F45,D45,B45,'- 12 -'!J45,'- 12 -'!H45,'- 12 -'!F45,'- 12 -'!D45,'- 12 -'!B45) -> 156830969 | K45: =J45/$J$53*100 -> 5.739404964
A46: TRANSFERS
A47: RECHARGE (1) | D47: 0 | F47: 0 | H47: ='- 10 -'!G21 -> 0
A48: DEBT SERVICES | H48: ='- 10 -'!G22 -> 3810587 | I48: =H48/$J$53*100 -> 0.1394526992 | J48: =H48 -> 3810587 | K48: =J48/$J$53*100 -> 0.1394526992
A49: BAD DEBT EXPENSE | H49: ='- 10 -'!H22 -> 11110 | I49: =H49/$J$53*100 -> 0.0004065828934 | J49: =H49 -> 11110 | K49: =J49/$J$53*100 -> 0.0004065828934
A50: OTHER GOVERNMENT AUTHORITIES | H50: ='- 10 -'!I22 -> 43331984 | I50: =H50/$J$53*100 -> 1.585782487 | J50: =H50 -> 43331984 | K50: =J50/$J$53*100 -> 1.585782487
A51: TOTAL TRANSFERS | F51: =SUM(F47:F50) -> 0 | H51: =SUM(H48:H50) -> 47153681 | I51: =H51/$J$53*100 -> 1.725641769 | J51: =SUM(J47:J50) -> 47153681 | K51: =J51/$J$53*100 -> 1.725641769
A53: PROVINCE | B53: =SUM(B51,B45,B39,B22,B21) -> 86260914 | C53: =B53/$J$53*100 -> 3.156814761 | D53: =SUM(D51,D45,D39,D22,D21) -> 121124632 | E53: =D53/$J$53*100 -> 4.43269157 | F53: =SUM(F51,F45,F39,F22,F21) -> 314675998 | G53: =F53/$J$53*100 -> 11.51592059 | H53: =SUM(H51,H45,H39,H22,H21) -> 47153681 | I53: =H53/$J$53*100 -> 1.725641769 | J53: =SUM(J51,J45,J39,J22,J21) -> 2732530114 | K53: =J53/$J$53*100 -> 100
B54: =+B53-'- 16 -'!G48 -> 0 | D54: =+D53-'- 17 -'!B48 -> 0 | F54: =+F53-'- 17 -'!E48 -> 0 | H54: =+H53-'- 17 -'!H48 -> 0 | J54: =+J53-'- 3 -'!D48 -> 0

Sheet - 14 -
AC1: =CurrY&" OPERATING FUND EXPENSE BY FUNCTION" -> 2022/23 OPERATING FUND EXPENSE BY FUNCTION
U23: - 14 -

Sheet - 15 -
B2: ANALYSIS OF EXPENSE BY FUNCTION | I2: PAGE 1 OF 3
B3: =OPYEAR -> OPERATING FUND 2022/2023 ACTUAL
E6: STUDENT SUPPORT SERVICES | H6: ADULT LEARNING CENTRES
B7: REGULAR INSTRUCTION
D8: PER PUPIL | G8: PER PUPIL
A9: DIVISION / DISTRICT | B9: AMOUNT | C9: % | E9: AMOUNT | F9: % | H9: AMOUNT | I9: %
A11: BEAUTIFUL PLAINS | B11: =SUM('- 18 -'!B11,'- 18 -'!E11,'- 19 -'!B11,'- 19 -'!E11,'- 19 -'!H11,'- 20 -'!B11) -> 16065835 | C11: =B11/'- 3 -'!D11*100 -> 63.88799039 | D11: =B11/'- 7 -'!C11 -> 8016.883733 | E11: =SUM('- 21 -'!B11,'- 21 -'!E11,'- 21 -'!H11,'- 22 -'!B11,'- 22 -'!E11,'- 22 -'!H11) -> 3287714 | F11: =E11/'- 3 -'!D11*100 -> 13.07404442 | G11: =E11/'- 7 -'!E11 -> 1640.575848 | H11: =SUM('- 23 -'!D11,'- 23 -'!B11) -> 0 | I11: =H11/'- 3 -'!D11*100 -> 0
A12: BORDER LAND | B12: =SUM('- 18 -'!B12,'- 18 -'!E12,'- 19 -'!B12,'- 19 -'!E12,'- 19 -'!H12,'- 20 -'!B12) -> 21442606 | C12: =B12/'- 3 -'!D12*100 -> 57.5232146 | D12: =B12/'- 7 -'!C12 -> 10509.94795 | E12: =SUM('- 21 -'!B12,'- 21 -'!E12,'- 21 -'!H12,'- 22 -'!B12,'- 22 -'!E12,'- 22 -'!H12) -> 5707359 | F12: =E12/'- 3 -'!D12*100 -> 15.31090188 | G12: =E12/'- 7 -'!E12 -> 2797.423317 | H12: =SUM('- 23 -'!D12,'- 23 -'!B12) -> 371304 | I12: =H12/'- 3 -'!D12*100 -> 0.9960822706
A13: BRANDON | B13: =SUM('- 18 -'!B13,'- 18 -'!E13,'- 19 -'!B13,'- 19 -'!E13,'- 19 -'!H13,'- 20 -'!B13) -> 69818651 | C13: =B13/'- 3 -'!D13*100 -> 60.77206807 | D13: =B13/'- 7 -'!C13 -> 7696.568446 | E13: =SUM('- 21 -'!B13,'- 21 -'!E13,'- 21 -'!H13,'- 22 -'!B13,'- 22 -'!E13,'- 22 -'!H13) -> 24338103 | F13: =E13/'- 3 -'!D13*100 -> 21.18455214 | G13: =E13/'- 7 -'!E13 -> 2682.948938 | H13: =SUM('- 23 -'!D13,'- 23 -'!B13) -> 0 | I13: =H13/'- 3 -'!D13*100 -> 0
A14: DSFM | B14: =SUM('- 18 -'!B14,'- 18 -'!E14,'- 19 -'!B14,'- 19 -'!E14,'- 19 -'!H14,'- 20 -'!B14) -> 56684482 | C14: =B14/'- 3 -'!D14*100 -> 53.73462823 | D14: =B14/'- 7 -'!C14 -> 9710.919466 | E14: =SUM('- 21 -'!B14,'- 21 -'!E14,'- 21 -'!H14,'- 22 -'!B14,'- 22 -'!E14,'- 22 -'!H14) -> 13513424 | F14: =E14/'- 3 -'!D14*100 -> 12.81018701 | G14: =E14/'- 7 -'!E14 -> 2315.056388 | H14: =SUM('- 23 -'!D14,'- 23 -'!B14) -> 286706 | I14: =H14/'- 3 -'!D14*100 -> 0.2717858535
A15: EVERGREEN | B15: =SUM('- 18 -'!B15,'- 18 -'!E15,'- 19 -'!B15,'- 19 -'!E15,'- 19 -'!H15,'- 20 -'!B15) -> 19537377 | C15: =B15/'- 3 -'!D15*100 -> 59.98158496 | D15: =B15/'- 7 -'!C15 -> 9452.044993 | E15: =SUM('- 21 -'!B15,'- 21 -'!E15,'- 21 -'!H15,'- 22 -'!B15,'- 22 -'!E15,'- 22 -'!H15) -> 4351325 | F15: =E15/'- 3 -'!D15*100 -> 13.35897701 | G15: =E15/'- 7 -'!E15 -> 2105.1403 | H15: =SUM('- 23 -'!D15,'- 23 -'!B15) -> 110582 | I15: =H15/'- 3 -'!D15*100 -> 0.3394971407
A16: FLIN FLON | B16: =SUM('- 18 -'!B16,'- 18 -'!E16,'- 19 -'!B16,'- 19 -'!E16,'- 19 -'!H16,'- 20 -'!B16) -> 9356417 | C16: =B16/'- 3 -'!D16*100 -> 56.16959412 | D16: =B16/'- 7 -'!C16 -> 9995.104156 | E16: =SUM('- 21 -'!B16,'- 21 -'!E16,'- 21 -'!H16,'- 22 -'!B16,'- 22 -'!E16,'- 22 -'!H16) -> 2840137 | F16: =E16/'- 3 -'!D16*100 -> 17.05026 | G16: =E16/'- 7 -'!E16 -> 3034.010255 | H16: =SUM('- 23 -'!D16,'- 23 -'!B16) -> 94000 | I16: =H16/'- 3 -'!D16*100 -> 0.5643123695
A17: FORT LA BOSSE | B17: =SUM('- 18 -'!B17,'- 18 -'!E17,'- 19 -'!B17,'- 19 -'!E17,'- 19 -'!H17,'- 20 -'!B17) -> 12579285 | C17: =B17/'- 3 -'!D17*100 -> 60.70399695 | D17: =B17/'- 7 -'!C17 -> 8361.10668 | E17: =SUM('- 21 -'!B17,'- 21 -'!E17,'- 21 -'!H17,'- 22 -'!B17,'- 22 -'!E17,'- 22 -'!H17) -> 2370693 | F17: =E17/'- 3 -'!D17*100 -> 11.44027984 | G17: =E17/'- 7 -'!E17 -> 1575.734796 | H17: =SUM('- 23 -'!D17,'- 23 -'!B17) -> 0 | I17: =H17/'- 3 -'!D17*100 -> 0
A18: FRONTIER | B18: =SUM('- 18 -'!B18,'- 18 -'!E18,'- 19 -'!B18,'- 19 -'!E18,'- 19 -'!H18,'- 20 -'!B18) -> 66293539 | C18: =B18/'- 3 -'!D18*100 -> 41.06179769 | D18: =B18/'- 7 -'!C18 -> 10453.92084 | E18: =SUM('- 21 -'!B18,'- 21 -'!E18,'- 21 -'!H18,'- 22 -'!B18,'- 22 -'!E18,'- 22 -'!H18) -> 23574755 | F18: =E18/'- 3 -'!D18*100 -> 14.60205376 | G18: =E18/'- 7 -'!E18 -> 3717.536072 | H18: =SUM('- 23 -'!D18,'- 23 -'!B18) -> 2372270 | I18: =H18/'- 3 -'!D18*100 -> 1.469368995
A19: GARDEN VALLEY | B19: =SUM('- 18 -'!B19,'- 18 -'!E19,'- 19 -'!B19,'- 19 -'!E19,'- 19 -'!H19,'- 20 -'!B19) -> 31757269 | C19: =B19/'- 3 -'!D19*100 -> 58.4056412 | D19: =B19/'- 7 -'!C19 -> 7777.9253 | E19: =SUM('- 21 -'!B19,'- 21 -'!E19,'- 21 -'!H19,'- 22 -'!B19,'- 22 -'!E19,'- 22 -'!H19) -> 9951687 | F19: =E19/'- 3 -'!D19*100 -> 18.30241323 | G19: =E19/'- 7 -'!E19 -> 2437.346804 | H19: =SUM('- 23 -'!D19,'- 23 -'!B19) -> 0 | I19: =H19/'- 3 -'!D19*100 -> 0
A20: HANOVER | B20: =SUM('- 18 -'!B20,'- 18 -'!E20,'- 19 -'!B20,'- 19 -'!E20,'- 19 -'!H20,'- 20 -'!B20) -> 61163526 | C20: =B20/'- 3 -'!D20*100 -> 59.93585978 | D20: =B20/'- 7 -'!C20 -> 7576.306949 | E20: =SUM('- 21 -'!B20,'- 21 -'!E20,'- 21 -'!H20,'- 22 -'!B20,'- 22 -'!E20,'- 22 -'!H20) -> 19935964 | F20: =E20/'- 3 -'!D20*100 -> 19.53581196 | G20: =E20/'- 7 -'!E20 -> 2469.461662 | H20: =SUM('- 23 -'!D20,'- 23 -'!B20) -> 0 | I20: =H20/'- 3 -'!D20*100 -> 0
A21: INTERLAKE | B21: =SUM('- 18 -'!B21,'- 18 -'!E21,'- 19 -'!B21,'- 19 -'!E21,'- 19 -'!H21,'- 20 -'!B21) -> 23270904 | C21: =B21/'- 3 -'!D21*100 -> 57.15248733 | D21: =B21/'- 7 -'!C21 -> 7953.145591 | E21: =SUM('- 21 -'!B21,'- 21 -'!E21,'- 21 -'!H21,'- 22 -'!B21,'- 22 -'!E21,'- 22 -'!H21) -> 7712266 | F21: =E21/'- 3 -'!D21*100 -> 18.94104264 | G21: =E21/'- 7 -'!E21 -> 2635.771018 | H21: =SUM('- 23 -'!D21,'- 23 -'!B21) -> 0 | I21: =H21/'- 3 -'!D21*100 -> 0
A22: KELSEY | B22: =SUM('- 18 -'!B22,'- 18 -'!E22,'- 19 -'!B22,'- 19 -'!E22,'- 19 -'!H22,'- 20 -'!B22) -> 11777113 | C22: =B22/'- 3 -'!D22*100 -> 53.35928281 | D22: =B22/'- 7 -'!C22 -> 7973.671632 | E22: =SUM('- 21 -'!B22,'- 21 -'!E22,'- 21 -'!H22,'- 22 -'!B22,'- 22 -'!E22,'- 22 -'!H22) -> 4700501 | F22: =E22/'- 3 -'!D22*100 -> 21.29684603 | G22: =E22/'- 7 -'!E22 -> 3182.465132 | H22: =SUM('- 23 -'!D22,'- 23 -'!B22) -> 660487 | I22: =H22/'- 3 -'!D22*100 -> 2.992508659
A23: LAKESHORE | B23: =SUM('- 18 -'!B23,'- 18 -'!E23,'- 19 -'!B23,'- 19 -'!E23,'- 19 -'!H23,'- 20 -'!B23) -> 8805015 | C23: =B23/'- 3 -'!D23*100 -> 53.40910559 | D23: =B23/'- 7 -'!C23 -> 9659.917718 | E23: =SUM('- 21 -'!B23,'- 21 -'!E23,'- 21 -'!H23,'- 22 -'!B23,'- 22 -'!E23,'- 22 -'!H23) -> 2747059 | F23: =E23/'- 3 -'!D23*100 -> 16.66299991 | G23: =E23/'- 7 -'!E23 -> 3013.778387 | H23: =SUM('- 23 -'!D23,'- 23 -'!B23) -> 288303 | I23: =H23/'- 3 -'!D23*100 -> 1.748776733
A24: LORD SELKIRK | B24: =SUM('- 18 -'!B24,'- 18 -'!E24,'- 19 -'!B24,'- 19 -'!E24,'- 19 -'!H24,'- 20 -'!B24) -> 38398070 | C24: =B24/'- 3 -'!D24*100 -> 60.04936713 | D24: =B24/'- 7 -'!C24 -> 10174.36937 | E24: =SUM('- 21 -'!B24,'- 21 -'!E24,'- 21 -'!H24,'- 22 -'!B24,'- 22 -'!E24,'- 22 -'!H24) -> 11137610 | F24: =E24/'- 3 -'!D24*100 -> 17.41770958 | G24: =E24/'- 7 -'!E24 -> 2951.142024 | H24: =SUM('- 23 -'!D24,'- 23 -'!B24) -> 366563 | I24: =H24/'- 3 -'!D24*100 -> 0.5732547537
A25: LOUIS RIEL | B25: =SUM('- 18 -'!B25,'- 18 -'!E25,'- 19 -'!B25,'- 19 -'!E25,'- 19 -'!H25,'- 20 -'!B25) -> 118475682 | C25: =B25/'- 3 -'!D25*100 -> 54.02739401 | D25: =B25/'- 7 -'!C25 -> 7271.569508 | E25: =SUM('- 21 -'!B25,'- 21 -'!E25,'- 21 -'!H25,'- 22 -'!B25,'- 22 -'!E25,'- 22 -'!H25) -> 46407505 | F25: =E25/'- 3 -'!D25*100 -> 21.16279489 | G25: =E25/'- 7 -'!E25 -> 2848.309397 | H25: =SUM('- 23 -'!D25,'- 23 -'!B25) -> 1962911 | I25: =H25/'- 3 -'!D25*100 -> 0.8951285547
A26: MOUNTAIN VIEW | B26: =SUM('- 18 -'!B26,'- 18 -'!E26,'- 19 -'!B26,'- 19 -'!E26,'- 19 -'!H26,'- 20 -'!B26) -> 26548851 | C26: =B26/'- 3 -'!D26*100 -> 57.91252627 | D26: =B26/'- 7 -'!C26 -> 8688.872852 | E26: =SUM('- 21 -'!B26,'- 21 -'!E26,'- 21 -'!H26,'- 22 -'!B26,'- 22 -'!E26,'- 22 -'!H26) -> 6464075 | F26: =E26/'- 3 -'!D26*100 -> 14.1004563 | G26: =E26/'- 7 -'!E26 -> 2115.553919 | H26: =SUM('- 23 -'!D26,'- 23 -'!B26) -> 0 | I26: =H26/'- 3 -'!D26*100 -> 0
A27: MYSTERY LAKE | B27: =SUM('- 18 -'!B27,'- 18 -'!E27,'- 19 -'!B27,'- 19 -'!E27,'- 19 -'!H27,'- 20 -'!B27) -> 25476791 | C27: =B27/'- 3 -'!D27*100 -> 55.28353316 | D27: =B27/'- 7 -'!C27 -> 9330.449002 | E27: =SUM('- 21 -'!B27,'- 21 -'!E27,'- 21 -'!H27,'- 22 -'!B27,'- 22 -'!E27,'- 22 -'!H27) -> 9575658 | F27: =E27/'- 3 -'!D27*100 -> 20.77876317 | G27: =E27/'- 7 -'!E27 -> 3506.924739 | H27: =SUM('- 23 -'!D27,'- 23 -'!B27) -> 0 | I27: =H27/'- 3 -'!D27*100 -> 0
A28: PARK WEST | B28: =SUM('- 18 -'!B28,'- 18 -'!E28,'- 19 -'!B28,'- 19 -'!E28,'- 19 -'!H28,'- 20 -'!B28) -> 19537377 | C28: =B28/'- 3 -'!D28*100 -> 59.98158496 | D28: =B28/'- 7 -'!C28 -> 9452.044993 | E28: =SUM('- 21 -'!B28,'- 21 -'!E28,'- 21 -'!H28,'- 22 -'!B28,'- 22 -'!E28,'- 22 -'!H28) -> 4351325 | F28: =E28/'- 3 -'!D28*100 -> 13.35897701 | G28: =E28/'- 7 -'!E28 -> 2105.1403 | H28: =SUM('- 23 -'!D28,'- 23 -'!B28) -> 110582 | I28: =H28/'- 3 -'!D28*100 -> 0.3394971407
A29: PEMBINA TRAILS | B29: =SUM('- 18 -'!B29,'- 18 -'!E29,'- 19 -'!B29,'- 19 -'!E29,'- 19 -'!H29,'- 20 -'!B29) -> 109228916 | C29: =B29/'- 3 -'!D29*100 -> 55.85567413 | D29: =B29/'- 7 -'!C29 -> 7211.257411 | E29: =SUM('- 21 -'!B29,'- 21 -'!E29,'- 21 -'!H29,'- 22 -'!B29,'- 22 -'!E29,'- 22 -'!H29) -> 43613527 | F29: =E29/'- 3 -'!D29*100 -> 22.30236316 | G29: =E29/'- 7 -'!E29 -> 2879.350829 | H29: =SUM('- 23 -'!D29,'- 23 -'!B29) -> 0 | I29: =H29/'- 3 -'!D29*100 -> 0
A30: PINE CREEK | B30: =SUM('- 18 -'!B30,'- 18 -'!E30,'- 19 -'!B30,'- 19 -'!E30,'- 19 -'!H30,'- 20 -'!B30) -> 11158700 | C30: =B30/'- 3 -'!D30*100 -> 64.50997865 | D30: =B30/'- 7 -'!C30 -> 10218.58974 | E30: =SUM('- 21 -'!B30,'- 21 -'!E30,'- 21 -'!H30,'- 22 -'!B30,'- 22 -'!E30,'- 22 -'!H30) -> 1532412 | F30: =E30/'- 3 -'!D30*100 -> 8.859084427 | G30: =E30/'- 7 -'!E30 -> 1403.307692 | H30: =SUM('- 23 -'!D30,'- 23 -'!B30) -> 0 | I30: =H30/'- 3 -'!D30*100 -> 0
A31: PORTAGE LA PRAIRIE | B31: =SUM('- 18 -'!B31,'- 18 -'!E31,'- 19 -'!B31,'- 19 -'!E31,'- 19 -'!H31,'- 20 -'!B31) -> 27967212 | C31: =B31/'- 3 -'!D31*100 -> 60.737341 | D31: =B31/'- 7 -'!C31 -> 8329.772748 | E31: =SUM('- 21 -'!B31,'- 21 -'!E31,'- 21 -'!H31,'- 22 -'!B31,'- 22 -'!E31,'- 22 -'!H31) -> 8201474 | F31: =E31/'- 3 -'!D31*100 -> 17.81141871 | G31: =E31/'- 7 -'!E31 -> 2442.73239 | H31: =SUM('- 23 -'!D31,'- 23 -'!B31) -> 0 | I31: =H31/'- 3 -'!D31*100 -> 0
A32: PRAIRIE ROSE | B32: =SUM('- 18 -'!B32,'- 18 -'!E32,'- 19 -'!B32,'- 19 -'!E32,'- 19 -'!H32,'- 20 -'!B32) -> 19943324 | C32: =B32/'- 3 -'!D32*100 -> 59.56203101 | D32: =B32/'- 7 -'!C32 -> 8758.596399 | E32: =SUM('- 21 -'!B32,'- 21 -'!E32,'- 21 -'!H32,'- 22 -'!B32,'- 22 -'!E32,'- 22 -'!H32) -> 4925331 | F32: =E32/'- 3 -'!D32*100 -> 14.70982058 | G32: =E32/'- 7 -'!E32 -> 2163.079051 | H32: =SUM('- 23 -'!D32,'- 23 -'!B32) -> 295816 | I32: =H32/'- 3 -'!D32*100 -> 0.883473676
A33: PRAIRIE SPIRIT | B33: =SUM('- 18 -'!B33,'- 18 -'!E33,'- 19 -'!B33,'- 19 -'!E33,'- 19 -'!H33,'- 20 -'!B33) -> 17798896 | C33: =B33/'- 3 -'!D33*100 -> 58.16193804 | D33: =B33/'- 7 -'!C33 -> 8546.888836 | E33: =SUM('- 21 -'!B33,'- 21 -'!E33,'- 21 -'!H33,'- 22 -'!B33,'- 22 -'!E33,'- 22 -'!H33) -> 4345246 | F33: =E33/'- 3 -'!D33*100 -> 14.1990789 | G33: =E33/'- 7 -'!E33 -> 2086.552701 | H33: =SUM('- 23 -'!D33,'- 23 -'!B33) -> 0 | I33: =H33/'- 3 -'!D33*100 -> 0
A34: RED RIVER VALLEY | B34: =SUM('- 18 -'!B34,'- 18 -'!E34,'- 19 -'!B34,'- 19 -'!E34,'- 19 -'!H34,'- 20 -'!B34) -> 19568875 | C34: =B34/'- 3 -'!D34*100 -> 55.31288471 | D34: =B34/'- 7 -'!C34 -> 8641.587547 | E34: =SUM('- 21 -'!B34,'- 21 -'!E34,'- 21 -'!H34,'- 22 -'!B34,'- 22 -'!E34,'- 22 -'!H34) -> 6252148 | F34: =E34/'- 3 -'!D34*100 -> 17.67216263 | G34: =E34/'- 7 -'!E34 -> 2760.939722 | H34: =SUM('- 23 -'!D34,'- 23 -'!B34) -> 0 | I34: =H34/'- 3 -'!D34*100 -> 0
A35: RIVER EAST TRANSCONA | B35: =SUM('- 18 -'!B35,'- 18 -'!E35,'- 19 -'!B35,'- 19 -'!E35,'- 19 -'!H35,'- 20 -'!B35) -> 125054368 | C35: =B35/'- 3 -'!D35*100 -> 56.40642547 | D35: =B35/'- 7 -'!C35 -> 7404.70545 | E35: =SUM('- 21 -'!B35,'- 21 -'!E35,'- 21 -'!H35,'- 22 -'!B35,'- 22 -'!E35,'- 22 -'!H35) -> 45487690 | F35: =E35/'- 3 -'!D35*100 -> 20.51746002 | G35: =E35/'- 7 -'!E35 -> 2693.412085 | H35: =SUM('- 23 -'!D35,'- 23 -'!B35) -> 1522647 | I35: =H35/'- 3 -'!D35*100 -> 0.6867978776
A36: ROLLING RIVER | B36: =SUM('- 18 -'!B36,'- 18 -'!E36,'- 19 -'!B36,'- 19 -'!E36,'- 19 -'!H36,'- 20 -'!B36) -> 15271911 | C36: =B36/'- 3 -'!D36*100 -> 56.92222579 | D36: =B36/'- 7 -'!C36 -> 8669.833097 | E36: =SUM('- 21 -'!B36,'- 21 -'!E36,'- 21 -'!H36,'- 22 -'!B36,'- 22 -'!E36,'- 22 -'!H36) -> 3524063 | F36: =E36/'- 3 -'!D36*100 -> 13.13506278 | G36: =E36/'- 7 -'!E36 -> 2000.603463 | H36: =SUM('- 23 -'!D36,'- 23 -'!B36) -> 126602 | I36: =H36/'- 3 -'!D36*100 -> 0.4718772673
A37: SEINE RIVER | B37: =SUM('- 18 -'!B37,'- 18 -'!E37,'- 19 -'!B37,'- 19 -'!E37,'- 19 -'!H37,'- 20 -'!B37) -> 33903271 | C37: =B37/'- 3 -'!D37*100 -> 53.21169393 | D37: =B37/'- 7 -'!C37 -> 7598.222994 | E37: =SUM('- 21 -'!B37,'- 21 -'!E37,'- 21 -'!H37,'- 22 -'!B37,'- 22 -'!E37,'- 22 -'!H37) -> 12977998 | F37: =E37/'- 3 -'!D37*100 -> 20.36916312 | G37: =E37/'- 7 -'!E37 -> 2908.560735 | H37: =SUM('- 23 -'!D37,'- 23 -'!B37) -> 321869 | I37: =H37/'- 3 -'!D37*100 -> 0.5051782382
A38: SEVEN OAKS | B38: =SUM('- 18 -'!B38,'- 18 -'!E38,'- 19 -'!B38,'- 19 -'!E38,'- 19 -'!H38,'- 20 -'!B38) -> 97726496 | C38: =B38/'- 3 -'!D38*100 -> 58.78445544 | D38: =B38/'- 7 -'!C38 -> 8490.204248 | E38: =SUM('- 21 -'!B38,'- 21 -'!E38,'- 21 -'!H38,'- 22 -'!B38,'- 22 -'!E38,'- 22 -'!H38) -> 29698718 | F38: =E38/'- 3 -'!D38*100 -> 17.86437697 | G38: =E38/'- 7 -'!E38 -> 2580.141436 | H38: =SUM('- 23 -'!D38,'- 23 -'!B38) -> 2196605 | I38: =H38/'- 3 -'!D38*100 -> 1.321302145
A39: SOUTHWEST HORIZON | B39: =SUM('- 18 -'!B39,'- 18 -'!E39,'- 19 -'!B39,'- 19 -'!E39,'- 19 -'!H39,'- 20 -'!B39) -> 13598764 | C39: =B39/'- 3 -'!D39*100 -> 56.74324112 | D39: =B39/'- 7 -'!C39 -> 9304.662333 | E39: =SUM('- 21 -'!B39,'- 21 -'!E39,'- 21 -'!H39,'- 22 -'!B39,'- 22 -'!E39,'- 22 -'!H39) -> 3809826 | F39: =E39/'- 3 -'!D39*100 -> 15.8971709 | G39: =E39/'- 7 -'!E39 -> 2606.791652 | H39: =SUM('- 23 -'!D39,'- 23 -'!B39) -> 0 | I39: =H39/'- 3 -'!D39*100 -> 0
A40: ST. JAMES-ASSINIBOIA | B40: =SUM('- 18 -'!B40,'- 18 -'!E40,'- 19 -'!B40,'- 19 -'!E40,'- 19 -'!H40,'- 20 -'!B40) -> 66430056 | C40: =B40/'- 3 -'!D40*100 -> 55.33897216 | D40: =B40/'- 7 -'!C40 -> 8247.160859 | E40: =SUM('- 21 -'!B40,'- 21 -'!E40,'- 21 -'!H40,'- 22 -'!B40,'- 22 -'!E40,'- 22 -'!H40) -> 27817766 | F40: =E40/'- 3 -'!D40*100 -> 23.17334458 | G40: =E40/'- 7 -'!E40 -> 3453.520962 | H40: =SUM('- 23 -'!D40,'- 23 -'!B40) -> 0 | I40: =H40/'- 3 -'!D40*100 -> 0
A41: SUNRISE | B41: =SUM('- 18 -'!B41,'- 18 -'!E41,'- 19 -'!B41,'- 19 -'!E41,'- 19 -'!H41,'- 20 -'!B41) -> 38793634 | C41: =B41/'- 3 -'!D41*100 -> 52.89144875 | D41: =B41/'- 7 -'!C41 -> 8448.091028 | E41: =SUM('- 21 -'!B41,'- 21 -'!E41,'- 21 -'!H41,'- 22 -'!B41,'- 22 -'!E41,'- 22 -'!H41) -> 15016895 | F41: =E41/'- 3 -'!D41*100 -> 20.47411522 | G41: =E41/'- 7 -'!E41 -> 3270.229747 | H41: =SUM('- 23 -'!D41,'- 23 -'!B41) -> 971139 | I41: =H41/'- 3 -'!D41*100 -> 1.324056123
A42: SWAN VALLEY | B42: =SUM('- 18 -'!B42,'- 18 -'!E42,'- 19 -'!B42,'- 19 -'!E42,'- 19 -'!H42,'- 20 -'!B42) -> 13066456 | C42: =B42/'- 3 -'!D42*100 -> 53.85730743 | D42: =B42/'- 7 -'!C42 -> 9657.395418 | E42: =SUM('- 21 -'!B42,'- 21 -'!E42,'- 21 -'!H42,'- 22 -'!B42,'- 22 -'!E42,'- 22 -'!H42) -> 5040496 | F42: =E42/'- 3 -'!D42*100 -> 20.77591221 | G42: =E42/'- 7 -'!E42 -> 3725.422025 | H42: =SUM('- 23 -'!D42,'- 23 -'!B42) -> 0 | I42: =H42/'- 3 -'!D42*100 -> 0
A43: TURTLE MOUNTAIN | B43: =SUM('- 18 -'!B43,'- 18 -'!E43,'- 19 -'!B43,'- 19 -'!E43,'- 19 -'!H43,'- 20 -'!B43) -> 8203365 | C43: =B43/'- 3 -'!D43*100 -> 55.06994539 | D43: =B43/'- 7 -'!C43 -> 7968.300146 | E43: =SUM('- 21 -'!B43,'- 21 -'!E43,'- 21 -'!H43,'- 22 -'!B43,'- 22 -'!E43,'- 22 -'!H43) -> 2768310 | F43: =E43/'- 3 -'!D43*100 -> 18.5839202 | G43: =E43/'- 7 -'!E43 -> 2688.984944 | H43: =SUM('- 23 -'!D43,'- 23 -'!B43) -> 202247 | I43: =H43/'- 3 -'!D43*100 -> 1.357702753
A44: TURTLE RIVER | B44: =SUM('- 18 -'!B44,'- 18 -'!E44,'- 19 -'!B44,'- 19 -'!E44,'- 19 -'!H44,'- 20 -'!B44) -> 7212507 | C44: =B44/'- 3 -'!D44*100 -> 59.86426905 | D44: =B44/'- 7 -'!C44 -> 12121.8605 | E44: =SUM('- 21 -'!B44,'- 21 -'!E44,'- 21 -'!H44,'- 22 -'!B44,'- 22 -'!E44,'- 22 -'!H44) -> 1466811 | F44: =E44/'- 3 -'!D44*100 -> 12.17462504 | G44: =E44/'- 7 -'!E44 -> 2465.228571 | H44: =SUM('- 23 -'!D44,'- 23 -'!B44) -> 0 | I44: =H44/'- 3 -'!D44*100 -> 0
A45: WESTERN | B45: =SUM('- 18 -'!B45,'- 18 -'!E45,'- 19 -'!B45,'- 19 -'!E45,'- 19 -'!H45,'- 20 -'!B45) -> 15540109 | C45: =B45/'- 3 -'!D45*100 -> 61.28144679 | D45: =B45/'- 7 -'!C45 -> 7834.690698 | E45: =SUM('- 21 -'!B45,'- 21 -'!E45,'- 21 -'!H45,'- 22 -'!B45,'- 22 -'!E45,'- 22 -'!H45) -> 3709507 | F45: =E45/'- 3 -'!D45*100 -> 14.62820858 | G45: =E45/'- 7 -'!E45 -> 1870.182506 | H45: =SUM('- 23 -'!D45,'- 23 -'!B45) -> 395268 | I45: =H45/'- 3 -'!D45*100 -> 1.558714608
A46: WINNIPEG | B46: =SUM('- 18 -'!B46,'- 18 -'!E46,'- 19 -'!B46,'- 19 -'!E46,'- 19 -'!H46,'- 20 -'!B46) -> 234223937 | C46: =B46/'- 3 -'!D46*100 -> 52.7376322 | D46: =B46/'- 7 -'!C46 -> 8419.094979 | E46: =SUM('- 21 -'!B46,'- 21 -'!E46,'- 21 -'!H46,'- 22 -'!B46,'- 22 -'!E46,'- 22 -'!H46) -> 104876084 | F46: =E46/'- 3 -'!D46*100 -> 23.61379633 | G46: =E46/'- 7 -'!E46 -> 3769.733032 | H46: =SUM('- 23 -'!D46,'- 23 -'!B46) -> 825809 | I46: =H46/'- 3 -'!D46*100 -> 0.1859383454
A48: PROVINCE | B48: =SUM(B11:B46) -> 1511679587 | C48: =B48/'- 3 -'!D48*100 -> 55.32160759 | D48: =B48/'- 7 -'!C48 -> 8263.914333 | E48: =SUM(E11:E46) -> 528031462 | F48: =E48/'- 3 -'!D48*100 -> 19.32390276 | G48: =E48/'- 7 -'!E48 -> 2886.59502 | H48: =SUM(H11:H46) -> 13481710 | I48: =H48/'- 3 -'!D48*100 -> 0.4933782772
A50: WHITESHELL | B50: =SUM('- 18 -'!B50,'- 18 -'!E50,'- 19 -'!B50,'- 19 -'!E50,'- 19 -'!H50,'- 20 -'!B50) -> 2131859 | C50: =B50/'- 3 -'!D50*100 -> 56.12927754 | D50: =B50/'- 7 -'!C50 -> 10606.26368 | E50: =SUM('- 21 -'!B50,'- 21 -'!E50,'- 21 -'!H50,'- 22 -'!B50,'- 22 -'!E50,'- 22 -'!H50) -> 456371 | F50: =E50/'- 3 -'!D50*100 -> 12.01569828 | G50: =E50/'- 7 -'!E50 -> 2270.502488 | H50: =SUM('- 23 -'!D50,'- 23 -'!B50) -> 0 | I50: =H50/'- 3 -'!D50*100 -> 0

Sheet - 16 -
B2: ANALYSIS OF EXPENSE BY FUNCTION | I2: PAGE 2 OF 3
B3: =OPYEAR -> OPERATING FUND 2022/2023 ACTUAL
B6: COMMUNITY EDUCATION AND SERVICES | D6: DIVISIONAL ADMINISTRATION | G6: INSTRUCTIONAL & OTHER SUPPORT SERVICES
F8: PER PUPIL | I8: PER PUPIL
A9: DIVISION / DISTRICT | B9: AMOUNT | C9: % | D9: AMOUNT | E9: % | G9: AMOUNT | H9: %
A11: BEAUTIFUL PLAINS | B11: =SUM('- 24 -'!H11,'- 24 -'!F11,'- 24 -'!D11,'- 24 -'!B11) -> 16882 | C11: =B11/'- 3 -'!D11*100 -> 0.06713358215 | D11: =SUM('- 25 -'!B11,'- 25 -'!E11,'- 25 -'!H11,'- 26 -'!B11) -> 834207 | E11: =D11/'- 3 -'!D11*100 -> 3.31733824 | F11: =D11/'- 7 -'!E11 -> 416.2709581 | G11: =SUM('- 27 -'!B11,'- 27 -'!E11,'- 27 -'!H11,'- 28 -'!B11,'- 28 -'!E11) -> 535859 | H11: =G11/'- 3 -'!D11*100 -> 2.130916609 | I11: =G11/'- 7 -'!E11 -> 267.3947106
A12: BORDER LAND | B12: =SUM('- 24 -'!H12,'- 24 -'!F12,'- 24 -'!D12,'- 24 -'!B12) -> 51241 | C12: =B12/'- 3 -'!D12*100 -> 0.1374621648 | D12: =SUM('- 25 -'!B12,'- 25 -'!E12,'- 25 -'!H12,'- 26 -'!B12) -> 1142667 | E12: =D12/'- 3 -'!D12*100 -> 3.065386691 | F12: =D12/'- 7 -'!E12 -> 560.0704826 | G12: =SUM('- 27 -'!B12,'- 27 -'!E12,'- 27 -'!H12,'- 28 -'!B12,'- 28 -'!E12) -> 1338331 | H12: =G12/'- 3 -'!D12*100 -> 3.590286615 | I12: =G12/'- 7 -'!E12 -> 655.9738656
A13: BRANDON | B13: =SUM('- 24 -'!H13,'- 24 -'!F13,'- 24 -'!D13,'- 24 -'!B13) -> 324626 | C13: =B13/'- 3 -'!D13*100 -> 0.2825633708 | D13: =SUM('- 25 -'!B13,'- 25 -'!E13,'- 25 -'!H13,'- 26 -'!B13) -> 3013431 | E13: =D13/'- 3 -'!D13*100 -> 2.622972963 | F13: =D13/'- 7 -'!E13 -> 332.1902904 | G13: =SUM('- 27 -'!B13,'- 27 -'!E13,'- 27 -'!H13,'- 28 -'!B13,'- 28 -'!E13) -> 2718507 | H13: =G13/'- 3 -'!D13*100 -> 2.366263027 | I13: =G13/'- 7 -'!E13 -> 299.6788809
A14: DSFM | B14: =SUM('- 24 -'!H14,'- 24 -'!F14,'- 24 -'!D14,'- 24 -'!B14) -> 690102 | C14: =B14/'- 3 -'!D14*100 -> 0.6541891732 | D14: =SUM('- 25 -'!B14,'- 25 -'!E14,'- 25 -'!H14,'- 26 -'!B14) -> 4028960 | E14: =D14/'- 3 -'!D14*100 -> 3.819293396 | F14: =D14/'- 7 -'!E14 -> 690.2225215 | G14: =SUM('- 27 -'!B14,'- 27 -'!E14,'- 27 -'!H14,'- 28 -'!B14,'- 28 -'!E14) -> 3866087 | H14: =G14/'- 3 -'!D14*100 -> 3.664896288 | I14: =G14/'- 7 -'!E14 -> 662.3198834
A15: EVERGREEN | B15: =SUM('- 24 -'!H15,'- 24 -'!F15,'- 24 -'!D15,'- 24 -'!B15) -> 113286 | C15: =B15/'- 3 -'!D15*100 -> 0.347798675 | D15: =SUM('- 25 -'!B15,'- 25 -'!E15,'- 25 -'!H15,'- 26 -'!B15) -> 1091997 | E15: =D15/'- 3 -'!D15*100 -> 3.352533497 | F15: =D15/'- 7 -'!E15 -> 528.3004354 | G15: =SUM('- 27 -'!B15,'- 27 -'!E15,'- 27 -'!H15,'- 28 -'!B15,'- 28 -'!E15) -> 581450 | H15: =G15/'- 3 -'!D15*100 -> 1.785106188 | I15: =G15/'- 7 -'!E15 -> 281.301403
A16: FLIN FLON | B16: =SUM('- 24 -'!H16,'- 24 -'!F16,'- 24 -'!D16,'- 24 -'!B16) -> 17866 | C16: =B16/'- 3 -'!D16*100 -> 0.1072553701 | D16: =SUM('- 25 -'!B16,'- 25 -'!E16,'- 25 -'!H16,'- 26 -'!B16) -> 665122 | E16: =D16/'- 3 -'!D16*100 -> 3.992942253 | F16: =D16/'- 7 -'!E16 -> 710.5245166 | G16: =SUM('- 27 -'!B16,'- 27 -'!E16,'- 27 -'!H16,'- 28 -'!B16,'- 28 -'!E16) -> 242754 | H16: =G16/'- 3 -'!D16*100 -> 1.457330691 | I16: =G16/'- 7 -'!E16 -> 259.3248585
A17: FORT LA BOSSE | B17: =SUM('- 24 -'!H17,'- 24 -'!F17,'- 24 -'!D17,'- 24 -'!B17) -> 209188 | C17: =B17/'- 3 -'!D17*100 -> 1.009480882 | D17: =SUM('- 25 -'!B17,'- 25 -'!E17,'- 25 -'!H17,'- 26 -'!B17) -> 779885 | E17: =D17/'- 3 -'!D17*100 -> 3.763499807 | F17: =D17/'- 7 -'!E17 -> 518.3682286 | G17: =SUM('- 27 -'!B17,'- 27 -'!E17,'- 27 -'!H17,'- 28 -'!B17,'- 28 -'!E17) -> 380865 | H17: =G17/'- 3 -'!D17*100 -> 1.83794451 | I17: =G17/'- 7 -'!E17 -> 253.1505484
A18: FRONTIER | B18: =SUM('- 24 -'!H18,'- 24 -'!F18,'- 24 -'!D18,'- 24 -'!B18) -> 2796368 | C18: =B18/'- 3 -'!D18*100 -> 1.732052607 | D18: =SUM('- 25 -'!B18,'- 25 -'!E18,'- 25 -'!H18,'- 26 -'!B18) -> 8557787 | E18: =D18/'- 3 -'!D18*100 -> 5.300639002 | F18: =D18/'- 7 -'!E18 -> 1349.489395 | G18: =SUM('- 27 -'!B18,'- 27 -'!E18,'- 27 -'!H18,'- 28 -'!B18,'- 28 -'!E18) -> 10826282 | H18: =G18/'- 3 -'!D18*100 -> 6.705730421 | I18: =G18/'- 7 -'!E18 -> 1707.211543
A19: GARDEN VALLEY | B19: =SUM('- 24 -'!H19,'- 24 -'!F19,'- 24 -'!D19,'- 24 -'!B19) -> 76448 | C19: =B19/'- 3 -'!D19*100 -> 0.1405975576 | D19: =SUM('- 25 -'!B19,'- 25 -'!E19,'- 25 -'!H19,'- 26 -'!B19) -> 1516800 | E19: =D19/'- 3 -'!D19*100 -> 2.789587372 | F19: =D19/'- 7 -'!E19 -> 371.4915503 | G19: =SUM('- 27 -'!B19,'- 27 -'!E19,'- 27 -'!H19,'- 28 -'!B19,'- 28 -'!E19) -> 1766530 | H19: =G19/'- 3 -'!D19*100 -> 3.248872482 | I19: =G19/'- 7 -'!E19 -> 432.6549106
A20: HANOVER | B20: =SUM('- 24 -'!H20,'- 24 -'!F20,'- 24 -'!D20,'- 24 -'!B20) -> 153256 | C20: =B20/'- 3 -'!D20*100 -> 0.1501798658 | D20: =SUM('- 25 -'!B20,'- 25 -'!E20,'- 25 -'!H20,'- 26 -'!B20) -> 2333040 | E20: =D20/'- 3 -'!D20*100 -> 2.286211529 | F20: =D20/'- 7 -'!E20 -> 288.9929394 | G20: =SUM('- 27 -'!B20,'- 27 -'!E20,'- 27 -'!H20,'- 28 -'!B20,'- 28 -'!E20) -> 2002925 | H20: =G20/'- 3 -'!D20*100 -> 1.962722554 | I20: =G20/'- 7 -'!E20 -> 248.101697
A21: INTERLAKE | B21: =SUM('- 24 -'!H21,'- 24 -'!F21,'- 24 -'!D21,'- 24 -'!B21) -> 0 | C21: =B21/'- 3 -'!D21*100 -> 0 | D21: =SUM('- 25 -'!B21,'- 25 -'!E21,'- 25 -'!H21,'- 26 -'!B21) -> 1437886 | E21: =D21/'- 3 -'!D21*100 -> 3.531395316 | F21: =D21/'- 7 -'!E21 -> 491.4169515 | G21: =SUM('- 27 -'!B21,'- 27 -'!E21,'- 27 -'!H21,'- 28 -'!B21,'- 28 -'!E21) -> 990739 | H21: =G21/'- 3 -'!D21*100 -> 2.433218673 | I21: =G21/'- 7 -'!E21 -> 338.5984279
A22: KELSEY | B22: =SUM('- 24 -'!H22,'- 24 -'!F22,'- 24 -'!D22,'- 24 -'!B22) -> 47026 | C22: =B22/'- 3 -'!D22*100 -> 0.213063561 | D22: =SUM('- 25 -'!B22,'- 25 -'!E22,'- 25 -'!H22,'- 26 -'!B22) -> 930498 | E22: =D22/'- 3 -'!D22*100 -> 4.215863934 | F22: =D22/'- 7 -'!E22 -> 629.9918754 | G22: =SUM('- 27 -'!B22,'- 27 -'!E22,'- 27 -'!H22,'- 28 -'!B22,'- 28 -'!E22) -> 371480 | H22: =G22/'- 3 -'!D22*100 -> 1.68308705 | I22: =G22/'- 7 -'!E22 -> 251.5098172
A23: LAKESHORE | B23: =SUM('- 24 -'!H23,'- 24 -'!F23,'- 24 -'!D23,'- 24 -'!B23) -> 121188 | C23: =B23/'- 3 -'!D23*100 -> 0.7350972927 | D23: =SUM('- 25 -'!B23,'- 25 -'!E23,'- 25 -'!H23,'- 26 -'!B23) -> 615592 | E23: =D23/'- 3 -'!D23*100 -> 3.734033176 | F23: =D23/'- 7 -'!E23 -> 675.361492 | G23: =SUM('- 27 -'!B23,'- 27 -'!E23,'- 27 -'!H23,'- 28 -'!B23,'- 28 -'!E23) -> 286680 | H23: =G23/'- 3 -'!D23*100 -> 1.738932005 | I23: =G23/'- 7 -'!E23 -> 314.5145365
A24: LORD SELKIRK | B24: =SUM('- 24 -'!H24,'- 24 -'!F24,'- 24 -'!D24,'- 24 -'!B24) -> 452723 | C24: =B24/'- 3 -'!D24*100 -> 0.7079972935 | D24: =SUM('- 25 -'!B24,'- 25 -'!E24,'- 25 -'!H24,'- 26 -'!B24) -> 1847091 | E24: =D24/'- 3 -'!D24*100 -> 2.888599494 | F24: =D24/'- 7 -'!E24 -> 489.4252782 | G24: =SUM('- 27 -'!B24,'- 27 -'!E24,'- 27 -'!H24,'- 28 -'!B24,'- 28 -'!E24) -> 1006050 | H24: =G24/'- 3 -'!D24*100 -> 1.573325581 | I24: =G24/'- 7 -'!E24 -> 266.5739269
A25: LOUIS RIEL | B25: =SUM('- 24 -'!H25,'- 24 -'!F25,'- 24 -'!D25,'- 24 -'!B25) -> 2200789 | C25: =B25/'- 3 -'!D25*100 -> 1.003605908 | D25: =SUM('- 25 -'!B25,'- 25 -'!E25,'- 25 -'!H25,'- 26 -'!B25) -> 7552604 | E25: =D25/'- 3 -'!D25*100 -> 3.444145712 | F25: =D25/'- 7 -'!E25 -> 463.5490088 | G25: =SUM('- 27 -'!B25,'- 27 -'!E25,'- 27 -'!H25,'- 28 -'!B25,'- 28 -'!E25) -> 8675913 | H25: =G25/'- 3 -'!D25*100 -> 3.956398158 | I25: =G25/'- 7 -'!E25 -> 532.4932793
A26: MOUNTAIN VIEW | B26: =SUM('- 24 -'!H26,'- 24 -'!F26,'- 24 -'!D26,'- 24 -'!B26) -> 126762 | C26: =B26/'- 3 -'!D26*100 -> 0.2765131966 | D26: =SUM('- 25 -'!B26,'- 25 -'!E26,'- 25 -'!H26,'- 26 -'!B26) -> 1359473 | E26: =D26/'- 3 -'!D26*100 -> 2.965496165 | F26: =D26/'- 7 -'!E26 -> 444.9265259 | G26: =SUM('- 27 -'!B26,'- 27 -'!E26,'- 27 -'!H26,'- 28 -'!B26,'- 28 -'!E26) -> 1505404 | H26: =G26/'- 3 -'!D26*100 -> 3.283823797 | I26: =G26/'- 7 -'!E26 -> 492.6866307
A27: MYSTERY LAKE | B27: =SUM('- 24 -'!H27,'- 24 -'!F27,'- 24 -'!D27,'- 24 -'!B27) -> 60491 | C27: =B27/'- 3 -'!D27*100 -> 0.1312628503 | D27: =SUM('- 25 -'!B27,'- 25 -'!E27,'- 25 -'!H27,'- 26 -'!B27) -> 1881436 | E27: =D27/'- 3 -'!D27*100 -> 4.082634642 | F27: =D27/'- 7 -'!E27 -> 689.0444973 | G27: =SUM('- 27 -'!B27,'- 27 -'!E27,'- 27 -'!H27,'- 28 -'!B27,'- 28 -'!E27) -> 1779897 | H27: =G27/'- 3 -'!D27*100 -> 3.862299409 | I27: =G27/'- 7 -'!E27 -> 651.8575352
A28: PARK WEST | B28: =SUM('- 24 -'!H28,'- 24 -'!F28,'- 24 -'!D28,'- 24 -'!B28) -> 113286 | C28: =B28/'- 3 -'!D28*100 -> 0.347798675 | D28: =SUM('- 25 -'!B28,'- 25 -'!E28,'- 25 -'!H28,'- 26 -'!B28) -> 1091997 | E28: =D28/'- 3 -'!D28*100 -> 3.352533497 | F28: =D28/'- 7 -'!E28 -> 528.3004354 | G28: =SUM('- 27 -'!B28,'- 27 -'!E28,'- 27 -'!H28,'- 28 -'!B28,'- 28 -'!E28) -> 581450 | H28: =G28/'- 3 -'!D28*100 -> 1.785106188 | I28: =G28/'- 7 -'!E28 -> 281.301403
A29: PEMBINA TRAILS | B29: =SUM('- 24 -'!H29,'- 24 -'!F29,'- 24 -'!D29,'- 24 -'!B29) -> 243018 | C29: =B29/'- 3 -'!D29*100 -> 0.1242705202 | D29: =SUM('- 25 -'!B29,'- 25 -'!E29,'- 25 -'!H29,'- 26 -'!B29) -> 6057693 | E29: =D29/'- 3 -'!D29*100 -> 3.097682725 | F29: =D29/'- 7 -'!E29 -> 399.9269162 | G29: =SUM('- 27 -'!B29,'- 27 -'!E29,'- 27 -'!H29,'- 28 -'!B29,'- 28 -'!E29) -> 7690634 | H29: =G29/'- 3 -'!D29*100 -> 3.932709051 | I29: =G29/'- 7 -'!E29 -> 507.7331485
A30: PINE CREEK | B30: =SUM('- 24 -'!H30,'- 24 -'!F30,'- 24 -'!D30,'- 24 -'!B30) -> 12333 | C30: =B30/'- 3 -'!D30*100 -> 0.07129876837 | D30: =SUM('- 25 -'!B30,'- 25 -'!E30,'- 25 -'!H30,'- 26 -'!B30) -> 559786 | E30: =D30/'- 3 -'!D30*100 -> 3.236199818 | F30: =D30/'- 7 -'!E30 -> 512.6245421 | G30: =SUM('- 27 -'!B30,'- 27 -'!E30,'- 27 -'!H30,'- 28 -'!B30,'- 28 -'!E30) -> 419227 | H30: =G30/'- 3 -'!D30*100 -> 2.423608917 | I30: =G30/'- 7 -'!E30 -> 383.9075092
A31: PORTAGE LA PRAIRIE | B31: =SUM('- 24 -'!H31,'- 24 -'!F31,'- 24 -'!D31,'- 24 -'!B31) -> 59379 | C31: =B31/'- 3 -'!D31*100 -> 0.1289553843 | D31: =SUM('- 25 -'!B31,'- 25 -'!E31,'- 25 -'!H31,'- 26 -'!B31) -> 1153360 | E31: =D31/'- 3 -'!D31*100 -> 2.504790953 | F31: =D31/'- 7 -'!E31 -> 343.5174981 | G31: =SUM('- 27 -'!B31,'- 27 -'!E31,'- 27 -'!H31,'- 28 -'!B31,'- 28 -'!E31) -> 1756396 | H31: =G31/'- 3 -'!D31*100 -> 3.814424648 | I31: =G31/'- 7 -'!E31 -> 523.1261355
A32: PRAIRIE ROSE | B32: =SUM('- 24 -'!H32,'- 24 -'!F32,'- 24 -'!D32,'- 24 -'!B32) -> 38561 | C32: =B32/'- 3 -'!D32*100 -> 0.1151649283 | D32: =SUM('- 25 -'!B32,'- 25 -'!E32,'- 25 -'!H32,'- 26 -'!B32) -> 1052538 | E32: =D32/'- 3 -'!D32*100 -> 3.143473024 | F32: =D32/'- 7 -'!E32 -> 462.2476943 | G32: =SUM('- 27 -'!B32,'- 27 -'!E32,'- 27 -'!H32,'- 28 -'!B32,'- 28 -'!E32) -> 817394 | H32: =G32/'- 3 -'!D32*100 -> 2.441200212 | I32: =G32/'- 7 -'!E32 -> 358.9784805
A33: PRAIRIE SPIRIT | B33: =SUM('- 24 -'!H33,'- 24 -'!F33,'- 24 -'!D33,'- 24 -'!B33) -> 41693 | C33: =B33/'- 3 -'!D33*100 -> 0.1362413536 | D33: =SUM('- 25 -'!B33,'- 25 -'!E33,'- 25 -'!H33,'- 26 -'!B33) -> 977691 | E33: =D33/'- 3 -'!D33*100 -> 3.194827554 | F33: =D33/'- 7 -'!E33 -> 469.4794718 | G33: =SUM('- 27 -'!B33,'- 27 -'!E33,'- 27 -'!H33,'- 28 -'!B33,'- 28 -'!E33) -> 755158 | H33: =G33/'- 3 -'!D33*100 -> 2.467650399 | I33: =G33/'- 7 -'!E33 -> 362.6208884
A34: RED RIVER VALLEY | B34: =SUM('- 24 -'!H34,'- 24 -'!F34,'- 24 -'!D34,'- 24 -'!B34) -> 41842 | C34: =B34/'- 3 -'!D34*100 -> 0.1182695337 | D34: =SUM('- 25 -'!B34,'- 25 -'!E34,'- 25 -'!H34,'- 26 -'!B34) -> 1151569 | E34: =D34/'- 3 -'!D34*100 -> 3.254995667 | F34: =D34/'- 7 -'!E34 -> 508.5312431 | G34: =SUM('- 27 -'!B34,'- 27 -'!E34,'- 27 -'!H34,'- 28 -'!B34,'- 28 -'!E34) -> 724137 | H34: =G34/'- 3 -'!D34*100 -> 2.046827239 | I34: =G34/'- 7 -'!E34 -> 319.7778759
A35: RIVER EAST TRANSCONA | B35: =SUM('- 24 -'!H35,'- 24 -'!F35,'- 24 -'!D35,'- 24 -'!B35) -> 1429760 | C35: =B35/'- 3 -'!D35*100 -> 0.6449007114 | D35: =SUM('- 25 -'!B35,'- 25 -'!E35,'- 25 -'!H35,'- 26 -'!B35) -> 6464393 | E35: =D35/'- 3 -'!D35*100 -> 2.915798207 | F35: =D35/'- 7 -'!E35 -> 382.7689256 | G35: =SUM('- 27 -'!B35,'- 27 -'!E35,'- 27 -'!H35,'- 28 -'!B35,'- 28 -'!E35) -> 8826470 | H35: =G35/'- 3 -'!D35*100 -> 3.981225368 | I35: =G35/'- 7 -'!E35 -> 522.6319685
A36: ROLLING RIVER | B36: =SUM('- 24 -'!H36,'- 24 -'!F36,'- 24 -'!D36,'- 24 -'!B36) -> 18078 | C36: =B36/'- 3 -'!D36*100 -> 0.06738122019 | D36: =SUM('- 25 -'!B36,'- 25 -'!E36,'- 25 -'!H36,'- 26 -'!B36) -> 935278 | E36: =D36/'- 3 -'!D36*100 -> 3.486014651 | F36: =D36/'- 7 -'!E36 -> 530.9554357 | G36: =SUM('- 27 -'!B36,'- 27 -'!E36,'- 27 -'!H36,'- 28 -'!B36,'- 28 -'!E36) -> 497071 | H36: =G36/'- 3 -'!D36*100 -> 1.852707739 | I36: =G36/'- 7 -'!E36 -> 282.1862049
A37: SEINE RIVER | B37: =SUM('- 24 -'!H37,'- 24 -'!F37,'- 24 -'!D37,'- 24 -'!B37) -> 802733 | C37: =B37/'- 3 -'!D37*100 -> 1.259901521 | D37: =SUM('- 25 -'!B37,'- 25 -'!E37,'- 25 -'!H37,'- 26 -'!B37) -> 2153782 | E37: =D37/'- 3 -'!D37*100 -> 3.380393254 | F37: =D37/'- 7 -'!E37 -> 482.6943075 | G37: =SUM('- 27 -'!B37,'- 27 -'!E37,'- 27 -'!H37,'- 28 -'!B37,'- 28 -'!E37) -> 1759977 | H37: =G37/'- 3 -'!D37*100 -> 2.762310381 | I37: =G37/'- 7 -'!E37 -> 394.4367996
A38: SEVEN OAKS | B38: =SUM('- 24 -'!H38,'- 24 -'!F38,'- 24 -'!D38,'- 24 -'!B38) -> 3713037 | C38: =B38/'- 3 -'!D38*100 -> 2.233466532 | D38: =SUM('- 25 -'!B38,'- 25 -'!E38,'- 25 -'!H38,'- 26 -'!B38) -> 4246287 | E38: =D38/'- 3 -'!D38*100 -> 2.554227146 | F38: =D38/'- 7 -'!E38 -> 368.905521 | G38: =SUM('- 27 -'!B38,'- 27 -'!E38,'- 27 -'!H38,'- 28 -'!B38,'- 28 -'!E38) -> 5247454 | H38: =G38/'- 3 -'!D38*100 -> 3.156449259 | I38: =G38/'- 7 -'!E38 -> 455.8841058
A39: SOUTHWEST HORIZON | B39: =SUM('- 24 -'!H39,'- 24 -'!F39,'- 24 -'!D39,'- 24 -'!B39) -> 193328 | C39: =B39/'- 3 -'!D39*100 -> 0.8066951761 | D39: =SUM('- 25 -'!B39,'- 25 -'!E39,'- 25 -'!H39,'- 26 -'!B39) -> 837638 | E39: =D39/'- 3 -'!D39*100 -> 3.495192284 | F39: =D39/'- 7 -'!E39 -> 573.1358194 | G39: =SUM('- 27 -'!B39,'- 27 -'!E39,'- 27 -'!H39,'- 28 -'!B39,'- 28 -'!E39) -> 363755 | H39: =G39/'- 3 -'!D39*100 -> 1.517831891 | I39: =G39/'- 7 -'!E39 -> 248.8915498
A40: ST. JAMES-ASSINIBOIA | B40: =SUM('- 24 -'!H40,'- 24 -'!F40,'- 24 -'!D40,'- 24 -'!B40) -> 915139 | C40: =B40/'- 3 -'!D40*100 -> 0.7623484714 | D40: =SUM('- 25 -'!B40,'- 25 -'!E40,'- 25 -'!H40,'- 26 -'!B40) -> 3367725 | E40: =D40/'- 3 -'!D40*100 -> 2.805453604 | F40: =D40/'- 7 -'!E40 -> 418.0964382 | G40: =SUM('- 27 -'!B40,'- 27 -'!E40,'- 27 -'!H40,'- 28 -'!B40,'- 28 -'!E40) -> 4495783 | H40: =G40/'- 3 -'!D40*100 -> 3.74517237 | I40: =G40/'- 7 -'!E40 -> 558.1426213
A41: SUNRISE | B41: =SUM('- 24 -'!H41,'- 24 -'!F41,'- 24 -'!D41,'- 24 -'!B41) -> 77304 | C41: =B41/'- 3 -'!D41*100 -> 0.1053966884 | D41: =SUM('- 25 -'!B41,'- 25 -'!E41,'- 25 -'!H41,'- 26 -'!B41) -> 2234806 | E41: =D41/'- 3 -'!D41*100 -> 3.046946491 | F41: =D41/'- 7 -'!E41 -> 486.6737805 | G41: =SUM('- 27 -'!B41,'- 27 -'!E41,'- 27 -'!H41,'- 28 -'!B41,'- 28 -'!E41) -> 1577447 | H41: =G41/'- 3 -'!D41*100 -> 2.150699704 | I41: =G41/'- 7 -'!E41 -> 343.5206882
A42: SWAN VALLEY | B42: =SUM('- 24 -'!H42,'- 24 -'!F42,'- 24 -'!D42,'- 24 -'!B42) -> 88912 | C42: =B42/'- 3 -'!D42*100 -> 0.3664774074 | D42: =SUM('- 25 -'!B42,'- 25 -'!E42,'- 25 -'!H42,'- 26 -'!B42) -> 714442 | E42: =D42/'- 3 -'!D42*100 -> 2.944786439 | F42: =D42/'- 7 -'!E42 -> 528.0428677 | G42: =SUM('- 27 -'!B42,'- 27 -'!E42,'- 27 -'!H42,'- 28 -'!B42,'- 28 -'!E42) -> 380602 | H42: =G42/'- 3 -'!D42*100 -> 1.568765006 | I42: =G42/'- 7 -'!E42 -> 281.3022912
A43: TURTLE MOUNTAIN | B43: =SUM('- 24 -'!H43,'- 24 -'!F43,'- 24 -'!D43,'- 24 -'!B43) -> 15131 | C43: =B43/'- 3 -'!D43*100 -> 0.1015757977 | D43: =SUM('- 25 -'!B43,'- 25 -'!E43,'- 25 -'!H43,'- 26 -'!B43) -> 553292 | E43: =D43/'- 3 -'!D43*100 -> 3.714300195 | F43: =D43/'- 7 -'!E43 -> 537.4375911 | G43: =SUM('- 27 -'!B43,'- 27 -'!E43,'- 27 -'!H43,'- 28 -'!B43,'- 28 -'!E43) -> 340092 | H43: =G43/'- 3 -'!D43*100 -> 2.283068944 | I43: =G43/'- 7 -'!E43 -> 330.3467703
A44: TURTLE RIVER | B44: =SUM('- 24 -'!H44,'- 24 -'!F44,'- 24 -'!D44,'- 24 -'!B44) -> 28131 | C44: =B44/'- 3 -'!D44*100 -> 0.2334890979 | D44: =SUM('- 25 -'!B44,'- 25 -'!E44,'- 25 -'!H44,'- 26 -'!B44) -> 481178 | E44: =D44/'- 3 -'!D44*100 -> 3.993808152 | F44: =D44/'- 7 -'!E44 -> 808.702521 | G44: =SUM('- 27 -'!B44,'- 27 -'!E44,'- 27 -'!H44,'- 28 -'!B44,'- 28 -'!E44) -> 231765 | H44: =G44/'- 3 -'!D44*100 -> 1.923664312 | I44: =G44/'- 7 -'!E44 -> 389.5210084
A45: WESTERN | B45: =SUM('- 24 -'!H45,'- 24 -'!F45,'- 24 -'!D45,'- 24 -'!B45) -> 53182 | C45: =B45/'- 3 -'!D45*100 -> 0.209719887 | D45: =SUM('- 25 -'!B45,'- 25 -'!E45,'- 25 -'!H45,'- 26 -'!B45) -> 904710 | E45: =D45/'- 3 -'!D45*100 -> 3.567667236 | F45: =D45/'- 7 -'!E45 -> 456.1179733 | G45: =SUM('- 27 -'!B45,'- 27 -'!E45,'- 27 -'!H45,'- 28 -'!B45,'- 28 -'!E45) -> 542116 | H45: =G45/'- 3 -'!D45*100 -> 2.137800501 | I45: =G45/'- 7 -'!E45 -> 273.3128309
A46: WINNIPEG | B46: =SUM('- 24 -'!H46,'- 24 -'!F46,'- 24 -'!D46,'- 24 -'!B46) -> 7754797 | C46: =B46/'- 3 -'!D46*100 -> 1.746062496 | D46: =SUM('- 25 -'!B46,'- 25 -'!E46,'- 25 -'!H46,'- 26 -'!B46) -> 12497603 | E46: =D46/'- 3 -'!D46*100 -> 2.813948048 | F46: =D46/'- 7 -'!E46 -> 449.2218345 | G46: =SUM('- 27 -'!B46,'- 27 -'!E46,'- 27 -'!H46,'- 28 -'!B46,'- 28 -'!E46) -> 10378233 | H46: =G46/'- 3 -'!D46*100 -> 2.336752775 | I46: =G46/'- 7 -'!E46 -> 373.0418439
A48: PROVINCE | B48: =SUM(B11:B46) -> 23097886 | C48: =B48/'- 3 -'!D48*100 -> 0.8452930082 | D48: =SUM(D11:D46) -> 87024244 | E48: =D48/'- 3 -'!D48*100 -> 3.184749678 | F48: =D48/'- 7 -'!E48 -> 475.736329 | G48: =SUM(G11:G46) -> 86260914 | H48: =G48/'- 3 -'!D48*100 -> 3.156814761 | I48: =G48/'- 7 -'!E48 -> 471.563425
A50: WHITESHELL | B50: =SUM('- 24 -'!H50,'- 24 -'!F50,'- 24 -'!D50,'- 24 -'!B50) -> 113115 | C50: =B50/'- 3 -'!D50*100 -> 2.978181591 | D50: =SUM('- 25 -'!B50,'- 25 -'!E50,'- 25 -'!H50,'- 26 -'!B50) -> 225508 | E50: =D50/'- 3 -'!D50*100 -> 5.937353793 | F50: =D50/'- 7 -'!E50 -> 1121.930348 | G50: =SUM('- 27 -'!B50,'- 27 -'!E50,'- 27 -'!H50,'- 28 -'!B50,'- 28 -'!E50) -> 121187 | H50: =G50/'- 3 -'!D50*100 -> 3.190707621 | I50: =G50/'- 7 -'!E50 -> 602.920398

Sheet - 17 -
B2: ANALYSIS OF EXPENSE BY FUNCTION | J2: PAGE 3 OF 3
B3: =OPYEAR -> OPERATING FUND 2022/2023 ACTUAL
B6: TRANSPORTATION OF PUPILS | E6: OPERATIONS AND MAINTENANCE
H7: FISCAL
D8: PER PUPIL | G8: PER PUPIL | J8: PER PUPIL
A9: DIVISION / DISTRICT | B9: AMOUNT | C9: % | E9: AMOUNT | F9: % | H9: AMOUNT | I9: %
A11: BEAUTIFUL PLAINS | B11: =SUM('- 30 -'!D11,'- 30 -'!B11,'- 29 -'!F11,'- 29 -'!D11,'- 29 -'!B11) -> 1478753 | C11: =B11/'- 3 -'!D11*100 -> 5.880463571 | D11: =B11/'- 7 -'!E11 -> 737.9006986 | E11: =SUM('- 32 -'!D11,'- 32 -'!B11,'- 31 -'!F11,'- 31 -'!D11,'- 31 -'!B11) -> 2490286 | F11: =E11/'- 3 -'!D11*100 -> 9.902962905 | G11: =E11/'- 7 -'!E11 -> 1242.657685 | H11: =SUM('- 33 -'!B11,'- 33 -'!D11,'- 33 -'!F11) -> 437342 | I11: =H11/'- 3 -'!D11*100 -> 1.739150283 | J11: =H11/'- 7 -'!E11 -> 218.2345309
A12: BORDER LAND | B12: =SUM('- 30 -'!D12,'- 30 -'!B12,'- 29 -'!F12,'- 29 -'!D12,'- 29 -'!B12) -> 2701031 | C12: =B12/'- 3 -'!D12*100 -> 7.245946964 | D12: =B12/'- 7 -'!E12 -> 1323.892031 | E12: =SUM('- 32 -'!D12,'- 32 -'!B12,'- 31 -'!F12,'- 31 -'!D12,'- 31 -'!B12) -> 3892755 | F12: =E12/'- 3 -'!D12*100 -> 10.44293689 | G12: =E12/'- 7 -'!E12 -> 1908.00747 | H12: =SUM('- 33 -'!B12,'- 33 -'!D12,'- 33 -'!F12) -> 629145 | I12: =H12/'- 3 -'!D12*100 -> 1.687781926 | J12: =H12/'- 7 -'!E12 -> 308.3711561
A13: BRANDON | B13: =SUM('- 30 -'!D13,'- 30 -'!B13,'- 29 -'!F13,'- 29 -'!D13,'- 29 -'!B13) -> 2721003 | C13: =B13/'- 3 -'!D13*100 -> 2.368435614 | D13: =B13/'- 7 -'!E13 -> 299.9540314 | E13: =SUM('- 32 -'!D13,'- 32 -'!B13,'- 31 -'!F13,'- 31 -'!D13,'- 31 -'!B13) -> 10008648 | F13: =E13/'- 3 -'!D13*100 -> 8.71180163 | G13: =E13/'- 7 -'!E13 -> 1103.319003 | H13: =SUM('- 33 -'!B13,'- 33 -'!D13,'- 33 -'!F13) -> 1943118 | I13: =H13/'- 3 -'!D13*100 -> 1.691343182 | J13: =H13/'- 7 -'!E13 -> 214.2026589
A14: DSFM | B14: =SUM('- 30 -'!D14,'- 30 -'!B14,'- 29 -'!F14,'- 29 -'!D14,'- 29 -'!B14) -> 11773281 | C14: =B14/'- 3 -'!D14*100 -> 11.16060084 | D14: =B14/'- 7 -'!E14 -> 2016.943255 | E14: =SUM('- 32 -'!D14,'- 32 -'!B14,'- 31 -'!F14,'- 31 -'!D14,'- 31 -'!B14) -> 13119730 | F14: =E14/'- 3 -'!D14*100 -> 12.4369808 | G14: =E14/'- 7 -'!E14 -> 2247.61058 | H14: =SUM('- 33 -'!B14,'- 33 -'!D14,'- 33 -'!F14) -> 1526898 | I14: =H14/'- 3 -'!D14*100 -> 1.447438408 | J14: =H14/'- 7 -'!E14 -> 261.5810004
A15: EVERGREEN | B15: =SUM('- 30 -'!D15,'- 30 -'!B15,'- 29 -'!F15,'- 29 -'!D15,'- 29 -'!B15) -> 2012160 | C15: =B15/'- 3 -'!D15*100 -> 6.177520452 | D15: =B15/'- 7 -'!E15 -> 973.4687954 | E15: =SUM('- 32 -'!D15,'- 32 -'!B15,'- 31 -'!F15,'- 31 -'!D15,'- 31 -'!B15) -> 4257184 | F15: =E15/'- 3 -'!D15*100 -> 13.06995529 | G15: =E15/'- 7 -'!E15 -> 2059.595549 | H15: =SUM('- 33 -'!B15,'- 33 -'!D15,'- 33 -'!F15) -> 516931 | I15: =H15/'- 3 -'!D15*100 -> 1.58702679 | J15: =H15/'- 7 -'!E15 -> 250.0875665
A16: FLIN FLON | B16: =SUM('- 30 -'!D16,'- 30 -'!B16,'- 29 -'!F16,'- 29 -'!D16,'- 29 -'!B16) -> 518864 | C16: =B16/'- 3 -'!D16*100 -> 3.114908226 | D16: =B16/'- 7 -'!E16 -> 554.2826621 | E16: =SUM('- 32 -'!D16,'- 32 -'!B16,'- 31 -'!F16,'- 31 -'!D16,'- 31 -'!B16) -> 2643059 | F16: =E16/'- 3 -'!D16*100 -> 15.8671371 | G16: =E16/'- 7 -'!E16 -> 2823.479329 | H16: =SUM('- 33 -'!B16,'- 33 -'!D16,'- 33 -'!F16) -> 279222 | I16: =H16/'- 3 -'!D16*100 -> 1.676259877 | J16: =H16/'- 7 -'!E16 -> 298.2822348
A17: FORT LA BOSSE | B17: =SUM('- 30 -'!D17,'- 30 -'!B17,'- 29 -'!F17,'- 29 -'!D17,'- 29 -'!B17) -> 1788449 | C17: =B17/'- 3 -'!D17*100 -> 8.630538433 | D17: =B17/'- 7 -'!E17 -> 1188.733134 | E17: =SUM('- 32 -'!D17,'- 32 -'!B17,'- 31 -'!F17,'- 31 -'!D17,'- 31 -'!B17) -> 2183004 | F17: =E17/'- 3 -'!D17*100 -> 10.53454693 | G17: =E17/'- 7 -'!E17 -> 1450.983051 | H17: =SUM('- 33 -'!B17,'- 33 -'!D17,'- 33 -'!F17) -> 430965 | I17: =H17/'- 3 -'!D17*100 -> 2.079712642 | J17: =H17/'- 7 -'!E17 -> 286.4506481
A18: FRONTIER | B18: =SUM('- 30 -'!D18,'- 30 -'!B18,'- 29 -'!F18,'- 29 -'!D18,'- 29 -'!B18) -> 13964873 | C18: =B18/'- 3 -'!D18*100 -> 8.649753784 | D18: =B18/'- 7 -'!E18 -> 2202.140345 | E18: =SUM('- 32 -'!D18,'- 32 -'!B18,'- 31 -'!F18,'- 31 -'!D18,'- 31 -'!B18) -> 31228787 | F18: =E18/'- 3 -'!D18*100 -> 19.34291264 | G18: =E18/'- 7 -'!E18 -> 4924.511078 | H18: =SUM('- 33 -'!B18,'- 33 -'!D18,'- 33 -'!F18) -> 1833553 | I18: =H18/'- 3 -'!D18*100 -> 1.135691102 | J18: =H18/'- 7 -'!E18 -> 289.1355358
A19: GARDEN VALLEY | B19: =SUM('- 30 -'!D19,'- 30 -'!B19,'- 29 -'!F19,'- 29 -'!D19,'- 29 -'!B19) -> 3086193 | C19: =B19/'- 3 -'!D19*100 -> 5.675899935 | D19: =B19/'- 7 -'!E19 -> 755.8640705 | E19: =SUM('- 32 -'!D19,'- 32 -'!B19,'- 31 -'!F19,'- 31 -'!D19,'- 31 -'!B19) -> 5327553 | F19: =E19/'- 3 -'!D19*100 -> 9.798044946 | G19: =E19/'- 7 -'!E19 -> 1304.813373 | H19: =SUM('- 33 -'!B19,'- 33 -'!D19,'- 33 -'!F19) -> 891153 | I19: =H19/'- 3 -'!D19*100 -> 1.638943272 | J19: =H19/'- 7 -'!E19 -> 218.2593681
A20: HANOVER | B20: =SUM('- 30 -'!D20,'- 30 -'!B20,'- 29 -'!F20,'- 29 -'!D20,'- 29 -'!B20) -> 4558976 | C20: =B20/'- 3 -'!D20*100 -> 4.467468836 | D20: =B20/'- 7 -'!E20 -> 564.7189397 | E20: =SUM('- 32 -'!D20,'- 32 -'!B20,'- 31 -'!F20,'- 31 -'!D20,'- 31 -'!B20) -> 9981098 | F20: =E20/'- 3 -'!D20*100 -> 9.780758719 | G20: =E20/'- 7 -'!E20 -> 1236.355506 | H20: =SUM('- 33 -'!B20,'- 33 -'!D20,'- 33 -'!F20) -> 1919515 | I20: =H20/'- 3 -'!D20*100 -> 1.880986748 | J20: =H20/'- 7 -'!E20 -> 237.7697262
A21: INTERLAKE | B21: =SUM('- 30 -'!D21,'- 30 -'!B21,'- 29 -'!F21,'- 29 -'!D21,'- 29 -'!B21) -> 2750153 | C21: =B21/'- 3 -'!D21*100 -> 6.754274973 | D21: =B21/'- 7 -'!E21 -> 939.9019139 | E21: =SUM('- 32 -'!D21,'- 32 -'!B21,'- 31 -'!F21,'- 31 -'!D21,'- 31 -'!B21) -> 3820826 | F21: =E21/'- 3 -'!D21*100 -> 9.38380862 | G21: =E21/'- 7 -'!E21 -> 1305.818865 | H21: =SUM('- 33 -'!B21,'- 33 -'!D21,'- 33 -'!F21) -> 734446 | I21: =H21/'- 3 -'!D21*100 -> 1.803772458 | J21: =H21/'- 7 -'!E21 -> 251.0068353
A22: KELSEY | B22: =SUM('- 30 -'!D22,'- 30 -'!B22,'- 29 -'!F22,'- 29 -'!D22,'- 29 -'!B22) -> 491727 | C22: =B22/'- 3 -'!D22*100 -> 2.227897453 | D22: =B22/'- 7 -'!E22 -> 332.9228165 | E22: =SUM('- 32 -'!D22,'- 32 -'!B22,'- 31 -'!F22,'- 31 -'!D22,'- 31 -'!B22) -> 2723685 | F22: =E22/'- 3 -'!D22*100 -> 12.34036544 | G22: =E22/'- 7 -'!E22 -> 1844.065674 | H22: =SUM('- 33 -'!B22,'- 33 -'!D22,'- 33 -'!F22) -> 368831 | I22: =H22/'- 3 -'!D22*100 -> 1.671085065 | J22: =H22/'- 7 -'!E22 -> 249.7163169
A23: LAKESHORE | B23: =SUM('- 30 -'!D23,'- 30 -'!B23,'- 29 -'!F23,'- 29 -'!D23,'- 29 -'!B23) -> 1703708 | C23: =B23/'- 3 -'!D23*100 -> 10.33428341 | D23: =B23/'- 7 -'!E23 -> 1869.125617 | E23: =SUM('- 32 -'!D23,'- 32 -'!B23,'- 31 -'!F23,'- 31 -'!D23,'- 31 -'!B23) -> 1661297 | F23: =E23/'- 3 -'!D23*100 -> 10.07702848 | G23: =E23/'- 7 -'!E23 -> 1822.596818 | H23: =SUM('- 33 -'!B23,'- 33 -'!D23,'- 33 -'!F23) -> 257139 | I23: =H23/'- 3 -'!D23*100 -> 1.559743397 | J23: =H23/'- 7 -'!E23 -> 282.1053209
A24: LORD SELKIRK | B24: =SUM('- 30 -'!D24,'- 30 -'!B24,'- 29 -'!F24,'- 29 -'!D24,'- 29 -'!B24) -> 2953355 | C24: =B24/'- 3 -'!D24*100 -> 4.618646162 | D24: =B24/'- 7 -'!E24 -> 782.5529942 | E24: =SUM('- 32 -'!D24,'- 32 -'!B24,'- 31 -'!F24,'- 31 -'!D24,'- 31 -'!B24) -> 6555989 | F24: =E24/'- 3 -'!D24*100 -> 10.25267651 | G24: =E24/'- 7 -'!E24 -> 1737.145999 | H24: =SUM('- 33 -'!B24,'- 33 -'!D24,'- 33 -'!F24) -> 1226720 | I24: =H24/'- 3 -'!D24*100 -> 1.918423495 | J24: =H24/'- 7 -'!E24 -> 325.045045
A25: LOUIS RIEL | B25: =SUM('- 30 -'!D25,'- 30 -'!B25,'- 29 -'!F25,'- 29 -'!D25,'- 29 -'!B25) -> 5664020 | C25: =B25/'- 3 -'!D25*100 -> 2.582911827 | D25: =B25/'- 7 -'!E25 -> 347.6351808 | E25: =SUM('- 32 -'!D25,'- 32 -'!B25,'- 31 -'!F25,'- 31 -'!D25,'- 31 -'!B25) -> 24706165 | F25: =E25/'- 3 -'!D25*100 -> 11.26652903 | G25: =E25/'- 7 -'!E25 -> 1516.366845 | H25: =SUM('- 33 -'!B25,'- 33 -'!D25,'- 33 -'!F25) -> 3642578 | I25: =H25/'- 3 -'!D25*100 -> 1.661091909 | J25: =H25/'- 7 -'!E25 -> 223.5670533
A26: MOUNTAIN VIEW | B26: =SUM('- 30 -'!D26,'- 30 -'!B26,'- 29 -'!F26,'- 29 -'!D26,'- 29 -'!B26) -> 3241208 | C26: =B26/'- 3 -'!D26*100 -> 7.070232284 | D26: =B26/'- 7 -'!E26 -> 1060.778269 | E26: =SUM('- 32 -'!D26,'- 32 -'!B26,'- 31 -'!F26,'- 31 -'!D26,'- 31 -'!B26) -> 5786663 | F26: =E26/'- 3 -'!D26*100 -> 12.62277878 | G26: =E26/'- 7 -'!E26 -> 1893.851415 | H26: =SUM('- 33 -'!B26,'- 33 -'!D26,'- 33 -'!F26) -> 810584 | I26: =H26/'- 3 -'!D26*100 -> 1.768173214 | J26: =H26/'- 7 -'!E26 -> 265.2868598
A27: MYSTERY LAKE | B27: =SUM('- 30 -'!D27,'- 30 -'!B27,'- 29 -'!F27,'- 29 -'!D27,'- 29 -'!B27) -> 399693 | C27: =B27/'- 3 -'!D27*100 -> 0.8673165007 | D27: =B27/'- 7 -'!E27 -> 146.3808826 | E27: =SUM('- 32 -'!D27,'- 32 -'!B27,'- 31 -'!F27,'- 31 -'!D27,'- 31 -'!B27) -> 6090327 | F27: =E27/'- 3 -'!D27*100 -> 13.21574584 | G27: =E27/'- 7 -'!E27 -> 2230.480498 | H27: =SUM('- 33 -'!B27,'- 33 -'!D27,'- 33 -'!F27) -> 819576 | I27: =H27/'- 3 -'!D27*100 -> 1.778444427 | J27: =H27/'- 7 -'!E27 -> 300.1560154
A28: PARK WEST | B28: =SUM('- 30 -'!D28,'- 30 -'!B28,'- 29 -'!F28,'- 29 -'!D28,'- 29 -'!B28) -> 2012160 | C28: =B28/'- 3 -'!D28*100 -> 6.177520452 | D28: =B28/'- 7 -'!E28 -> 973.4687954 | E28: =SUM('- 32 -'!D28,'- 32 -'!B28,'- 31 -'!F28,'- 31 -'!D28,'- 31 -'!B28) -> 4257184 | F28: =E28/'- 3 -'!D28*100 -> 13.06995529 | G28: =E28/'- 7 -'!E28 -> 2059.595549 | H28: =SUM('- 33 -'!B28,'- 33 -'!D28,'- 33 -'!F28) -> 516931 | I28: =H28/'- 3 -'!D28*100 -> 1.58702679 | J28: =H28/'- 7 -'!E28 -> 250.0875665
A29: PEMBINA TRAILS | B29: =SUM('- 30 -'!D29,'- 30 -'!B29,'- 29 -'!F29,'- 29 -'!D29,'- 29 -'!B29) -> 4154843 | C29: =B29/'- 3 -'!D29*100 -> 2.124634805 | D29: =B29/'- 7 -'!E29 -> 274.3013798 | E29: =SUM('- 32 -'!D29,'- 32 -'!B29,'- 31 -'!F29,'- 31 -'!D29,'- 31 -'!B29) -> 20889947 | F29: =E29/'- 3 -'!D29*100 -> 10.68235514 | G29: =E29/'- 7 -'!E29 -> 1379.147488 | H29: =SUM('- 33 -'!B29,'- 33 -'!D29,'- 33 -'!F29) -> 3677053 | I29: =H29/'- 3 -'!D29*100 -> 1.880310468 | J29: =H29/'- 7 -'!E29 -> 242.7578398
A30: PINE CREEK | B30: =SUM('- 30 -'!D30,'- 30 -'!B30,'- 29 -'!F30,'- 29 -'!D30,'- 29 -'!B30) -> 1529231 | C30: =B30/'- 3 -'!D30*100 -> 8.840694629 | D30: =B30/'- 7 -'!E30 -> 1400.394689 | E30: =SUM('- 32 -'!D30,'- 32 -'!B30,'- 31 -'!F30,'- 31 -'!D30,'- 31 -'!B30) -> 1778985 | F30: =E30/'- 3 -'!D30*100 -> 10.28455684 | G30: =E30/'- 7 -'!E30 -> 1629.107143 | H30: =SUM('- 33 -'!B30,'- 33 -'!D30,'- 33 -'!F30) -> 306960 | I30: =H30/'- 3 -'!D30*100 -> 1.774577957 | J30: =H30/'- 7 -'!E30 -> 281.0989011
A31: PORTAGE LA PRAIRIE | B31: =SUM('- 30 -'!D31,'- 30 -'!B31,'- 29 -'!F31,'- 29 -'!D31,'- 29 -'!B31) -> 1399973 | C31: =B31/'- 3 -'!D31*100 -> 3.040368753 | D31: =B31/'- 7 -'!E31 -> 416.9688757 | E31: =SUM('- 32 -'!D31,'- 32 -'!B31,'- 31 -'!F31,'- 31 -'!D31,'- 31 -'!B31) -> 4754267 | F31: =E31/'- 3 -'!D31*100 -> 10.32500258 | G31: =E31/'- 7 -'!E31 -> 1416.013999 | H31: =SUM('- 33 -'!B31,'- 33 -'!D31,'- 33 -'!F31) -> 754097 | I31: =H31/'- 3 -'!D31*100 -> 1.637697981 | J31: =H31/'- 7 -'!E31 -> 224.6007446
A32: PRAIRIE ROSE | B32: =SUM('- 30 -'!D32,'- 30 -'!B32,'- 29 -'!F32,'- 29 -'!D32,'- 29 -'!B32) -> 2473337 | C32: =B32/'- 3 -'!D32*100 -> 7.386781416 | D32: =B32/'- 7 -'!E32 -> 1086.226175 | E32: =SUM('- 32 -'!D32,'- 32 -'!B32,'- 31 -'!F32,'- 31 -'!D32,'- 31 -'!B32) -> 3283393 | F32: =E32/'- 3 -'!D32*100 -> 9.806066215 | G32: =E32/'- 7 -'!E32 -> 1441.981994 | H32: =SUM('- 33 -'!B32,'- 33 -'!D32,'- 33 -'!F32) -> 653590 | I32: =H32/'- 3 -'!D32*100 -> 1.951988939 | J32: =H32/'- 7 -'!E32 -> 287.0399649
A33: PRAIRIE SPIRIT | B33: =SUM('- 30 -'!D33,'- 30 -'!B33,'- 29 -'!F33,'- 29 -'!D33,'- 29 -'!B33) -> 2564920 | C33: =B33/'- 3 -'!D33*100 -> 8.381459059 | D33: =B33/'- 7 -'!E33 -> 1231.654262 | E33: =SUM('- 32 -'!D33,'- 32 -'!B33,'- 31 -'!F33,'- 31 -'!D33,'- 31 -'!B33) -> 3550824 | F33: =E33/'- 3 -'!D33*100 -> 11.60312446 | G33: =E33/'- 7 -'!E33 -> 1705.077551 | H33: =SUM('- 33 -'!B33,'- 33 -'!D33,'- 33 -'!F33) -> 567881 | I33: =H33/'- 3 -'!D33*100 -> 1.855680236 | J33: =H33/'- 7 -'!E33 -> 272.6919568
A34: RED RIVER VALLEY | B34: =SUM('- 30 -'!D34,'- 30 -'!B34,'- 29 -'!F34,'- 29 -'!D34,'- 29 -'!B34) -> 3259934 | C34: =B34/'- 3 -'!D34*100 -> 9.214446589 | D34: =B34/'- 7 -'!E34 -> 1439.582248 | E34: =SUM('- 32 -'!D34,'- 32 -'!B34,'- 31 -'!F34,'- 31 -'!D34,'- 31 -'!B34) -> 3448834 | F34: =E34/'- 3 -'!D34*100 -> 9.748386528 | G34: =E34/'- 7 -'!E34 -> 1523.000221 | H34: =SUM('- 33 -'!B34,'- 33 -'!D34,'- 33 -'!F34) -> 931172 | I34: =H34/'- 3 -'!D34*100 -> 2.632027108 | J34: =H34/'- 7 -'!E34 -> 411.2042393
A35: RIVER EAST TRANSCONA | B35: =SUM('- 30 -'!D35,'- 30 -'!B35,'- 29 -'!F35,'- 29 -'!D35,'- 29 -'!B35) -> 5476262 | C35: =B35/'- 3 -'!D35*100 -> 2.470096561 | D35: =B35/'- 7 -'!E35 -> 324.2598218 | E35: =SUM('- 32 -'!D35,'- 32 -'!B35,'- 31 -'!F35,'- 31 -'!D35,'- 31 -'!B35) -> 23552823 | F35: =E35/'- 3 -'!D35*100 -> 10.62362376 | G35: =E35/'- 7 -'!E35 -> 1394.607159 | H35: =SUM('- 33 -'!B35,'- 33 -'!D35,'- 33 -'!F35) -> 3887932 | I35: =H35/'- 3 -'!D35*100 -> 1.753672024 | J35: =H35/'- 7 -'!E35 -> 230.2118009
A36: ROLLING RIVER | B36: =SUM('- 30 -'!D36,'- 30 -'!B36,'- 29 -'!F36,'- 29 -'!D36,'- 29 -'!B36) -> 2052620 | C36: =B36/'- 3 -'!D36*100 -> 7.650627292 | D36: =B36/'- 7 -'!E36 -> 1165.268237 | E36: =SUM('- 32 -'!D36,'- 32 -'!B36,'- 31 -'!F36,'- 31 -'!D36,'- 31 -'!B36) -> 3973479 | F36: =E36/'- 3 -'!D36*100 -> 14.81014844 | G36: =E36/'- 7 -'!E36 -> 2255.73602 | H36: =SUM('- 33 -'!B36,'- 33 -'!D36,'- 33 -'!F36) -> 430332 | I36: =H36/'- 3 -'!D36*100 -> 1.603954821 | J36: =H36/'- 7 -'!E36 -> 244.2986091
A37: SEINE RIVER | B37: =SUM('- 30 -'!D37,'- 30 -'!B37,'- 29 -'!F37,'- 29 -'!D37,'- 29 -'!B37) -> 4451192 | C37: =B37/'- 3 -'!D37*100 -> 6.986212815 | D37: =B37/'- 7 -'!E37 -> 997.5777678 | E37: =SUM('- 32 -'!D37,'- 32 -'!B37,'- 31 -'!F37,'- 31 -'!D37,'- 31 -'!B37) -> 6116059 | F37: =E37/'- 3 -'!D37*100 -> 9.59924662 | G37: =E37/'- 7 -'!E37 -> 1370.699014 | H37: =SUM('- 33 -'!B37,'- 33 -'!D37,'- 33 -'!F37) -> 1227067 | I37: =H37/'- 3 -'!D37*100 -> 1.925900118 | J37: =H37/'- 7 -'!E37 -> 275.00381
A38: SEVEN OAKS | B38: =SUM('- 30 -'!D38,'- 30 -'!B38,'- 29 -'!F38,'- 29 -'!D38,'- 29 -'!B38) -> 4969738 | C38: =B38/'- 3 -'!D38*100 -> 2.989397492 | D38: =B38/'- 7 -'!E38 -> 431.7569176 | E38: =SUM('- 32 -'!D38,'- 32 -'!B38,'- 31 -'!F38,'- 31 -'!D38,'- 31 -'!B38) -> 15541722 | F38: =E38/'- 3 -'!D38*100 -> 9.348658775 | G38: =E38/'- 7 -'!E38 -> 1350.221276 | H38: =SUM('- 33 -'!B38,'- 33 -'!D38,'- 33 -'!F38) -> 2905416 | I38: =H38/'- 3 -'!D38*100 -> 1.747666236 | J38: =H38/'- 7 -'!E38 -> 252.4144042
A39: SOUTHWEST HORIZON | B39: =SUM('- 30 -'!D39,'- 30 -'!B39,'- 29 -'!F39,'- 29 -'!D39,'- 29 -'!B39) -> 2211145 | C39: =B39/'- 3 -'!D39*100 -> 9.226392478 | D39: =B39/'- 7 -'!E39 -> 1512.928498 | E39: =SUM('- 32 -'!D39,'- 32 -'!B39,'- 31 -'!F39,'- 31 -'!D39,'- 31 -'!B39) -> 2570452 | F39: =E39/'- 3 -'!D39*100 -> 10.7256643 | G39: =E39/'- 7 -'!E39 -> 1758.776599 | H39: =SUM('- 33 -'!B39,'- 33 -'!D39,'- 33 -'!F39) -> 380526 | I39: =H39/'- 3 -'!D39*100 -> 1.587811846 | J39: =H39/'- 7 -'!E39 -> 260.3667465
A40: ST. JAMES-ASSINIBOIA | B40: =SUM('- 30 -'!D40,'- 30 -'!B40,'- 29 -'!F40,'- 29 -'!D40,'- 29 -'!B40) -> 2851414 | C40: =B40/'- 3 -'!D40*100 -> 2.37534528 | D40: =B40/'- 7 -'!E40 -> 353.9974426 | E40: =SUM('- 32 -'!D40,'- 32 -'!B40,'- 31 -'!F40,'- 31 -'!D40,'- 31 -'!B40) -> 12042135 | F40: =E40/'- 3 -'!D40*100 -> 10.03159434 | G40: =E40/'- 7 -'!E40 -> 1495.007387 | H40: =SUM('- 33 -'!B40,'- 33 -'!D40,'- 33 -'!F40) -> 2122067 | I40: =H40/'- 3 -'!D40*100 -> 1.767769195 | J40: =H40/'- 7 -'!E40 -> 263.4504463
A41: SUNRISE | B41: =SUM('- 30 -'!D41,'- 30 -'!B41,'- 29 -'!F41,'- 29 -'!D41,'- 29 -'!B41) -> 5745937 | C41: =B41/'- 3 -'!D41*100 -> 7.834041336 | D41: =B41/'- 7 -'!E41 -> 1251.292901 | E41: =SUM('- 32 -'!D41,'- 32 -'!B41,'- 31 -'!F41,'- 31 -'!D41,'- 31 -'!B41) -> 7389500 | F41: =E41/'- 3 -'!D41*100 -> 10.07488395 | G41: =E41/'- 7 -'!E41 -> 1609.211672 | H41: =SUM('- 33 -'!B41,'- 33 -'!D41,'- 33 -'!F41) -> 1539096 | I41: =H41/'- 3 -'!D41*100 -> 2.098411745 | J41: =H41/'- 7 -'!E41 -> 335.1689895
A42: SWAN VALLEY | B42: =SUM('- 30 -'!D42,'- 30 -'!B42,'- 29 -'!F42,'- 29 -'!D42,'- 29 -'!B42) -> 1869223 | C42: =B42/'- 3 -'!D42*100 -> 7.704561801 | D42: =B42/'- 7 -'!E42 -> 1381.539542 | E42: =SUM('- 32 -'!D42,'- 32 -'!B42,'- 31 -'!F42,'- 31 -'!D42,'- 31 -'!B42) -> 2695775 | F42: =E42/'- 3 -'!D42*100 -> 11.11144314 | G42: =E42/'- 7 -'!E42 -> 1992.44272 | H42: =SUM('- 33 -'!B42,'- 33 -'!D42,'- 33 -'!F42) -> 405344 | I42: =H42/'- 3 -'!D42*100 -> 1.670746561 | J42: =H42/'- 7 -'!E42 -> 299.5890613
A43: TURTLE MOUNTAIN | B43: =SUM('- 30 -'!D43,'- 30 -'!B43,'- 29 -'!F43,'- 29 -'!D43,'- 29 -'!B43) -> 1210703 | C43: =B43/'- 3 -'!D43*100 -> 8.127560835 | D43: =B43/'- 7 -'!E43 -> 1176.010685 | E43: =SUM('- 32 -'!D43,'- 32 -'!B43,'- 31 -'!F43,'- 31 -'!D43,'- 31 -'!B43) -> 1287021 | F43: =E43/'- 3 -'!D43*100 -> 8.639890603 | G43: =E43/'- 7 -'!E43 -> 1250.141816 | H43: =SUM('- 33 -'!B43,'- 33 -'!D43,'- 33 -'!F43) -> 316104 | I43: =H43/'- 3 -'!D43*100 -> 2.122035289 | J43: =H43/'- 7 -'!E43 -> 307.0461389
A44: TURTLE RIVER | B44: =SUM('- 30 -'!D44,'- 30 -'!B44,'- 29 -'!F44,'- 29 -'!D44,'- 29 -'!B44) -> 1241672 | C44: =B44/'- 3 -'!D44*100 -> 10.30595696 | D44: =B44/'- 7 -'!E44 -> 2086.843697 | E44: =SUM('- 32 -'!D44,'- 32 -'!B44,'- 31 -'!F44,'- 31 -'!D44,'- 31 -'!B44) -> 1202200 | F44: =E44/'- 3 -'!D44*100 -> 9.978336833 | G44: =E44/'- 7 -'!E44 -> 2020.504202 | H44: =SUM('- 33 -'!B44,'- 33 -'!D44,'- 33 -'!F44) -> 183836 | I44: =H44/'- 3 -'!D44*100 -> 1.525850549 | J44: =H44/'- 7 -'!E44 -> 308.9680672
A45: WESTERN | B45: =SUM('- 30 -'!D45,'- 30 -'!B45,'- 29 -'!F45,'- 29 -'!D45,'- 29 -'!B45) -> 1147351 | C45: =B45/'- 3 -'!D45*100 -> 4.524506827 | D45: =B45/'- 7 -'!E45 -> 578.4476935 | E45: =SUM('- 32 -'!D45,'- 32 -'!B45,'- 31 -'!F45,'- 31 -'!D45,'- 31 -'!B45) -> 2577632 | F45: =E45/'- 3 -'!D45*100 -> 10.16473039 | G45: =E45/'- 7 -'!E45 -> 1299.537182 | H45: =SUM('- 33 -'!B45,'- 33 -'!D45,'- 33 -'!F45) -> 488712 | I45: =H45/'- 3 -'!D45*100 -> 1.927205171 | J45: =H45/'- 7 -'!E45 -> 246.3887068
A46: WINNIPEG | B46: =SUM('- 30 -'!D46,'- 30 -'!B46,'- 29 -'!F46,'- 29 -'!D46,'- 29 -'!B46) -> 8695530 | C46: =B46/'- 3 -'!D46*100 -> 1.957877016 | D46: =B46/'- 7 -'!E46 -> 312.5576911 | E46: =SUM('- 32 -'!D46,'- 32 -'!B46,'- 31 -'!F46,'- 31 -'!D46,'- 31 -'!B46) -> 57286710 | F46: =E46/'- 3 -'!D46*100 -> 12.8986195 | G46: =E46/'- 7 -'!E46 -> 2059.150139 | H46: =SUM('- 33 -'!B46,'- 33 -'!D46,'- 33 -'!F46) -> 7591849 | I46: =H46/'- 3 -'!D46*100 -> 1.709373284 | J46: =H46/'- 7 -'!E46 -> 272.8862755
A48: PROVINCE | B48: =SUM(B11:B46) -> 121124632 | C48: =B48/'- 3 -'!D48*100 -> 4.43269157 | D48: =B48/'- 7 -'!E48 -> 662.1532705 | E48: =SUM(E11:E46) -> 314675998 | F48: =E48/'- 3 -'!D48*100 -> 11.51592059 | G48: =E48/'- 7 -'!E48 -> 1720.242512 | H48: =SUM(H11:H46) -> 47153681 | I48: =H48/'- 3 -'!D48*100 -> 1.725641769 | J48: =H48/'- 7 -'!E48 -> 257.7755125
A50: WHITESHELL | B50: =SUM('- 30 -'!D50,'- 30 -'!B50,'- 29 -'!F50,'- 29 -'!D50,'- 29 -'!B50) -> 83510 | C50: =B50/'- 3 -'!D50*100 -> 2.19871763 | D50: =B50/'- 7 -'!E50 -> 415.4726368 | E50: =SUM('- 32 -'!D50,'- 32 -'!B50,'- 31 -'!F50,'- 31 -'!D50,'- 31 -'!B50) -> 629521 | F50: =E50/'- 3 -'!D50*100 -> 16.57452905 | G50: =E50/'- 7 -'!E50 -> 3131.945274 | H50: =SUM('- 33 -'!B50,'- 33 -'!D50,'- 33 -'!F50) -> 37052 | I50: =H50/'- 3 -'!D50*100 -> 0.9755344943 | J50: =H50/'- 7 -'!E50 -> 184.3383085

Sheet - 18 -
B2: ANALYSIS OF EXPENSE BY PROGRAM | G2: PAGE 1 OF 16
B3: =OPYEAR -> OPERATING FUND 2022/2023 ACTUAL
B5: FUNCTION 100: REGULAR INSTRUCTION
E6: SENIOR YEARS TECHNOLOGY EDUCATION
B7: ADMINISTRATION
D8: PER PUPIL | G8: PER PUPIL
A9: DIVISION / DISTRICT | B9: AMOUNT | C9: % | E9: AMOUNT | F9: %
A11: BEAUTIFUL PLAINS | B11: 1769658 | C11: =B11/'- 3 -'!D11*100 -> 7.037287094 | D11: =B11/'- 7 -'!C11 -> 883.0628743 | E11: 0 | F11: =E11/'- 3 -'!D11*100 -> 0 | G11: =IF('- 7 -'!B11=0,"",E11/'- 7 -'!B11) -> 
A12: BORDER LAND | B12: 2810987 | C12: =B12/'- 3 -'!D12*100 -> 7.540921492 | D12: =B12/'- 7 -'!C12 -> 1377.786219 | E12: 1118676 | F12: =E12/'- 3 -'!D12*100 -> 3.001027003 | G12: =IF('- 7 -'!B12=0,"",E12/'- 7 -'!B12) -> 9642.09619
A13: BRANDON | B13: 8319188 | C13: =B13/'- 3 -'!D13*100 -> 7.241249326 | D13: =B13/'- 7 -'!C13 -> 917.078731 | E13: 4050415 | F13: =E13/'- 3 -'!D13*100 -> 3.525592268 | G13: =IF('- 7 -'!B13=0,"",E13/'- 7 -'!B13) -> 8134.996987
A14: DSFM | B14: 7783040 | C14: =B14/'- 3 -'!D14*100 -> 7.378011515 | D14: =B14/'- 7 -'!C14 -> 1333.353891 | E14: 325998 | F14: =E14/'- 3 -'!D14*100 -> 0.3090331025 | G14: =IF('- 7 -'!B14=0,"",E14/'- 7 -'!B14) -> 11168.13977
A15: EVERGREEN | B15: 2600360 | C15: =B15/'- 3 -'!D15*100 -> 7.983349775 | D15: =B15/'- 7 -'!C15 -> 1258.035801 | E15: 0 | F15: =E15/'- 3 -'!D15*100 -> 0 | G15: =IF('- 7 -'!B15=0,"",E15/'- 7 -'!B15) -> 
A16: FLIN FLON | B16: 1388876 | C16: =B16/'- 3 -'!D16*100 -> 8.337871345 | D16: =B16/'- 7 -'!C16 -> 1483.683367 | E16: 0 | F16: =E16/'- 3 -'!D16*100 -> 0 | G16: =IF('- 7 -'!B16=0,"",E16/'- 7 -'!B16) -> 
A17: FORT LA BOSSE | B17: 1369932 | C17: =B17/'- 3 -'!D17*100 -> 6.610896244 | D17: =B17/'- 7 -'!C17 -> 910.556331 | E17: 172223 | F17: =E17/'- 3 -'!D17*100 -> 0.831098466 | G17: =IF('- 7 -'!B17=0,"",E17/'- 7 -'!B17) -> 6150.821429
A18: FRONTIER | B18: 8342913 | C18: =B18/'- 3 -'!D18*100 -> 5.167547409 | D18: =B18/'- 7 -'!C18 -> 1315.605614 | E18: 518791 | F18: =E18/'- 3 -'!D18*100 -> 0.3213358557 | G18: =IF('- 7 -'!B18=0,"",E18/'- 7 -'!B18) -> 4434.111111
A19: GARDEN VALLEY | B19: 3548946 | C19: =B19/'- 3 -'!D19*100 -> 6.526961331 | D19: =B19/'- 7 -'!C19 -> 869.2005878 | E19: 1314322 | F19: =E19/'- 3 -'!D19*100 -> 2.417204677 | G19: =IF('- 7 -'!B19=0,"",E19/'- 7 -'!B19) -> 
A20: HANOVER | B20: 6977359 | C20: =B20/'- 3 -'!D20*100 -> 6.837310372 | D20: =B20/'- 7 -'!C20 -> 864.28329 | E20: 3081914 | F20: =E20/'- 3 -'!D20*100 -> 3.020054229 | G20: =IF('- 7 -'!B20=0,"",E20/'- 7 -'!B20) -> 5552.998198
A21: INTERLAKE | B21: 3191215 | C21: =B21/'- 3 -'!D21*100 -> 7.837507079 | D21: =B21/'- 7 -'!C21 -> 1090.640807 | E21: 0 | F21: =E21/'- 3 -'!D21*100 -> 0 | G21: =IF('- 7 -'!B21=0,"",E21/'- 7 -'!B21) -> 
A22: KELSEY | B22: 1650279 | C22: =B22/'- 3 -'!D22*100 -> 7.477019528 | D22: =B22/'- 7 -'!C22 -> 1117.318213 | E22: 31238 | F22: =E22/'- 3 -'!D22*100 -> 0.1415319082 | G22: =IF('- 7 -'!B22=0,"",E22/'- 7 -'!B22) -> 2169.305556
A23: LAKESHORE | B23: 1116608 | C23: =B23/'- 3 -'!D23*100 -> 6.773075864 | D23: =B23/'- 7 -'!C23 -> 1225.02249 | E23: 146198 | F23: =E23/'- 3 -'!D23*100 -> 0.886801944 | G23: =IF('- 7 -'!B23=0,"",E23/'- 7 -'!B23) -> 12183.16667
A24: LORD SELKIRK | B24: 5449239 | C24: =B24/'- 3 -'!D24*100 -> 8.521869804 | D24: =B24/'- 7 -'!C24 -> 1443.889507 | E24: 2094256 | F24: =E24/'- 3 -'!D24*100 -> 3.27513199 | G24: =IF('- 7 -'!B24=0,"",E24/'- 7 -'!B24) -> 10068.53846
A25: LOUIS RIEL | B25: 16222647 | C25: =B25/'- 3 -'!D25*100 -> 7.397867027 | D25: =B25/'- 7 -'!C25 -> 995.6820107 | E25: 1732749 | F25: =E25/'- 3 -'!D25*100 -> 0.790169859 | G25: =IF('- 7 -'!B25=0,"",E25/'- 7 -'!B25) -> 36098.9375
A26: MOUNTAIN VIEW | B26: 3915762 | C26: =B26/'- 3 -'!D26*100 -> 8.541675483 | D26: =B26/'- 7 -'!C26 -> 1281.54541 | E26: 1117156 | F26: =E26/'- 3 -'!D26*100 -> 2.436916242 | G26: =IF('- 7 -'!B26=0,"",E26/'- 7 -'!B26) -> 7221.435036
A27: MYSTERY LAKE | B27: 2930553 | C27: =B27/'- 3 -'!D27*100 -> 6.359173098 | D27: =B27/'- 7 -'!C27 -> 1073.266068 | E27: 1265185 | F27: =E27/'- 3 -'!D27*100 -> 2.745396659 | G27: =IF('- 7 -'!B27=0,"",E27/'- 7 -'!B27) -> 14459.25714
A28: PARK WEST | B28: 2600360 | C28: =B28/'- 3 -'!D28*100 -> 7.983349775 | D28: =B28/'- 7 -'!C28 -> 1258.035801 | E28: 0 | F28: =E28/'- 3 -'!D28*100 -> 0 | G28: =IF('- 7 -'!B28=0,"",E28/'- 7 -'!B28) -> 
A29: PEMBINA TRAILS | B29: 15636725 | C29: =B29/'- 3 -'!D29*100 -> 7.996049472 | D29: =B29/'- 7 -'!C29 -> 1032.331485 | E29: 0 | F29: =E29/'- 3 -'!D29*100 -> 0 | G29: =IF('- 7 -'!B29=0,"",E29/'- 7 -'!B29) -> 
A30: PINE CREEK | B30: 1222536 | C30: =B30/'- 3 -'!D30*100 -> 7.067648674 | D30: =B30/'- 7 -'!C30 -> 1119.538462 | E30: 515087 | F30: =E30/'- 3 -'!D30*100 -> 2.977788754 | G30: =IF('- 7 -'!B30=0,"",E30/'- 7 -'!B30) -> 7153.986111
A31: PORTAGE LA PRAIRIE | B31: 3661082 | C31: =B31/'- 3 -'!D31*100 -> 7.950895708 | D31: =B31/'- 7 -'!C31 -> 1090.419062 | E31: 838327 | F31: =E31/'- 3 -'!D31*100 -> 1.820623123 | G31: =IF('- 7 -'!B31=0,"",E31/'- 7 -'!B31) -> 8060.836538
A32: PRAIRIE ROSE | B32: 2809448 | C32: =B32/'- 3 -'!D32*100 -> 8.390598724 | D32: =B32/'- 7 -'!C32 -> 1233.837505 | E32: 0 | F32: =E32/'- 3 -'!D32*100 -> 0 | G32: =IF('- 7 -'!B32=0,"",E32/'- 7 -'!B32) -> 
A33: PRAIRIE SPIRIT | B33: 3044327 | C33: =B33/'- 3 -'!D33*100 -> 9.948030392 | D33: =B33/'- 7 -'!C33 -> 1461.861705 | E33: 0 | F33: =E33/'- 3 -'!D33*100 -> 0 | G33: =IF('- 7 -'!B33=0,"",E33/'- 7 -'!B33) -> 
A34: RED RIVER VALLEY | B34: 3017190 | C34: =B34/'- 3 -'!D34*100 -> 8.528312568 | D34: =B34/'- 7 -'!C34 -> 1332.38684 | E34: 362803 | F34: =E34/'- 3 -'!D34*100 -> 1.025489739 | G34: =IF('- 7 -'!B34=0,"",E34/'- 7 -'!B34) -> 12729.92982
A35: RIVER EAST TRANSCONA | B35: 16125564 | C35: =B35/'- 3 -'!D35*100 -> 7.273519818 | D35: =B35/'- 7 -'!C35 -> 954.8251177 | E35: 4435704 | F35: =E35/'- 3 -'!D35*100 -> 2.000747444 | G35: =IF('- 7 -'!B35=0,"",E35/'- 7 -'!B35) -> 5194.032787
A36: ROLLING RIVER | B36: 2187552 | C36: =B36/'- 3 -'!D36*100 -> 8.15355255 | D36: =B36/'- 7 -'!C36 -> 1241.868862 | E36: 132785 | F36: =E36/'- 3 -'!D36*100 -> 0.4949228523 | G36: =IF('- 7 -'!B36=0,"",E36/'- 7 -'!B36) -> 13278.5
A37: SEINE RIVER | B37: 5186368 | C37: =B37/'- 3 -'!D37*100 -> 8.140082608 | D37: =B37/'- 7 -'!C37 -> 1162.341551 | E37: 0 | F37: =E37/'- 3 -'!D37*100 -> 0 | G37: =IF('- 7 -'!B37=0,"",E37/'- 7 -'!B37) -> 
A38: SEVEN OAKS | B38: 12559112 | C38: =B38/'- 3 -'!D38*100 -> 7.554558794 | D38: =B38/'- 7 -'!C38 -> 1091.100473 | E38: 1740869 | F38: =E38/'- 3 -'!D38*100 -> 1.047167763 | G38: =IF('- 7 -'!B38=0,"",E38/'- 7 -'!B38) -> 8836.898477
A39: SOUTHWEST HORIZON | B39: 1569129 | C39: =B39/'- 3 -'!D39*100 -> 6.54746749 | D39: =B39/'- 7 -'!C39 -> 1073.642833 | E39: 0 | F39: =E39/'- 3 -'!D39*100 -> 0 | G39: =IF('- 7 -'!B39=0,"",E39/'- 7 -'!B39) -> 
A40: ST. JAMES-ASSINIBOIA | B40: 8773137 | C40: =B40/'- 3 -'!D40*100 -> 7.308384389 | D40: =B40/'- 7 -'!C40 -> 1089.167712 | E40: 2019998 | F40: =E40/'- 3 -'!D40*100 -> 1.682741515 | G40: =IF('- 7 -'!B40=0,"",E40/'- 7 -'!B40) -> 9140.262443
A41: SUNRISE | B41: 5037131 | C41: =B41/'- 3 -'!D41*100 -> 6.867651433 | D41: =B41/'- 7 -'!C41 -> 1096.936193 | E41: 0 | F41: =E41/'- 3 -'!D41*100 -> 0 | G41: =IF('- 7 -'!B41=0,"",E41/'- 7 -'!B41) -> 
A42: SWAN VALLEY | B42: 1899307 | C42: =B42/'- 3 -'!D42*100 -> 7.828562007 | D42: =B42/'- 7 -'!C42 -> 1403.774575 | E42: 1449472 | F42: =E42/'- 3 -'!D42*100 -> 5.97443248 | G42: =IF('- 7 -'!B42=0,"",E42/'- 7 -'!B42) -> 7644.894515
A43: TURTLE MOUNTAIN | B43: 853501 | C43: =B43/'- 3 -'!D43*100 -> 5.729630884 | D43: =B43/'- 7 -'!C43 -> 829.0441962 | E43: 60670 | F43: =E43/'- 3 -'!D43*100 -> 0.4072833022 | G43: =IF('- 7 -'!B43=0,"",E43/'- 7 -'!B43) -> 5275.652174
A44: TURTLE RIVER | B44: 690312 | C44: =B44/'- 3 -'!D44*100 -> 5.729633718 | D44: =B44/'- 7 -'!C44 -> 1160.188235 | E44: 0 | F44: =E44/'- 3 -'!D44*100 -> 0 | G44: =IF('- 7 -'!B44=0,"",E44/'- 7 -'!B44) -> 
A45: WESTERN | B45: 1677464 | C45: =B45/'- 3 -'!D45*100 -> 6.614974249 | D45: =B45/'- 7 -'!C45 -> 845.7091001 | E45: 325908 | F45: =E45/'- 3 -'!D45*100 -> 1.285197791 | G45: =IF('- 7 -'!B45=0,"",E45/'- 7 -'!B45) -> 10184.625
A46: WINNIPEG | B46: 31176297 | C46: =B46/'- 3 -'!D46*100 -> 7.019624491 | D46: =B46/'- 7 -'!C46 -> 1120.620757 | E46: 5185181 | F46: =E46/'- 3 -'!D46*100 -> 1.167490274 | G46: =IF('- 7 -'!B46=0,"",E46/'- 7 -'!B46) -> 7433.31183
A48: PROVINCE | B48: =SUM(B11:B46) -> 199114104 | C48: =B48/'- 3 -'!D48*100 -> 7.286803647 | D48: =B48/'- 7 -'!C48 -> 1088.499119 | E48: =SUM(E11:E46) -> 34035925 | F48: =E48/'- 3 -'!D48*100 -> 1.245582796 | G48: =E48/'- 7 -'!B48 -> 7943.28066
A50: WHITESHELL | B50: 280910 | C50: =B50/'- 3 -'!D50*100 -> 7.396021666 | D50: =B50/'- 7 -'!C50 -> 1397.562189 | E50: 0 | F50: =E50/'- 3 -'!D50*100 -> 0 | G50: =IF('- 7 -'!B50=0,"",E50/'- 7 -'!B50) -> 

Sheet - 19 -
B2: ANALYSIS OF EXPENSE BY PROGRAM | J2: PAGE 2 OF 16
B3: =OPYEAR -> OPERATING FUND 2022/2023 ACTUAL
B5: FUNCTION 100: REGULAR INSTRUCTION
B6: SINGLE TRACK SCHOOLS (1)
B7: ENGLISH LANGUAGE | E7: FRANÇAIS | H7: FRENCH IMMERSION
D8: PER PUPIL | G8: PER PUPIL | J8: PER PUPIL
A9: DIVISION / DISTRICT | B9: AMOUNT | C9: % | E9: AMOUNT | F9: % | H9: AMOUNT | I9: %
A11: BEAUTIFUL PLAINS | B11: 14296177 | C11: =B11/'- 3 -'!D11*100 -> 56.8507033 | D11: =B11/'- 6 -'!B11 -> 7133.820858 | E11: 0 | F11: =E11/'- 3 -'!D11*100 -> 0 | G11: =IF('- 6 -'!C11=0,"",E11/'- 6 -'!C11) ->  | H11: 0 | I11: =H11/'- 3 -'!D11*100 -> 0 | J11: =IF('- 6 -'!D11=0,"",H11/'- 6 -'!D11) -> 
A12: BORDER LAND | B12: 13098860 | C12: =B12/'- 3 -'!D12*100 -> 35.1397836 | D12: =B12/'- 6 -'!B12 -> 10012.88794 | E12: 0 | F12: =E12/'- 3 -'!D12*100 -> 0 | G12: =IF('- 6 -'!C12=0,"",E12/'- 6 -'!C12) ->  | H12: 0 | I12: =H12/'- 3 -'!D12*100 -> 0 | J12: =IF('- 6 -'!D12=0,"",H12/'- 6 -'!D12) -> 
A13: BRANDON | B13: 47871108 | C13: =B13/'- 3 -'!D13*100 -> 41.6683249 | D13: =B13/'- 6 -'!B13 -> 6746.685646 | E13: 0 | F13: =E13/'- 3 -'!D13*100 -> 0 | G13: =IF('- 6 -'!C13=0,"",E13/'- 6 -'!C13) ->  | H13: 2164958 | I13: =H13/'- 3 -'!D13*100 -> 1.884438801 | J13: =IF('- 6 -'!D13=0,"",H13/'- 6 -'!D13) -> 6829.520505
A14: DSFM | B14: 0 | C14: =B14/'- 3 -'!D14*100 -> 0 | E14: 48575444 | F14: =E14/'- 3 -'!D14*100 -> 46.04758362 | G14: =IF('- 6 -'!C14=0,"",E14/'- 6 -'!C14) -> 8363.540634 | H14: 0 | I14: =H14/'- 3 -'!D14*100 -> 0 | J14: =IF('- 6 -'!D14=0,"",H14/'- 6 -'!D14) -> 
A15: EVERGREEN | B15: 16937017 | C15: =B15/'- 3 -'!D15*100 -> 51.99823519 | D15: =B15/'- 6 -'!B15 -> 8194.009192 | E15: 0 | F15: =E15/'- 3 -'!D15*100 -> 0 | G15: =IF('- 6 -'!C15=0,"",E15/'- 6 -'!C15) ->  | H15: 0 | I15: =H15/'- 3 -'!D15*100 -> 0 | J15: =IF('- 6 -'!D15=0,"",H15/'- 6 -'!D15) -> 
A16: FLIN FLON | B16: 5030826 | C16: =B16/'- 3 -'!D16*100 -> 30.20167383 | D16: =B16/'- 6 -'!B16 -> 8694.825441 | E16: 0 | F16: =E16/'- 3 -'!D16*100 -> 0 | G16: =IF('- 6 -'!C16=0,"",E16/'- 6 -'!C16) ->  | H16: 0 | I16: =H16/'- 3 -'!D16*100 -> 0 | J16: =IF('- 6 -'!D16=0,"",H16/'- 6 -'!D16) -> 
A17: FORT LA BOSSE | B17: 11037130 | C17: =B17/'- 3 -'!D17*100 -> 53.26200224 | D17: =B17/'- 6 -'!B17 -> 7475.198104 | E17: 0 | F17: =E17/'- 3 -'!D17*100 -> 0 | G17: =IF('- 6 -'!C17=0,"",E17/'- 6 -'!C17) ->  | H17: 0 | I17: =H17/'- 3 -'!D17*100 -> 0 | J17: =IF('- 6 -'!D17=0,"",H17/'- 6 -'!D17) -> 
A18: FRONTIER | B18: 57431835 | C18: =B18/'- 3 -'!D18*100 -> 35.57291442 | D18: =B18/'- 6 -'!B18 -> 9226.738694 | E18: 0 | F18: =E18/'- 3 -'!D18*100 -> 0 | G18: =IF('- 6 -'!C18=0,"",E18/'- 6 -'!C18) ->  | H18: 0 | I18: =H18/'- 3 -'!D18*100 -> 0 | J18: =IF('- 6 -'!D18=0,"",H18/'- 6 -'!D18) -> 
A19: GARDEN VALLEY | B19: 26894001 | C19: =B19/'- 3 -'!D19*100 -> 49.4614752 | D19: =B19/'- 6 -'!B19 -> 6586.823659 | E19: 0 | F19: =E19/'- 3 -'!D19*100 -> 0 | G19: =IF('- 6 -'!C19=0,"",E19/'- 6 -'!C19) ->  | H19: 0 | I19: =H19/'- 3 -'!D19*100 -> 0 | J19: =IF('- 6 -'!D19=0,"",H19/'- 6 -'!D19) -> 
A20: HANOVER | B20: 51104253 | C20: =B20/'- 3 -'!D20*100 -> 50.07849518 | D20: =B20/'- 6 -'!B20 -> 6797.586193 | E20: 0 | F20: =E20/'- 3 -'!D20*100 -> 0 | G20: =IF('- 6 -'!C20=0,"",E20/'- 6 -'!C20) ->  | H20: 0 | I20: =H20/'- 3 -'!D20*100 -> 0 | J20: =IF('- 6 -'!D20=0,"",H20/'- 6 -'!D20) -> 
A21: INTERLAKE | B21: 12312783 | C21: =B21/'- 3 -'!D21*100 -> 30.23974377 | D21: =B21/'- 6 -'!B21 -> 7681.087336 | E21: 0 | F21: =E21/'- 3 -'!D21*100 -> 0 | G21: =IF('- 6 -'!C21=0,"",E21/'- 6 -'!C21) ->  | H21: 0 | I21: =H21/'- 3 -'!D21*100 -> 0 | J21: =IF('- 6 -'!D21=0,"",H21/'- 6 -'!D21) -> 
A22: KELSEY | B22: 5246522 | C22: =B22/'- 3 -'!D22*100 -> 23.77073661 | D22: =B22/'- 6 -'!B22 -> 6263.755969 | E22: 0 | F22: =E22/'- 3 -'!D22*100 -> 0 | G22: =IF('- 6 -'!C22=0,"",E22/'- 6 -'!C22) ->  | H22: 0 | I22: =H22/'- 3 -'!D22*100 -> 0 | J22: =IF('- 6 -'!D22=0,"",H22/'- 6 -'!D22) -> 
A23: LAKESHORE | B23: 7542209 | C23: =B23/'- 3 -'!D23*100 -> 45.74922778 | D23: =B23/'- 6 -'!B23 -> 8384.890495 | E23: 0 | F23: =E23/'- 3 -'!D23*100 -> 0 | G23: =IF('- 6 -'!C23=0,"",E23/'- 6 -'!C23) ->  | H23: 0 | I23: =H23/'- 3 -'!D23*100 -> 0 | J23: =IF('- 6 -'!D23=0,"",H23/'- 6 -'!D23) -> 
A24: LORD SELKIRK | B24: 23432737 | C24: =B24/'- 3 -'!D24*100 -> 36.64561857 | D24: =B24/'- 6 -'!B24 -> 8784.531209 | E24: 0 | F24: =E24/'- 3 -'!D24*100 -> 0 | G24: =IF('- 6 -'!C24=0,"",E24/'- 6 -'!C24) ->  | H24: 1791166 | I24: =H24/'- 3 -'!D24*100 -> 2.801140389 | J24: =IF('- 6 -'!D24=0,"",H24/'- 6 -'!D24) -> 8050.18427
A25: LOUIS RIEL | B25: 65457699 | C25: =B25/'- 3 -'!D25*100 -> 29.85008261 | D25: =B25/'- 6 -'!B25 -> 5538.344953 | E25: 0 | F25: =E25/'- 3 -'!D25*100 -> 0 | G25: =IF('- 6 -'!C25=0,"",E25/'- 6 -'!C25) ->  | H25: 30912534 | I25: =H25/'- 3 -'!D25*100 -> 14.09676337 | J25: =IF('- 6 -'!D25=0,"",H25/'- 6 -'!D25) -> 8402.428377
A26: MOUNTAIN VIEW | B26: 18012295 | C26: =B26/'- 3 -'!D26*100 -> 39.2912487 | D26: =B26/'- 6 -'!B26 -> 7804.963602 | E26: 0 | F26: =E26/'- 3 -'!D26*100 -> 0 | G26: =IF('- 6 -'!C26=0,"",E26/'- 6 -'!C26) ->  | H26: 857669 | I26: =H26/'- 3 -'!D26*100 -> 1.870882416 | J26: =IF('- 6 -'!D26=0,"",H26/'- 6 -'!D26) -> 6674.466926
A27: MYSTERY LAKE | B27: 18635637 | C27: =B27/'- 3 -'!D27*100 -> 40.43852525 | D27: =B27/'- 6 -'!B27 -> 8127.185783 | E27: 0 | F27: =E27/'- 3 -'!D27*100 -> 0 | G27: =IF('- 6 -'!C27=0,"",E27/'- 6 -'!C27) ->  | H27: 0 | I27: =H27/'- 3 -'!D27*100 -> 0 | J27: =IF('- 6 -'!D27=0,"",H27/'- 6 -'!D27) -> 
A28: PARK WEST | B28: 16937017 | C28: =B28/'- 3 -'!D28*100 -> 51.99823519 | D28: =B28/'- 6 -'!B28 -> 8194.009192 | E28: 0 | F28: =E28/'- 3 -'!D28*100 -> 0 | G28: =IF('- 6 -'!C28=0,"",E28/'- 6 -'!C28) ->  | H28: 0 | I28: =H28/'- 3 -'!D28*100 -> 0 | J28: =IF('- 6 -'!D28=0,"",H28/'- 6 -'!D28) -> 
A29: PEMBINA TRAILS | B29: 56134617 | C29: =B29/'- 3 -'!D29*100 -> 28.7051908 | D29: =B29/'- 6 -'!B29 -> 6206.148922 | E29: 0 | F29: =E29/'- 3 -'!D29*100 -> 0 | G29: =IF('- 6 -'!C29=0,"",E29/'- 6 -'!C29) ->  | H29: 8887563 | I29: =H29/'- 3 -'!D29*100 -> 4.544774781 | J29: =IF('- 6 -'!D29=0,"",H29/'- 6 -'!D29) -> 6289.853503
A30: PINE CREEK | B30: 9421077 | C30: =B30/'- 3 -'!D30*100 -> 54.46454122 | D30: =B30/'- 6 -'!B30 -> 9236.35 | E30: 0 | F30: =E30/'- 3 -'!D30*100 -> 0 | G30: =IF('- 6 -'!C30=0,"",E30/'- 6 -'!C30) ->  | H30: 0 | I30: =H30/'- 3 -'!D30*100 -> 0 | J30: =IF('- 6 -'!D30=0,"",H30/'- 6 -'!D30) -> 
A31: PORTAGE LA PRAIRIE | B31: 18947088 | C31: =B31/'- 3 -'!D31*100 -> 41.14803237 | D31: =B31/'- 6 -'!B31 -> 7996.238869 | E31: 0 | F31: =E31/'- 3 -'!D31*100 -> 0 | G31: =IF('- 6 -'!C31=0,"",E31/'- 6 -'!C31) ->  | H31: 0 | I31: =H31/'- 3 -'!D31*100 -> 0 | J31: =IF('- 6 -'!D31=0,"",H31/'- 6 -'!D31) -> 
A32: PRAIRIE ROSE | B32: 13136747 | C32: =B32/'- 3 -'!D32*100 -> 39.2337472 | D32: =B32/'- 6 -'!B32 -> 7840.493584 | E32: 0 | F32: =E32/'- 3 -'!D32*100 -> 0 | G32: =IF('- 6 -'!C32=0,"",E32/'- 6 -'!C32) ->  | H32: 801222 | I32: =H32/'- 3 -'!D32*100 -> 2.392901485 | J32: =IF('- 6 -'!D32=0,"",H32/'- 6 -'!D32) -> 6936.987013
A33: PRAIRIE SPIRIT | B33: 11685874 | C33: =B33/'- 3 -'!D33*100 -> 38.18624928 | D33: =B33/'- 6 -'!B33 -> 7142.954768 | E33: 0 | F33: =E33/'- 3 -'!D33*100 -> 0 | G33: =IF('- 6 -'!C33=0,"",E33/'- 6 -'!C33) ->  | H33: 0 | I33: =H33/'- 3 -'!D33*100 -> 0 | J33: =IF('- 6 -'!D33=0,"",H33/'- 6 -'!D33) -> 
A34: RED RIVER VALLEY | B34: 11746453 | C34: =B34/'- 3 -'!D34*100 -> 33.2022255 | D34: =B34/'- 6 -'!B34 -> 6981.547103 | E34: 0 | F34: =E34/'- 3 -'!D34*100 -> 0 | G34: =IF('- 6 -'!C34=0,"",E34/'- 6 -'!C34) ->  | H34: 2573305 | I34: =H34/'- 3 -'!D34*100 -> 7.273638509 | J34: =IF('- 6 -'!D34=0,"",H34/'- 6 -'!D34) -> 7881.485452
A35: RIVER EAST TRANSCONA | B35: 63980191 | C35: =B35/'- 3 -'!D35*100 -> 28.85859913 | D35: =B35/'- 6 -'!B35 -> 7786.319946 | E35: 0 | F35: =E35/'- 3 -'!D35*100 -> 0 | G35: =IF('- 6 -'!C35=0,"",E35/'- 6 -'!C35) ->  | H35: 8534590 | I35: =H35/'- 3 -'!D35*100 -> 3.84957137 | J35: =IF('- 6 -'!D35=0,"",H35/'- 6 -'!D35) -> 5627.82064
A36: ROLLING RIVER | B36: 12951574 | C36: =B36/'- 3 -'!D36*100 -> 48.27375039 | D36: =B36/'- 6 -'!B36 -> 7394.561233 | E36: 0 | F36: =E36/'- 3 -'!D36*100 -> 0 | G36: =IF('- 6 -'!C36=0,"",E36/'- 6 -'!C36) ->  | H36: 0 | I36: =H36/'- 3 -'!D36*100 -> 0 | J36: =IF('- 6 -'!D36=0,"",H36/'- 6 -'!D36) -> 
A37: SEINE RIVER | B37: 14125228 | C37: =B37/'- 3 -'!D37*100 -> 22.16975787 | D37: =B37/'- 6 -'!B37 -> 6277.879111 | E37: 0 | F37: =E37/'- 3 -'!D37*100 -> 0 | G37: =IF('- 6 -'!C37=0,"",E37/'- 6 -'!C37) ->  | H37: 5027224 | I37: =H37/'- 3 -'!D37*100 -> 7.890303706 | J37: =IF('- 6 -'!D37=0,"",H37/'- 6 -'!D37) -> 6202.620605
A38: SEVEN OAKS | B38: 53636441 | C38: =B38/'- 3 -'!D38*100 -> 32.26339944 | D38: =B38/'- 6 -'!B38 -> 7815.647049 | E38: 0 | F38: =E38/'- 3 -'!D38*100 -> 0 | G38: =IF('- 6 -'!C38=0,"",E38/'- 6 -'!C38) ->  | H38: 6858442 | I38: =H38/'- 3 -'!D38*100 -> 4.125490984 | J38: =IF('- 6 -'!D38=0,"",H38/'- 6 -'!D38) -> 6347.470615
A39: SOUTHWEST HORIZON | B39: 12029635 | C39: =B39/'- 3 -'!D39*100 -> 50.19577363 | D39: =B39/'- 6 -'!B39 -> 8231.019501 | E39: 0 | F39: =E39/'- 3 -'!D39*100 -> 0 | G39: =IF('- 6 -'!C39=0,"",E39/'- 6 -'!C39) ->  | H39: 0 | I39: =H39/'- 3 -'!D39*100 -> 0 | J39: =IF('- 6 -'!D39=0,"",H39/'- 6 -'!D39) -> 
A40: ST. JAMES-ASSINIBOIA | B40: 41011142 | C40: =B40/'- 3 -'!D40*100 -> 34.16397008 | D40: =B40/'- 6 -'!B40 -> 7538.535716 | E40: 0 | F40: =E40/'- 3 -'!D40*100 -> 0 | G40: =IF('- 6 -'!C40=0,"",E40/'- 6 -'!C40) ->  | H40: 9086119 | I40: =H40/'- 3 -'!D40*100 -> 7.569111283 | J40: =IF('- 6 -'!D40=0,"",H40/'- 6 -'!D40) -> 6658.936607
A41: SUNRISE | B41: 17272535 | C41: =B41/'- 3 -'!D41*100 -> 23.5494669 | D41: =B41/'- 6 -'!B41 -> 8398.995867 | E41: 0 | F41: =E41/'- 3 -'!D41*100 -> 0 | G41: =IF('- 6 -'!C41=0,"",E41/'- 6 -'!C41) ->  | H41: 0 | I41: =H41/'- 3 -'!D41*100 -> 0 | J41: =IF('- 6 -'!D41=0,"",H41/'- 6 -'!D41) -> 
A42: SWAN VALLEY | B42: 7733387 | C42: =B42/'- 3 -'!D42*100 -> 31.87546808 | D42: =B42/'- 6 -'!B42 -> 8193.01515 | E42: 0 | F42: =E42/'- 3 -'!D42*100 -> 0 | G42: =IF('- 6 -'!C42=0,"",E42/'- 6 -'!C42) ->  | H42: 0 | I42: =H42/'- 3 -'!D42*100 -> 0 | J42: =IF('- 6 -'!D42=0,"",H42/'- 6 -'!D42) -> 
A43: TURTLE MOUNTAIN | B43: 7289194 | C43: =B43/'- 3 -'!D43*100 -> 48.9330312 | D43: =B43/'- 6 -'!B43 -> 7160.308448 | E43: 0 | F43: =E43/'- 3 -'!D43*100 -> 0 | G43: =IF('- 6 -'!C43=0,"",E43/'- 6 -'!C43) ->  | H43: 0 | I43: =H43/'- 3 -'!D43*100 -> 0 | J43: =IF('- 6 -'!D43=0,"",H43/'- 6 -'!D43) -> 
A44: TURTLE RIVER | B44: 6135467 | C44: =B44/'- 3 -'!D44*100 -> 50.92476822 | D44: =B44/'- 6 -'!B44 -> 10820.92945 | E44: 0 | F44: =E44/'- 3 -'!D44*100 -> 0 | G44: =IF('- 6 -'!C44=0,"",E44/'- 6 -'!C44) ->  | H44: 386728 | I44: =H44/'- 3 -'!D44*100 -> 3.209867116 | J44: =IF('- 6 -'!D44=0,"",H44/'- 6 -'!D44) -> 13811.71429
A45: WESTERN | B45: 6688218 | C45: =B45/'- 3 -'!D45*100 -> 26.3745689 | D45: =B45/'- 6 -'!B45 -> 7896.361275 | E45: 0 | F45: =E45/'- 3 -'!D45*100 -> 0 | G45: =IF('- 6 -'!C45=0,"",E45/'- 6 -'!C45) ->  | H45: 0 | I45: =H45/'- 3 -'!D45*100 -> 0 | J45: =IF('- 6 -'!D45=0,"",H45/'- 6 -'!D45) -> 
A46: WINNIPEG | B46: 139547789 | C46: =B46/'- 3 -'!D46*100 -> 31.42044346 | D46: =B46/'- 6 -'!B46 -> 8063.083666 | E46: 0 | F46: =E46/'- 3 -'!D46*100 -> 0 | G46: =IF('- 6 -'!C46=0,"",E46/'- 6 -'!C46) ->  | H46: 8821385 | I46: =H46/'- 3 -'!D46*100 -> 1.986214405 | J46: =IF('- 6 -'!D46=0,"",H46/'- 6 -'!D46) -> 6410.890262
A48: PROVINCE | B48: =SUM(B11:B46) -> 914750763 | C48: =B48/'- 3 -'!D48*100 -> 33.47632871 | D48: =B48/'- 6 -'!B48 -> 7436.967842 | E48: =SUM(E11:E46) -> 48575444 | F48: =E48/'- 3 -'!D48*100 -> 1.777672778 | G48: =E48/'- 6 -'!C48 -> 8363.540634 | H48: =SUM(H11:H46) -> 86702905 | I48: =H48/'- 3 -'!D48*100 -> 3.172989917 | J48: =H48/'- 6 -'!D48 -> 7004.597269
A50: WHITESHELL | B50: 1850949 | C50: =B50/'- 3 -'!D50*100 -> 48.73325587 | D50: =B50/'- 6 -'!B50 -> 9208.701493 | E50: 0 | F50: =E50/'- 3 -'!D50*100 -> 0 | G50: =IF('- 6 -'!C50=0,"",E50/'- 6 -'!C50) ->  | H50: 0 | I50: =H50/'- 3 -'!D50*100 -> 0 | J50: =IF('- 6 -'!D50=0,"",H50/'- 6 -'!D50) -> 
A52: (1) 90% or more of Regular Instruction enrolment is in one language.

Sheet - 20 -
B2: ANALYSIS OF EXPENSE BY PROGRAM | I2: PAGE 3 OF 16
B3: =OPYEAR -> OPERATING FUND 2022/2023 ACTUAL
B5: FUNCTION 100: REGULAR INSTRUCTION
B6: DUAL TRACK SCHOOLS (1)
E7: NO. OF F.T.E. PUPILS | F7: % IN DUAL TRACK SCHOOLS
D8: PER PUPIL | H8: FRENCH IMMERSION
A9: DIVISION / DISTRICT | B9: AMOUNT | C9: % | F9: ENGLISH | G9: FRANÇAIS | I9: OTHER
A11: BEAUTIFUL PLAINS | B11: 0 | C11: =B11/'- 3 -'!D11*100 -> 0 | D11: =IF(E11=0,"",B11/E11) ->  | E11: =SUM('- 6 -'!E11:H11) -> 0 | F11: =IF(E11=0,"",'- 6 -'!E11/E11*100) ->  | G11: =IF(E11=0,"",'- 6 -'!F11/E11*100) ->  | H11: =IF(E11=0,"",'- 6 -'!G11/E11*100) ->  | I11: =IF(E11=0,"",'- 6 -'!H11/E11*100) -> 
A12: BORDER LAND | B12: 4414083 | C12: =B12/'- 3 -'!D12*100 -> 11.8414825 | D12: =IF(E12=0,"",B12/E12) -> 7165.719156 | E12: =SUM('- 6 -'!E12:H12) -> 616 | F12: =IF(E12=0,"",'- 6 -'!E12/E12*100) -> 79.13961039 | G12: =IF(E12=0,"",'- 6 -'!F12/E12*100) -> 0 | H12: =IF(E12=0,"",'- 6 -'!G12/E12*100) -> 20.86038961 | I12: =IF(E12=0,"",'- 6 -'!H12/E12*100) -> 0
A13: BRANDON | B13: 7412982 | C13: =B13/'- 3 -'!D13*100 -> 6.452462777 | D13: 6384.997416 | E13: =SUM('- 6 -'!E13:H13) -> 1161 | F13: =IF(E13=0,"",'- 6 -'!E13/E13*100) -> 55.72782084 | G13: =IF(E13=0,"",'- 6 -'!F13/E13*100) -> 0 | H13: =IF(E13=0,"",'- 6 -'!G13/E13*100) -> 44.27217916 | I13: =IF(E13=0,"",'- 6 -'!H13/E13*100) -> 0
A14: DSFM | B14: 0 | C14: =B14/'- 3 -'!D14*100 -> 0 | E14: =SUM('- 6 -'!E14:H14) -> 0 | F14: =IF(E14=0,"",'- 6 -'!E14/E14*100) ->  | G14: =IF(E14=0,"",'- 6 -'!F14/E14*100) ->  | H14: =IF(E14=0,"",'- 6 -'!G14/E14*100) ->  | I14: =IF(E14=0,"",'- 6 -'!H14/E14*100) -> 
A15: EVERGREEN | B15: 0 | C15: =B15/'- 3 -'!D15*100 -> 0 | E15: =SUM('- 6 -'!E15:H15) -> 0 | F15: =IF(E15=0,"",'- 6 -'!E15/E15*100) ->  | G15: =IF(E15=0,"",'- 6 -'!F15/E15*100) ->  | H15: =IF(E15=0,"",'- 6 -'!G15/E15*100) ->  | I15: =IF(E15=0,"",'- 6 -'!H15/E15*100) -> 
A16: FLIN FLON | B16: 2936715 | C16: =B16/'- 3 -'!D16*100 -> 17.63004894 | D16: 8214.587413 | E16: =SUM('- 6 -'!E16:H16) -> 357.5 | F16: =IF(E16=0,"",'- 6 -'!E16/E16*100) -> 72.30769231 | G16: =IF(E16=0,"",'- 6 -'!F16/E16*100) -> 0 | H16: =IF(E16=0,"",'- 6 -'!G16/E16*100) -> 27.69230769 | I16: =IF(E16=0,"",'- 6 -'!H16/E16*100) -> 0
A17: FORT LA BOSSE | B17: 0 | C17: =B17/'- 3 -'!D17*100 -> 0 | E17: =SUM('- 6 -'!E17:H17) -> 0 | F17: =IF(E17=0,"",'- 6 -'!E17/E17*100) ->  | G17: =IF(E17=0,"",'- 6 -'!F17/E17*100) ->  | H17: =IF(E17=0,"",'- 6 -'!G17/E17*100) ->  | I17: =IF(E17=0,"",'- 6 -'!H17/E17*100) -> 
A18: FRONTIER | B18: 0 | C18: =B18/'- 3 -'!D18*100 -> 0 | E18: =SUM('- 6 -'!E18:H18) -> 0 | F18: =IF(E18=0,"",'- 6 -'!E18/E18*100) ->  | G18: =IF(E18=0,"",'- 6 -'!F18/E18*100) ->  | H18: =IF(E18=0,"",'- 6 -'!G18/E18*100) ->  | I18: =IF(E18=0,"",'- 6 -'!H18/E18*100) -> 
A19: GARDEN VALLEY | B19: 0 | C19: =B19/'- 3 -'!D19*100 -> 0 | E19: =SUM('- 6 -'!E19:H19) -> 0 | F19: =IF(E19=0,"",'- 6 -'!E19/E19*100) ->  | G19: =IF(E19=0,"",'- 6 -'!F19/E19*100) ->  | H19: =IF(E19=0,"",'- 6 -'!G19/E19*100) ->  | I19: =IF(E19=0,"",'- 6 -'!H19/E19*100) -> 
A20: HANOVER | B20: 0 | C20: =B20/'- 3 -'!D20*100 -> 0 | E20: =SUM('- 6 -'!E20:H20) -> 0 | F20: =IF(E20=0,"",'- 6 -'!E20/E20*100) ->  | G20: =IF(E20=0,"",'- 6 -'!F20/E20*100) ->  | H20: =IF(E20=0,"",'- 6 -'!G20/E20*100) ->  | I20: =IF(E20=0,"",'- 6 -'!H20/E20*100) -> 
A21: INTERLAKE | B21: 7766906 | C21: =B21/'- 3 -'!D21*100 -> 19.07523647 | D21: 5870.677249 | E21: =SUM('- 6 -'!E21:H21) -> 1323 | F21: =IF(E21=0,"",'- 6 -'!E21/E21*100) -> 70.55933485 | G21: =IF(E21=0,"",'- 6 -'!F21/E21*100) -> 0 | H21: =IF(E21=0,"",'- 6 -'!G21/E21*100) -> 29.44066515 | I21: =IF(E21=0,"",'- 6 -'!H21/E21*100) -> 0
A22: KELSEY | B22: 4849074 | C22: =B22/'- 3 -'!D22*100 -> 21.96999476 | D22: 7758.5184 | E22: =SUM('- 6 -'!E22:H22) -> 625 | F22: =IF(E22=0,"",'- 6 -'!E22/E22*100) -> 73.44 | G22: =IF(E22=0,"",'- 6 -'!F22/E22*100) -> 0 | H22: =IF(E22=0,"",'- 6 -'!G22/E22*100) -> 26.56 | I22: =IF(E22=0,"",'- 6 -'!H22/E22*100) -> 0
A23: LAKESHORE | B23: 0 | C23: =B23/'- 3 -'!D23*100 -> 0 | E23: =SUM('- 6 -'!E23:H23) -> 0 | F23: =IF(E23=0,"",'- 6 -'!E23/E23*100) ->  | G23: =IF(E23=0,"",'- 6 -'!F23/E23*100) ->  | H23: =IF(E23=0,"",'- 6 -'!G23/E23*100) ->  | I23: =IF(E23=0,"",'- 6 -'!H23/E23*100) -> 
A24: LORD SELKIRK | B24: 5630672 | C24: =B24/'- 3 -'!D24*100 -> 8.805606378 | D24: 8329.39645 | E24: =SUM('- 6 -'!E24:H24) -> 676 | F24: =IF(E24=0,"",'- 6 -'!E24/E24*100) -> 77.36686391 | G24: =IF(E24=0,"",'- 6 -'!F24/E24*100) -> 0 | H24: =IF(E24=0,"",'- 6 -'!G24/E24*100) -> 10.65088757 | I24: =IF(E24=0,"",'- 6 -'!H24/E24*100) -> 11.98224852
A25: LOUIS RIEL | B25: 4150053 | C25: =B25/'- 3 -'!D25*100 -> 1.892511145 | D25: 5555.626506 | E25: =SUM('- 6 -'!E25:H25) -> 747 | F25: =IF(E25=0,"",'- 6 -'!E25/E25*100) -> 40.96385542 | G25: =IF(E25=0,"",'- 6 -'!F25/E25*100) -> 0 | H25: =IF(E25=0,"",'- 6 -'!G25/E25*100) -> 59.03614458 | I25: =IF(E25=0,"",'- 6 -'!H25/E25*100) -> 0
A26: MOUNTAIN VIEW | B26: 2645969 | C26: =B26/'- 3 -'!D26*100 -> 5.771803428 | D26: 5696.381055 | E26: =SUM('- 6 -'!E26:H26) -> 464.5 | F26: =IF(E26=0,"",'- 6 -'!E26/E26*100) -> 71.04413348 | G26: =IF(E26=0,"",'- 6 -'!F26/E26*100) -> 0 | H26: =IF(E26=0,"",'- 6 -'!G26/E26*100) -> 14.85468245 | I26: =IF(E26=0,"",'- 6 -'!H26/E26*100) -> 14.10118407
A27: MYSTERY LAKE | B27: 2645416 | C27: =B27/'- 3 -'!D27*100 -> 5.740438156 | D27: 7558.331429 | E27: =SUM('- 6 -'!E27:H27) -> 350 | F27: =IF(E27=0,"",'- 6 -'!E27/E27*100) -> 44.28571429 | G27: =IF(E27=0,"",'- 6 -'!F27/E27*100) -> 0 | H27: =IF(E27=0,"",'- 6 -'!G27/E27*100) -> 55.71428571 | I27: =IF(E27=0,"",'- 6 -'!H27/E27*100) -> 0
A28: PARK WEST | B28: 0 | C28: =B28/'- 3 -'!D28*100 -> 0 | E28: =SUM('- 6 -'!E28:H28) -> 0 | F28: =IF(E28=0,"",'- 6 -'!E28/E28*100) ->  | G28: =IF(E28=0,"",'- 6 -'!F28/E28*100) ->  | H28: =IF(E28=0,"",'- 6 -'!G28/E28*100) ->  | I28: =IF(E28=0,"",'- 6 -'!H28/E28*100) -> 
A29: PEMBINA TRAILS | B29: 28570011 | C29: =B29/'- 3 -'!D29*100 -> 14.60965908 | D29: 6092.985925 | E29: =SUM('- 6 -'!E29:H29) -> 4689 | F29: =IF(E29=0,"",'- 6 -'!E29/E29*100) -> 57.66687993 | G29: =IF(E29=0,"",'- 6 -'!F29/E29*100) -> 0 | H29: =IF(E29=0,"",'- 6 -'!G29/E29*100) -> 42.33312007 | I29: =IF(E29=0,"",'- 6 -'!H29/E29*100) -> 0
A30: PINE CREEK | B30: 0 | C30: =B30/'- 3 -'!D30*100 -> 0 | E30: =SUM('- 6 -'!E30:H30) -> 0 | F30: =IF(E30=0,"",'- 6 -'!E30/E30*100) ->  | G30: =IF(E30=0,"",'- 6 -'!F30/E30*100) ->  | H30: =IF(E30=0,"",'- 6 -'!G30/E30*100) ->  | I30: =IF(E30=0,"",'- 6 -'!H30/E30*100) -> 
A31: PORTAGE LA PRAIRIE | B31: 4520715 | C31: =B31/'- 3 -'!D31*100 -> 9.817789793 | D31: 5113.930995 | E31: =SUM('- 6 -'!E31:H31) -> 884 | F31: =IF(E31=0,"",'- 6 -'!E31/E31*100) -> 58.71040724 | G31: =IF(E31=0,"",'- 6 -'!F31/E31*100) -> 41.28959276 | H31: =IF(E31=0,"",'- 6 -'!G31/E31*100) -> 0 | I31: =IF(E31=0,"",'- 6 -'!H31/E31*100) -> 0
A32: PRAIRIE ROSE | B32: 3195907 | C32: =B32/'- 3 -'!D32*100 -> 9.5447836 | D32: 6575.940329 | E32: =SUM('- 6 -'!E32:H32) -> 486 | F32: =IF(E32=0,"",'- 6 -'!E32/E32*100) -> 68.00411523 | G32: =IF(E32=0,"",'- 6 -'!F32/E32*100) -> 0 | H32: =IF(E32=0,"",'- 6 -'!G32/E32*100) -> 31.99588477 | I32: =IF(E32=0,"",'- 6 -'!H32/E32*100) -> 0
A33: PRAIRIE SPIRIT | B33: 3068695 | C33: =B33/'- 3 -'!D33*100 -> 10.02765837 | D33: 6872.777156 | E33: =SUM('- 6 -'!E33:H33) -> 446.5 | F33: =IF(E33=0,"",'- 6 -'!E33/E33*100) -> 54.31131019 | G33: =IF(E33=0,"",'- 6 -'!F33/E33*100) -> 25.08398656 | H33: =IF(E33=0,"",'- 6 -'!G33/E33*100) -> 20.60470325 | I33: =IF(E33=0,"",'- 6 -'!H33/E33*100) -> 0
A34: RED RIVER VALLEY | B34: 1869124 | C34: =B34/'- 3 -'!D34*100 -> 5.283218392 | D34: 8234.026432 | E34: =SUM('- 6 -'!E34:H34) -> 227 | F34: =IF(E34=0,"",'- 6 -'!E34/E34*100) -> 42.2907489 | G34: =IF(E34=0,"",'- 6 -'!F34/E34*100) -> 57.7092511 | H34: =IF(E34=0,"",'- 6 -'!G34/E34*100) -> 0 | I34: =IF(E34=0,"",'- 6 -'!H34/E34*100) -> 0
A35: RIVER EAST TRANSCONA | B35: 31978319 | C35: =B35/'- 3 -'!D35*100 -> 14.42398771 | D35: 5075.118076 | E35: =SUM('- 6 -'!E35:H35) -> 6301 | F35: =IF(E35=0,"",'- 6 -'!E35/E35*100) -> 60.43485161 | G35: =IF(E35=0,"",'- 6 -'!F35/E35*100) -> 0 | H35: =IF(E35=0,"",'- 6 -'!G35/E35*100) -> 30.82050468 | I35: =IF(E35=0,"",'- 6 -'!H35/E35*100) -> 8.744643707
A36: ROLLING RIVER | B36: 0 | C36: =B36/'- 3 -'!D36*100 -> 0 | E36: =SUM('- 6 -'!E36:H36) -> 0 | F36: =IF(E36=0,"",'- 6 -'!E36/E36*100) ->  | G36: =IF(E36=0,"",'- 6 -'!F36/E36*100) ->  | H36: =IF(E36=0,"",'- 6 -'!G36/E36*100) ->  | I36: =IF(E36=0,"",'- 6 -'!H36/E36*100) -> 
A37: SEINE RIVER | B37: 9564451 | C37: =B37/'- 3 -'!D37*100 -> 15.01154975 | D37: 6824.438816 | E37: =SUM('- 6 -'!E37:H37) -> 1401.5 | F37: =IF(E37=0,"",'- 6 -'!E37/E37*100) -> 52.58651445 | G37: =IF(E37=0,"",'- 6 -'!F37/E37*100) -> 0 | H37: =IF(E37=0,"",'- 6 -'!G37/E37*100) -> 47.41348555 | I37: =IF(E37=0,"",'- 6 -'!H37/E37*100) -> 0
A38: SEVEN OAKS | B38: 22931632 | C38: =B38/'- 3 -'!D38*100 -> 13.79383846 | D38: 6804.032875 | E38: =SUM('- 6 -'!E38:H38) -> 3370.3 | F38: =IF(E38=0,"",'- 6 -'!E38/E38*100) -> 52.89736819 | G38: =IF(E38=0,"",'- 6 -'!F38/E38*100) -> 0 | H38: =IF(E38=0,"",'- 6 -'!G38/E38*100) -> 36.73263508 | I38: =IF(E38=0,"",'- 6 -'!H38/E38*100) -> 10.36999674
A39: SOUTHWEST HORIZON | B39: 0 | C39: =B39/'- 3 -'!D39*100 -> 0 | E39: =SUM('- 6 -'!E39:H39) -> 0 | F39: =IF(E39=0,"",'- 6 -'!E39/E39*100) ->  | G39: =IF(E39=0,"",'- 6 -'!F39/E39*100) ->  | H39: =IF(E39=0,"",'- 6 -'!G39/E39*100) ->  | I39: =IF(E39=0,"",'- 6 -'!H39/E39*100) -> 
A40: ST. JAMES-ASSINIBOIA | B40: 5539660 | C40: =B40/'- 3 -'!D40*100 -> 4.614764897 | D40: 5382.491255 | E40: =SUM('- 6 -'!E40:H40) -> 1029.2 | F40: =IF(E40=0,"",'- 6 -'!E40/E40*100) -> 57.34551108 | G40: =IF(E40=0,"",'- 6 -'!F40/E40*100) -> 0 | H40: =IF(E40=0,"",'- 6 -'!G40/E40*100) -> 42.65448892 | I40: =IF(E40=0,"",'- 6 -'!H40/E40*100) -> 0
A41: SUNRISE | B41: 16483968 | C41: =B41/'- 3 -'!D41*100 -> 22.47433042 | D41: 6501.269178 | E41: =SUM('- 6 -'!E41:H41) -> 2535.5 | F41: =IF(E41=0,"",'- 6 -'!E41/E41*100) -> 66.27884047 | G41: =IF(E41=0,"",'- 6 -'!F41/E41*100) -> 0 | H41: =IF(E41=0,"",'- 6 -'!G41/E41*100) -> 31.07868271 | I41: =IF(E41=0,"",'- 6 -'!H41/E41*100) -> 2.642476829
A42: SWAN VALLEY | B42: 1984290 | C42: =B42/'- 3 -'!D42*100 -> 8.178844866 | D42: 9040.045558 | E42: =SUM('- 6 -'!E42:H42) -> 219.5 | F42: =IF(E42=0,"",'- 6 -'!E42/E42*100) -> 74.48747153 | G42: =IF(E42=0,"",'- 6 -'!F42/E42*100) -> 0 | H42: =IF(E42=0,"",'- 6 -'!G42/E42*100) -> 25.51252847 | I42: =IF(E42=0,"",'- 6 -'!H42/E42*100) -> 0
A43: TURTLE MOUNTAIN | B43: 0 | C43: =B43/'- 3 -'!D43*100 -> 0 | E43: =SUM('- 6 -'!E43:H43) -> 0 | F43: =IF(E43=0,"",'- 6 -'!E43/E43*100) ->  | G43: =IF(E43=0,"",'- 6 -'!F43/E43*100) ->  | H43: =IF(E43=0,"",'- 6 -'!G43/E43*100) ->  | I43: =IF(E43=0,"",'- 6 -'!H43/E43*100) -> 
A44: TURTLE RIVER | B44: 0 | C44: =B44/'- 3 -'!D44*100 -> 0 | E44: =SUM('- 6 -'!E44:H44) -> 0 | F44: =IF(E44=0,"",'- 6 -'!E44/E44*100) ->  | G44: =IF(E44=0,"",'- 6 -'!F44/E44*100) ->  | H44: =IF(E44=0,"",'- 6 -'!G44/E44*100) ->  | I44: =IF(E44=0,"",'- 6 -'!H44/E44*100) -> 
A45: WESTERN | B45: 6848519 | C45: =B45/'- 3 -'!D45*100 -> 27.00670585 | D45: 6200.560435 | E45: =SUM('- 6 -'!E45:H45) -> 1104.5 | F45: =IF(E45=0,"",'- 6 -'!E45/E45*100) -> 73.42689 | G45: =IF(E45=0,"",'- 6 -'!F45/E45*100) -> 0 | H45: =IF(E45=0,"",'- 6 -'!G45/E45*100) -> 26.57311 | I45: =IF(E45=0,"",'- 6 -'!H45/E45*100) -> 0
A46: WINNIPEG | B46: 49493285 | C46: =B46/'- 3 -'!D46*100 -> 11.14385956 | D46: 5864.133294 | E46: =SUM('- 6 -'!E46:H46) -> 8440 | F46: =IF(E46=0,"",'- 6 -'!E46/E46*100) -> 59.02843602 | G46: =IF(E46=0,"",'- 6 -'!F46/E46*100) -> 0 | H46: =IF(E46=0,"",'- 6 -'!G46/E46*100) -> 33.86848341 | I46: =IF(E46=0,"",'- 6 -'!H46/E46*100) -> 7.103080569
A48: PROVINCE | B48: =SUM(B11:B46) -> 228500446 | C48: =B48/'- 3 -'!D48*100 -> 8.362229746 | D48: =B48/E48 -> 6100.82891 | E48: =SUM(E11:E46) -> 37454 | F48: =IF(E48=0,"",'- 6 -'!E48/E48*100) -> 60.19784269 | G48: =IF(E48=0,"",'- 6 -'!F48/E48*100) -> 1.623324612 | H48: =IF(E48=0,"",'- 6 -'!G48/E48*100) -> 33.60388744 | I48: =IF(E48=0,"",'- 6 -'!H48/E48*100) -> 4.574945266
A50: WHITESHELL | B50: 0 | C50: =B50/'- 3 -'!D50*100 -> 0 | D50: =IF(E50=0,"",B50/E50) ->  | E50: =SUM('- 6 -'!E50:H50) -> 0 | F50: =IF(E50=0,"",'- 6 -'!E50/E50*100) ->  | G50: =IF(E50=0,"",'- 6 -'!F50/E50*100) ->  | H50: =IF(E50=0,"",'- 6 -'!G50/E50*100) ->  | I50: =IF(E50=0,"",'- 6 -'!H50/E50*100) -> 
A52: (1) No one language program comprises 90% or more of Regular Instruction enrolment.

Sheet - 21 -
B2: ANALYSIS OF EXPENSE BY PROGRAM | I2: PAGE 4 OF 16
B3: =OPYEAR -> OPERATING FUND 2022/2023 ACTUAL
B5: FUNCTION 200: STUDENT SUPPORT SERVICES
B6: ADMINISTRATION / COORDINATION | E6: CLINICAL AND RELATED SERVICES | H6: SPECIAL PLACEMENT
D8: PER PUPIL | G8: PER PUPIL
A9: DIVISION / DISTRICT | B9: AMOUNT | C9: % | E9: AMOUNT | F9: % | H9: AMOUNT | I9: %
A11: BEAUTIFUL PLAINS | B11: 169663 | C11: =B11/'- 3 -'!$D11*100 -> 0.6746881263 | D11: =B11/'- 7 -'!$E11 -> 84.66217565 | E11: 343391 | F11: =E11/'- 3 -'!$D11*100 -> 1.365541281 | G11: =E11/'- 7 -'!$E11 -> 171.3527944 | H11: 268975 | I11: =H11/'- 3 -'!$D11*100 -> 1.069615878
A12: BORDER LAND | B12: 238705 | C12: =B12/'- 3 -'!$D12*100 -> 0.6403642794 | D12: =B12/'- 7 -'!$E12 -> 116.9996373 | E12: 825025 | F12: =E12/'- 3 -'!$D12*100 -> 2.213261304 | G12: =E12/'- 7 -'!$E12 -> 404.38041 | H12: 0 | I12: =H12/'- 3 -'!$D12*100 -> 0
A13: BRANDON | B13: 211283 | C13: =B13/'- 3 -'!$D13*100 -> 0.183906516 | D13: =B13/'- 7 -'!$E13 -> 23.29111273 | E13: 3252220 | F13: =E13/'- 3 -'!$D13*100 -> 2.830821455 | G13: =E13/'- 7 -'!$E13 -> 358.5135701 | H13: 646618 | I13: =H13/'- 3 -'!$D13*100 -> 0.5628340358
A14: DSFM | B14: 390141 | C14: =B14/'- 3 -'!$D14*100 -> 0.3698381083 | D14: =B14/'- 7 -'!$E14 -> 66.8371254 | E14: 1345287 | F14: =E14/'- 3 -'!$D14*100 -> 1.275278423 | G14: =E14/'- 7 -'!$E14 -> 230.4682561 | H14: 1097652 | I14: =H14/'- 3 -'!$D14*100 -> 1.040530319
A15: EVERGREEN | B15: 144348 | C15: =B15/'- 3 -'!$D15*100 -> 0.4431619365 | D15: =B15/'- 7 -'!$E15 -> 69.83454282 | E15: 524951 | F15: =E15/'- 3 -'!$D15*100 -> 1.611648944 | G15: =E15/'- 7 -'!$E15 -> 253.9675859 | H15: 0 | I15: =H15/'- 3 -'!$D15*100 -> 0
A16: FLIN FLON | B16: 119330 | C16: =B16/'- 3 -'!$D16*100 -> 0.7163765431 | D16: =B16/'- 7 -'!$E16 -> 127.475697 | E16: 379533 | F16: =E16/'- 3 -'!$D16*100 -> 2.278459218 | G16: =E16/'- 7 -'!$E16 -> 405.440658 | H16: 69153 | I16: =H16/'- 3 -'!$D16*100 -> 0.4151478009
A17: FORT LA BOSSE | B17: 134929 | C17: =B17/'- 3 -'!$D17*100 -> 0.6511283912 | D17: =B17/'- 7 -'!$E17 -> 89.68361582 | E17: 298904 | F17: =E17/'- 3 -'!$D17*100 -> 1.442424391 | G17: =E17/'- 7 -'!$E17 -> 198.6733134 | H17: 0 | I17: =H17/'- 3 -'!$D17*100 -> 0
A18: FRONTIER | B18: 87602 | C18: =B18/'- 3 -'!$D18*100 -> 0.05426012331 | D18: =B18/'- 7 -'!$E18 -> 13.81408184 | E18: 1541199 | F18: =E18/'- 3 -'!$D18*100 -> 0.9546088878 | G18: =E18/'- 7 -'!$E18 -> 243.0338248 | H18: 0 | I18: =H18/'- 3 -'!$D18*100 -> 0
A19: GARDEN VALLEY | B19: 162325 | C19: =B19/'- 3 -'!$D19*100 -> 0.2985362409 | D19: =B19/'- 7 -'!$E19 -> 39.75630664 | E19: 1269231 | F19: =E19/'- 3 -'!$D19*100 -> 2.334276615 | G19: =E19/'- 7 -'!$E19 -> 310.8574578 | H19: 1361628 | I19: =H19/'- 3 -'!$D19*100 -> 2.504206405
A20: HANOVER | B20: 713156 | C20: =B20/'- 3 -'!$D20*100 -> 0.698841627 | D20: =B20/'- 7 -'!$E20 -> 88.33841199 | E20: 2470353 | F20: =E20/'- 3 -'!$D20*100 -> 2.420768401 | G20: =E20/'- 7 -'!$E20 -> 306.001858 | H20: 876010 | I20: =H20/'- 3 -'!$D20*100 -> 0.858426843
A21: INTERLAKE | B21: 180574 | C21: =B21/'- 3 -'!$D21*100 -> 0.4434831258 | D21: =B21/'- 7 -'!$E21 -> 61.71360219 | E21: 780887 | F21: =E21/'- 3 -'!$D21*100 -> 1.917829852 | G21: =E21/'- 7 -'!$E21 -> 266.878674 | H21: 227499 | I21: =H21/'- 3 -'!$D21*100 -> 0.558729206
A22: KELSEY | B22: 17967 | C22: =B22/'- 3 -'!$D22*100 -> 0.08140418066 | D22: =B22/'- 7 -'!$E22 -> 12.16452268 | E22: 325674 | F22: =E22/'- 3 -'!$D22*100 -> 1.475551018 | G22: =E22/'- 7 -'!$E22 -> 220.4969533 | H22: 1240906 | I22: =H22/'- 3 -'!$D22*100 -> 5.622248356
A23: LAKESHORE | B23: 134476 | C23: =B23/'- 3 -'!$D23*100 -> 0.8156991082 | D23: =B23/'- 7 -'!$E23 -> 147.5326385 | E23: 265900 | F23: =E23/'- 3 -'!$D23*100 -> 1.612885518 | G23: =E23/'- 7 -'!$E23 -> 291.7169501 | H23: 0 | I23: =H23/'- 3 -'!$D23*100 -> 0
A24: LORD SELKIRK | B24: 358598 | C24: =B24/'- 3 -'!$D24*100 -> 0.5607985754 | D24: =B24/'- 7 -'!$E24 -> 95.01801802 | E24: 2231312 | F24: =E24/'- 3 -'!$D24*100 -> 3.489468962 | G24: =E24/'- 7 -'!$E24 -> 591.2326444 | H24: 317275 | I24: =H24/'- 3 -'!$D24*100 -> 0.4961750149
A25: LOUIS RIEL | B25: 986271 | C25: =B25/'- 3 -'!$D25*100 -> 0.4497602463 | D25: =B25/'- 7 -'!$E25 -> 60.53341926 | E25: 4286635 | F25: =E25/'- 3 -'!$D25*100 -> 1.954795399 | G25: =E25/'- 7 -'!$E25 -> 263.0967287 | H25: 9964361 | I25: =H25/'- 3 -'!$D25*100 -> 4.543957449
A26: MOUNTAIN VIEW | B26: 146608 | C26: =B26/'- 3 -'!$D26*100 -> 0.3198044108 | D26: =B26/'- 7 -'!$E26 -> 47.98167239 | E26: 762370 | F26: =E26/'- 3 -'!$D26*100 -> 1.66300126 | G26: =E26/'- 7 -'!$E26 -> 249.5074456 | H26: 2186 | I26: =H26/'- 3 -'!$D26*100 -> 0.004768446756
A27: MYSTERY LAKE | B27: 241103 | C27: =B27/'- 3 -'!$D27*100 -> 0.5231830687 | D27: =B27/'- 7 -'!$E27 -> 88.29994507 | E27: 468797 | F27: =E27/'- 3 -'!$D27*100 -> 1.017269188 | G27: =E27/'- 7 -'!$E27 -> 171.6890679 | H27: 2896734 | I27: =H27/'- 3 -'!$D27*100 -> 6.285787333
A28: PARK WEST | B28: 144348 | C28: =B28/'- 3 -'!$D28*100 -> 0.4431619365 | D28: =B28/'- 7 -'!$E28 -> 69.83454282 | E28: 524951 | F28: =E28/'- 3 -'!$D28*100 -> 1.611648944 | G28: =E28/'- 7 -'!$E28 -> 253.9675859 | H28: 0 | I28: =H28/'- 3 -'!$D28*100 -> 0
A29: PEMBINA TRAILS | B29: 594093 | C29: =B29/'- 3 -'!$D29*100 -> 0.3037974396 | D29: =B29/'- 7 -'!$E29 -> 39.2218261 | E29: 4125885 | F29: =E29/'- 3 -'!$D29*100 -> 2.109826743 | G29: =E29/'- 7 -'!$E29 -> 272.3895821 | H29: 825094 | I29: =H29/'- 3 -'!$D29*100 -> 0.4219229054
A30: PINE CREEK | B30: 173257 | C30: =B30/'- 3 -'!$D30*100 -> 1.001622534 | D30: =B30/'- 7 -'!$E30 -> 158.6602564 | E30: 360716 | F30: =E30/'- 3 -'!$D30*100 -> 2.085348782 | G30: =E30/'- 7 -'!$E30 -> 330.3260073 | H30: 0 | I30: =H30/'- 3 -'!$D30*100 -> 0
A31: PORTAGE LA PRAIRIE | B31: 171976 | C31: =B31/'- 3 -'!$D31*100 -> 0.3734861006 | D31: =B31/'- 7 -'!$E31 -> 51.22144453 | E31: 913133 | F31: =E31/'- 3 -'!$D31*100 -> 1.983081846 | G31: =E31/'- 7 -'!$E31 -> 271.968131 | H31: 922409 | I31: =H31/'- 3 -'!$D31*100 -> 2.003226849
A32: PRAIRIE ROSE | B32: 113285 | C32: =B32/'- 3 -'!$D32*100 -> 0.3383330022 | D32: =B32/'- 7 -'!$E32 -> 49.75186649 | E32: 617407 | F32: =E32/'- 3 -'!$D32*100 -> 1.843926062 | G32: =E32/'- 7 -'!$E32 -> 271.1493193 | H32: 0 | I32: =H32/'- 3 -'!$D32*100 -> 0
A33: PRAIRIE SPIRIT | B33: 200403 | C33: =B33/'- 3 -'!$D33*100 -> 0.6548623504 | D33: =B33/'- 7 -'!$E33 -> 96.23193277 | E33: 550320 | F33: =E33/'- 3 -'!$D33*100 -> 1.798295678 | G33: =E33/'- 7 -'!$E33 -> 264.2593037 | H33: 0 | I33: =H33/'- 3 -'!$D33*100 -> 0
A34: RED RIVER VALLEY | B34: 262657 | C34: =B34/'- 3 -'!$D34*100 -> 0.7424196004 | D34: =B34/'- 7 -'!$E34 -> 115.98896 | E34: 609028 | F34: =E34/'- 3 -'!$D34*100 -> 1.721463066 | G34: =E34/'- 7 -'!$E34 -> 268.9459042 | H34: 545601 | I34: =H34/'- 3 -'!$D34*100 -> 1.542181919
A35: RIVER EAST TRANSCONA | B35: 1084547 | C35: =B35/'- 3 -'!$D35*100 -> 0.4891905857 | D35: =B35/'- 7 -'!$E35 -> 64.21807739 | E35: 4512331 | F35: =E35/'- 3 -'!$D35*100 -> 2.035310452 | G35: =E35/'- 7 -'!$E35 -> 267.1836457 | H35: 630653 | I35: =H35/'- 3 -'!$D35*100 -> 0.2844593277
A36: ROLLING RIVER | B36: 164668 | C36: =B36/'- 3 -'!$D36*100 -> 0.6137587547 | D36: =B36/'- 7 -'!$E36 -> 93.48169174 | E36: 622366 | F36: =E36/'- 3 -'!$D36*100 -> 2.319713491 | G36: =E36/'- 7 -'!$E36 -> 353.3159239 | H36: 0 | I36: =H36/'- 3 -'!$D36*100 -> 0
A37: SEINE RIVER | B37: 370343 | C37: =B37/'- 3 -'!$D37*100 -> 0.5812589105 | D37: =B37/'- 7 -'!$E37 -> 82.99932766 | E37: 1280013 | F37: =E37/'- 3 -'!$D37*100 -> 2.008999662 | G37: =E37/'- 7 -'!$E37 -> 286.8697893 | H37: 0 | I37: =H37/'- 3 -'!$D37*100 -> 0
A38: SEVEN OAKS | B38: 512376 | C38: =B38/'- 3 -'!$D38*100 -> 0.3082044827 | D38: =B38/'- 7 -'!$E38 -> 44.51379176 | E38: 2338299 | F38: =E38/'- 3 -'!$D38*100 -> 1.406533939 | G38: =E38/'- 7 -'!$E38 -> 203.1448677 | H38: 19621 | I38: =H38/'- 3 -'!$D38*100 -> 0.01180242664
A39: SOUTHWEST HORIZON | B39: 220768 | C39: =B39/'- 3 -'!$D39*100 -> 0.9211934155 | D39: =B39/'- 7 -'!$E39 -> 151.0557646 | E39: 349584 | F39: =E39/'- 3 -'!$D39*100 -> 1.458700894 | G39: =E39/'- 7 -'!$E39 -> 239.1953472 | H39: 0 | I39: =H39/'- 3 -'!$D39*100 -> 0
A40: ST. JAMES-ASSINIBOIA | B40: 233781 | C40: =B40/'- 3 -'!$D40*100 -> 0.1947491998 | D40: =B40/'- 7 -'!$E40 -> 29.02345156 | E40: 3424922 | F40: =E40/'- 3 -'!$D40*100 -> 2.85310106 | G40: =E40/'- 7 -'!$E40 -> 425.1973333 | H40: 283505 | I40: =H40/'- 3 -'!$D40*100 -> 0.2361713394
A41: SUNRISE | B41: 268862 | C41: =B41/'- 3 -'!$D41*100 -> 0.3665678934 | D41: =B41/'- 7 -'!$E41 -> 58.55008711 | E41: 2491391 | F41: =E41/'- 3 -'!$D41*100 -> 3.396775857 | G41: =E41/'- 7 -'!$E41 -> 542.5503049 | H41: 644591 | I41: =H41/'- 3 -'!$D41*100 -> 0.878838828
A42: SWAN VALLEY | B42: 174933 | C42: =B42/'- 3 -'!$D42*100 -> 0.7210386934 | D42: =B42/'- 7 -'!$E42 -> 129.2926829 | E42: 525352 | F42: =E42/'- 3 -'!$D42*100 -> 2.165395435 | G42: =E42/'- 7 -'!$E42 -> 388.2867701 | H42: 0 | I42: =H42/'- 3 -'!$D42*100 -> 0
A43: TURTLE MOUNTAIN | B43: 125682 | C43: =B43/'- 3 -'!$D43*100 -> 0.8437148507 | D43: =B43/'- 7 -'!$E43 -> 122.0806217 | E43: 342023 | F43: =E43/'- 3 -'!$D43*100 -> 2.296031925 | G43: =E43/'- 7 -'!$E43 -> 332.2224381 | H43: 0 | I43: =H43/'- 3 -'!$D43*100 -> 0
A44: TURTLE RIVER | B44: 102032 | C44: =B44/'- 3 -'!$D44*100 -> 0.8468721209 | D44: =B44/'- 7 -'!$E44 -> 171.4823529 | E44: 197700 | F44: =E44/'- 3 -'!$D44*100 -> 1.640922635 | G44: =E44/'- 7 -'!$E44 -> 332.2689076 | H44: 0 | I44: =H44/'- 3 -'!$D44*100 -> 0
A45: WESTERN | B45: 180727 | C45: =B45/'- 3 -'!$D45*100 -> 0.7126856082 | D45: =B45/'- 7 -'!$E45 -> 91.1152004 | E45: 311654 | F45: =E45/'- 3 -'!$D45*100 -> 1.228988035 | G45: =E45/'- 7 -'!$E45 -> 157.123267 | H45: 253637 | I45: =H45/'- 3 -'!$D45*100 -> 1.000201628
A46: WINNIPEG | B46: 829972 | C46: =B46/'- 3 -'!$D46*100 -> 0.1868756824 | D46: =B46/'- 7 -'!$E46 -> 29.83304434 | E46: 16220815 | F46: =E46/'- 3 -'!$D46*100 -> 3.652262815 | G46: =E46/'- 7 -'!$E46 -> 583.0513476 | H46: 31528050 | I46: =H46/'- 3 -'!$D46*100 -> 7.098824852
A48: PROVINCE | B48: =SUM(B11:B46) -> 10365789 | C48: =B48/'- 3 -'!$D48*100 -> 0.3793476583 | D48: =B48/'- 7 -'!$E48 -> 56.66676525 | E48: =SUM(E11:E46) -> 61689559 | F48: =E48/'- 3 -'!$D48*100 -> 2.257598505 | G48: =E48/'- 7 -'!$E48 -> 337.2389461 | H48: =SUM(H11:H46) -> 54622158 | I48: =H48/'- 3 -'!$D48*100 -> 1.99895905
A50: WHITESHELL | B50: 32097 | C50: =B50/'- 3 -'!$D50*100 -> 0.8450753175 | D50: =B50/'- 7 -'!$E50 -> 159.6865672 | E50: 108771 | F50: =E50/'- 3 -'!$D50*100 -> 2.863809308 | G50: =E50/'- 7 -'!$E50 -> 541.1492537 | H50: 0 | I50: =H50/'- 3 -'!$D50*100 -> 0

Sheet - 22 -
C2: ANALYSIS OF EXPENSE BY PROGRAM | J2: PAGE 5 OF 16
C3: =OPYEAR -> OPERATING FUND 2022/2023 ACTUAL
B5: FUNCTION 200: STUDENT SUPPORT SERVICES
B6: REGULAR PLACEMENT (1) | E6: RESOURCE SERVICES | H6: COUNSELLING AND GUIDANCE
D8: PER PUPIL | G8: PER PUPIL | J8: PER PUPIL
A9: DIVISION / DISTRICT | B9: AMOUNT | C9: % | E9: AMOUNT | F9: % | H9: AMOUNT | I9: %
A11: BEAUTIFUL PLAINS | B11: 1111564 | C11: =B11/'- 3 -'!$D11*100 -> 4.420286288 | D11: =B11/'- 7 -'!$E11 -> 554.6726547 | E11: 1044391 | F11: =E11/'- 3 -'!$D11*100 -> 4.153163665 | G11: =E11/'- 7 -'!$E11 -> 521.1531936 | H11: 349730 | I11: =H11/'- 3 -'!$D11*100 -> 1.390749182 | J11: =H11/'- 7 -'!$E11 -> 174.5159681
A12: BORDER LAND | B12: 2522190 | C12: =B12/'- 3 -'!$D12*100 -> 6.766177424 | D12: =B12/'- 7 -'!$E12 -> 1236.234328 | E12: 1481414 | F12: =E12/'- 3 -'!$D12*100 -> 3.97412961 | G12: =E12/'- 7 -'!$E12 -> 726.1050279 | H12: 640025 | I12: =H12/'- 3 -'!$D12*100 -> 1.716969263 | J12: =H12/'- 7 -'!$E12 -> 313.7039143
A13: BRANDON | B13: 11858588 | C13: =B13/'- 3 -'!$D13*100 -> 10.32204013 | D13: =B13/'- 7 -'!$E13 -> 1307.250039 | E13: 5229638 | F13: =E13/'- 3 -'!$D13*100 -> 4.552020298 | G13: =E13/'- 7 -'!$E13 -> 576.4973433 | H13: 3139756 | I13: =H13/'- 3 -'!$D13*100 -> 2.732929706 | J13: =H13/'- 7 -'!$E13 -> 346.1159248
A14: DSFM | B14: 4739526 | C14: =B14/'- 3 -'!$D14*100 -> 4.492881625 | D14: =B14/'- 7 -'!$E14 -> 811.9533543 | E14: 3743656 | F14: =E14/'- 3 -'!$D14*100 -> 3.548836583 | G14: =E14/'- 7 -'!$E14 -> 641.345579 | H14: 2197162 | I14: =H14/'- 3 -'!$D14*100 -> 2.082821948 | J14: =H14/'- 7 -'!$E14 -> 376.4074837
A15: EVERGREEN | B15: 1352488 | C15: =B15/'- 3 -'!$D15*100 -> 4.152265367 | D15: =B15/'- 7 -'!$E15 -> 654.3241413 | E15: 1758829 | F15: =E15/'- 3 -'!$D15*100 -> 5.399770455 | G15: =E15/'- 7 -'!$E15 -> 850.9090469 | H15: 570709 | I15: =H15/'- 3 -'!$D15*100 -> 1.752130308 | J15: =H15/'- 7 -'!$E15 -> 276.1049831
A16: FLIN FLON | B16: 1338646 | C16: =B16/'- 3 -'!$D16*100 -> 8.036324427 | D16: =B16/'- 7 -'!$E16 -> 1430.02457 | E16: 713969 | F16: =E16/'- 3 -'!$D16*100 -> 4.286186576 | G16: =E16/'- 7 -'!$E16 -> 762.7059075 | H16: 219506 | I16: =H16/'- 3 -'!$D16*100 -> 1.317765436 | J16: =H16/'- 7 -'!$E16 -> 234.4899049
A17: FORT LA BOSSE | B17: 966185 | C17: =B17/'- 3 -'!$D17*100 -> 4.66252981 | D17: =B17/'- 7 -'!$E17 -> 642.1967431 | E17: 759891 | F17: =E17/'- 3 -'!$D17*100 -> 3.667014536 | G17: =E17/'- 7 -'!$E17 -> 505.0787637 | H17: 210784 | I17: =H17/'- 3 -'!$D17*100 -> 1.017182717 | J17: =H17/'- 7 -'!$E17 -> 140.1023596
A18: FRONTIER | B18: 11117374 | C18: =B18/'- 3 -'!$D18*100 -> 6.88603096 | D18: =B18/'- 7 -'!$E18 -> 1753.114247 | E18: 4400877 | F18: =E18/'- 3 -'!$D18*100 -> 2.725875308 | G18: =E18/'- 7 -'!$E18 -> 693.9804463 | H18: 6427703 | I18: =H18/'- 3 -'!$D18*100 -> 3.98127848 | J18: =H18/'- 7 -'!$E18 -> 1013.593472
A19: GARDEN VALLEY | B19: 3565980 | C19: =B19/'- 3 -'!$D19*100 -> 6.558289015 | D19: =B19/'- 7 -'!$E19 -> 873.3725202 | E19: 2428207 | F19: =E19/'- 3 -'!$D19*100 -> 4.465780317 | G19: =E19/'- 7 -'!$E19 -> 594.7114867 | H19: 1164316 | I19: =H19/'- 3 -'!$D19*100 -> 2.141324638 | J19: =H19/'- 7 -'!$E19 -> 285.1618908
A20: HANOVER | B20: 6864015 | C20: =B20/'- 3 -'!$D20*100 -> 6.726241397 | D20: =B20/'- 7 -'!$E20 -> 850.2434039 | E20: 6368285 | F20: =E20/'- 3 -'!$D20*100 -> 6.240461625 | G20: =E20/'- 7 -'!$E20 -> 788.837483 | H20: 2644145 | I20: =H20/'- 3 -'!$D20*100 -> 2.591072071 | J20: =H20/'- 7 -'!$E20 -> 327.5294191
A21: INTERLAKE | B21: 2752805 | C21: =B21/'- 3 -'!$D21*100 -> 6.760788187 | D21: =B21/'- 7 -'!$E21 -> 940.8082707 | E21: 2406133 | F21: =E21/'- 3 -'!$D21*100 -> 5.909374461 | G21: =E21/'- 7 -'!$E21 -> 822.3284347 | H21: 1364368 | I21: =H21/'- 3 -'!$D21*100 -> 3.350837803 | J21: =H21/'- 7 -'!$E21 -> 466.2911825
A22: KELSEY | B22: 985817 | C22: =B22/'- 3 -'!$D22*100 -> 4.466501095 | D22: =B22/'- 7 -'!$E22 -> 667.4454976 | E22: 1495080 | F22: =E22/'- 3 -'!$D22*100 -> 6.773849971 | G22: =E22/'- 7 -'!$E22 -> 1012.241029 | H22: 635057 | I22: =H22/'- 3 -'!$D22*100 -> 2.87729141 | J22: =H22/'- 7 -'!$E22 -> 429.9641165
A23: LAKESHORE | B23: 1448859 | C23: =B23/'- 3 -'!$D23*100 -> 8.788430607 | D23: =B23/'- 7 -'!$E23 -> 1589.532639 | E23: 514723 | F23: =E23/'- 3 -'!$D23*100 -> 3.122186056 | G23: =E23/'- 7 -'!$E23 -> 564.6988481 | H23: 383101 | I23: =H23/'- 3 -'!$D23*100 -> 2.323798626 | J23: =H23/'- 7 -'!$E23 -> 420.2973121
A24: LORD SELKIRK | B24: 3544798 | C24: =B24/'- 3 -'!$D24*100 -> 5.543582698 | D24: =B24/'- 7 -'!$E24 -> 939.2681505 | E24: 2673712 | F24: =E24/'- 3 -'!$D24*100 -> 4.181322485 | G24: =E24/'- 7 -'!$E24 -> 708.4557499 | H24: 2011915 | I24: =H24/'- 3 -'!$D24*100 -> 3.146361847 | J24: =H24/'- 7 -'!$E24 -> 533.0988341
A25: LOUIS RIEL | B25: 15107526 | C25: =B25/'- 3 -'!$D25*100 -> 6.88934848 | D25: =B25/'- 7 -'!$E25 -> 927.2402872 | E25: 11222172 | F25: =E25/'- 3 -'!$D25*100 -> 5.117545627 | G25: =E25/'- 7 -'!$E25 -> 688.7726017 | H25: 4840540 | I25: =H25/'- 3 -'!$D25*100 -> 2.207387688 | J25: =H25/'- 7 -'!$E25 -> 297.0932302
A26: MOUNTAIN VIEW | B26: 1928457 | C26: =B26/'- 3 -'!$D26*100 -> 4.206653488 | D26: =B26/'- 7 -'!$E26 -> 631.1428571 | E26: 2452072 | F26: =E26/'- 3 -'!$D26*100 -> 5.348844819 | G26: =E26/'- 7 -'!$E26 -> 802.510882 | H26: 1172382 | I26: =H26/'- 3 -'!$D26*100 -> 2.557383872 | J26: =H26/'- 7 -'!$E26 -> 383.6956308
A27: MYSTERY LAKE | B27: 1872286 | C27: =B27/'- 3 -'!$D27*100 -> 4.062779538 | D27: =B27/'- 7 -'!$E27 -> 685.6934627 | E27: 2860117 | F27: =E27/'- 3 -'!$D27*100 -> 6.206330028 | G27: =E27/'- 7 -'!$E27 -> 1047.47006 | H27: 1236621 | I27: =H27/'- 3 -'!$D27*100 -> 2.683414016 | J27: =H27/'- 7 -'!$E27 -> 452.8917781
A28: PARK WEST | B28: 1352488 | C28: =B28/'- 3 -'!$D28*100 -> 4.152265367 | D28: =B28/'- 7 -'!$E28 -> 654.3241413 | E28: 1758829 | F28: =E28/'- 3 -'!$D28*100 -> 5.399770455 | G28: =E28/'- 7 -'!$E28 -> 850.9090469 | H28: 570709 | I28: =H28/'- 3 -'!$D28*100 -> 1.752130308 | J28: =H28/'- 7 -'!$E28 -> 276.1049831
A29: PEMBINA TRAILS | B29: 15594529 | C29: =B29/'- 3 -'!$D29*100 -> 7.97447198 | D29: =B29/'- 7 -'!$E29 -> 1029.545719 | E29: 18133845 | F29: =E29/'- 3 -'!$D29*100 -> 9.272985343 | G29: =E29/'- 7 -'!$E29 -> 1197.190533 | H29: 4340081 | I29: =H29/'- 3 -'!$D29*100 -> 2.219358746 | J29: =H29/'- 7 -'!$E29 -> 286.5307322
A30: PINE CREEK | B30: 362332 | C30: =B30/'- 3 -'!$D30*100 -> 2.094691101 | D30: =B30/'- 7 -'!$E30 -> 331.8058608 | E30: 457888 | F30: =E30/'- 3 -'!$D30*100 -> 2.647113472 | G30: =E30/'- 7 -'!$E30 -> 419.3113553 | H30: 178219 | I30: =H30/'- 3 -'!$D30*100 -> 1.030308538 | J30: =H30/'- 7 -'!$E30 -> 163.2042125
A31: PORTAGE LA PRAIRIE | B31: 3005736 | C31: =B31/'- 3 -'!$D31*100 -> 6.527658616 | D31: =B31/'- 7 -'!$E31 -> 895.2303797 | E31: 1735258 | F31: =E31/'- 3 -'!$D31*100 -> 3.768518537 | G31: =E31/'- 7 -'!$E31 -> 516.8303797 | H31: 1452962 | I31: =H31/'- 3 -'!$D31*100 -> 3.155446758 | J31: =H31/'- 7 -'!$E31 -> 432.7511541
A32: PRAIRIE ROSE | B32: 1155705 | C32: =B32/'- 3 -'!$D32*100 -> 3.451587963 | D32: =B32/'- 7 -'!$E32 -> 507.5559947 | E32: 2251983 | F32: =E32/'- 3 -'!$D32*100 -> 6.725693334 | G32: =E32/'- 7 -'!$E32 -> 989.0131752 | H32: 786951 | I32: =H32/'- 3 -'!$D32*100 -> 2.350280217 | J32: =H32/'- 7 -'!$E32 -> 345.6086957
A33: PRAIRIE SPIRIT | B33: 1245952 | C33: =B33/'- 3 -'!$D33*100 -> 4.071431342 | D33: =B33/'- 7 -'!$E33 -> 598.2962785 | E33: 1849713 | F33: =E33/'- 3 -'!$D33*100 -> 6.044357633 | G33: =E33/'- 7 -'!$E33 -> 888.217527 | H33: 498858 | I33: =H33/'- 3 -'!$D33*100 -> 1.630131896 | J33: =H33/'- 7 -'!$E33 -> 239.5476591
A34: RED RIVER VALLEY | B34: 2035718 | C34: =B34/'- 3 -'!$D34*100 -> 5.754108758 | D34: =B34/'- 7 -'!$E34 -> 898.9701921 | E34: 1771854 | F34: =E34/'- 3 -'!$D34*100 -> 5.008277482 | G34: =E34/'- 7 -'!$E34 -> 782.4482226 | H34: 1027290 | I34: =H34/'- 3 -'!$D34*100 -> 2.903711804 | J34: =H34/'- 7 -'!$E34 -> 453.6498123
A35: RIVER EAST TRANSCONA | B35: 22746768 | C35: =B35/'- 3 -'!$D35*100 -> 10.26004844 | D35: =B35/'- 7 -'!$E35 -> 1346.879119 | E35: 11474384 | F35: =E35/'- 3 -'!$D35*100 -> 5.1755808 | G35: =E35/'- 7 -'!$E35 -> 679.4199603 | H35: 5039007 | I35: =H35/'- 3 -'!$D35*100 -> 2.272870411 | J35: =H35/'- 7 -'!$E35 -> 298.3691269
A36: ROLLING RIVER | B36: 732150 | C36: =B36/'- 3 -'!$D36*100 -> 2.728905873 | D36: =B36/'- 7 -'!$E36 -> 415.6400795 | E36: 1483923 | F36: =E36/'- 3 -'!$D36*100 -> 5.530951566 | G36: =E36/'- 7 -'!$E36 -> 842.4200965 | H36: 520956 | I36: =H36/'- 3 -'!$D36*100 -> 1.941733098 | J36: =H36/'- 7 -'!$E36 -> 295.7456713
A37: SEINE RIVER | B37: 6254830 | C37: =B37/'- 3 -'!$D37*100 -> 9.817049793 | D37: =B37/'- 7 -'!$E37 -> 1401.799641 | E37: 3057234 | F37: =E37/'- 3 -'!$D37*100 -> 4.798374761 | G37: =E37/'- 7 -'!$E37 -> 685.1712237 | H37: 2015578 | I37: =H37/'- 3 -'!$D37*100 -> 3.163479997 | J37: =H37/'- 7 -'!$E37 -> 451.720753
A38: SEVEN OAKS | B38: 15870468 | C38: =B38/'- 3 -'!$D38*100 -> 9.546406115 | D38: =B38/'- 7 -'!$E38 -> 1378.781808 | E38: 7695648 | F38: =E38/'- 3 -'!$D38*100 -> 4.629087253 | G38: =E38/'- 7 -'!$E38 -> 668.5763433 | H38: 3262306 | I38: =H38/'- 3 -'!$D38*100 -> 1.962342758 | J38: =H38/'- 7 -'!$E38 -> 283.4200078
A39: SOUTHWEST HORIZON | B39: 1742608 | C39: =B39/'- 3 -'!$D39*100 -> 7.271339213 | D39: =B39/'- 7 -'!$E39 -> 1192.342114 | E39: 890178 | F39: =E39/'- 3 -'!$D39*100 -> 3.7144247 | G39: =E39/'- 7 -'!$E39 -> 609.0851865 | H39: 606688 | I39: =H39/'- 3 -'!$D39*100 -> 2.531512678 | J39: =H39/'- 7 -'!$E39 -> 415.1132398
A40: ST. JAMES-ASSINIBOIA | B40: 14377093 | C40: =B40/'- 3 -'!$D40*100 -> 11.9767105 | D40: =B40/'- 7 -'!$E40 -> 1784.887832 | E40: 6155337 | F40: =E40/'- 3 -'!$D40*100 -> 5.127649191 | G40: =E40/'- 7 -'!$E40 -> 764.1729879 | H40: 3343128 | I40: =H40/'- 3 -'!$D40*100 -> 2.78496329 | J40: =H40/'- 7 -'!$E40 -> 415.042769
A41: SUNRISE | B41: 5561787 | C41: =B41/'- 3 -'!$D41*100 -> 7.582970238 | D41: =B41/'- 7 -'!$E41 -> 1211.190549 | E41: 5045976 | F41: =E41/'- 3 -'!$D41*100 -> 6.879710753 | G41: =E41/'- 7 -'!$E41 -> 1098.862369 | H41: 1004288 | I41: =H41/'- 3 -'!$D41*100 -> 1.369251648 | J41: =H41/'- 7 -'!$E41 -> 218.7038328
A42: SWAN VALLEY | B42: 2882833 | C42: =B42/'- 3 -'!$D42*100 -> 11.88245865 | D42: =B42/'- 7 -'!$E42 -> 2130.69697 | E42: 891103 | F42: =E42/'- 3 -'!$D42*100 -> 3.672947602 | G42: =E42/'- 7 -'!$E42 -> 658.6127125 | H42: 566275 | I42: =H42/'- 3 -'!$D42*100 -> 2.334071822 | J42: =H42/'- 7 -'!$E42 -> 418.5328899
A43: TURTLE MOUNTAIN | B43: 255217 | C43: =B43/'- 3 -'!$D43*100 -> 1.713295245 | D43: =B43/'- 7 -'!$E43 -> 247.9038368 | E43: 1775066 | F43: =E43/'- 3 -'!$D43*100 -> 11.91618167 | G43: =E43/'- 7 -'!$E43 -> 1724.20204 | H43: 270322 | I43: =H43/'- 3 -'!$D43*100 -> 1.814696503 | J43: =H43/'- 7 -'!$E43 -> 262.5760078
A44: TURTLE RIVER | B44: 731675 | C44: =B44/'- 3 -'!$D44*100 -> 6.072949262 | D44: =B44/'- 7 -'!$E44 -> 1229.705882 | E44: 373289 | F44: =E44/'- 3 -'!$D44*100 -> 3.098322557 | G44: =E44/'- 7 -'!$E44 -> 627.3764706 | H44: 62115 | I44: =H44/'- 3 -'!$D44*100 -> 0.5155584698 | J44: =H44/'- 7 -'!$E44 -> 104.394958
A45: WESTERN | B45: 1039513 | C45: =B45/'- 3 -'!$D45*100 -> 4.099254426 | D45: =B45/'- 7 -'!$E45 -> 524.0801613 | E45: 1297549 | F45: =E45/'- 3 -'!$D45*100 -> 5.116803235 | G45: =E45/'- 7 -'!$E45 -> 654.1714142 | H45: 626427 | I45: =H45/'- 3 -'!$D45*100 -> 2.470275651 | J45: =H45/'- 7 -'!$E45 -> 315.8190068
A46: WINNIPEG | B46: 23508496 | C46: =B46/'- 3 -'!$D46*100 -> 5.293149929 | D46: =B46/'- 7 -'!$E46 -> 845.004414 | E46: 25430739 | F46: =E46/'- 3 -'!$D46*100 -> 5.72596028 | G46: =E46/'- 7 -'!$E46 -> 914.0987457 | H46: 7358012 | I46: =H46/'- 3 -'!$D46*100 -> 1.656722774 | J46: =H46/'- 7 -'!$E46 -> 264.4810888
A48: PROVINCE | B48: =SUM(B11:B46) -> 193533002 | C48: =B48/'- 3 -'!$D48*100 -> 7.082556968 | D48: =B48/'- 7 -'!$E48 -> 1057.988851 | E48: =SUM(E11:E46) -> 145082962 | F48: =E48/'- 3 -'!$D48*100 -> 5.30947349 | G48: =E48/'- 7 -'!$E48 -> 793.1265193 | H48: =SUM(H11:H46) -> 62737992 | I48: =H48/'- 3 -'!$D48*100 -> 2.295967085 | J48: =H48/'- 7 -'!$E48 -> 342.9704256
A50: WHITESHELL | B50: 218329 | C50: =B50/'- 3 -'!$D50*100 -> 5.748339377 | D50: =B50/'- 7 -'!$E50 -> 1086.21393 | E50: 48587 | F50: =E50/'- 3 -'!$D50*100 -> 1.279237139 | G50: =E50/'- 7 -'!$E50 -> 241.7263682 | H50: 48587 | I50: =H50/'- 3 -'!$D50*100 -> 1.279237139 | J50: =H50/'- 7 -'!$E50 -> 241.7263682
A52: (1) Expenses shown are extra costs associated with special needs students in regular classes, not the total cost of educating those students.

Sheet - 23 -
B2: ANALYSIS OF EXPENSE BY PROGRAM | F2: PAGE 6 OF 16
B3: =OPYEAR -> OPERATING FUND 2022/2023 ACTUAL
B5: FUNCTION 300: ADULT LEARNING CENTRES
B6: ADMINISTRATION AND OTHER
D7: INSTRUCTION
A9: DIVISION / DISTRICT | B9: AMOUNT | C9: % | D9: AMOUNT | E9: %
A11: BEAUTIFUL PLAINS | B11: 0 | C11: =B11/'- 3 -'!$D11*100 -> 0 | D11: 0 | E11: =D11/'- 3 -'!$D11*100 -> 0
A12: BORDER LAND | B12: 86578 | C12: =B12/'- 3 -'!$D12*100 -> 0.23225931 | D12: 284726 | E12: =D12/'- 3 -'!$D12*100 -> 0.7638229607
A13: BRANDON | B13: 0 | C13: =B13/'- 3 -'!$D13*100 -> 0 | D13: 0 | E13: =D13/'- 3 -'!$D13*100 -> 0
A14: DSFM | B14: 89590 | C14: =B14/'- 3 -'!$D14*100 -> 0.08492774695 | D14: 197116 | E14: =D14/'- 3 -'!$D14*100 -> 0.1868581066
A15: EVERGREEN | B15: 0 | C15: =B15/'- 3 -'!$D15*100 -> 0 | D15: 110582 | E15: =D15/'- 3 -'!$D15*100 -> 0.3394971407
A16: FLIN FLON | B16: 19430 | C16: =B16/'- 3 -'!$D16*100 -> 0.1166445674 | D16: 74570 | E16: =D16/'- 3 -'!$D16*100 -> 0.447667802
A17: FORT LA BOSSE | B17: 0 | C17: =B17/'- 3 -'!$D17*100 -> 0 | D17: 0 | E17: =D17/'- 3 -'!$D17*100 -> 0
A18: FRONTIER | B18: 277513 | C18: =B18/'- 3 -'!$D18*100 -> 0.1718897925 | D18: 2094757 | E18: =D18/'- 3 -'!$D18*100 -> 1.297479203
A19: GARDEN VALLEY | B19: 0 | C19: =B19/'- 3 -'!$D19*100 -> 0 | D19: 0 | E19: =D19/'- 3 -'!$D19*100 -> 0
A20: HANOVER | B20: 0 | C20: =B20/'- 3 -'!$D20*100 -> 0 | D20: 0 | E20: =D20/'- 3 -'!$D20*100 -> 0
A21: INTERLAKE | B21: 0 | C21: =B21/'- 3 -'!$D21*100 -> 0 | D21: 0 | E21: =D21/'- 3 -'!$D21*100 -> 0
A22: KELSEY | B22: 182146 | C22: =B22/'- 3 -'!$D22*100 -> 0.8252599705 | D22: 478341 | E22: =D22/'- 3 -'!$D22*100 -> 2.167248688
A23: LAKESHORE | B23: 71203 | C23: =B23/'- 3 -'!$D23*100 -> 0.4319002915 | D23: 217100 | E23: =D23/'- 3 -'!$D23*100 -> 1.316876442
A24: LORD SELKIRK | B24: 118774 | C24: =B24/'- 3 -'!$D24*100 -> 0.1857464068 | D24: 247789 | E24: =D24/'- 3 -'!$D24*100 -> 0.3875083469
A25: LOUIS RIEL | B25: 151081 | C25: =B25/'- 3 -'!$D25*100 -> 0.06889610236 | D25: 1811830 | E25: =D25/'- 3 -'!$D25*100 -> 0.8262324524
A26: MOUNTAIN VIEW | B26: 0 | C26: =B26/'- 3 -'!$D26*100 -> 0 | D26: 0 | E26: =D26/'- 3 -'!$D26*100 -> 0
A27: MYSTERY LAKE | B27: 0 | C27: =B27/'- 3 -'!$D27*100 -> 0 | D27: 0 | E27: =D27/'- 3 -'!$D27*100 -> 0
A28: PARK WEST | B28: 0 | C28: =B28/'- 3 -'!$D28*100 -> 0 | D28: 110582 | E28: =D28/'- 3 -'!$D28*100 -> 0.3394971407
A29: PEMBINA TRAILS | B29: 0 | C29: =B29/'- 3 -'!$D29*100 -> 0 | D29: 0 | E29: =D29/'- 3 -'!$D29*100 -> 0
A30: PINE CREEK | B30: 0 | C30: =B30/'- 3 -'!$D30*100 -> 0 | D30: 0 | E30: =D30/'- 3 -'!$D30*100 -> 0
A31: PORTAGE LA PRAIRIE | B31: 0 | C31: =B31/'- 3 -'!$D31*100 -> 0 | D31: 0 | E31: =D31/'- 3 -'!$D31*100 -> 0
A32: PRAIRIE ROSE | B32: 67627 | C32: =B32/'- 3 -'!$D32*100 -> 0.201972423 | D32: 228189 | E32: =D32/'- 3 -'!$D32*100 -> 0.681501253
A33: PRAIRIE SPIRIT | B33: 0 | C33: =B33/'- 3 -'!$D33*100 -> 0 | D33: 0 | E33: =D33/'- 3 -'!$D33*100 -> 0
A34: RED RIVER VALLEY | B34: 0 | C34: =B34/'- 3 -'!$D34*100 -> 0 | D34: 0 | E34: =D34/'- 3 -'!$D34*100 -> 0
A35: RIVER EAST TRANSCONA | B35: 353326 | C35: =B35/'- 3 -'!$D35*100 -> 0.1593695367 | D35: 1169321 | E35: =D35/'- 3 -'!$D35*100 -> 0.5274283409
A36: ROLLING RIVER | B36: 33908 | C36: =B36/'- 3 -'!$D36*100 -> 0.126383583 | D36: 92694 | E36: =D36/'- 3 -'!$D36*100 -> 0.3454936843
A37: SEINE RIVER | B37: 101174 | C37: =B37/'- 3 -'!$D37*100 -> 0.1587941152 | D37: 220695 | E37: =D37/'- 3 -'!$D37*100 -> 0.346384123
A38: SEVEN OAKS | B38: 843375 | C38: =B38/'- 3 -'!$D38*100 -> 0.5073070471 | D38: 1353230 | E38: =D38/'- 3 -'!$D38*100 -> 0.8139950975
A39: SOUTHWEST HORIZON | B39: 0 | C39: =B39/'- 3 -'!$D39*100 -> 0 | D39: 0 | E39: =D39/'- 3 -'!$D39*100 -> 0
A40: ST. JAMES-ASSINIBOIA | B40: 0 | C40: =B40/'- 3 -'!$D40*100 -> 0 | D40: 0 | E40: =D40/'- 3 -'!$D40*100 -> 0
A41: SUNRISE | B41: 316940 | C41: =B41/'- 3 -'!$D41*100 -> 0.4321176966 | D41: 654199 | E41: =D41/'- 3 -'!$D41*100 -> 0.8919384268
A42: SWAN VALLEY | B42: 0 | C42: =B42/'- 3 -'!$D42*100 -> 0 | D42: 0 | E42: =D42/'- 3 -'!$D42*100 -> 0
A43: TURTLE MOUNTAIN | B43: 0 | C43: =B43/'- 3 -'!$D43*100 -> 0 | D43: 202247 | E43: =D43/'- 3 -'!$D43*100 -> 1.357702753
A44: TURTLE RIVER | B44: 0 | C44: =B44/'- 3 -'!$D44*100 -> 0 | D44: 0 | E44: =D44/'- 3 -'!$D44*100 -> 0
A45: WESTERN | B45: 184410 | C45: =B45/'- 3 -'!$D45*100 -> 0.7272092881 | D45: 210858 | E45: =D45/'- 3 -'!$D45*100 -> 0.8315053201
A46: WINNIPEG | B46: 92782 | C46: =B46/'- 3 -'!$D46*100 -> 0.02089070423 | D46: 733027 | E46: =D46/'- 3 -'!$D46*100 -> 0.1650476412
A48: PROVINCE | B48: =SUM(B11:B46) -> 2989857 | C48: =B48/'- 3 -'!$D48*100 -> 0.1094171656 | D48: =SUM(D11:D46) -> 10491853 | E48: =D48/'- 3 -'!$D48*100 -> 0.3839611116
A50: WHITESHELL | B50: 0 | C50: =B50/'- 3 -'!$D50*100 -> 0 | D50: 0 | E50: =D50/'- 3 -'!$D50*100 -> 0

Sheet - 24 -
B2: ANALYSIS OF EXPENSE BY PROGRAM | I2: PAGE 7 OF 16
B3: =OPYEAR -> OPERATING FUND 2022/2023 ACTUAL
B5: FUNCTION 400: COMMUNITY EDUCATION AND SERVICES
D6: ENGLISH AS AN ADDITIONAL LANGUAGE FOR ADULTS
B7: CONTINUING EDUCATION | F7: COMMUNITY SERVICES & RECREATION | H7: PRE-KINDERGARTEN EDUCATION
A9: DIVISION / DISTRICT | B9: AMOUNT | C9: % | D9: AMOUNT | E9: % | F9: AMOUNT | G9: % | H9: AMOUNT | I9: %
A11: BEAUTIFUL PLAINS | B11: 0 | C11: =B11/'- 3 -'!$D11*100 -> 0 | D11: 0 | E11: =D11/'- 3 -'!$D11*100 -> 0 | F11: 0 | G11: =F11/'- 3 -'!$D11*100 -> 0 | H11: 16882 | I11: =H11/'- 3 -'!$D11*100 -> 0.06713358215
A12: BORDER LAND | B12: 0 | C12: =B12/'- 3 -'!$D12*100 -> 0 | D12: 0 | E12: =D12/'- 3 -'!$D12*100 -> 0 | F12: 0 | G12: =F12/'- 3 -'!$D12*100 -> 0 | H12: 51241 | I12: =H12/'- 3 -'!$D12*100 -> 0.1374621648
A13: BRANDON | B13: 0 | C13: =B13/'- 3 -'!$D13*100 -> 0 | D13: 0 | E13: =D13/'- 3 -'!$D13*100 -> 0 | F13: 183259 | G13: =F13/'- 3 -'!$D13*100 -> 0.1595136581 | H13: 141367 | I13: =H13/'- 3 -'!$D13*100 -> 0.1230497127
A14: DSFM | B14: 0 | C14: =B14/'- 3 -'!$D14*100 -> 0 | D14: 0 | E14: =D14/'- 3 -'!$D14*100 -> 0 | F14: 0 | G14: =F14/'- 3 -'!$D14*100 -> 0 | H14: 690102 | I14: =H14/'- 3 -'!$D14*100 -> 0.6541891732
A15: EVERGREEN | B15: 0 | C15: =B15/'- 3 -'!$D15*100 -> 0 | D15: 0 | E15: =D15/'- 3 -'!$D15*100 -> 0 | F15: 0 | G15: =F15/'- 3 -'!$D15*100 -> 0 | H15: 113286 | I15: =H15/'- 3 -'!$D15*100 -> 0.347798675
A16: FLIN FLON | B16: 0 | C16: =B16/'- 3 -'!$D16*100 -> 0 | D16: 0 | E16: =D16/'- 3 -'!$D16*100 -> 0 | F16: 0 | G16: =F16/'- 3 -'!$D16*100 -> 0 | H16: 17866 | I16: =H16/'- 3 -'!$D16*100 -> 0.1072553701
A17: FORT LA BOSSE | B17: 0 | C17: =B17/'- 3 -'!$D17*100 -> 0 | D17: 0 | E17: =D17/'- 3 -'!$D17*100 -> 0 | F17: 80020 | G17: =F17/'- 3 -'!$D17*100 -> 0.386153413 | H17: 129168 | I17: =H17/'- 3 -'!$D17*100 -> 0.6233274688
A18: FRONTIER | B18: 0 | C18: =B18/'- 3 -'!$D18*100 -> 0 | D18: 0 | E18: =D18/'- 3 -'!$D18*100 -> 0 | F18: 1147230 | G18: =F18/'- 3 -'!$D18*100 -> 0.7105869874 | H18: 1649138 | I18: =H18/'- 3 -'!$D18*100 -> 1.02146562
A19: GARDEN VALLEY | B19: 0 | C19: =B19/'- 3 -'!$D19*100 -> 0 | D19: 0 | E19: =D19/'- 3 -'!$D19*100 -> 0 | F19: 0 | G19: =F19/'- 3 -'!$D19*100 -> 0 | H19: 76448 | I19: =H19/'- 3 -'!$D19*100 -> 0.1405975576
A20: HANOVER | B20: 0 | C20: =B20/'- 3 -'!$D20*100 -> 0 | D20: 0 | E20: =D20/'- 3 -'!$D20*100 -> 0 | F20: 0 | G20: =F20/'- 3 -'!$D20*100 -> 0 | H20: 153256 | I20: =H20/'- 3 -'!$D20*100 -> 0.1501798658
A21: INTERLAKE | B21: 0 | C21: =B21/'- 3 -'!$D21*100 -> 0 | D21: 0 | E21: =D21/'- 3 -'!$D21*100 -> 0 | F21: 0 | G21: =F21/'- 3 -'!$D21*100 -> 0 | H21: 0 | I21: =H21/'- 3 -'!$D21*100 -> 0
A22: KELSEY | B22: 0 | C22: =B22/'- 3 -'!$D22*100 -> 0 | D22: 0 | E22: =D22/'- 3 -'!$D22*100 -> 0 | F22: 47026 | G22: =F22/'- 3 -'!$D22*100 -> 0.213063561 | H22: 0 | I22: =H22/'- 3 -'!$D22*100 -> 0
A23: LAKESHORE | B23: 108842 | C23: =B23/'- 3 -'!$D23*100 -> 0.6602094228 | D23: 0 | E23: =D23/'- 3 -'!$D23*100 -> 0 | F23: 0 | G23: =F23/'- 3 -'!$D23*100 -> 0 | H23: 12346 | I23: =H23/'- 3 -'!$D23*100 -> 0.07488786988
A24: LORD SELKIRK | B24: 237564 | C24: =B24/'- 3 -'!$D24*100 -> 0.3715178355 | D24: 0 | E24: =D24/'- 3 -'!$D24*100 -> 0 | F24: 215159 | G24: =F24/'- 3 -'!$D24*100 -> 0.336479458 | H24: 0 | I24: =H24/'- 3 -'!$D24*100 -> 0
A25: LOUIS RIEL | B25: 6859 | C25: =B25/'- 3 -'!$D25*100 -> 0.003127847751 | D25: 259912 | E25: =D25/'- 3 -'!$D25*100 -> 0.1185253192 | F25: 961960 | G25: =F25/'- 3 -'!$D25*100 -> 0.4386739208 | H25: 972058 | I25: =H25/'- 3 -'!$D25*100 -> 0.4432788204
A26: MOUNTAIN VIEW | B26: 0 | C26: =B26/'- 3 -'!$D26*100 -> 0 | D26: 0 | E26: =D26/'- 3 -'!$D26*100 -> 0 | F26: 0 | G26: =F26/'- 3 -'!$D26*100 -> 0 | H26: 126762 | I26: =H26/'- 3 -'!$D26*100 -> 0.2765131966
A27: MYSTERY LAKE | B27: 0 | C27: =B27/'- 3 -'!$D27*100 -> 0 | D27: 0 | E27: =D27/'- 3 -'!$D27*100 -> 0 | F27: 0 | G27: =F27/'- 3 -'!$D27*100 -> 0 | H27: 60491 | I27: =H27/'- 3 -'!$D27*100 -> 0.1312628503
A28: PARK WEST | B28: 0 | C28: =B28/'- 3 -'!$D28*100 -> 0 | D28: 0 | E28: =D28/'- 3 -'!$D28*100 -> 0 | F28: 0 | G28: =F28/'- 3 -'!$D28*100 -> 0 | H28: 113286 | I28: =H28/'- 3 -'!$D28*100 -> 0.347798675
A29: PEMBINA TRAILS | B29: 0 | C29: =B29/'- 3 -'!$D29*100 -> 0 | D29: 0 | E29: =D29/'- 3 -'!$D29*100 -> 0 | F29: 243018 | G29: =F29/'- 3 -'!$D29*100 -> 0.1242705202 | H29: 0 | I29: =H29/'- 3 -'!$D29*100 -> 0
A30: PINE CREEK | B30: 0 | C30: =B30/'- 3 -'!$D30*100 -> 0 | D30: 0 | E30: =D30/'- 3 -'!$D30*100 -> 0 | F30: 0 | G30: =F30/'- 3 -'!$D30*100 -> 0 | H30: 12333 | I30: =H30/'- 3 -'!$D30*100 -> 0.07129876837
A31: PORTAGE LA PRAIRIE | B31: 0 | C31: =B31/'- 3 -'!$D31*100 -> 0 | D31: 0 | E31: =D31/'- 3 -'!$D31*100 -> 0 | F31: 0 | G31: =F31/'- 3 -'!$D31*100 -> 0 | H31: 59379 | I31: =H31/'- 3 -'!$D31*100 -> 0.1289553843
A32: PRAIRIE ROSE | B32: 0 | C32: =B32/'- 3 -'!$D32*100 -> 0 | D32: 0 | E32: =D32/'- 3 -'!$D32*100 -> 0 | F32: 0 | G32: =F32/'- 3 -'!$D32*100 -> 0 | H32: 38561 | I32: =H32/'- 3 -'!$D32*100 -> 0.1151649283
A33: PRAIRIE SPIRIT | B33: 0 | C33: =B33/'- 3 -'!$D33*100 -> 0 | D33: 0 | E33: =D33/'- 3 -'!$D33*100 -> 0 | F33: 0 | G33: =F33/'- 3 -'!$D33*100 -> 0 | H33: 41693 | I33: =H33/'- 3 -'!$D33*100 -> 0.1362413536
A34: RED RIVER VALLEY | B34: 0 | C34: =B34/'- 3 -'!$D34*100 -> 0 | D34: 0 | E34: =D34/'- 3 -'!$D34*100 -> 0 | F34: 0 | G34: =F34/'- 3 -'!$D34*100 -> 0 | H34: 41842 | I34: =H34/'- 3 -'!$D34*100 -> 0.1182695337
A35: RIVER EAST TRANSCONA | B35: 174382 | C35: =B35/'- 3 -'!$D35*100 -> 0.07865591138 | D35: 224686 | E35: =D35/'- 3 -'!$D35*100 -> 0.1013457932 | F35: 749659 | G35: =F35/'- 3 -'!$D35*100 -> 0.3381376052 | H35: 281033 | I35: =H35/'- 3 -'!$D35*100 -> 0.1267614016
A36: ROLLING RIVER | B36: 0 | C36: =B36/'- 3 -'!$D36*100 -> 0 | D36: 0 | E36: =D36/'- 3 -'!$D36*100 -> 0 | F36: 0 | G36: =F36/'- 3 -'!$D36*100 -> 0 | H36: 18078 | I36: =H36/'- 3 -'!$D36*100 -> 0.06738122019
A37: SEINE RIVER | B37: 0 | C37: =B37/'- 3 -'!$D37*100 -> 0 | D37: 0 | E37: =D37/'- 3 -'!$D37*100 -> 0 | F37: 0 | G37: =F37/'- 3 -'!$D37*100 -> 0 | H37: 802733 | I37: =H37/'- 3 -'!$D37*100 -> 1.259901521
A38: SEVEN OAKS | B38: 233503 | C38: =B38/'- 3 -'!$D38*100 -> 0.140456757 | D38: 1210023 | E38: =D38/'- 3 -'!$D38*100 -> 0.727853203 | F38: 1696414 | G38: =F38/'- 3 -'!$D38*100 -> 1.020427185 | H38: 573097 | I38: =H38/'- 3 -'!$D38*100 -> 0.344729387
A39: SOUTHWEST HORIZON | B39: 0 | C39: =B39/'- 3 -'!$D39*100 -> 0 | D39: 0 | E39: =D39/'- 3 -'!$D39*100 -> 0 | F39: 3652 | G39: =F39/'- 3 -'!$D39*100 -> 0.01523861408 | H39: 189676 | I39: =H39/'- 3 -'!$D39*100 -> 0.791456562
A40: ST. JAMES-ASSINIBOIA | B40: 452782 | C40: =B40/'- 3 -'!$D40*100 -> 0.377186051 | D40: 0 | E40: =D40/'- 3 -'!$D40*100 -> 0 | F40: 352705 | G40: =F40/'- 3 -'!$D40*100 -> 0.293817789 | H40: 109652 | I40: =H40/'- 3 -'!$D40*100 -> 0.09134463134
A41: SUNRISE | B41: 0 | C41: =B41/'- 3 -'!$D41*100 -> 0 | D41: 0 | E41: =D41/'- 3 -'!$D41*100 -> 0 | F41: 0 | G41: =F41/'- 3 -'!$D41*100 -> 0 | H41: 77304 | I41: =H41/'- 3 -'!$D41*100 -> 0.1053966884
A42: SWAN VALLEY | B42: 0 | C42: =B42/'- 3 -'!$D42*100 -> 0 | D42: 0 | E42: =D42/'- 3 -'!$D42*100 -> 0 | F42: 0 | G42: =F42/'- 3 -'!$D42*100 -> 0 | H42: 88912 | I42: =H42/'- 3 -'!$D42*100 -> 0.3664774074
A43: TURTLE MOUNTAIN | B43: 0 | C43: =B43/'- 3 -'!$D43*100 -> 0 | D43: 0 | E43: =D43/'- 3 -'!$D43*100 -> 0 | F43: 0 | G43: =F43/'- 3 -'!$D43*100 -> 0 | H43: 15131 | I43: =H43/'- 3 -'!$D43*100 -> 0.1015757977
A44: TURTLE RIVER | B44: 0 | C44: =B44/'- 3 -'!$D44*100 -> 0 | D44: 0 | E44: =D44/'- 3 -'!$D44*100 -> 0 | F44: 0 | G44: =F44/'- 3 -'!$D44*100 -> 0 | H44: 28131 | I44: =H44/'- 3 -'!$D44*100 -> 0.2334890979
A45: WESTERN | B45: 0 | C45: =B45/'- 3 -'!$D45*100 -> 0 | D45: 0 | E45: =D45/'- 3 -'!$D45*100 -> 0 | F45: 100 | G45: =F45/'- 3 -'!$D45*100 -> 0.0003943437385 | H45: 53082 | I45: =H45/'- 3 -'!$D45*100 -> 0.2093255433
A46: WINNIPEG | B46: 0 | C46: =B46/'- 3 -'!$D46*100 -> 0 | D46: 3370806 | E46: =D46/'- 3 -'!$D46*100 -> 0.7589673768 | F46: 159672 | G46: =F46/'- 3 -'!$D46*100 -> 0.0359515911 | H46: 4224319 | I46: =H46/'- 3 -'!$D46*100 -> 0.9511435277
A48: PROVINCE | B48: =SUM(B11:B46) -> 1213932 | C48: =B48/'- 3 -'!$D48*100 -> 0.04442520116 | D48: =SUM(D11:D46) -> 5065427 | E48: =D48/'- 3 -'!$D48*100 -> 0.1853749744 | F48: =SUM(F11:F46) -> 5839874 | G48: =F48/'- 3 -'!$D48*100 -> 0.2137167298 | H48: =SUM(H11:H46) -> 10978653 | I48: =H48/'- 3 -'!$D48*100 -> 0.4017761028
A50: WHITESHELL | B50: 0 | C50: =B50/'- 3 -'!$D50*100 -> 0 | D50: 0 | E50: =D50/'- 3 -'!$D50*100 -> 0 | F50: 9542 | G50: =F50/'- 3 -'!$D50*100 -> 0.2512293572 | H50: 103573 | I50: =H50/'- 3 -'!$D50*100 -> 2.726952234

Sheet - 25 -
B2: ANALYSIS OF EXPENSE BY PROGRAM | J2: PAGE 8 OF 16
B3: =OPYEAR -> OPERATING FUND 2022/2023 ACTUAL
B5: FUNCTION 500: DIVISIONAL ADMINISTRATION
E6: INSTRUCTIONAL MGMT. AND ADMINISTRATION | H6: BUSINESS AND ADMIN. SERVICES
B7: BOARD OF TRUSTEES
D8: PER PUPIL | G8: PER PUPIL | J8: PER PUPIL
A9: DIVISION / DISTRICT | B9: AMOUNT | C9: % | E9: AMOUNT | F9: % | H9: AMOUNT | I9: %
A11: BEAUTIFUL PLAINS | B11: 149536 | C11: =B11/'- 3 -'!$D11*100 -> 0.5946503578 | D11: =B11/'- 7 -'!$E11 -> 74.61876248 | E11: 193789 | F11: =E11/'- 3 -'!$D11*100 -> 0.7706284653 | G11: =E11/'- 7 -'!$E11 -> 96.7010978 | H11: 480172 | I11: =H11/'- 3 -'!$D11*100 -> 1.909469637 | J11: =H11/'- 7 -'!$E11 -> 239.6067864
A12: BORDER LAND | B12: 182632 | C12: =B12/'- 3 -'!$D12*100 -> 0.4899395031 | D12: =B12/'- 7 -'!$E12 -> 89.51583653 | E12: 169495 | F12: =E12/'- 3 -'!$D12*100 -> 0.4546974028 | G12: =E12/'- 7 -'!$E12 -> 83.07682505 | H12: 703071 | I12: =H12/'- 3 -'!$D12*100 -> 1.886100225 | J12: =H12/'- 7 -'!$E12 -> 344.6054837
A13: BRANDON | B13: 375137 | C13: =B13/'- 3 -'!$D13*100 -> 0.3265295301 | D13: =B13/'- 7 -'!$E13 -> 41.35381529 | E13: 607388 | F13: =E13/'- 3 -'!$D13*100 -> 0.5286871682 | G13: =E13/'- 7 -'!$E13 -> 66.95636837 | H13: 1769575 | I13: =H13/'- 3 -'!$D13*100 -> 1.540286597 | J13: =H13/'- 7 -'!$E13 -> 195.0718742
A14: DSFM | B14: 650039 | C14: =B14/'- 3 -'!$D14*100 -> 0.616211047 | D14: =B14/'- 7 -'!$E14 -> 111.3616312 | E14: 1740011 | F14: =E14/'- 3 -'!$D14*100 -> 1.649461033 | G14: =E14/'- 7 -'!$E14 -> 298.0905196 | H14: 1427245 | I14: =H14/'- 3 -'!$D14*100 -> 1.352971338 | J14: =H14/'- 7 -'!$E14 -> 244.5089161
A15: EVERGREEN | B15: 143541 | C15: =B15/'- 3 -'!$D15*100 -> 0.4406843706 | D15: =B15/'- 7 -'!$E15 -> 69.44412192 | E15: 346903 | F15: =E15/'- 3 -'!$D15*100 -> 1.065024838 | G15: =E15/'- 7 -'!$E15 -> 167.8292211 | H15: 515708 | I15: =H15/'- 3 -'!$D15*100 -> 1.583272064 | J15: =H15/'- 7 -'!$E15 -> 249.4958878
A16: FLIN FLON | B16: 134222 | C16: =B16/'- 3 -'!$D16*100 -> 0.8057780304 | D16: =B16/'- 7 -'!$E16 -> 143.3842538 | E16: 112852 | F16: =E16/'- 3 -'!$D16*100 -> 0.6774870162 | G16: =E16/'- 7 -'!$E16 -> 120.5554962 | H16: 383575 | I16: =H16/'- 3 -'!$D16*100 -> 2.30272465 | J16: =H16/'- 7 -'!$E16 -> 409.7585728
A17: FORT LA BOSSE | B17: 129229 | C17: =B17/'- 3 -'!$D17*100 -> 0.6236218372 | D17: =B17/'- 7 -'!$E17 -> 85.89498172 | E17: 189511 | F17: =E17/'- 3 -'!$D17*100 -> 0.9145253619 | G17: =E17/'- 7 -'!$E17 -> 125.9627783 | H17: 368900 | I17: =H17/'- 3 -'!$D17*100 -> 1.780204875 | J17: =H17/'- 7 -'!$E17 -> 245.1977401
A18: FRONTIER | B18: 1256805 | C18: =B18/'- 3 -'!$D18*100 -> 0.7784570475 | D18: =B18/'- 7 -'!$E18 -> 198.1873374 | E18: 2738172 | F18: =E18/'- 3 -'!$D18*100 -> 1.696006374 | G18: =E18/'- 7 -'!$E18 -> 431.7861705 | H18: 3671387 | I18: =H18/'- 3 -'!$D18*100 -> 2.274033827 | J18: =H18/'- 7 -'!$E18 -> 578.9461484
A19: GARDEN VALLEY | B19: 231202 | C19: =B19/'- 3 -'!$D19*100 -> 0.4252097703 | D19: =B19/'- 7 -'!$E19 -> 56.62552045 | E19: 366642 | F19: =E19/'- 3 -'!$D19*100 -> 0.67430109 | G19: =E19/'- 7 -'!$E19 -> 89.79720794 | H19: 760602 | I19: =H19/'- 3 -'!$D19*100 -> 1.398843443 | J19: =H19/'- 7 -'!$E19 -> 186.2850845
A20: HANOVER | B20: 318926 | C20: =B20/'- 3 -'!$D20*100 -> 0.3125245594 | D20: =B20/'- 7 -'!$E20 -> 39.50526446 | E20: 683327 | F20: =E20/'- 3 -'!$D20*100 -> 0.6696113507 | G20: =E20/'- 7 -'!$E20 -> 84.64350303 | H20: 1252394 | I20: =H20/'- 3 -'!$D20*100 -> 1.227256113 | J20: =H20/'- 7 -'!$E20 -> 155.1336554
A21: INTERLAKE | B21: 178007 | C21: =B21/'- 3 -'!$D21*100 -> 0.4371786679 | D21: =B21/'- 7 -'!$E21 -> 60.83629528 | E21: 417651 | F21: =E21/'- 3 -'!$D21*100 -> 1.025735549 | G21: =E21/'- 7 -'!$E21 -> 142.7378674 | H21: 765580 | I21: =H21/'- 3 -'!$D21*100 -> 1.880236421 | J21: =H21/'- 7 -'!$E21 -> 261.6473001
A22: KELSEY | B22: 97958 | C22: =B22/'- 3 -'!$D22*100 -> 0.4438242739 | D22: =B22/'- 7 -'!$E22 -> 66.32227488 | E22: 168894 | F22: =E22/'- 3 -'!$D22*100 -> 0.7652183274 | G22: =E22/'- 7 -'!$E22 -> 114.3493568 | H22: 562870 | I22: =H22/'- 3 -'!$D22*100 -> 2.550229374 | J22: =H22/'- 7 -'!$E22 -> 381.0900474
A23: LAKESHORE | B23: 104214 | C23: =B23/'- 3 -'!$D23*100 -> 0.6321370867 | D23: =B23/'- 7 -'!$E23 -> 114.3324191 | E23: 144766 | F23: =E23/'- 3 -'!$D23*100 -> 0.8781157761 | G23: =E23/'- 7 -'!$E23 -> 158.8217224 | H23: 347496 | I23: =H23/'- 3 -'!$D23*100 -> 2.10782725 | J23: =H23/'- 7 -'!$E23 -> 381.2353264
A24: LORD SELKIRK | B24: 348899 | C24: =B24/'- 3 -'!$D24*100 -> 0.5456306565 | D24: =B24/'- 7 -'!$E24 -> 92.44806571 | E24: 371877 | F24: =E24/'- 3 -'!$D24*100 -> 0.5815651281 | G24: =E24/'- 7 -'!$E24 -> 98.53656598 | H24: 957671 | I24: =H24/'- 3 -'!$D24*100 -> 1.497667395 | J24: =H24/'- 7 -'!$E24 -> 253.754902
A25: LOUIS RIEL | B25: 729923 | C25: =B25/'- 3 -'!$D25*100 -> 0.3328601857 | D25: =B25/'- 7 -'!$E25 -> 44.79979132 | E25: 720852 | F25: =E25/'- 3 -'!$D25*100 -> 0.3287236196 | G25: =E25/'- 7 -'!$E25 -> 44.24304916 | H25: 5039953 | I25: =H25/'- 3 -'!$D25*100 -> 2.298324195 | J25: =H25/'- 7 -'!$E25 -> 309.3324127
A26: MOUNTAIN VIEW | B26: 220650 | C26: =B26/'- 3 -'!$D26*100 -> 0.4813164578 | D26: =B26/'- 7 -'!$E26 -> 72.21404026 | E26: 401282 | F26: =E26/'- 3 -'!$D26*100 -> 0.8753393646 | G26: =E26/'- 7 -'!$E26 -> 131.3310424 | H26: 709534 | I26: =H26/'- 3 -'!$D26*100 -> 1.547747073 | J26: =H26/'- 7 -'!$E26 -> 232.2153494
A27: MYSTERY LAKE | B27: 213801 | C27: =B27/'- 3 -'!$D27*100 -> 0.463938911 | D27: =B27/'- 7 -'!$E27 -> 78.30104376 | E27: 506559 | F27: =E27/'- 3 -'!$D27*100 -> 1.099211093 | G27: =E27/'- 7 -'!$E27 -> 185.5187695 | H27: 930482 | I27: =H27/'- 3 -'!$D27*100 -> 2.019105644 | J27: =H27/'- 7 -'!$E27 -> 340.7734847
A28: PARK WEST | B28: 143541 | C28: =B28/'- 3 -'!$D28*100 -> 0.4406843706 | D28: =B28/'- 7 -'!$E28 -> 69.44412192 | E28: 346903 | F28: =E28/'- 3 -'!$D28*100 -> 1.065024838 | G28: =E28/'- 7 -'!$E28 -> 167.8292211 | H28: 515708 | I28: =H28/'- 3 -'!$D28*100 -> 1.583272064 | J28: =H28/'- 7 -'!$E28 -> 249.4958878
A29: PEMBINA TRAILS | B29: 716894 | C29: =B29/'- 3 -'!$D29*100 -> 0.3665933813 | D29: =B29/'- 7 -'!$E29 -> 47.32910807 | E29: 2155423 | F29: =E29/'- 3 -'!$D29*100 -> 1.102204518 | G29: =E29/'- 7 -'!$E29 -> 142.3003235 | H29: 2059356 | I29: =H29/'- 3 -'!$D29*100 -> 1.053079366 | J29: =H29/'- 7 -'!$E29 -> 135.9580115
A30: PINE CREEK | B30: 106641 | C30: =B30/'- 3 -'!$D30*100 -> 0.6165062806 | D30: =B30/'- 7 -'!$E30 -> 97.65659341 | E30: 119919 | F30: =E30/'- 3 -'!$D30*100 -> 0.6932682239 | G30: =E30/'- 7 -'!$E30 -> 109.8159341 | H30: 329779 | I30: =H30/'- 3 -'!$D30*100 -> 1.906497733 | J30: =H30/'- 7 -'!$E30 -> 301.9954212
A31: PORTAGE LA PRAIRIE | B31: 229225 | C31: =B31/'- 3 -'!$D31*100 -> 0.4978156918 | D31: =B31/'- 7 -'!$E31 -> 68.2725242 | E31: 294502 | F31: =E31/'- 3 -'!$D31*100 -> 0.6395799623 | G31: =E31/'- 7 -'!$E31 -> 87.71466865 | H31: 576508 | I31: =H31/'- 3 -'!$D31*100 -> 1.252021939 | J31: =H31/'- 7 -'!$E31 -> 171.7075205
A32: PRAIRIE ROSE | B32: 239323 | C32: =B32/'- 3 -'!$D32*100 -> 0.7147536663 | D32: =B32/'- 7 -'!$E32 -> 105.1045235 | E32: 182950 | F32: =E32/'- 3 -'!$D32*100 -> 0.5463920445 | G32: =E32/'- 7 -'!$E32 -> 80.34694774 | H32: 565566 | I32: =H32/'- 3 -'!$D32*100 -> 1.689099552 | J32: =H32/'- 7 -'!$E32 -> 248.3820817
A33: PRAIRIE SPIRIT | B33: 237135 | C33: =B33/'- 3 -'!$D33*100 -> 0.7748925089 | D33: =B33/'- 7 -'!$E33 -> 113.8703481 | E33: 230102 | F33: =E33/'- 3 -'!$D33*100 -> 0.751910583 | G33: =E33/'- 7 -'!$E33 -> 110.4931573 | H33: 469539 | I33: =H33/'- 3 -'!$D33*100 -> 1.5343254 | J33: =H33/'- 7 -'!$E33 -> 225.4689076
A34: RED RIVER VALLEY | B34: 179403 | C34: =B34/'- 3 -'!$D34*100 -> 0.50709596 | D34: =B34/'- 7 -'!$E34 -> 79.22411128 | E34: 271165 | F34: =E34/'- 3 -'!$D34*100 -> 0.766468097 | G34: =E34/'- 7 -'!$E34 -> 119.7460808 | H34: 628110 | I34: =H34/'- 3 -'!$D34*100 -> 1.775399762 | J34: =H34/'- 7 -'!$E34 -> 277.3724884
A35: RIVER EAST TRANSCONA | B35: 713378 | C35: =B35/'- 3 -'!$D35*100 -> 0.3217728707 | D35: =B35/'- 7 -'!$E35 -> 42.24045948 | E35: 1797108 | F35: =E35/'- 3 -'!$D35*100 -> 0.8105949443 | G35: =E35/'- 7 -'!$E35 -> 106.4101608 | H35: 2852362 | I35: =H35/'- 3 -'!$D35*100 -> 1.286572769 | J35: =H35/'- 7 -'!$E35 -> 168.8937443
A36: ROLLING RIVER | B36: 150017 | C36: =B36/'- 3 -'!$D36*100 -> 0.5591508192 | D36: =B36/'- 7 -'!$E36 -> 85.16434857 | E36: 176059 | F36: =E36/'- 3 -'!$D36*100 -> 0.6562158561 | G36: =E36/'- 7 -'!$E36 -> 99.94833948 | H36: 579987 | I36: =H36/'- 3 -'!$D36*100 -> 2.161756375 | J36: =H36/'- 7 -'!$E36 -> 329.257451
A37: SEINE RIVER | B37: 277409 | C37: =B37/'- 3 -'!$D37*100 -> 0.4353975993 | D37: =B37/'- 7 -'!$E37 -> 62.17144778 | E37: 427565 | F37: =E37/'- 3 -'!$D37*100 -> 0.6710697005 | G37: =E37/'- 7 -'!$E37 -> 95.82362169 | H37: 1289679 | I37: =H37/'- 3 -'!$D37*100 -> 2.024170594 | J37: =H37/'- 7 -'!$E37 -> 289.0360825
A38: SEVEN OAKS | B38: 593505 | C38: =B38/'- 3 -'!$D38*100 -> 0.35700521 | D38: =B38/'- 7 -'!$E38 -> 51.56205204 | E38: 1485319 | F38: =E38/'- 3 -'!$D38*100 -> 0.8934492911 | G38: =E38/'- 7 -'!$E38 -> 129.0403545 | H38: 1472522 | I38: =H38/'- 3 -'!$D38*100 -> 0.8857516379 | J38: =H38/'- 7 -'!$E38 -> 127.9285869
A39: SOUTHWEST HORIZON | B39: 147710 | C39: =B39/'- 3 -'!$D39*100 -> 0.6163460257 | D39: =B39/'- 7 -'!$E39 -> 101.0673965 | E39: 225619 | F39: =E39/'- 3 -'!$D39*100 -> 0.9414350685 | G39: =E39/'- 7 -'!$E39 -> 154.3749572 | H39: 406526 | I39: =H39/'- 3 -'!$D39*100 -> 1.696301431 | J39: =H39/'- 7 -'!$E39 -> 278.1566883
A40: ST. JAMES-ASSINIBOIA | B40: 507096 | C40: =B40/'- 3 -'!$D40*100 -> 0.4224318496 | D40: =B40/'- 7 -'!$E40 -> 62.95497151 | E40: 959895 | F40: =E40/'- 3 -'!$D40*100 -> 0.7996320624 | G40: =E40/'- 7 -'!$E40 -> 119.1690772 | H40: 1486898 | I40: =H40/'- 3 -'!$D40*100 -> 1.238647263 | J40: =H40/'- 7 -'!$E40 -> 184.5954636
A41: SUNRISE | B41: 351194 | C41: =B41/'- 3 -'!$D41*100 -> 0.478819784 | D41: =B41/'- 7 -'!$E41 -> 76.47952962 | E41: 362477 | F41: =E41/'- 3 -'!$D41*100 -> 0.4942030867 | G41: =E41/'- 7 -'!$E41 -> 78.93662892 | H41: 1391309 | I41: =H41/'- 3 -'!$D41*100 -> 1.896918156 | J41: =H41/'- 7 -'!$E41 -> 302.9854094
A42: SWAN VALLEY | B42: 146700 | C42: =B42/'- 3 -'!$D42*100 -> 0.6046679376 | D42: =B42/'- 7 -'!$E42 -> 108.4257206 | E42: 198725 | F42: =E42/'- 3 -'!$D42*100 -> 0.8191045391 | G42: =E42/'- 7 -'!$E42 -> 146.8773097 | H42: 353253 | I42: =H42/'- 3 -'!$D42*100 -> 1.456037921 | J42: =H42/'- 7 -'!$E42 -> 261.0886918
A43: TURTLE MOUNTAIN | B43: 106058 | C43: =B43/'- 3 -'!$D43*100 -> 0.7119771298 | D43: =B43/'- 7 -'!$E43 -> 103.0189412 | E43: 150421 | F43: =E43/'- 3 -'!$D43*100 -> 1.009790038 | G43: =E43/'- 7 -'!$E43 -> 146.1107334 | H43: 270485 | I43: =H43/'- 3 -'!$D43*100 -> 1.815790737 | J43: =H43/'- 7 -'!$E43 -> 262.7343371
A44: TURTLE RIVER | B44: 127062 | C44: =B44/'- 3 -'!$D44*100 -> 1.054622721 | D44: =B44/'- 7 -'!$E44 -> 213.5495798 | E44: 55341 | F44: =E44/'- 3 -'!$D44*100 -> 0.4593338369 | G44: =E44/'- 7 -'!$E44 -> 93.01008403 | H44: 290420 | I44: =H44/'- 3 -'!$D44*100 -> 2.410504561 | J44: =H44/'- 7 -'!$E44 -> 488.1008403
A45: WESTERN | B45: 152110 | C45: =B45/'- 3 -'!$D45*100 -> 0.5998362606 | D45: =B45/'- 7 -'!$E45 -> 76.6876733 | E45: 195786 | F45: =E45/'- 3 -'!$D45*100 -> 0.7720698318 | G45: =E45/'- 7 -'!$E45 -> 98.70733552 | H45: 501067 | I45: =H45/'- 3 -'!$D45*100 -> 1.97592634 | J45: =H45/'- 7 -'!$E45 -> 252.6175952
A46: WINNIPEG | B46: 1363553 | C46: =B46/'- 3 -'!$D46*100 -> 0.3070162577 | D46: =B46/'- 7 -'!$E46 -> 49.01242103 | E46: 2993945 | F46: =E46/'- 3 -'!$D46*100 -> 0.6741137232 | G46: =E46/'- 7 -'!$E46 -> 107.6162737 | H46: 7203394 | I46: =H46/'- 3 -'!$D46*100 -> 1.621909136 | J46: =H46/'- 7 -'!$E46 -> 258.9234005
A48: PROVINCE | B48: =SUM(B11:B46) -> 11952675 | C48: =B48/'- 3 -'!$D48*100 -> 0.4374215288 | D48: =B48/'- 7 -'!$E48 -> 65.34181125 | E48: =SUM(E11:E46) -> 22509195 | F48: =E48/'- 3 -'!$D48*100 -> 0.8237492017 | G48: =E48/'- 7 -'!$E48 -> 123.0512476 | H48: =SUM(H11:H46) -> 43888683 | I48: =H48/'- 3 -'!$D48*100 -> 1.60615551 | J48: =H48/'- 7 -'!$E48 -> 239.9267144
A50: WHITESHELL | B50: 61011 | C50: =B50/'- 3 -'!$D50*100 -> 1.606346082 | D50: =B50/'- 7 -'!$E50 -> 303.5373134 | E50: 77968 | F50: =E50/'- 3 -'!$D50*100 -> 2.052803451 | G50: =E50/'- 7 -'!$E50 -> 387.9004975 | H50: 86529 | I50: =H50/'- 3 -'!$D50*100 -> 2.27820426 | J50: =H50/'- 7 -'!$E50 -> 430.4925373

Sheet - 26 -
B2: ANALYSIS OF EXPENSE BY PROGRAM | E2: PAGE 9 OF 16
B3: =OPYEAR -> OPERATING FUND 2022/2023 ACTUAL
B5: FUNCTION 500: DIVISIONAL ADMINISTRATION
B6: MANAGEMENT INFORMATION SERVICES
D8: PER PUPIL
A9: DIVISION / DISTRICT | B9: AMOUNT | C9: %
A11: BEAUTIFUL PLAINS | B11: 10710 | C11: =B11/'- 3 -'!$D11*100 -> 0.04258977993 | D11: =B11/'- 7 -'!$E11 -> 5.344311377
A12: BORDER LAND | B12: 87469 | C12: =B12/'- 3 -'!$D12*100 -> 0.2346495597 | D12: =B12/'- 7 -'!$E12 -> 42.8723373
A13: BRANDON | B13: 261331 | C13: =B13/'- 3 -'!$D13*100 -> 0.2274696674 | D13: =B13/'- 7 -'!$E13 -> 28.80823247
A14: DSFM | B14: 211665 | C14: =B14/'- 3 -'!$D14*100 -> 0.2006499783 | D14: =B14/'- 7 -'!$E14 -> 36.26145457
A15: EVERGREEN | B15: 85845 | C15: =B15/'- 3 -'!$D15*100 -> 0.2635522241 | D15: =B15/'- 7 -'!$E15 -> 41.53120464
A16: FLIN FLON | B16: 34473 | C16: =B16/'- 3 -'!$D16*100 -> 0.2069525565 | D16: =B16/'- 7 -'!$E16 -> 36.82619378
A17: FORT LA BOSSE | B17: 92245 | C17: =B17/'- 3 -'!$D17*100 -> 0.4451477329 | D17: =B17/'- 7 -'!$E17 -> 61.31272848
A18: FRONTIER | B18: 891423 | C18: =B18/'- 3 -'!$D18*100 -> 0.5521417536 | D18: =B18/'- 7 -'!$E18 -> 140.569739
A19: GARDEN VALLEY | B19: 158354 | C19: =B19/'- 3 -'!$D19*100 -> 0.2912330688 | D19: =B19/'- 7 -'!$E19 -> 38.78373745
A20: HANOVER | B20: 78393 | C20: =B20/'- 3 -'!$D20*100 -> 0.07681950606 | D20: =B20/'- 7 -'!$E20 -> 9.710516537
A21: INTERLAKE | B21: 76648 | C21: =B21/'- 3 -'!$D21*100 -> 0.1882446788 | D21: =B21/'- 7 -'!$E21 -> 26.19548872
A22: KELSEY | B22: 100776 | C22: =B22/'- 3 -'!$D22*100 -> 0.456591958 | D22: =B22/'- 7 -'!$E22 -> 68.23019634
A23: LAKESHORE | B23: 19116 | C23: =B23/'- 3 -'!$D23*100 -> 0.1159530634 | D23: =B23/'- 7 -'!$E23 -> 20.97202414
A24: LORD SELKIRK | B24: 168644 | C24: =B24/'- 3 -'!$D24*100 -> 0.2637363146 | D24: =B24/'- 7 -'!$E24 -> 44.68574457
A25: LOUIS RIEL | B25: 1061876 | C25: =B25/'- 3 -'!$D25*100 -> 0.4842377108 | D25: =B25/'- 7 -'!$E25 -> 65.1737556
A26: MOUNTAIN VIEW | B26: 28007 | C26: =B26/'- 3 -'!$D26*100 -> 0.06109327003 | D26: =B26/'- 7 -'!$E26 -> 9.166093929
A27: MYSTERY LAKE | B27: 230594 | C27: =B27/'- 3 -'!$D27*100 -> 0.5003789938 | D27: =B27/'- 7 -'!$E27 -> 84.45119941
A28: PARK WEST | B28: 85845 | C28: =B28/'- 3 -'!$D28*100 -> 0.2635522241 | D28: =B28/'- 7 -'!$E28 -> 41.53120464
A29: PEMBINA TRAILS | B29: 1126020 | C29: =B29/'- 3 -'!$D29*100 -> 0.5758054597 | D29: =B29/'- 7 -'!$E29 -> 74.33947316
A30: PINE CREEK | B30: 3447 | C30: =B30/'- 3 -'!$D30*100 -> 0.01992758085 | D30: =B30/'- 7 -'!$E30 -> 3.156593407
A31: PORTAGE LA PRAIRIE | B31: 53125 | C31: =B31/'- 3 -'!$D31*100 -> 0.1153733608 | D31: =B31/'- 7 -'!$E31 -> 15.82278481
A32: PRAIRIE ROSE | B32: 64699 | C32: =B32/'- 3 -'!$D32*100 -> 0.1932277611 | D32: =B32/'- 7 -'!$E32 -> 28.41414141
A33: PRAIRIE SPIRIT | B33: 40915 | C33: =B33/'- 3 -'!$D33*100 -> 0.1336990617 | D33: =B33/'- 7 -'!$E33 -> 19.64705882
A34: RED RIVER VALLEY | B34: 72891 | C34: =B34/'- 3 -'!$D34*100 -> 0.206031848 | D34: =B34/'- 7 -'!$E34 -> 32.1885626
A35: RIVER EAST TRANSCONA | B35: 1101545 | C35: =B35/'- 3 -'!$D35*100 -> 0.4968576223 | D35: =B35/'- 7 -'!$E35 -> 65.22456109
A36: ROLLING RIVER | B36: 29215 | C36: =B36/'- 3 -'!$D36*100 -> 0.1088916002 | D36: =B36/'- 7 -'!$E36 -> 16.58529662
A37: SEINE RIVER | B37: 159129 | C37: =B37/'- 3 -'!$D37*100 -> 0.2497553597 | D37: =B37/'- 7 -'!$E37 -> 35.66315554
A38: SEVEN OAKS | B38: 694941 | C38: =B38/'- 3 -'!$D38*100 -> 0.4180210068 | D38: =B38/'- 7 -'!$E38 -> 60.37452761
A39: SOUTHWEST HORIZON | B39: 57783 | C39: =B39/'- 3 -'!$D39*100 -> 0.2411097583 | D39: =B39/'- 7 -'!$E39 -> 39.53677728
A40: ST. JAMES-ASSINIBOIA | B40: 413836 | C40: =B40/'- 3 -'!$D40*100 -> 0.3447424293 | D40: =B40/'- 7 -'!$E40 -> 51.37692585
A41: SUNRISE | B41: 129826 | C41: =B41/'- 3 -'!$D41*100 -> 0.177005465 | D41: =B41/'- 7 -'!$E41 -> 28.27221254
A42: SWAN VALLEY | B42: 15764 | C42: =B42/'- 3 -'!$D42*100 -> 0.06497604204 | D42: =B42/'- 7 -'!$E42 -> 11.6511456
A43: TURTLE MOUNTAIN | B43: 26328 | C43: =B43/'- 3 -'!$D43*100 -> 0.1767422908 | D43: =B43/'- 7 -'!$E43 -> 25.57357941
A44: TURTLE RIVER | B44: 8355 | C44: =B44/'- 3 -'!$D44*100 -> 0.06934703397 | D44: =B44/'- 7 -'!$E44 -> 14.04201681
A45: WESTERN | B45: 55747 | C45: =B45/'- 3 -'!$D45*100 -> 0.2198348039 | D45: =B45/'- 7 -'!$E45 -> 28.1053693
A46: WINNIPEG | B46: 936711 | C46: =B46/'- 3 -'!$D46*100 -> 0.2109089311 | D46: =B46/'- 7 -'!$E46 -> 33.66973921
A48: PROVINCE | B48: =SUM(B11:B46) -> 8673691 | C48: =B48/'- 3 -'!$D48*100 -> 0.3174234368 | D48: =B48/'- 7 -'!$E48 -> 47.41655572
A50: WHITESHELL | B50: 0 | C50: =B50/'- 3 -'!$D50*100 -> 0 | D50: =B50/'- 7 -'!$E50 -> 0

Sheet - 27 -
B2: ANALYSIS OF EXPENSE BY PROGRAM | J2: PAGE 10 OF 16
B3: =OPYEAR -> OPERATING FUND 2022/2023 ACTUAL
B5: FUNCTION 600: INSTRUCTIONAL & OTHER SUPPORT SERVICES
B6: CURRICULUM CONSULTING AND DEVELOPMENT ADMIN. | E6: CURRICULUM CONSULTING AND DEVELOPMENT | H6: LIBRARY / MEDIA CENTRE
D8: PER PUPIL | G8: PER PUPIL | J8: PER PUPIL
A9: DIVISION / DISTRICT | B9: AMOUNT | C9: % | E9: AMOUNT | F9: % | H9: AMOUNT | I9: %
A11: BEAUTIFUL PLAINS | B11: 0 | C11: =B11/'- 3 -'!$D11*100 -> 0 | D11: =B11/'- 7 -'!$E11 -> 0 | E11: 137242 | F11: =E11/'- 3 -'!$D11*100 -> 0.5457615852 | G11: =E11/'- 7 -'!$E11 -> 68.48403194 | H11: 230152 | I11: =H11/'- 3 -'!$D11*100 -> 0.9152309086 | J11: =H11/'- 7 -'!$E11 -> 114.8463074
A12: BORDER LAND | B12: 0 | C12: =B12/'- 3 -'!$D12*100 -> 0 | D12: =B12/'- 7 -'!$E12 -> 0 | E12: 0 | F12: =E12/'- 3 -'!$D12*100 -> 0 | G12: =E12/'- 7 -'!$E12 -> 0 | H12: 273484 | I12: =H12/'- 3 -'!$D12*100 -> 0.7336645005 | J12: =H12/'- 7 -'!$E12 -> 134.0463283
A13: BRANDON | B13: 134779 | C13: =B13/'- 3 -'!$D13*100 -> 0.1173153369 | D13: =B13/'- 7 -'!$E13 -> 14.85757435 | E13: 511928 | F13: =E13/'- 3 -'!$D13*100 -> 0.4455961669 | G13: =E13/'- 7 -'!$E13 -> 56.43318562 | H13: 829911 | I13: =H13/'- 3 -'!$D13*100 -> 0.7223772884 | J13: =H13/'- 7 -'!$E13 -> 91.48654012
A14: DSFM | B14: 239157 | C14: =B14/'- 3 -'!$D14*100 -> 0.2267112979 | D14: =B14/'- 7 -'!$E14 -> 40.971255 | E14: 2144751 | F14: =E14/'- 3 -'!$D14*100 -> 2.033138411 | G14: =E14/'- 7 -'!$E14 -> 367.4286772 | H14: 838773 | I14: =H14/'- 3 -'!$D14*100 -> 0.7951233519 | J14: =H14/'- 7 -'!$E14 -> 143.6946544
A15: EVERGREEN | B15: 49111 | C15: =B15/'- 3 -'!$D15*100 -> 0.1507753891 | D15: =B15/'- 7 -'!$E15 -> 23.75955491 | E15: 235230 | F15: =E15/'- 3 -'!$D15*100 -> 0.7221782244 | G15: =E15/'- 7 -'!$E15 -> 113.8026125 | H15: 74632 | I15: =H15/'- 3 -'!$D15*100 -> 0.2291272595 | J15: =H15/'- 7 -'!$E15 -> 36.10643445
A16: FLIN FLON | B16: 0 | C16: =B16/'- 3 -'!$D16*100 -> 0 | D16: =B16/'- 7 -'!$E16 -> 0 | E16: 0 | F16: =E16/'- 3 -'!$D16*100 -> 0 | G16: =E16/'- 7 -'!$E16 -> 0 | H16: 117676 | I16: =H16/'- 3 -'!$D16*100 -> 0.7064470467 | J16: =H16/'- 7 -'!$E16 -> 125.7087918
A17: FORT LA BOSSE | B17: 0 | C17: =B17/'- 3 -'!$D17*100 -> 0 | D17: =B17/'- 7 -'!$E17 -> 0 | E17: 61529 | F17: =E17/'- 3 -'!$D17*100 -> 0.2969211866 | G17: =E17/'- 7 -'!$E17 -> 40.8966434 | H17: 239219 | I17: =H17/'- 3 -'!$D17*100 -> 1.154401816 | J17: =H17/'- 7 -'!$E17 -> 159.0023264
A18: FRONTIER | B18: 0 | C18: =B18/'- 3 -'!$D18*100 -> 0 | D18: =B18/'- 7 -'!$E18 -> 0 | E18: 4846948 | F18: =E18/'- 3 -'!$D18*100 -> 3.002168856 | G18: =E18/'- 7 -'!$E18 -> 764.3220058 | H18: 2142837 | I18: =H18/'- 3 -'!$D18*100 -> 1.32725965 | J18: =H18/'- 7 -'!$E18 -> 337.9069621
A19: GARDEN VALLEY | B19: 60171 | C19: =B19/'- 3 -'!$D19*100 -> 0.1106620924 | D19: =B19/'- 7 -'!$E19 -> 14.73695812 | E19: 292023 | F19: =E19/'- 3 -'!$D19*100 -> 0.5370672951 | G19: =E19/'- 7 -'!$E19 -> 71.52167524 | H19: 462262 | I19: =H19/'- 3 -'!$D19*100 -> 0.8501583847 | J19: =H19/'- 7 -'!$E19 -> 113.2162626
A20: HANOVER | B20: 0 | C20: =B20/'- 3 -'!$D20*100 -> 0 | D20: =B20/'- 7 -'!$E20 -> 0 | E20: 298346 | F20: =E20/'- 3 -'!$D20*100 -> 0.2923576385 | G20: =E20/'- 7 -'!$E20 -> 36.95602626 | H20: 901534 | I20: =H20/'- 3 -'!$D20*100 -> 0.8834385286 | J20: =H20/'- 7 -'!$E20 -> 111.6727363
A21: INTERLAKE | B21: 0 | C21: =B21/'- 3 -'!$D21*100 -> 0 | D21: =B21/'- 7 -'!$E21 -> 0 | E21: 0 | F21: =E21/'- 3 -'!$D21*100 -> 0 | G21: =E21/'- 7 -'!$E21 -> 0 | H21: 441710 | I21: =H21/'- 3 -'!$D21*100 -> 1.084823571 | J21: =H21/'- 7 -'!$E21 -> 150.9603554
A22: KELSEY | B22: 26988 | C22: =B22/'- 3 -'!$D22*100 -> 0.1222761745 | D22: =B22/'- 7 -'!$E22 -> 18.27217332 | E22: 81060 | F22: =E22/'- 3 -'!$D22*100 -> 0.3672634766 | G22: =E22/'- 7 -'!$E22 -> 54.88151659 | H22: 208241 | I22: =H22/'- 3 -'!$D22*100 -> 0.9434901756 | J22: =H22/'- 7 -'!$E22 -> 140.9891672
A23: LAKESHORE | B23: 0 | C23: =B23/'- 3 -'!$D23*100 -> 0 | D23: =B23/'- 7 -'!$E23 -> 0 | E23: 0 | F23: =E23/'- 3 -'!$D23*100 -> 0 | G23: =E23/'- 7 -'!$E23 -> 0 | H23: 134403 | I23: =H23/'- 3 -'!$D23*100 -> 0.8152563078 | J23: =H23/'- 7 -'!$E23 -> 147.4525507
A24: LORD SELKIRK | B24: 0 | C24: =B24/'- 3 -'!$D24*100 -> 0 | D24: =B24/'- 7 -'!$E24 -> 0 | E24: 111066 | F24: =E24/'- 3 -'!$D24*100 -> 0.1736921415 | G24: =E24/'- 7 -'!$E24 -> 29.42925278 | H24: 556524 | I24: =H24/'- 3 -'!$D24*100 -> 0.8703279616 | J24: =H24/'- 7 -'!$E24 -> 147.4626391
A25: LOUIS RIEL | B25: 211915 | C25: =B25/'- 3 -'!$D25*100 -> 0.09663768132 | D25: =B25/'- 7 -'!$E25 -> 13.00650586 | E25: 1790329 | F25: =E25/'- 3 -'!$D25*100 -> 0.8164275458 | G25: =E25/'- 7 -'!$E25 -> 109.8833241 | H25: 5019187 | I25: =H25/'- 3 -'!$D25*100 -> 2.288854464 | J25: =H25/'- 7 -'!$E25 -> 308.0578776
A26: MOUNTAIN VIEW | B26: 39468 | C26: =B26/'- 3 -'!$D26*100 -> 0.08609380447 | D26: =B26/'- 7 -'!$E26 -> 12.91703486 | E26: 353506 | F26: =E26/'- 3 -'!$D26*100 -> 0.7711228449 | G26: =E26/'- 7 -'!$E26 -> 115.6949763 | H26: 541806 | I26: =H26/'- 3 -'!$D26*100 -> 1.181872398 | J26: =H26/'- 7 -'!$E26 -> 177.3215513
A27: MYSTERY LAKE | B27: 0 | C27: =B27/'- 3 -'!$D27*100 -> 0 | D27: =B27/'- 7 -'!$E27 -> 0 | E27: 783306 | F27: =E27/'- 3 -'!$D27*100 -> 1.699740098 | G27: =E27/'- 7 -'!$E27 -> 286.8727339 | H27: 894158 | I27: =H27/'- 3 -'!$D27*100 -> 1.940284137 | J27: =H27/'- 7 -'!$E27 -> 327.4704267
A28: PARK WEST | B28: 49111 | C28: =B28/'- 3 -'!$D28*100 -> 0.1507753891 | D28: =B28/'- 7 -'!$E28 -> 23.75955491 | E28: 235230 | F28: =E28/'- 3 -'!$D28*100 -> 0.7221782244 | G28: =E28/'- 7 -'!$E28 -> 113.8026125 | H28: 74632 | I28: =H28/'- 3 -'!$D28*100 -> 0.2291272595 | J28: =H28/'- 7 -'!$E28 -> 36.10643445
A29: PEMBINA TRAILS | B29: 254902 | C29: =B29/'- 3 -'!$D29*100 -> 0.1303475633 | D29: =B29/'- 7 -'!$E29 -> 16.82854691 | E29: 565101 | F29: =E29/'- 3 -'!$D29*100 -> 0.2889719908 | G29: =E29/'- 7 -'!$E29 -> 37.30778372 | H29: 4512451 | I29: =H29/'- 3 -'!$D29*100 -> 2.307502462 | J29: =H29/'- 7 -'!$E29 -> 297.9105433
A30: PINE CREEK | B30: 0 | C30: =B30/'- 3 -'!$D30*100 -> 0 | D30: =B30/'- 7 -'!$E30 -> 0 | E30: 0 | F30: =E30/'- 3 -'!$D30*100 -> 0 | G30: =E30/'- 7 -'!$E30 -> 0 | H30: 302263 | I30: =H30/'- 3 -'!$D30*100 -> 1.747423954 | J30: =H30/'- 7 -'!$E30 -> 276.797619
A31: PORTAGE LA PRAIRIE | B31: 91094 | C31: =B31/'- 3 -'!$D31*100 -> 0.1978319233 | D31: =B31/'- 7 -'!$E31 -> 27.13149665 | E31: 115700 | F31: =E31/'- 3 -'!$D31*100 -> 0.2512696065 | G31: =E31/'- 7 -'!$E31 -> 34.46016381 | H31: 390489 | I31: =H31/'- 3 -'!$D31*100 -> 0.8480381794 | J31: =H31/'- 7 -'!$E31 -> 116.3034996
A32: PRAIRIE ROSE | B32: 0 | C32: =B32/'- 3 -'!$D32*100 -> 0 | D32: =B32/'- 7 -'!$E32 -> 0 | E32: 141687 | F32: =E32/'- 3 -'!$D32*100 -> 0.4231574179 | G32: =E32/'- 7 -'!$E32 -> 62.22529644 | H32: 343360 | I32: =H32/'- 3 -'!$D32*100 -> 1.025466917 | J32: =H32/'- 7 -'!$E32 -> 150.7949056
A33: PRAIRIE SPIRIT | B33: 0 | C33: =B33/'- 3 -'!$D33*100 -> 0 | D33: =B33/'- 7 -'!$E33 -> 0 | E33: 154824 | F33: =E33/'- 3 -'!$D33*100 -> 0.5059226087 | G33: =E33/'- 7 -'!$E33 -> 74.3452581 | H33: 448341 | I33: =H33/'- 3 -'!$D33*100 -> 1.465056117 | J33: =H33/'- 7 -'!$E33 -> 215.2897959
A34: RED RIVER VALLEY | B34: 7916 | C34: =B34/'- 3 -'!$D34*100 -> 0.0223751644 | D34: =B34/'- 7 -'!$E34 -> 3.495694414 | E34: 118133 | F34: =E34/'- 3 -'!$D34*100 -> 0.3339117353 | G34: =E34/'- 7 -'!$E34 -> 52.16736586 | H34: 191318 | I34: =H34/'- 3 -'!$D34*100 -> 0.5407745962 | J34: =H34/'- 7 -'!$E34 -> 84.48575845
A35: RIVER EAST TRANSCONA | B35: 501651 | C35: =B35/'- 3 -'!$D35*100 -> 0.2262723022 | D35: =B35/'- 7 -'!$E35 -> 29.7037037 | E35: 1196012 | F35: =E35/'- 3 -'!$D35*100 -> 0.5394674558 | G35: =E35/'- 7 -'!$E35 -> 70.81813068 | H35: 4750928 | I35: =H35/'- 3 -'!$D35*100 -> 2.142930874 | J35: =H35/'- 7 -'!$E35 -> 281.3114249
A36: ROLLING RIVER | B36: 20577 | C36: =B36/'- 3 -'!$D36*100 -> 0.07669561721 | D36: =B36/'- 7 -'!$E36 -> 11.68152143 | E36: 106076 | F36: =E36/'- 3 -'!$D36*100 -> 0.3953717399 | G36: =E36/'- 7 -'!$E36 -> 60.21913142 | H36: 226580 | I36: =H36/'- 3 -'!$D36*100 -> 0.8445202385 | J36: =H36/'- 7 -'!$E36 -> 128.6290094
A37: SEINE RIVER | B37: 108514 | C37: =B37/'- 3 -'!$D37*100 -> 0.1703143557 | D37: =B37/'- 7 -'!$E37 -> 24.31958763 | E37: 647387 | F37: =E37/'- 3 -'!$D37*100 -> 1.016083637 | G37: =E37/'- 7 -'!$E37 -> 145.0889736 | H37: 530694 | I37: =H37/'- 3 -'!$D37*100 -> 0.8329322176 | J37: =H37/'- 7 -'!$E37 -> 118.9363514
A38: SEVEN OAKS | B38: 89460 | C38: =B38/'- 3 -'!$D38*100 -> 0.05381199162 | D38: =B38/'- 7 -'!$E38 -> 7.77203423 | E38: 317053 | F38: =E38/'- 3 -'!$D38*100 -> 0.1907137646 | G38: =E38/'- 7 -'!$E38 -> 27.5446766 | H38: 1874379 | I38: =H38/'- 3 -'!$D38*100 -> 1.127476716 | J38: =H38/'- 7 -'!$E38 -> 162.8407975
A39: SOUTHWEST HORIZON | B39: 0 | C39: =B39/'- 3 -'!$D39*100 -> 0 | D39: =B39/'- 7 -'!$E39 -> 0 | E39: 67656 | F39: =E39/'- 3 -'!$D39*100 -> 0.2823065921 | G39: =E39/'- 7 -'!$E39 -> 46.29216558 | H39: 199820 | I39: =H39/'- 3 -'!$D39*100 -> 0.833784191 | J39: =H39/'- 7 -'!$E39 -> 136.7225453
A40: ST. JAMES-ASSINIBOIA | B40: 26468 | C40: =B40/'- 3 -'!$D40*100 -> 0.02204893392 | D40: =B40/'- 7 -'!$E40 -> 3.285950167 | E40: 1114964 | F40: =E40/'- 3 -'!$D40*100 -> 0.9288109249 | G40: =E40/'- 7 -'!$E40 -> 138.4205887 | H40: 1264485 | I40: =H40/'- 3 -'!$D40*100 -> 1.053368075 | J40: =H40/'- 7 -'!$E40 -> 156.9833269
A41: SUNRISE | B41: 0 | C41: =B41/'- 3 -'!$D41*100 -> 0 | D41: =B41/'- 7 -'!$E41 -> 0 | E41: 503679 | F41: =E41/'- 3 -'!$D41*100 -> 0.6867186511 | G41: =E41/'- 7 -'!$E41 -> 109.6861934 | H41: 630720 | I41: =H41/'- 3 -'!$D41*100 -> 0.8599270322 | J41: =H41/'- 7 -'!$E41 -> 137.3519164
A42: SWAN VALLEY | B42: 17544 | C42: =B42/'- 3 -'!$D42*100 -> 0.07231284456 | D42: =B42/'- 7 -'!$E42 -> 12.96674058 | E42: 0 | F42: =E42/'- 3 -'!$D42*100 -> 0 | G42: =E42/'- 7 -'!$E42 -> 0 | H42: 195164 | I42: =H42/'- 3 -'!$D42*100 -> 0.8044268123 | J42: =H42/'- 7 -'!$E42 -> 144.2453806
A43: TURTLE MOUNTAIN | B43: 0 | C43: =B43/'- 3 -'!$D43*100 -> 0 | D43: =B43/'- 7 -'!$E43 -> 0 | E43: 52298 | F43: =E43/'- 3 -'!$D43*100 -> 0.3510812945 | G43: =E43/'- 7 -'!$E43 -> 50.79941719 | H43: 104959 | I43: =H43/'- 3 -'!$D43*100 -> 0.7045994415 | J43: =H43/'- 7 -'!$E43 -> 101.9514327
A44: TURTLE RIVER | B44: 0 | C44: =B44/'- 3 -'!$D44*100 -> 0 | D44: =B44/'- 7 -'!$E44 -> 0 | E44: 0 | F44: =E44/'- 3 -'!$D44*100 -> 0 | G44: =E44/'- 7 -'!$E44 -> 0 | H44: 107807 | I44: =H44/'- 3 -'!$D44*100 -> 0.89480499 | J44: =H44/'- 7 -'!$E44 -> 181.1882353
A45: WESTERN | B45: 0 | C45: =B45/'- 3 -'!$D45*100 -> 0 | D45: =B45/'- 7 -'!$E45 -> 0 | E45: 0 | F45: =E45/'- 3 -'!$D45*100 -> 0 | G45: =E45/'- 7 -'!$E45 -> 0 | H45: 230218 | I45: =H45/'- 3 -'!$D45*100 -> 0.9078502678 | J45: =H45/'- 7 -'!$E45 -> 116.066549
A46: WINNIPEG | B46: 1141223 | C46: =B46/'- 3 -'!$D46*100 -> 0.2569566527 | D46: =B46/'- 7 -'!$E46 -> 41.02084933 | E46: 1252403 | F46: =E46/'- 3 -'!$D46*100 -> 0.2819898326 | G46: =E46/'- 7 -'!$E46 -> 45.01717435 | H46: 2590831 | I46: =H46/'- 3 -'!$D46*100 -> 0.5833489699 | J46: =H46/'- 7 -'!$E46 -> 93.12648631
A48: PROVINCE | B48: =SUM(B11:B46) -> 3070049 | C48: =B48/'- 3 -'!$D48*100 -> 0.1123518817 | D48: =B48/'- 7 -'!$E48 -> 16.78306842 | E48: =SUM(E11:E46) -> 18235467 | F48: =E48/'- 3 -'!$D48*100 -> 0.6673473389 | G48: =E48/'- 7 -'!$E48 -> 99.68801484 | H48: =SUM(H11:H46) -> 32875948 | I48: =H48/'- 3 -'!$D48*100 -> 1.203132139 | J48: =H48/'- 7 -'!$E48 -> 179.7232828
A50: WHITESHELL | B50: 0 | C50: =B50/'- 3 -'!$D50*100 -> 0 | D50: =B50/'- 7 -'!$E50 -> 0 | E50: 0 | F50: =E50/'- 3 -'!$D50*100 -> 0 | G50: =E50/'- 7 -'!$E50 -> 0 | H50: 12281 | I50: =H50/'- 3 -'!$D50*100 -> 0.3233439254 | J50: =H50/'- 7 -'!$E50 -> 61.09950249

Sheet - 28 -
B2: ANALYSIS OF EXPENSE BY PROGRAM | J2: PAGE 11 OF 16
B3: =OPYEAR -> OPERATING FUND 2022/2023 ACTUAL
B5: FUNCTION 600: INSTRUCTIONAL & OTHER SUPPORT SERVICES
B6: PROFESSIONAL AND STAFF DEVELOPMENT
E7: OTHER (1)
D8: PER PUPIL | G8: PER PUPIL
A9: DIVISION / DISTRICT | B9: AMOUNT | C9: % | E9: AMOUNT | F9: %
A11: BEAUTIFUL PLAINS | B11: 150989 | C11: =B11/'- 3 -'!$D11*100 -> 0.600428411 | D11: =B11/'- 7 -'!$E11 -> 75.34381238 | E11: 17476 | F11: =E11/'- 3 -'!$D11*100 -> 0.0694957044 | G11: =E11/'- 7 -'!$E11 -> 8.720558882
A12: BORDER LAND | B12: 208176 | C12: =B12/'- 3 -'!$D12*100 -> 0.558465362 | D12: =B12/'- 7 -'!$E12 -> 102.0360549 | E12: 856671 | F12: =E12/'- 3 -'!$D12*100 -> 2.298156753 | G12: =E12/'- 7 -'!$E12 -> 419.8914823
A13: BRANDON | B13: 1146480 | C13: =B13/'- 3 -'!$D13*100 -> 0.9979276255 | D13: =B13/'- 7 -'!$E13 -> 126.3840201 | E13: 95409 | F13: =E13/'- 3 -'!$D13*100 -> 0.08304660946 | G13: =E13/'- 7 -'!$E13 -> 10.51756069
A14: DSFM | B14: 424235 | C14: =B14/'- 3 -'!$D14*100 -> 0.4021578606 | D14: =B14/'- 7 -'!$E14 -> 72.67794949 | E14: 219171 | F14: =E14/'- 3 -'!$D14*100 -> 0.207765367 | G14: =E14/'- 7 -'!$E14 -> 37.54734727
A15: EVERGREEN | B15: 222477 | C15: =B15/'- 3 -'!$D15*100 -> 0.6830253149 | D15: =B15/'- 7 -'!$E15 -> 107.6328012 | E15: 0 | F15: =E15/'- 3 -'!$D15*100 -> 0 | G15: =E15/'- 7 -'!$E15 -> 0
A16: FLIN FLON | B16: 73909 | C16: =B16/'- 3 -'!$D16*100 -> 0.4436996055 | D16: =B16/'- 7 -'!$E16 -> 78.95417156 | E16: 51169 | F16: =E16/'- 3 -'!$D16*100 -> 0.3071840387 | G16: =E16/'- 7 -'!$E16 -> 54.6618951
A17: FORT LA BOSSE | B17: 78617 | C17: =B17/'- 3 -'!$D17*100 -> 0.3793829402 | D17: =B17/'- 7 -'!$E17 -> 52.25456962 | E17: 1500 | F17: =E17/'- 3 -'!$D17*100 -> 0.007238566853 | G17: =E17/'- 7 -'!$E17 -> 0.9970089731
A18: FRONTIER | B18: 3674530 | C18: =B18/'- 3 -'!$D18*100 -> 2.275980582 | D18: =B18/'- 7 -'!$E18 -> 579.4417725 | E18: 161967 | F18: =E18/'- 3 -'!$D18*100 -> 0.1003213328 | G18: =E18/'- 7 -'!$E18 -> 25.54080265
A19: GARDEN VALLEY | B19: 549146 | C19: =B19/'- 3 -'!$D19*100 -> 1.009949069 | D19: =B19/'- 7 -'!$E19 -> 134.4957139 | E19: 402928 | F19: =E19/'- 3 -'!$D19*100 -> 0.7410356413 | G19: =E19/'- 7 -'!$E19 -> 98.68430076
A20: HANOVER | B20: 577976 | C20: =B20/'- 3 -'!$D20*100 -> 0.5663749421 | D20: =B20/'- 7 -'!$E20 -> 71.59370742 | E20: 225069 | F20: =E20/'- 3 -'!$D20*100 -> 0.2205514448 | G20: =E20/'- 7 -'!$E20 -> 27.87922705
A21: INTERLAKE | B21: 401068 | C21: =B21/'- 3 -'!$D21*100 -> 0.9850083085 | D21: =B21/'- 7 -'!$E21 -> 137.0704033 | E21: 147961 | F21: =E21/'- 3 -'!$D21*100 -> 0.3633867931 | G21: =E21/'- 7 -'!$E21 -> 50.56766917
A22: KELSEY | B22: 55191 | C22: =B22/'- 3 -'!$D22*100 -> 0.2500572235 | D22: =B22/'- 7 -'!$E22 -> 37.36696005 | E22: 0 | F22: =E22/'- 3 -'!$D22*100 -> 0 | G22: =E22/'- 7 -'!$E22 -> 0
A23: LAKESHORE | B23: 126416 | C23: =B23/'- 3 -'!$D23*100 -> 0.7668090846 | D23: =B23/'- 7 -'!$E23 -> 138.6900713 | E23: 25861 | F23: =E23/'- 3 -'!$D23*100 -> 0.1568666129 | G23: =E23/'- 7 -'!$E23 -> 28.37191443
A24: LORD SELKIRK | B24: 173185 | C24: =B24/'- 3 -'!$D24*100 -> 0.2708378219 | D24: =B24/'- 7 -'!$E24 -> 45.88897721 | E24: 165275 | F24: =E24/'- 3 -'!$D24*100 -> 0.2584676561 | G24: =E24/'- 7 -'!$E24 -> 43.79305776
A25: LOUIS RIEL | B25: 1077754 | C25: =B25/'- 3 -'!$D25*100 -> 0.4914784116 | D25: =B25/'- 7 -'!$E25 -> 66.14828454 | E25: 576728 | F25: =E25/'- 3 -'!$D25*100 -> 0.2630000551 | G25: =E25/'- 7 -'!$E25 -> 35.39728718
A26: MOUNTAIN VIEW | B26: 270009 | C26: =B26/'- 3 -'!$D26*100 -> 0.5889860659 | D26: =B26/'- 7 -'!$E26 -> 88.36818851 | E26: 300615 | F26: =E26/'- 3 -'!$D26*100 -> 0.6557486832 | G26: =E26/'- 7 -'!$E26 -> 98.38487973
A27: MYSTERY LAKE | B27: 102433 | C27: =B27/'- 3 -'!$D27*100 -> 0.222275174 | D27: =B27/'- 7 -'!$E27 -> 37.51437466 | E27: 0 | F27: =E27/'- 3 -'!$D27*100 -> 0 | G27: =E27/'- 7 -'!$E27 -> 0
A28: PARK WEST | B28: 222477 | C28: =B28/'- 3 -'!$D28*100 -> 0.6830253149 | D28: =B28/'- 7 -'!$E28 -> 107.6328012 | E28: 0 | F28: =E28/'- 3 -'!$D28*100 -> 0 | G28: =E28/'- 7 -'!$E28 -> 0
A29: PEMBINA TRAILS | B29: 1607623 | C29: =B29/'- 3 -'!$D29*100 -> 0.822079626 | D29: =B29/'- 7 -'!$E29 -> 106.1347462 | E29: 750557 | F29: =E29/'- 3 -'!$D29*100 -> 0.3838074087 | G29: =E29/'- 7 -'!$E29 -> 49.55152836
A30: PINE CREEK | B30: 113174 | C30: =B30/'- 3 -'!$D30*100 -> 0.6542744516 | D30: =B30/'- 7 -'!$E30 -> 103.6391941 | E30: 3790 | F30: =E30/'- 3 -'!$D30*100 -> 0.021910511 | G30: =E30/'- 7 -'!$E30 -> 3.470695971
A31: PORTAGE LA PRAIRIE | B31: 398857 | C31: =B31/'- 3 -'!$D31*100 -> 0.8662112483 | D31: =B31/'- 7 -'!$E31 -> 118.7958302 | E31: 760256 | F31: =E31/'- 3 -'!$D31*100 -> 1.65107369 | G31: =E31/'- 7 -'!$E31 -> 226.4351452
A32: PRAIRIE ROSE | B32: 330838 | C32: =B32/'- 3 -'!$D32*100 -> 0.9880691512 | D32: =B32/'- 7 -'!$E32 -> 145.2955643 | E32: 1509 | F32: =E32/'- 3 -'!$D32*100 -> 0.004506726401 | G32: =E32/'- 7 -'!$E32 -> 0.6627140975
A33: PRAIRIE SPIRIT | B33: 142874 | C33: =B33/'- 3 -'!$D33*100 -> 0.4668732676 | D33: =B33/'- 7 -'!$E33 -> 68.60696279 | E33: 9119 | F33: =E33/'- 3 -'!$D33*100 -> 0.02979840508 | G33: =E33/'- 7 -'!$E33 -> 4.378871549
A34: RED RIVER VALLEY | B34: 256767 | C34: =B34/'- 3 -'!$D34*100 -> 0.7257710761 | D34: =B34/'- 7 -'!$E34 -> 113.3879444 | E34: 150003 | F34: =E34/'- 3 -'!$D34*100 -> 0.4239946673 | G34: =E34/'- 7 -'!$E34 -> 66.24111283
A35: RIVER EAST TRANSCONA | B35: 1716029 | C35: =B35/'- 3 -'!$D35*100 -> 0.7740238381 | D35: =B35/'- 7 -'!$E35 -> 101.60932 | E35: 661850 | F35: =E35/'- 3 -'!$D35*100 -> 0.2985308974 | G35: =E35/'- 7 -'!$E35 -> 39.18938923
A36: ROLLING RIVER | B36: 108452 | C36: =B36/'- 3 -'!$D36*100 -> 0.4042276852 | D36: =B36/'- 7 -'!$E36 -> 61.56798183 | E36: 35386 | F36: =E36/'- 3 -'!$D36*100 -> 0.1318924581 | G36: =E36/'- 7 -'!$E36 -> 20.08856089
A37: SEINE RIVER | B37: 370099 | C37: =B37/'- 3 -'!$D37*100 -> 0.5808759489 | D37: =B37/'- 7 -'!$E37 -> 82.94464366 | E37: 103283 | F37: =E37/'- 3 -'!$D37*100 -> 0.1621042225 | G37: =E37/'- 7 -'!$E37 -> 23.14724339
A38: SEVEN OAKS | B38: 1089139 | C38: =B38/'- 3 -'!$D38*100 -> 0.6551390425 | D38: =B38/'- 7 -'!$E38 -> 94.62134573 | E38: 1877423 | F38: =E38/'- 3 -'!$D38*100 -> 1.129307744 | G38: =E38/'- 7 -'!$E38 -> 163.1052517
A39: SOUTHWEST HORIZON | B39: 63022 | C39: =B39/'- 3 -'!$D39*100 -> 0.2629704098 | D39: =B39/'- 7 -'!$E39 -> 43.12145056 | E39: 33257 | F39: =E39/'- 3 -'!$D39*100 -> 0.1387706978 | G39: =E39/'- 7 -'!$E39 -> 22.7553883
A40: ST. JAMES-ASSINIBOIA | B40: 1666140 | C40: =B40/'- 3 -'!$D40*100 -> 1.38796323 | D40: =B40/'- 7 -'!$E40 -> 206.8480056 | E40: 423726 | F40: =E40/'- 3 -'!$D40*100 -> 0.3529812065 | G40: =E40/'- 7 -'!$E40 -> 52.6047499
A41: SUNRISE | B41: 339307 | C41: =B41/'- 3 -'!$D41*100 -> 0.4626129844 | D41: =B41/'- 7 -'!$E41 -> 73.89089721 | E41: 103741 | F41: =E41/'- 3 -'!$D41*100 -> 0.141441036 | G41: =E41/'- 7 -'!$E41 -> 22.59168118
A42: SWAN VALLEY | B42: 146485 | C42: =B42/'- 3 -'!$D42*100 -> 0.6037817507 | D42: =B42/'- 7 -'!$E42 -> 108.2668145 | E42: 21409 | F42: =E42/'- 3 -'!$D42*100 -> 0.08824359833 | G42: =E42/'- 7 -'!$E42 -> 15.82335551
A43: TURTLE MOUNTAIN | B43: 107640 | C43: =B43/'- 3 -'!$D43*100 -> 0.7225972417 | D43: =B43/'- 7 -'!$E43 -> 104.5556095 | E43: 75195 | F43: =E43/'- 3 -'!$D43*100 -> 0.5047909661 | G43: =E43/'- 7 -'!$E43 -> 73.04031083
A44: TURTLE RIVER | B44: 35553 | C44: =B44/'- 3 -'!$D44*100 -> 0.2950921722 | D44: =B44/'- 7 -'!$E44 -> 59.75294118 | E44: 88405 | F44: =E44/'- 3 -'!$D44*100 -> 0.73376715 | G44: =E44/'- 7 -'!$E44 -> 148.5798319
A45: WESTERN | B45: 75980 | C45: =B45/'- 3 -'!$D45*100 -> 0.2996223725 | D45: =B45/'- 7 -'!$E45 -> 38.3060247 | E45: 235918 | F45: =E45/'- 3 -'!$D45*100 -> 0.9303278609 | G45: =E45/'- 7 -'!$E45 -> 118.9402571
A46: WINNIPEG | B46: 2580963 | C46: =B46/'- 3 -'!$D46*100 -> 0.5811271007 | D46: =B46/'- 7 -'!$E46 -> 92.77178461 | E46: 2812813 | F46: =E46/'- 3 -'!$D46*100 -> 0.6333302195 | G46: =E46/'- 7 -'!$E46 -> 101.1055493
A48: PROVINCE | B48: =SUM(B11:B46) -> 20684010 | C48: =B48/'- 3 -'!$D48*100 -> 0.7569545124 | D48: =B48/'- 7 -'!$E48 -> 113.07349 | E48: =SUM(E11:E46) -> 11395440 | F48: =E48/'- 3 -'!$D48*100 -> 0.4170288899 | G48: =E48/'- 7 -'!$E48 -> 62.29556895
A50: WHITESHELL | B50: 38472 | C50: =B50/'- 3 -'!$D50*100 -> 1.012921382 | D50: =B50/'- 7 -'!$E50 -> 191.4029851 | E50: 70434 | F50: =E50/'- 3 -'!$D50*100 -> 1.854442313 | G50: =E50/'- 7 -'!$E50 -> 350.4179104
A52: (1) Includes food services, health services, and other activities related to instructional and other support not included in previous programs.

Sheet - 29 -
B2: ANALYSIS OF EXPENSE BY PROGRAM | G2: PAGE 12 OF 16
B3: =OPYEAR -> OPERATING FUND 2022/2023 ACTUAL
B6: FUNCTION 700: TRANSPORTATION OF PUPILS
F7: ALLOWANCES IN LIEU OF TRANSPORTATION
B8: ADMINISTRATION | D8: REGULAR
A9: DIVISION / DISTRICT | B9: AMOUNT | C9: % | D9: AMOUNT | E9: % | F9: AMOUNT | G9: %
A11: BEAUTIFUL PLAINS | B11: 89560 | C11: =B11/'- 3 -'!$D11*100 -> 0.3561475902 | D11: 1239474 | E11: =D11/'- 3 -'!$D11*100 -> 4.928937898 | F11: 4008 | G11: =F11/'- 3 -'!$D11*100 -> 0.01593836022
A12: BORDER LAND | B12: 152284 | C12: =B12/'- 3 -'!$D12*100 -> 0.408526147 | D12: 2236153 | E12: =D12/'- 3 -'!$D12*100 -> 5.998837496 | F12: 0 | G12: =F12/'- 3 -'!$D12*100 -> 0
A13: BRANDON | B13: 242017 | C13: =B13/'- 3 -'!$D13*100 -> 0.2106582323 | D13: 2389379 | E13: =D13/'- 3 -'!$D13*100 -> 2.079780992 | F13: 1470 | G13: =F13/'- 3 -'!$D13*100 -> 0.001279528304
A14: DSFM | B14: 238931 | C14: =B14/'- 3 -'!$D14*100 -> 0.2264970589 | D14: 10506287 | E14: =D14/'- 3 -'!$D14*100 -> 9.959541062 | F14: 260819 | G14: =F14/'- 3 -'!$D14*100 -> 0.24724601
A15: EVERGREEN | B15: 62833 | C15: =B15/'- 3 -'!$D15*100 -> 0.1929032197 | D15: 1948782 | E15: =D15/'- 3 -'!$D15*100 -> 5.982944031 | F15: 545 | G15: =F15/'- 3 -'!$D15*100 -> 0.00167320126
A16: FLIN FLON | B16: 0 | C16: =B16/'- 3 -'!$D16*100 -> 0 | D16: 400839 | E16: =D16/'- 3 -'!$D16*100 -> 2.40636602 | F16: 0 | G16: =F16/'- 3 -'!$D16*100 -> 0
A17: FORT LA BOSSE | B17: 71946 | C17: =B17/'- 3 -'!$D17*100 -> 0.3471906205 | D17: 1697532 | E17: =D17/'- 3 -'!$D17*100 -> 8.191799244 | F17: 0 | G17: =F17/'- 3 -'!$D17*100 -> 0
A18: FRONTIER | B18: 337867 | C18: =B18/'- 3 -'!$D18*100 -> 0.2092726774 | D18: 9001698 | E18: =D18/'- 3 -'!$D18*100 -> 5.575594661 | F18: 75085 | G18: =F18/'- 3 -'!$D18*100 -> 0.04650717288
A19: GARDEN VALLEY | B19: 133891 | C19: =B19/'- 3 -'!$D19*100 -> 0.2462425124 | D19: 2929315 | E19: =D19/'- 3 -'!$D19*100 -> 5.387381417 | F19: 18041 | G19: =F19/'- 3 -'!$D19*100 -> 0.03317968472
A20: HANOVER | B20: 297952 | C20: =B20/'- 3 -'!$D20*100 -> 0.2919715468 | D20: 3830798 | E20: =D20/'- 3 -'!$D20*100 -> 3.753906728 | F20: 2129 | G20: =F20/'- 3 -'!$D20*100 -> 0.002086266993
A21: INTERLAKE | B21: 150113 | C21: =B21/'- 3 -'!$D21*100 -> 0.3686720262 | D21: 2407461 | E21: =D21/'- 3 -'!$D21*100 -> 5.912635981 | F21: 0 | G21: =F21/'- 3 -'!$D21*100 -> 0
A22: KELSEY | B22: 90406 | C22: =B22/'- 3 -'!$D22*100 -> 0.4096079678 | D22: 363222 | E22: =D22/'- 3 -'!$D22*100 -> 1.645672027 | F22: 3155 | G22: =F22/'- 3 -'!$D22*100 -> 0.01429455056
A23: LAKESHORE | B23: 103217 | C23: =B23/'- 3 -'!$D23*100 -> 0.6260895242 | D23: 1600491 | E23: =D23/'- 3 -'!$D23*100 -> 9.708193889 | F23: 0 | G23: =F23/'- 3 -'!$D23*100 -> 0
A24: LORD SELKIRK | B24: 197333 | C24: =B24/'- 3 -'!$D24*100 -> 0.3086020147 | D24: 2744281 | E24: =D24/'- 3 -'!$D24*100 -> 4.291682818 | F24: 3478 | G24: =F24/'- 3 -'!$D24*100 -> 0.005439119697
A25: LOUIS RIEL | B25: 469613 | C25: =B25/'- 3 -'!$D25*100 -> 0.2141533702 | D25: 5102617 | E25: =D25/'- 3 -'!$D25*100 -> 2.326900293 | F25: 0 | G25: =F25/'- 3 -'!$D25*100 -> 0
A26: MOUNTAIN VIEW | B26: 215178 | C26: =B26/'- 3 -'!$D26*100 -> 0.4693800714 | D26: 2844271 | E26: =D26/'- 3 -'!$D26*100 -> 6.204370916 | F26: 6345 | G26: =F26/'- 3 -'!$D26*100 -> 0.01384071119
A27: MYSTERY LAKE | B27: 0 | C27: =B27/'- 3 -'!$D27*100 -> 0 | D27: 50000 | E27: =D27/'- 3 -'!$D27*100 -> 0.1084978347 | F27: 185145 | G27: =F27/'- 3 -'!$D27*100 -> 0.401756632
A28: PARK WEST | B28: 62833 | C28: =B28/'- 3 -'!$D28*100 -> 0.1929032197 | D28: 1948782 | E28: =D28/'- 3 -'!$D28*100 -> 5.982944031 | F28: 545 | G28: =F28/'- 3 -'!$D28*100 -> 0.00167320126
A29: PEMBINA TRAILS | B29: 416677 | C29: =B29/'- 3 -'!$D29*100 -> 0.2130733837 | D29: 3066498 | E29: =D29/'- 3 -'!$D29*100 -> 1.568094963 | F29: 28820 | G29: =F29/'- 3 -'!$D29*100 -> 0.01473749431
A30: PINE CREEK | B30: 127710 | C30: =B30/'- 3 -'!$D30*100 -> 0.7383090659 | D30: 1381656 | E30: =D30/'- 3 -'!$D30*100 -> 7.987543267 | F30: 0 | G30: =F30/'- 3 -'!$D30*100 -> 0
A31: PORTAGE LA PRAIRIE | B31: 138760 | C31: =B31/'- 3 -'!$D31*100 -> 0.3013497891 | D31: 1225913 | E31: =D31/'- 3 -'!$D31*100 -> 2.662356759 | F31: 331 | G31: =F31/'- 3 -'!$D31*100 -> 0.0007188439044
A32: PRAIRIE ROSE | B32: 174013 | C32: =B32/'- 3 -'!$D32*100 -> 0.5197011141 | D32: 2237513 | E32: =D32/'- 3 -'!$D32*100 -> 6.68247774 | F32: 0 | G32: =F32/'- 3 -'!$D32*100 -> 0
A33: PRAIRIE SPIRIT | B33: 132595 | C33: =B33/'- 3 -'!$D33*100 -> 0.4332842989 | D33: 2343832 | E33: =D33/'- 3 -'!$D33*100 -> 7.65900377 | F33: 0 | G33: =F33/'- 3 -'!$D33*100 -> 0
A34: RED RIVER VALLEY | B34: 175917 | C34: =B34/'- 3 -'!$D34*100 -> 0.497242521 | D34: 2866764 | E34: =D34/'- 3 -'!$D34*100 -> 8.10312226 | F34: 33239 | G34: =F34/'- 3 -'!$D34*100 -> 0.09395251259
A35: RIVER EAST TRANSCONA | B35: 404348 | C35: =B35/'- 3 -'!$D35*100 -> 0.1823832761 | D35: 5010823 | E35: =D35/'- 3 -'!$D35*100 -> 2.260157871 | F35: 580 | G35: =F35/'- 3 -'!$D35*100 -> 0.0002616120276
A36: ROLLING RIVER | B36: 71017 | C36: =B36/'- 3 -'!$D36*100 -> 0.2646980924 | D36: 1893311 | E36: =D36/'- 3 -'!$D36*100 -> 7.056842869 | F36: 6713 | G36: =F36/'- 3 -'!$D36*100 -> 0.02502102728
A37: SEINE RIVER | B37: 303691 | C37: =B37/'- 3 -'!$D37*100 -> 0.4766475937 | D37: 4045519 | E37: =D37/'- 3 -'!$D37*100 -> 6.349502938 | F37: 0 | G37: =F37/'- 3 -'!$D37*100 -> 0
A38: SEVEN OAKS | B38: 356802 | C38: =B38/'- 3 -'!$D38*100 -> 0.2146235886 | D38: 4160226 | E38: =D38/'- 3 -'!$D38*100 -> 2.502459721 | F38: 0 | G38: =F38/'- 3 -'!$D38*100 -> 0
A39: SOUTHWEST HORIZON | B39: 119061 | C39: =B39/'- 3 -'!$D39*100 -> 0.4968030206 | D39: 2068620 | E39: =D39/'- 3 -'!$D39*100 -> 8.63168178 | F39: 0 | G39: =F39/'- 3 -'!$D39*100 -> 0
A40: ST. JAMES-ASSINIBOIA | B40: 142997 | C40: =B40/'- 3 -'!$D40*100 -> 0.1191223895 | D40: 2580117 | E40: =D40/'- 3 -'!$D40*100 -> 2.149343707 | F40: 0 | G40: =F40/'- 3 -'!$D40*100 -> 0
A41: SUNRISE | B41: 408751 | C41: =B41/'- 3 -'!$D41*100 -> 0.5572933066 | D41: 5116873 | E41: =D41/'- 3 -'!$D41*100 -> 6.976372103 | F41: 1127 | G41: =F41/'- 3 -'!$D41*100 -> 0.001536557847
A42: SWAN VALLEY | B42: 135661 | C42: =B42/'- 3 -'!$D42*100 -> 0.5591673966 | D42: 1650052 | E42: =D42/'- 3 -'!$D42*100 -> 6.801182956 | F42: 0 | G42: =F42/'- 3 -'!$D42*100 -> 0
A43: TURTLE MOUNTAIN | B43: 70473 | C43: =B43/'- 3 -'!$D43*100 -> 0.4730917448 | D43: 1088314 | E43: =D43/'- 3 -'!$D43*100 -> 7.305952197 | F43: 0 | G43: =F43/'- 3 -'!$D43*100 -> 0
A44: TURTLE RIVER | B44: 42120 | C44: =B44/'- 3 -'!$D44*100 -> 0.3495986919 | D44: 1170890 | E44: =D44/'- 3 -'!$D44*100 -> 9.718461832 | F44: 161 | G44: =F44/'- 3 -'!$D44*100 -> 0.00133631029
A45: WESTERN | B45: 94103 | C45: =B45/'- 3 -'!$D45*100 -> 0.3710892882 | D45: 960322 | E45: =D45/'- 3 -'!$D45*100 -> 3.786969676 | F45: 12200 | G45: =F45/'- 3 -'!$D45*100 -> 0.04810993609
A46: WINNIPEG | B46: 789905 | C46: =B46/'- 3 -'!$D46*100 -> 0.177854236 | D46: 7344188 | E46: =D46/'- 3 -'!$D46*100 -> 1.653610175 | F46: 0 | G46: =F46/'- 3 -'!$D46*100 -> 0
A48: PROVINCE | B48: =SUM(B11:B46) -> 7020575 | C48: =B48/'- 3 -'!$D48*100 -> 0.2569258053 | D48: =SUM(D11:D46) -> 103452813 | E48: =D48/'- 3 -'!$D48*100 -> 3.785971561 | F48: =SUM(F11:F46) -> 643936 | G48: =F48/'- 3 -'!$D48*100 -> 0.02356555914
A50: WHITESHELL | B50: 0 | C50: =B50/'- 3 -'!$D50*100 -> 0 | D50: 0 | E50: =D50/'- 3 -'!$D50*100 -> 0 | F50: 14020 | G50: =F50/'- 3 -'!$D50*100 -> 0.3691296991

Sheet - 30 -
B2: ANALYSIS OF EXPENSE BY PROGRAM | G2: PAGE 13 OF 16
B3: =OPYEAR -> OPERATING FUND 2022/2023 ACTUAL
B6: FUNCTION 700: TRANSPORTATION OF PUPILS
B7: BOARDING OF STUDENTS | D7: FIELD TRIPS AND OTHER
A9: DIVISION / DISTRICT | B9: AMOUNT | C9: % | D9: AMOUNT | E9: %
A11: BEAUTIFUL PLAINS | B11: 0 | C11: =B11/'- 3 -'!$D11*100 -> 0 | D11: 145711 | E11: =D11/'- 3 -'!$D11*100 -> 0.5794397221
A12: BORDER LAND | B12: 0 | C12: =B12/'- 3 -'!$D12*100 -> 0 | D12: 312594 | E12: =D12/'- 3 -'!$D12*100 -> 0.8385833207
A13: BRANDON | B13: 0 | C13: =B13/'- 3 -'!$D13*100 -> 0 | D13: 88137 | E13: =D13/'- 3 -'!$D13*100 -> 0.07671686129
A14: DSFM | B14: 0 | C14: =B14/'- 3 -'!$D14*100 -> 0 | D14: 767244 | E14: =D14/'- 3 -'!$D14*100 -> 0.7273167126
A15: EVERGREEN | B15: 0 | C15: =B15/'- 3 -'!$D15*100 -> 0 | D15: 0 | E15: =D15/'- 3 -'!$D15*100 -> 0
A16: FLIN FLON | B16: 0 | C16: =B16/'- 3 -'!$D16*100 -> 0 | D16: 118025 | E16: =D16/'- 3 -'!$D16*100 -> 0.7085422065
A17: FORT LA BOSSE | B17: 0 | C17: =B17/'- 3 -'!$D17*100 -> 0 | D17: 18971 | E17: =D17/'- 3 -'!$D17*100 -> 0.09154856784
A18: FRONTIER | B18: 3242508 | C18: =B18/'- 3 -'!$D18*100 -> 2.008388894 | D18: 1307715 | E18: =D18/'- 3 -'!$D18*100 -> 0.8099903787
A19: GARDEN VALLEY | B19: 0 | C19: =B19/'- 3 -'!$D19*100 -> 0 | D19: 4946 | E19: =D19/'- 3 -'!$D19*100 -> 0.009096320638
A20: HANOVER | B20: 0 | C20: =B20/'- 3 -'!$D20*100 -> 0 | D20: 428097 | E20: =D20/'- 3 -'!$D20*100 -> 0.4195042936
A21: INTERLAKE | B21: 0 | C21: =B21/'- 3 -'!$D21*100 -> 0 | D21: 192579 | E21: =D21/'- 3 -'!$D21*100 -> 0.4729669658
A22: KELSEY | B22: 0 | C22: =B22/'- 3 -'!$D22*100 -> 0 | D22: 34944 | E22: =D22/'- 3 -'!$D22*100 -> 0.1583229081
A23: LAKESHORE | B23: 0 | C23: =B23/'- 3 -'!$D23*100 -> 0 | D23: 0 | E23: =D23/'- 3 -'!$D23*100 -> 0
A24: LORD SELKIRK | B24: 0 | C24: =B24/'- 3 -'!$D24*100 -> 0 | D24: 8263 | E24: =D24/'- 3 -'!$D24*100 -> 0.01292220991
A25: LOUIS RIEL | B25: 0 | C25: =B25/'- 3 -'!$D25*100 -> 0 | D25: 91790 | E25: =D25/'- 3 -'!$D25*100 -> 0.04185816374
A26: MOUNTAIN VIEW | B26: 175414 | C26: =B26/'- 3 -'!$D26*100 -> 0.3826405852 | D26: 0 | E26: =D26/'- 3 -'!$D26*100 -> 0
A27: MYSTERY LAKE | B27: 0 | C27: =B27/'- 3 -'!$D27*100 -> 0 | D27: 164548 | E27: =D27/'- 3 -'!$D27*100 -> 0.357062034
A28: PARK WEST | B28: 0 | C28: =B28/'- 3 -'!$D28*100 -> 0 | D28: 0 | E28: =D28/'- 3 -'!$D28*100 -> 0
A29: PEMBINA TRAILS | B29: 0 | C29: =B29/'- 3 -'!$D29*100 -> 0 | D29: 642848 | E29: =D29/'- 3 -'!$D29*100 -> 0.3287289641
A30: PINE CREEK | B30: 0 | C30: =B30/'- 3 -'!$D30*100 -> 0 | D30: 19865 | E30: =D30/'- 3 -'!$D30*100 -> 0.1148422958
A31: PORTAGE LA PRAIRIE | B31: 0 | C31: =B31/'- 3 -'!$D31*100 -> 0 | D31: 34969 | E31: =D31/'- 3 -'!$D31*100 -> 0.07594336101
A32: PRAIRIE ROSE | B32: 0 | C32: =B32/'- 3 -'!$D32*100 -> 0 | D32: 61811 | E32: =D32/'- 3 -'!$D32*100 -> 0.1846025617
A33: PRAIRIE SPIRIT | B33: 0 | C33: =B33/'- 3 -'!$D33*100 -> 0 | D33: 88493 | E33: =D33/'- 3 -'!$D33*100 -> 0.2891709903
A34: RED RIVER VALLEY | B34: 0 | C34: =B34/'- 3 -'!$D34*100 -> 0 | D34: 184014 | E34: =D34/'- 3 -'!$D34*100 -> 0.5201292954
A35: RIVER EAST TRANSCONA | B35: 0 | C35: =B35/'- 3 -'!$D35*100 -> 0 | D35: 60511 | E35: =D35/'- 3 -'!$D35*100 -> 0.02729380242
A36: ROLLING RIVER | B36: 0 | C36: =B36/'- 3 -'!$D36*100 -> 0 | D36: 81579 | E36: =D36/'- 3 -'!$D36*100 -> 0.3040653038
A37: SEINE RIVER | B37: 0 | C37: =B37/'- 3 -'!$D37*100 -> 0 | D37: 101982 | E37: =D37/'- 3 -'!$D37*100 -> 0.1600622834
A38: SEVEN OAKS | B38: 0 | C38: =B38/'- 3 -'!$D38*100 -> 0 | D38: 452710 | E38: =D38/'- 3 -'!$D38*100 -> 0.2723141821
A39: SOUTHWEST HORIZON | B39: 0 | C39: =B39/'- 3 -'!$D39*100 -> 0 | D39: 23464 | E39: =D39/'- 3 -'!$D39*100 -> 0.0979076782
A40: ST. JAMES-ASSINIBOIA | B40: 0 | C40: =B40/'- 3 -'!$D40*100 -> 0 | D40: 128300 | E40: =D40/'- 3 -'!$D40*100 -> 0.1068791832
A41: SUNRISE | B41: 0 | C41: =B41/'- 3 -'!$D41*100 -> 0 | D41: 219186 | E41: =D41/'- 3 -'!$D41*100 -> 0.2988393685
A42: SWAN VALLEY | B42: 0 | C42: =B42/'- 3 -'!$D42*100 -> 0 | D42: 83510 | E42: =D42/'- 3 -'!$D42*100 -> 0.3442114483
A43: TURTLE MOUNTAIN | B43: 0 | C43: =B43/'- 3 -'!$D43*100 -> 0 | D43: 51916 | E43: =D43/'- 3 -'!$D43*100 -> 0.3485168933
A44: TURTLE RIVER | B44: 0 | C44: =B44/'- 3 -'!$D44*100 -> 0 | D44: 28501 | E44: =D44/'- 3 -'!$D44*100 -> 0.2365601215
A45: WESTERN | B45: 0 | C45: =B45/'- 3 -'!$D45*100 -> 0 | D45: 80726 | E45: =D45/'- 3 -'!$D45*100 -> 0.3183379263
A46: WINNIPEG | B46: 0 | C46: =B46/'- 3 -'!$D46*100 -> 0 | D46: 561437 | E46: =D46/'- 3 -'!$D46*100 -> 0.1264126049
A48: PROVINCE | B48: =SUM(B11:B46) -> 3417922 | C48: =B48/'- 3 -'!$D48*100 -> 0.1250826837 | D48: =SUM(D11:D46) -> 6589386 | E48: =D48/'- 3 -'!$D48*100 -> 0.2411459609
A50: WHITESHELL | B50: 0 | C50: =B50/'- 3 -'!$D50*100 -> 0 | D50: 69490 | E50: =D50/'- 3 -'!$D50*100 -> 1.829587931

Sheet - 31 -
B2: ANALYSIS OF EXPENSE BY PROGRAM | G2: PAGE 14 OF 16
B3: =OPYEAR -> OPERATING FUND 2022/2023 ACTUAL
B6: FUNCTION 800: OPERATIONS AND MAINTENANCE
D7: SCHOOL BUILDINGS
B8: ADMINISTRATION | D8: MAINTENANCE | F8: REPAIRS
A9: DIVISION / DISTRICT | B9: AMOUNT | C9: % | D9: AMOUNT | E9: % | F9: AMOUNT | G9: %
A11: BEAUTIFUL PLAINS | B11: 74888 | C11: =B11/'- 3 -'!$D11*100 -> 0.2978023753 | D11: 2011980 | E11: =D11/'- 3 -'!$D11*100 -> 8.000913672 | F11: 290583 | G11: =F11/'- 3 -'!$D11*100 -> 1.155543046
A12: BORDER LAND | B12: 134128 | C12: =B12/'- 3 -'!$D12*100 -> 0.3598197778 | D12: 2996606 | E12: =D12/'- 3 -'!$D12*100 -> 8.0388741 | F12: 340455 | G12: =F12/'- 3 -'!$D12*100 -> 0.9133249021
A13: BRANDON | B13: 301824 | C13: =B13/'- 3 -'!$D13*100 -> 0.2627158848 | D13: 8452152 | E13: =D13/'- 3 -'!$D13*100 -> 7.356984837 | F13: 649990 | G13: =F13/'- 3 -'!$D13*100 -> 0.565769117
A14: DSFM | B14: 524160 | C14: =B14/'- 3 -'!$D14*100 -> 0.4968827753 | D14: 10803784 | E14: =D14/'- 3 -'!$D14*100 -> 10.24155635 | F14: 464724 | G14: =F14/'- 3 -'!$D14*100 -> 0.4405398178
A15: EVERGREEN | B15: 55128 | C15: =B15/'- 3 -'!$D15*100 -> 0.169248145 | D15: 3382645 | E15: =D15/'- 3 -'!$D15*100 -> 10.3850383 | F15: 641705 | G15: =F15/'- 3 -'!$D15*100 -> 1.970094705
A16: FLIN FLON | B16: 113443 | C16: =B16/'- 3 -'!$D16*100 -> 0.6810349801 | D16: 2354792 | E16: =D16/'- 3 -'!$D16*100 -> 14.13657716 | F16: 113567 | G16: =F16/'- 3 -'!$D16*100 -> 0.6817793922
A17: FORT LA BOSSE | B17: 71865 | C17: =B17/'- 3 -'!$D17*100 -> 0.3467997379 | D17: 1767377 | E17: =D17/'- 3 -'!$D17*100 -> 8.528851045 | F17: 191229 | G17: =F17/'- 3 -'!$D17*100 -> 0.9228159338
A18: FRONTIER | B18: 1077845 | C18: =B18/'- 3 -'!$D18*100 -> 0.6676103583 | D18: 22116251 | E18: =D18/'- 3 -'!$D18*100 -> 13.69866563 | F18: 2742983 | G18: =F18/'- 3 -'!$D18*100 -> 1.698986277
A19: GARDEN VALLEY | B19: 123282 | C19: =B19/'- 3 -'!$D19*100 -> 0.2267312173 | D19: 4652991 | E19: =D19/'- 3 -'!$D19*100 -> 8.557439964 | F19: 290542 | G19: =F19/'- 3 -'!$D19*100 -> 0.5343435485
A20: HANOVER | B20: 734621 | C20: =B20/'- 3 -'!$D20*100 -> 0.7198757843 | D20: 8175790 | E20: =D20/'- 3 -'!$D20*100 -> 8.011686623 | F20: 399545 | G20: =F20/'- 3 -'!$D20*100 -> 0.3915253855
A21: INTERLAKE | B21: 166632 | C21: =B21/'- 3 -'!$D21*100 -> 0.4092420848 | D21: 3216932 | E21: =D21/'- 3 -'!$D21*100 -> 7.900667089 | F21: 171081 | G21: =F21/'- 3 -'!$D21*100 -> 0.4201686657
A22: KELSEY | B22: 86049 | C22: =B22/'- 3 -'!$D22*100 -> 0.3898674426 | D22: 2425276 | E22: =D22/'- 3 -'!$D22*100 -> 10.98834561 | F22: 98103 | G22: =F22/'- 3 -'!$D22*100 -> 0.4444812342
A23: LAKESHORE | B23: 68785 | C23: =B23/'- 3 -'!$D23*100 -> 0.4172332844 | D23: 1378283 | E23: =D23/'- 3 -'!$D23*100 -> 8.360333546 | F23: 82859 | G23: =F23/'- 3 -'!$D23*100 -> 0.5026027872
A24: LORD SELKIRK | B24: 140737 | C24: =B24/'- 3 -'!$D24*100 -> 0.2200935563 | D24: 5836835 | E24: =D24/'- 3 -'!$D24*100 -> 9.128017314 | F24: 316030 | G24: =F24/'- 3 -'!$D24*100 -> 0.494228004
A25: LOUIS RIEL | B25: 738283 | C25: =B25/'- 3 -'!$D25*100 -> 0.336672521 | D25: 22178683 | E25: =D25/'- 3 -'!$D25*100 -> 10.11394427 | F25: 657705 | G25: =F25/'- 3 -'!$D25*100 -> 0.2999272642
A26: MOUNTAIN VIEW | B26: 154792 | C26: =B26/'- 3 -'!$D26*100 -> 0.3376566378 | D26: 5237303 | E26: =D26/'- 3 -'!$D26*100 -> 11.42442841 | F26: 147853 | G26: =F26/'- 3 -'!$D26*100 -> 0.3225202005
A27: MYSTERY LAKE | B27: 211672 | C27: =B27/'- 3 -'!$D27*100 -> 0.4593190732 | D27: 5185490 | E27: =D27/'- 3 -'!$D27*100 -> 11.25228873 | F27: 441337 | G27: =F27/'- 3 -'!$D27*100 -> 0.9576821772
A28: PARK WEST | B28: 55128 | C28: =B28/'- 3 -'!$D28*100 -> 0.169248145 | D28: 3382645 | E28: =D28/'- 3 -'!$D28*100 -> 10.3850383 | F28: 641705 | G28: =F28/'- 3 -'!$D28*100 -> 1.970094705
A29: PEMBINA TRAILS | B29: 1095503 | C29: =B29/'- 3 -'!$D29*100 -> 0.5602001816 | D29: 16942774 | E29: =D29/'- 3 -'!$D29*100 -> 8.66391518 | F29: 920531 | G29: =F29/'- 3 -'!$D29*100 -> 0.4707258979
A30: PINE CREEK | B30: 160341 | C30: =B30/'- 3 -'!$D30*100 -> 0.9269533625 | D30: 1416754 | E30: =D30/'- 3 -'!$D30*100 -> 8.19044963 | F30: 79895 | G30: =F30/'- 3 -'!$D30*100 -> 0.4618839779
A31: PORTAGE LA PRAIRIE | B31: 110453 | C31: =B31/'- 3 -'!$D31*100 -> 0.239874519 | D31: 4069744 | E31: =D31/'- 3 -'!$D31*100 -> 8.838400806 | F31: 269635 | G31: =F31/'- 3 -'!$D31*100 -> 0.5855754567
A32: PRAIRIE ROSE | B32: 154307 | C32: =B32/'- 3 -'!$D32*100 -> 0.4608478667 | D32: 2739714 | E32: =D32/'- 3 -'!$D32*100 -> 8.182333609 | F32: 111575 | G32: =F32/'- 3 -'!$D32*100 -> 0.3332259763
A33: PRAIRIE SPIRIT | B33: 100079 | C33: =B33/'- 3 -'!$D33*100 -> 0.3270308786 | D33: 3089287 | E33: =D33/'- 3 -'!$D33*100 -> 10.09494741 | F33: 190635 | G33: =F33/'- 3 -'!$D33*100 -> 0.6229431903
A34: RED RIVER VALLEY | B34: 92425 | C34: =B34/'- 3 -'!$D34*100 -> 0.2612461559 | D34: 2566117 | E34: =D34/'- 3 -'!$D34*100 -> 7.253321091 | F34: 394437 | G34: =F34/'- 3 -'!$D34*100 -> 1.114905599
A35: RIVER EAST TRANSCONA | B35: 1165138 | C35: =B35/'- 3 -'!$D35*100 -> 0.5255415769 | D35: 20915930 | E35: =D35/'- 3 -'!$D35*100 -> 9.434239408 | F35: 332993 | G35: =F35/'- 3 -'!$D35*100 -> 0.1501982309
A36: ROLLING RIVER | B36: 81661 | C36: =B36/'- 3 -'!$D36*100 -> 0.3043709383 | D36: 3498387 | E36: =D36/'- 3 -'!$D36*100 -> 13.03936192 | F36: 131831 | G36: =F36/'- 3 -'!$D36*100 -> 0.491367056
A37: SEINE RIVER | B37: 186406 | C37: =B37/'- 3 -'!$D37*100 -> 0.2925670216 | D37: 5417853 | E37: =D37/'- 3 -'!$D37*100 -> 8.503401798 | F37: 230267 | G37: =F37/'- 3 -'!$D37*100 -> 0.361407521
A38: SEVEN OAKS | B38: 657370 | C38: =B38/'- 3 -'!$D38*100 -> 0.3954212937 | D38: 12866617 | E38: =D38/'- 3 -'!$D38*100 -> 7.739529244 | F38: 805405 | G38: =F38/'- 3 -'!$D38*100 -> 0.4844673274
A39: SOUTHWEST HORIZON | B39: 117721 | C39: =B39/'- 3 -'!$D39*100 -> 0.4912116342 | D39: 2147376 | E39: =D39/'- 3 -'!$D39*100 -> 8.960305079 | F39: 152085 | G39: =F39/'- 3 -'!$D39*100 -> 0.6346014848
A40: ST. JAMES-ASSINIBOIA | B40: 452128 | C40: =B40/'- 3 -'!$D40*100 -> 0.3766412421 | D40: 9362687 | E40: =D40/'- 3 -'!$D40*100 -> 7.799503816 | F40: 1119379 | G40: =F40/'- 3 -'!$D40*100 -> 0.9324888017
A41: SUNRISE | B41: 196297 | C41: =B41/'- 3 -'!$D41*100 -> 0.267632383 | D41: 6037394 | E41: =D41/'- 3 -'!$D41*100 -> 8.231415374 | F41: 279524 | G41: =F41/'- 3 -'!$D41*100 -> 0.3811045214
A42: SWAN VALLEY | B42: 107291 | C42: =B42/'- 3 -'!$D42*100 -> 0.4422319542 | D42: 1938593 | E42: =D42/'- 3 -'!$D42*100 -> 7.990491009 | F42: 308377 | G42: =F42/'- 3 -'!$D42*100 -> 1.271068061
A43: TURTLE MOUNTAIN | B43: 46169 | C43: =B43/'- 3 -'!$D43*100 -> 0.3099367526 | D43: 991694 | E43: =D43/'- 3 -'!$D43*100 -> 6.657333231 | F43: 102393 | G43: =F43/'- 3 -'!$D43*100 -> 0.687373647
A44: TURTLE RIVER | B44: 36045 | C44: =B44/'- 3 -'!$D44*100 -> 0.2991758037 | D44: 1038640 | E44: =D44/'- 3 -'!$D44*100 -> 8.62077838 | F44: 51753 | G44: =F44/'- 3 -'!$D44*100 -> 0.4295532076
A45: WESTERN | B45: 93537 | C45: =B45/'- 3 -'!$D45*100 -> 0.3688573027 | D45: 1904057 | E45: =D45/'- 3 -'!$D45*100 -> 7.508529556 | F45: 464546 | G45: =F45/'- 3 -'!$D45*100 -> 1.831908063
A46: WINNIPEG | B46: 1640386 | C46: =B46/'- 3 -'!$D46*100 -> 0.3693477048 | D46: 45404492 | E46: =D46/'- 3 -'!$D46*100 -> 10.22323094 | F46: 6350317 | G46: =F46/'- 3 -'!$D46*100 -> 1.429831155
A48: PROVINCE | B48: =SUM(B11:B46) -> 11326519 | C48: =B48/'- 3 -'!$D48*100 -> 0.4145066487 | D48: =SUM(D11:D46) -> 257903925 | E48: =D48/'- 3 -'!$D48*100 -> 9.438282992 | F48: =SUM(F11:F46) -> 20977574 | G48: =F48/'- 3 -'!$D48*100 -> 0.7676978158
A50: WHITESHELL | B50: 32097 | C50: =B50/'- 3 -'!$D50*100 -> 0.8450753175 | D50: 572714 | E50: =D50/'- 3 -'!$D50*100 -> 15.07886922 | F50: 0 | G50: =F50/'- 3 -'!$D50*100 -> 0

Sheet - 32 -
B2: ANALYSIS OF EXPENSE BY PROGRAM | F2: PAGE 15 OF 16
B3: =OPYEAR -> OPERATING FUND 2022/2023 ACTUAL
B6: FUNCTION 800: OPERATIONS AND MAINTENANCE
B8: OTHER BUILDINGS | D8: GROUNDS
A9: DIVISION / DISTRICT | B9: AMOUNT | C9: % | D9: AMOUNT | E9: %
A11: BEAUTIFUL PLAINS | B11: 82524 | C11: =B11/'- 3 -'!$D11*100 -> 0.3281679738 | D11: 30311 | E11: =D11/'- 3 -'!$D11*100 -> 0.1205358375
A12: BORDER LAND | B12: 288687 | C12: =B12/'- 3 -'!$D12*100 -> 0.7744489757 | D12: 132879 | E12: =D12/'- 3 -'!$D12*100 -> 0.3564691359
A13: BRANDON | B13: 389029 | C13: =B13/'- 3 -'!$D13*100 -> 0.3386215078 | D13: 215653 | E13: =D13/'- 3 -'!$D13*100 -> 0.1877102838
A14: DSFM | B14: 534489 | C14: =B14/'- 3 -'!$D14*100 -> 0.5066742554 | D14: 792573 | E14: =D14/'- 3 -'!$D14*100 -> 0.7513275944
A15: EVERGREEN | B15: 73620 | C15: =B15/'- 3 -'!$D15*100 -> 0.2260203243 | D15: 104086 | E15: =D15/'- 3 -'!$D15*100 -> 0.3195538097
A16: FLIN FLON | B16: 22603 | C16: =B16/'- 3 -'!$D16*100 -> 0.1356931116 | D16: 38654 | E16: =D16/'- 3 -'!$D16*100 -> 0.2320524503
A17: FORT LA BOSSE | B17: 98246 | C17: =B17/'- 3 -'!$D17*100 -> 0.474106826 | D17: 54287 | E17: =D17/'- 3 -'!$D17*100 -> 0.2619733858
A18: FRONTIER | B18: 5218064 | C18: =B18/'- 3 -'!$D18*100 -> 3.232035754 | D18: 73644 | E18: =D18/'- 3 -'!$D18*100 -> 0.04561462662
A19: GARDEN VALLEY | B19: 109723 | C19: =B19/'- 3 -'!$D19*100 -> 0.2017944984 | D19: 151015 | E19: =D19/'- 3 -'!$D19*100 -> 0.277735718
A20: HANOVER | B20: 176695 | C20: =B20/'- 3 -'!$D20*100 -> 0.1731484013 | D20: 494447 | E20: =D20/'- 3 -'!$D20*100 -> 0.4845225251
A21: INTERLAKE | B21: 158018 | C21: =B21/'- 3 -'!$D21*100 -> 0.3880864165 | D21: 108163 | E21: =D21/'- 3 -'!$D21*100 -> 0.2656443637
A22: KELSEY | B22: 106996 | C22: =B22/'- 3 -'!$D22*100 -> 0.4847732907 | D22: 7261 | E22: =D22/'- 3 -'!$D22*100 -> 0.03289785472
A23: LAKESHORE | B23: 109863 | C23: =B23/'- 3 -'!$D23*100 -> 0.6664025635 | D23: 21507 | E23: =D23/'- 3 -'!$D23*100 -> 0.130456295
A24: LORD SELKIRK | B24: 175507 | C24: =B24/'- 3 -'!$D24*100 -> 0.2744691146 | D24: 86880 | E24: =D24/'- 3 -'!$D24*100 -> 0.1358685219
A25: LOUIS RIEL | B25: 528166 | C25: =B25/'- 3 -'!$D25*100 -> 0.2408547653 | D25: 603328 | E25: =D25/'- 3 -'!$D25*100 -> 0.2751302126
A26: MOUNTAIN VIEW | B26: 175533 | C26: =B26/'- 3 -'!$D26*100 -> 0.3829001667 | D26: 71182 | E26: =D26/'- 3 -'!$D26*100 -> 0.1552733655
A27: MYSTERY LAKE | B27: 134257 | C27: =B27/'- 3 -'!$D27*100 -> 0.2913318758 | D27: 117571 | E27: =D27/'- 3 -'!$D27*100 -> 0.2551239784
A28: PARK WEST | B28: 73620 | C28: =B28/'- 3 -'!$D28*100 -> 0.2260203243 | D28: 104086 | E28: =D28/'- 3 -'!$D28*100 -> 0.3195538097
A29: PEMBINA TRAILS | B29: 507537 | C29: =B29/'- 3 -'!$D29*100 -> 0.2595358658 | D29: 1423602 | E29: =D29/'- 3 -'!$D29*100 -> 0.7279780146
A30: PINE CREEK | B30: 51671 | C30: =B30/'- 3 -'!$D30*100 -> 0.298717154 | D30: 70324 | E30: =D30/'- 3 -'!$D30*100 -> 0.4065527112
A31: PORTAGE LA PRAIRIE | B31: 124993 | C31: =B31/'- 3 -'!$D31*100 -> 0.2714515291 | D31: 179442 | E31: =D31/'- 3 -'!$D31*100 -> 0.3897002655
A32: PRAIRIE ROSE | B32: 142542 | C32: =B32/'- 3 -'!$D32*100 -> 0.4257109309 | D32: 135255 | E32: =D32/'- 3 -'!$D32*100 -> 0.4039478326
A33: PRAIRIE SPIRIT | B33: 111242 | C33: =B33/'- 3 -'!$D33*100 -> 0.3635085183 | D33: 59581 | E33: =D33/'- 3 -'!$D33*100 -> 0.1946944592
A34: RED RIVER VALLEY | B34: 241368 | C34: =B34/'- 3 -'!$D34*100 -> 0.6822446541 | D34: 154487 | E34: =D34/'- 3 -'!$D34*100 -> 0.4366690277
A35: RIVER EAST TRANSCONA | B35: 457973 | C35: =B35/'- 3 -'!$D35*100 -> 0.2065711123 | D35: 680789 | E35: =D35/'- 3 -'!$D35*100 -> 0.3070734322
A36: ROLLING RIVER | B36: 183510 | C36: =B36/'- 3 -'!$D36*100 -> 0.6839875936 | D36: 78090 | E36: =D36/'- 3 -'!$D36*100 -> 0.2910609296
A37: SEINE RIVER | B37: 158695 | C37: =B37/'- 3 -'!$D37*100 -> 0.2490741902 | D37: 122838 | E37: =D37/'- 3 -'!$D37*100 -> 0.1927960892
A38: SEVEN OAKS | B38: 784326 | C38: =B38/'- 3 -'!$D38*100 -> 0.4717878844 | D38: 428004 | E38: =D38/'- 3 -'!$D38*100 -> 0.2574530255
A39: SOUTHWEST HORIZON | B39: 64906 | C39: =B39/'- 3 -'!$D39*100 -> 0.2708317321 | D39: 88364 | E39: =D39/'- 3 -'!$D39*100 -> 0.3687143742
A40: ST. JAMES-ASSINIBOIA | B40: 711240 | C40: =B40/'- 3 -'!$D40*100 -> 0.592492208 | D40: 396701 | E40: =D40/'- 3 -'!$D40*100 -> 0.3304682687
A41: SUNRISE | B41: 433081 | C41: =B41/'- 3 -'!$D41*100 -> 0.5904649591 | D41: 443204 | E41: =D41/'- 3 -'!$D41*100 -> 0.6042667116
A42: SWAN VALLEY | B42: 186346 | C42: =B42/'- 3 -'!$D42*100 -> 0.7680807873 | D42: 155168 | E42: =D42/'- 3 -'!$D42*100 -> 0.6395713329
A43: TURTLE MOUNTAIN | B43: 142360 | C43: =B43/'- 3 -'!$D43*100 -> 0.955675802 | D43: 4405 | E43: =D43/'- 3 -'!$D43*100 -> 0.02957117103
A44: TURTLE RIVER | B44: 42129 | C44: =B44/'- 3 -'!$D44*100 -> 0.3496733925 | D44: 33633 | E44: =D44/'- 3 -'!$D44*100 -> 0.2791560495
A45: WESTERN | B45: 43266 | C45: =B45/'- 3 -'!$D45*100 -> 0.1706167619 | D45: 72226 | E45: =D45/'- 3 -'!$D45*100 -> 0.2848187086
A46: WINNIPEG | B46: 2277321 | C46: =B46/'- 3 -'!$D46*100 -> 0.5127593654 | D46: 1614194 | E46: =D46/'- 3 -'!$D46*100 -> 0.3634503397
A48: PROVINCE | B48: =SUM(B11:B46) -> 15120146 | C48: =B48/'- 3 -'!$D48*100 -> 0.5533386777 | D48: =SUM(D11:D46) -> 9347834 | E48: =D48/'- 3 -'!$D48*100 -> 0.342094455
A50: WHITESHELL | B50: 0 | C50: =B50/'- 3 -'!$D50*100 -> 0 | D50: 24710 | E50: =D50/'- 3 -'!$D50*100 -> 0.6505845124

Sheet - 33 -
B2: ANALYSIS OF EXPENSE BY PROGRAM | G2: PAGE 16 OF 16
B3: =OPYEAR -> OPERATING FUND 2022/2023 ACTUAL
B6: FUNCTION 900: FISCAL
B7: INTEREST AND BANK CHARGES | D7: BAD DEBT | F7: HEALTH AND EDUCATION LEVY
A9: DIVISION / DISTRICT | B9: AMOUNT | C9: % | D9: AMOUNT | E9: % | F9: AMOUNT | G9: %
A11: BEAUTIFUL PLAINS | B11: 18608 | C11: =B11/'- 3 -'!$D11*100 -> 0.07399725723 | D11: 0 | E11: =D11/'- 3 -'!$D11*100 -> 0 | F11: 418734 | G11: =F11/'- 3 -'!$D11*100 -> 1.665153026
A12: BORDER LAND | B12: 59922 | C12: =B12/'- 3 -'!$D12*100 -> 0.1607503335 | D12: 0 | E12: =D12/'- 3 -'!$D12*100 -> 0 | F12: 569223 | G12: =F12/'- 3 -'!$D12*100 -> 1.527031592
A13: BRANDON | B13: 7973 | C13: =B13/'- 3 -'!$D13*100 -> 0.006939917799 | D13: 0 | E13: =D13/'- 3 -'!$D13*100 -> 0 | F13: 1935145 | G13: =F13/'- 3 -'!$D13*100 -> 1.684403265
A14: DSFM | B14: 12747 | C14: =B14/'- 3 -'!$D14*100 -> 0.01208364762 | D14: 1315 | E14: =D14/'- 3 -'!$D14*100 -> 0.001246567555 | F14: 1512836 | G14: =F14/'- 3 -'!$D14*100 -> 1.434108193
A15: EVERGREEN | B15: 49186 | C15: =B15/'- 3 -'!$D15*100 -> 0.1510056461 | D15: 0 | E15: =D15/'- 3 -'!$D15*100 -> 0 | F15: 467745 | G15: =F15/'- 3 -'!$D15*100 -> 1.436021143
A16: FLIN FLON | B16: 27722 | C16: =B16/'- 3 -'!$D16*100 -> 0.1664241224 | D16: 0 | E16: =D16/'- 3 -'!$D16*100 -> 0 | F16: 251500 | G16: =F16/'- 3 -'!$D16*100 -> 1.509835754
A17: FORT LA BOSSE | B17: 97707 | C17: =B17/'- 3 -'!$D17*100 -> 0.4715057676 | D17: 0 | E17: =D17/'- 3 -'!$D17*100 -> 0 | F17: 333258 | G17: =F17/'- 3 -'!$D17*100 -> 1.608206875
A18: FRONTIER | B18: 466949 | C18: =B18/'- 3 -'!$D18*100 -> 0.2892252497 | D18: 0 | E18: =D18/'- 3 -'!$D18*100 -> 0 | F18: 1366604 | G18: =F18/'- 3 -'!$D18*100 -> 0.8464658519
A19: GARDEN VALLEY | B19: 39398 | C19: =B19/'- 3 -'!$D19*100 -> 0.07245791356 | D19: 0 | E19: =D19/'- 3 -'!$D19*100 -> 0 | F19: 851755 | G19: =F19/'- 3 -'!$D19*100 -> 1.566485359
A20: HANOVER | B20: 259791 | C20: =B20/'- 3 -'!$D20*100 -> 0.2545765094 | D20: 0 | E20: =D20/'- 3 -'!$D20*100 -> 0 | F20: 1659724 | G20: =F20/'- 3 -'!$D20*100 -> 1.626410239
A21: INTERLAKE | B21: 55525 | C21: =B21/'- 3 -'!$D21*100 -> 0.136367365 | D21: 0 | E21: =D21/'- 3 -'!$D21*100 -> 0 | F21: 678921 | G21: =F21/'- 3 -'!$D21*100 -> 1.667405093
A22: KELSEY | B22: 1904 | C22: =B22/'- 3 -'!$D22*100 -> 0.008626568708 | D22: 194 | E22: =D22/'- 3 -'!$D22*100 -> 0.00087896761 | F22: 366733 | G22: =F22/'- 3 -'!$D22*100 -> 1.661579528
A23: LAKESHORE | B23: 2726 | C23: =B23/'- 3 -'!$D23*100 -> 0.01653526108 | D23: 0 | E23: =D23/'- 3 -'!$D23*100 -> 0 | F23: 254413 | G23: =F23/'- 3 -'!$D23*100 -> 1.543208135
A24: LORD SELKIRK | B24: 187557 | C24: =B24/'- 3 -'!$D24*100 -> 0.2933136783 | D24: 0 | E24: =D24/'- 3 -'!$D24*100 -> 0 | F24: 1039163 | G24: =F24/'- 3 -'!$D24*100 -> 1.625109816
A25: LOUIS RIEL | B25: 97400 | C25: =B25/'- 3 -'!$D25*100 -> 0.04441644131 | D25: 0 | E25: =D25/'- 3 -'!$D25*100 -> 0 | F25: 3545178 | G25: =F25/'- 3 -'!$D25*100 -> 1.616675468
A26: MOUNTAIN VIEW | B26: 104984 | C26: =B26/'- 3 -'!$D26*100 -> 0.2290076003 | D26: 0 | E26: =D26/'- 3 -'!$D26*100 -> 0 | F26: 705600 | G26: =F26/'- 3 -'!$D26*100 -> 1.539165613
A27: MYSTERY LAKE | B27: 7610 | C27: =B27/'- 3 -'!$D27*100 -> 0.01651337044 | D27: 0 | E27: =D27/'- 3 -'!$D27*100 -> 0 | F27: 811966 | G27: =F27/'- 3 -'!$D27*100 -> 1.761931057
A28: PARK WEST | B28: 49186 | C28: =B28/'- 3 -'!$D28*100 -> 0.1510056461 | D28: 0 | E28: =D28/'- 3 -'!$D28*100 -> 0 | F28: 467745 | G28: =F28/'- 3 -'!$D28*100 -> 1.436021143
A29: PEMBINA TRAILS | B29: 449379 | C29: =B29/'- 3 -'!$D29*100 -> 0.2297959909 | D29: 0 | E29: =D29/'- 3 -'!$D29*100 -> 0 | F29: 3227674 | G29: =F29/'- 3 -'!$D29*100 -> 1.650514477
A30: PINE CREEK | B30: 16719 | C30: =B30/'- 3 -'!$D30*100 -> 0.0966548373 | D30: 0 | E30: =D30/'- 3 -'!$D30*100 -> 0 | F30: 290241 | G30: =F30/'- 3 -'!$D30*100 -> 1.677923119
A31: PORTAGE LA PRAIRIE | B31: 10626 | C31: =B31/'- 3 -'!$D31*100 -> 0.02307684389 | D31: 0 | E31: =D31/'- 3 -'!$D31*100 -> 0 | F31: 743471 | G31: =F31/'- 3 -'!$D31*100 -> 1.614621137
A32: PRAIRIE ROSE | B32: 106030 | C32: =B32/'- 3 -'!$D32*100 -> 0.316665474 | D32: 0 | E32: =D32/'- 3 -'!$D32*100 -> 0 | F32: 547560 | G32: =F32/'- 3 -'!$D32*100 -> 1.635323465
A33: PRAIRIE SPIRIT | B33: 76952 | C33: =B33/'- 3 -'!$D33*100 -> 0.2514581498 | D33: 0 | E33: =D33/'- 3 -'!$D33*100 -> 0 | F33: 490929 | G33: =F33/'- 3 -'!$D33*100 -> 1.604222087
A34: RED RIVER VALLEY | B34: 383453 | C34: =B34/'- 3 -'!$D34*100 -> 1.083858504 | D34: 654 | E34: =D34/'- 3 -'!$D34*100 -> 0.001848579778 | F34: 547065 | G34: =F34/'- 3 -'!$D34*100 -> 1.546320025
A35: RIVER EAST TRANSCONA | B35: 200663 | C35: =B35/'- 3 -'!$D35*100 -> 0.09051009361 | D35: 0 | E35: =D35/'- 3 -'!$D35*100 -> 0 | F35: 3687269 | G35: =F35/'- 3 -'!$D35*100 -> 1.66316193
A36: ROLLING RIVER | B36: 27094 | C36: =B36/'- 3 -'!$D36*100 -> 0.1009861035 | D36: 0 | E36: =D36/'- 3 -'!$D36*100 -> 0 | F36: 403238 | G36: =F36/'- 3 -'!$D36*100 -> 1.502968717
A37: SEINE RIVER | B37: 86460 | C37: =B37/'- 3 -'!$D37*100 -> 0.1357002708 | D37: 0 | E37: =D37/'- 3 -'!$D37*100 -> 0 | F37: 1140607 | G37: =F37/'- 3 -'!$D37*100 -> 1.790199848
A38: SEVEN OAKS | B38: 232514 | C38: =B38/'- 3 -'!$D38*100 -> 0.1398618536 | D38: 8873 | E38: =D38/'- 3 -'!$D38*100 -> 0.005337288192 | F38: 2664029 | G38: =F38/'- 3 -'!$D38*100 -> 1.602467094
A39: SOUTHWEST HORIZON | B39: 0 | C39: =B39/'- 3 -'!$D39*100 -> 0 | D39: 0 | E39: =D39/'- 3 -'!$D39*100 -> 0 | F39: 380526 | G39: =F39/'- 3 -'!$D39*100 -> 1.587811846
A40: ST. JAMES-ASSINIBOIA | B40: 78035 | C40: =B40/'- 3 -'!$D40*100 -> 0.06500636839 | D40: 0 | E40: =D40/'- 3 -'!$D40*100 -> 0 | F40: 2044032 | G40: =F40/'- 3 -'!$D40*100 -> 1.702762827
A41: SUNRISE | B41: 384414 | C41: =B41/'- 3 -'!$D41*100 -> 0.5241121102 | D41: 0 | E41: =D41/'- 3 -'!$D41*100 -> 0 | F41: 1154682 | G41: =F41/'- 3 -'!$D41*100 -> 1.574299634
A42: SWAN VALLEY | B42: 4529 | C42: =B42/'- 3 -'!$D42*100 -> 0.01866762842 | D42: 0 | E42: =D42/'- 3 -'!$D42*100 -> 0 | F42: 400815 | G42: =F42/'- 3 -'!$D42*100 -> 1.652078932
A43: TURTLE MOUNTAIN | B43: 76950 | C43: =B43/'- 3 -'!$D43*100 -> 0.5165724428 | D43: 74 | E43: =D43/'- 3 -'!$D43*100 -> 0.0004967688209 | F43: 239080 | G43: =F43/'- 3 -'!$D43*100 -> 1.604966077
A44: TURTLE RIVER | B44: 2099 | C44: =B44/'- 3 -'!$D44*100 -> 0.01742183415 | D44: 0 | E44: =D44/'- 3 -'!$D44*100 -> 0 | F44: 181737 | G44: =F44/'- 3 -'!$D44*100 -> 1.508428715
A45: WESTERN | B45: 70087 | C45: =B45/'- 3 -'!$D45*100 -> 0.276383696 | D45: 0 | E45: =D45/'- 3 -'!$D45*100 -> 0 | F45: 418625 | G45: =F45/'- 3 -'!$D45*100 -> 1.650821475
A46: WINNIPEG | B46: 57688 | C46: =B46/'- 3 -'!$D46*100 -> 0.01298897357 | D46: 0 | E46: =D46/'- 3 -'!$D46*100 -> 0 | F46: 7534161 | G46: =F46/'- 3 -'!$D46*100 -> 1.69638431
A48: PROVINCE | B48: =SUM(B11:B46) -> 3810587 | C48: =B48/'- 3 -'!$D48*100 -> 0.1394526992 | D48: =SUM(D11:D46) -> 11110 | E48: =D48/'- 3 -'!$F48*100 -> 0.0004120995517 | F48: =SUM(F11:F46) -> 43331984 | G48: =F48/'- 3 -'!$D48*100 -> 1.585782487
A50: WHITESHELL | B50: 2182 | C50: =B50/'- 3 -'!$D50*100 -> 0.05744942963 | D50: 0 | E50: =D50/'- 3 -'!$D50*100 -> 0 | F50: 34870 | G50: =F50/'- 3 -'!$D50*100 -> 0.9180850646

Sheet - 34 -
B2: ANALYSIS OF TRANSPORTATION EXPENSES
B3: =OPYEAR -> OPERATING FUND 2022/2023 ACTUAL
B6: REGULAR TRANSPORTATION
B7: (PROGRAM 720)
C8: TRANSPORTED PUPILS | D8: PER PUPIL | E8: TOTAL KM. (ROUTES) | F8: COST PER KM. | G8: LOADED KM. | H8: COST PER KM.
A9: DIVISION / DISTRICT | B9: AMOUNT
A11: BEAUTIFUL PLAINS | B11: ='- 29 -'!$D11 -> 1239474 | C11: 690 | D11: =IF(AND(CELL("type",C11)="v",C11>0),B11/C11,"") -> 1796.33913 | E11: 575484 | F11: =IF(AND(CELL("type",E11)="v",E11>0),B11/E11,"") -> 2.153794024 | G11: 437750 | H11: =IF(AND(CELL("type",G11)="v",G11>0),B11/G11,"") -> 2.831465448
A12: BORDER LAND | B12: ='- 29 -'!$D12 -> 2236153 | C12: 1459 | D12: =IF(AND(CELL("type",C12)="v",C12>0),B12/C12,"") -> 1532.661412 | E12: 1072708 | F12: =IF(AND(CELL("type",E12)="v",E12>0),B12/E12,"") -> 2.084586859 | G12: 669032 | H12: =IF(AND(CELL("type",G12)="v",G12>0),B12/G12,"") -> 3.342370769
A13: BRANDON | B13: ='- 29 -'!$D13 -> 2389379 | C13: 3054 | D13: 782.3768828 | E13: 821536.1 | F13: 2.908428491 | G13: 502628 | H13: 4.753772173
A14: DSFM | B14: ='- 29 -'!$D14 -> 10506287 | C14: 4344 | D14: 2418.574355 | E14: 3338652 | F14: 3.146864962 | G14: 1738866 | H14: 6.042033716
A15: EVERGREEN | B15: ='- 29 -'!$D15 -> 1948782 | C15: 818 | D15: 2382.374083 | E15: 1037136 | F15: 1.879003332 | G15: 701592 | H15: 2.7776571
A16: FLIN FLON | B16: ='- 29 -'!$D16 -> 400839 | C16: 160 | D16: 2505.24375 | E16: 61305 | F16: 6.538438953 | G16: 38430 | H16: 10.4303669
A17: FORT LA BOSSE | B17: ='- 29 -'!$D17 -> 1697532 | C17: 723 | D17: 2347.900415 | E17: 984777.9 | F17: 1.723771421 | G17: 623737.2 | H17: 2.721550037
A18: FRONTIER | B18: ='- 29 -'!$D18 -> 9001698 | C18: 4993 | D18: 1802.863609 | E18: 1339000 | F18: 6.722702016 | G18: 812105 | H18: 11.08440165
A19: GARDEN VALLEY | B19: ='- 29 -'!$D19 -> 2929315 | C19: 2173 | D19: 1348.051081 | E19: 729987 | F19: 4.012831735 | G19: 419802 | H19: 6.977849081
A20: HANOVER | B20: ='- 29 -'!$D20 -> 3830798 | C20: 4821 | D20: 794.6065132 | E20: 1318299 | F20: 2.905864299 | G20: 772671 | H20: 4.957864343
A21: INTERLAKE | B21: ='- 29 -'!$D21 -> 2407461 | C21: 1920 | D21: 1253.885937 | E21: 940295 | F21: 2.560325217 | G21: 508972 | H21: 4.730046054
A22: KELSEY | B22: ='- 29 -'!$D22 -> 363222 | C22: 340 | D22: 1068.3 | E22: 169087 | F22: 2.148136758 | G22: 103137 | H22: 3.521742924
A23: LAKESHORE | B23: ='- 29 -'!$D23 -> 1600491 | C23: 621 | D23: 2577.280193 | E23: 840885 | F23: 1.903341123 | G23: 512583 | H23: 3.122403591
A24: LORD SELKIRK | B24: ='- 29 -'!$D24 -> 2744281 | C24: 2555 | D24: 1074.082583 | E24: 988573 | F24: 2.776002379 | G24: 655763 | H24: 4.184867094
A25: LOUIS RIEL | B25: ='- 29 -'!$D25 -> 5102617 | C25: 3041 | D25: 1677.94048 | E25: 1043628 | F25: 4.889306343 | G25: 471630 | H25: 10.81911032
A26: MOUNTAIN VIEW | B26: ='- 29 -'!$D26 -> 2844271 | C26: 1616 | D26: 1760.068688 | E26: 1305819 | F26: 2.17815103 | G26: 949541 | H26: 2.995416733
A27: MYSTERY LAKE | B27: ='- 29 -'!$D27 -> 50000 | D27: =IF(AND(CELL("type",C27)="v",C27>0),B27/C27,"") ->  | F27: =IF(AND(CELL("type",E27)="v",E27>0),B27/E27,"") ->  | H27: =IF(AND(CELL("type",G27)="v",G27>0),B27/G27,"") -> 
A28: PARK WEST | B28: ='- 29 -'!$D28 -> 1948782 | C28: 818 | D28: 2382.374083 | E28: 1037136 | F28: 1.879003332 | G28: 701592 | H28: 2.7776571
A29: PEMBINA TRAILS | B29: ='- 29 -'!$D29 -> 3066498 | C29: 3313 | D29: 925.5955327 | E29: 653864 | F29: 4.689810113 | G29: 369232 | H29: 8.305071066
A30: PINE CREEK | B30: ='- 29 -'!$D30 -> 1381656 | C30: 575 | D30: 2402.88 | E30: 659088 | F30: 2.096314908 | G30: 411056 | H30: 3.361235452
A31: PORTAGE LA PRAIRIE | B31: ='- 29 -'!$D31 -> 1225913 | C31: 1432 | D31: 856.0844972 | E31: 581077 | F31: 2.109725561 | G31: 380827 | H31: 3.219081105
A32: PRAIRIE ROSE | B32: ='- 29 -'!$D32 -> 2237513 | C32: 1547 | D32: 1446.356173 | E32: 1136292 | F32: 1.969135574 | G32: 722126 | H32: 3.09850774
A33: PRAIRIE SPIRIT | B33: ='- 29 -'!$D33 -> 2343832 | C33: 1170 | D33: 2003.275214 | E33: 1436120 | F33: 1.632058602 | G33: 863328 | H33: 2.714880092
A34: RED RIVER VALLEY | B34: ='- 29 -'!$D34 -> 2866764 | C34: 1372 | D34: 2089.478134 | E34: 1352377 | F34: 2.119796477 | G34: 918380.3 | H34: 3.121543439
A35: RIVER EAST TRANSCONA | B35: ='- 29 -'!$D35 -> 5010823 | C35: 3782 | D35: 1324.913538 | E35: 1149122 | F35: 4.360566589 | G35: 775667 | H35: 6.460018281
A36: ROLLING RIVER | B36: ='- 29 -'!$D36 -> 1893311 | C36: 894 | D36: 2117.797539 | E36: 839592 | F36: 2.25503697 | G36: 514962 | H36: 3.676603322
A37: SEINE RIVER | B37: ='- 29 -'!$D37 -> 4045519 | C37: 2655 | D37: 1523.73597 | E37: 1522022 | F37: 2.657989832 | G37: 895104 | H37: 4.519607777
A38: SEVEN OAKS | B38: ='- 29 -'!$D38 -> 4160226 | C38: 2865 | D38: 1452.085864 | E38: 752862 | F38: 5.525881237 | G38: 404613 | H38: 10.28198797
A39: SOUTHWEST HORIZON | B39: ='- 29 -'!$D39 -> 2068620 | C39: 694 | D39: 2980.720461 | E39: 988566 | F39: 2.092546173 | G39: 587430 | H39: 3.521474899
A40: ST. JAMES-ASSINIBOIA | B40: ='- 29 -'!$D40 -> 2580117 | C40: 1570 | D40: 1643.386624 | E40: 556000 | F40: 4.640498201 | G40: 291000 | H40: 8.866381443
A41: SUNRISE | B41: ='- 29 -'!$D41 -> 5116873 | C41: 3643 | D41: 1404.576722 | E41: 2209106 | F41: 2.316264136 | G41: 1400030 | H41: 3.654830968
A42: SWAN VALLEY | B42: ='- 29 -'!$D42 -> 1650052 | C42: 1209 | D42: 1364.807279 | E42: 751696 | F42: 2.195105468 | G42: 644336 | H42: 2.560856448
A43: TURTLE MOUNTAIN | B43: ='- 29 -'!$D43 -> 1088314 | C43: 428 | D43: 2542.78972 | E43: 563762 | F43: 1.930449374 | G43: 384907 | H43: 2.82747261
A44: TURTLE RIVER | B44: ='- 29 -'!$D44 -> 1170890 | C44: 381 | D44: 3073.2021 | E44: 673806 | F44: 1.737725696 | G44: 467016 | H44: 2.507173202
A45: WESTERN | B45: ='- 29 -'!$D45 -> 960322 | C45: 1095 | D45: 877.0063927 | E45: 282168 | F45: 3.403369624 | G45: 161946 | H45: 5.92989021
A46: WINNIPEG | B46: ='- 29 -'!$D46 -> 7344188 | C46: 1703 | D46: 4312.500294 | E46: 484530 | F46: 15.15734423 | G46: 437505 | H46: 16.78652358
A48: PROVINCE | B48: =SUM(B11:B46) -> 103452813 | C48: =SUM(C11:C46) -> 64474 | D48: =B48/C48 -> 1604.566383 | E48: =SUM(E11:E46) -> 34196358 | F48: =B48/E48 -> 3.025258216 | G48: =SUM(G11:G46) -> 21249296.5 | H48: =B48/G48 -> 4.868528848
A50: WHITESHELL | B50: ='- 29 -'!$D50 -> 0 | C50: N/A | D50: =IF(AND(CELL("type",C50)="v",C50>0),B50/C50,"") ->  | E50: N/A | F50: =IF(AND(CELL("type",E50)="v",E50>0),B50/E50,"") ->  | G50: N/A | H50: =IF(AND(CELL("type",G50)="v",G50>0),B50/G50,"") -> 

Sheet - 35 -
B2: ANALYSIS OF TRANSPORTATION EXPENSES (CONT'D)
B3: =OPYEAR -> OPERATING FUND 2022/2023 ACTUAL
B6: ADMINISTRATION, REGULAR AND OTHER (PROGRAMS 710, 720 AND 790)
C8: TOTAL KM. (LOG BOOK) | D8: COST PER KM.
A9: DIVISION / DISTRICT | B9: AMOUNT
A11: BEAUTIFUL PLAINS | B11: =SUM('- 29 -'!$B11,'- 29 -'!$D11,'- 30 -'!$D11) -> 1474745 | C11: 635766 | D11: =IF(AND(CELL("type",C11)="v",C11>0),B11/C11,"") -> 2.319634897
A12: BORDER LAND | B12: =SUM('- 29 -'!$B12,'- 29 -'!$D12,'- 30 -'!$D12) -> 2701031 | C12: 1078200 | D12: =IF(AND(CELL("type",C12)="v",C12>0),B12/C12,"") -> 2.505129846
A13: BRANDON | B13: =SUM('- 29 -'!$B13,'- 29 -'!$D13,'- 30 -'!$D13) -> 2719533 | C13: 828391 | D13: 3.282909882
A14: DSFM | B14: =SUM('- 29 -'!$B14,'- 29 -'!$D14,'- 30 -'!$D14) -> 11512462 | C14: N/A
A15: EVERGREEN | B15: =SUM('- 29 -'!$B15,'- 29 -'!$D15,'- 30 -'!$D15) -> 2011615 | C15: 972629 | D15: 2.068224369
A16: FLIN FLON | B16: =SUM('- 29 -'!$B16,'- 29 -'!$D16,'- 30 -'!$D16) -> 518864 | C16: 113859 | D16: 4.557074979
A17: FORT LA BOSSE | B17: =SUM('- 29 -'!$B17,'- 29 -'!$D17,'- 30 -'!$D17) -> 1788449 | C17: 1033887.664 | D17: 1.729829132
A18: FRONTIER | B18: =SUM('- 29 -'!$B18,'- 29 -'!$D18,'- 30 -'!$D18) -> 10647280 | C18: 1449000 | D18: 7.348019324
A19: GARDEN VALLEY | B19: =SUM('- 29 -'!$B19,'- 29 -'!$D19,'- 30 -'!$D19) -> 3068152 | C19: 821585 | D19: 3.7344304
A20: HANOVER | B20: =SUM('- 29 -'!$B20,'- 29 -'!$D20,'- 30 -'!$D20) -> 4556847 | C20: 1500810 | D20: 3.03625842
A21: INTERLAKE | B21: =SUM('- 29 -'!$B21,'- 29 -'!$D21,'- 30 -'!$D21) -> 2750153 | C21: 981628 | D21: 2.801624444
A22: KELSEY | B22: =SUM('- 29 -'!$B22,'- 29 -'!$D22,'- 30 -'!$D22) -> 488572 | C22: 232393 | D22: 2.10235248
A23: LAKESHORE | B23: =SUM('- 29 -'!$B23,'- 29 -'!$D23,'- 30 -'!$D23) -> 1703708 | C23: 809325 | D23: 2.105097458
A24: LORD SELKIRK | B24: =SUM('- 29 -'!$B24,'- 29 -'!$D24,'- 30 -'!$D24) -> 2949877 | C24: 988573 | D24: 2.983974881
A25: LOUIS RIEL | B25: =SUM('- 29 -'!$B25,'- 29 -'!$D25,'- 30 -'!$D25) -> 5664020 | C25: 1801408 | D25: 3.1442183
A26: MOUNTAIN VIEW | B26: =SUM('- 29 -'!$B26,'- 29 -'!$D26,'- 30 -'!$D26) -> 3059449 | C26: 1380819 | D26: 2.215677073
A27: MYSTERY LAKE | B27: =SUM('- 29 -'!$B27,'- 29 -'!$D27,'- 30 -'!$D27) -> 214548 | C27: N/A
A28: PARK WEST | B28: =SUM('- 29 -'!$B28,'- 29 -'!$D28,'- 30 -'!$D28) -> 2011615 | C28: 972629 | D28: 2.068224369
A29: PEMBINA TRAILS | B29: =SUM('- 29 -'!$B29,'- 29 -'!$D29,'- 30 -'!$D29) -> 4126023 | C29: 829313 | D29: 4.9752301
A30: PINE CREEK | B30: =SUM('- 29 -'!$B30,'- 29 -'!$D30,'- 30 -'!$D30) -> 1529231 | C30: 653747 | D30: 2.339178612
A31: PORTAGE LA PRAIRIE | B31: =SUM('- 29 -'!$B31,'- 29 -'!$D31,'- 30 -'!$D31) -> 1399642 | C31: 531310 | D31: 2.634322712
A32: PRAIRIE ROSE | B32: =SUM('- 29 -'!$B32,'- 29 -'!$D32,'- 30 -'!$D32) -> 2473337 | C32: 1061750 | D32: 2.329490935
A33: PRAIRIE SPIRIT | B33: =SUM('- 29 -'!$B33,'- 29 -'!$D33,'- 30 -'!$D33) -> 2564920 | C33: 1321903 | D33: 1.940323912
A34: RED RIVER VALLEY | B34: =SUM('- 29 -'!$B34,'- 29 -'!$D34,'- 30 -'!$D34) -> 3226695 | C34: 1484364.8 | D34: 2.173788411
A35: RIVER EAST TRANSCONA | B35: =SUM('- 29 -'!$B35,'- 29 -'!$D35,'- 30 -'!$D35) -> 5475682 | C35: 1195125 | D35: 4.581681414
A36: ROLLING RIVER | B36: =SUM('- 29 -'!$B36,'- 29 -'!$D36,'- 30 -'!$D36) -> 2045907 | C36: 845237 | D36: 2.420512827
A37: SEINE RIVER | B37: =SUM('- 29 -'!$B37,'- 29 -'!$D37,'- 30 -'!$D37) -> 4451192 | C37: 1592126 | D37: 2.795753602
A38: SEVEN OAKS | B38: =SUM('- 29 -'!$B38,'- 29 -'!$D38,'- 30 -'!$D38) -> 4969738 | C38: 1110275 | D38: 4.47613249
A39: SOUTHWEST HORIZON | B39: =SUM('- 29 -'!$B39,'- 29 -'!$D39,'- 30 -'!$D39) -> 2211145 | C39: 913582 | D39: 2.420302721
A40: ST. JAMES-ASSINIBOIA | B40: =SUM('- 29 -'!$B40,'- 29 -'!$D40,'- 30 -'!$D40) -> 2851414 | C40: 630000 | D40: 4.526053968
A41: SUNRISE | B41: =SUM('- 29 -'!$B41,'- 29 -'!$D41,'- 30 -'!$D41) -> 5744810 | C41: 2241019 | D41: 2.563481166
A42: SWAN VALLEY | B42: =SUM('- 29 -'!$B42,'- 29 -'!$D42,'- 30 -'!$D42) -> 1869223 | C42: 647282 | D42: 2.887803152
A43: TURTLE MOUNTAIN | B43: =SUM('- 29 -'!$B43,'- 29 -'!$D43,'- 30 -'!$D43) -> 1210703 | C43: 535892 | D43: 2.259229472
A44: TURTLE RIVER | B44: =SUM('- 29 -'!$B44,'- 29 -'!$D44,'- 30 -'!$D44) -> 1241511 | C44: 754241 | D44: 1.646040191
A45: WESTERN | B45: =SUM('- 29 -'!$B45,'- 29 -'!$D45,'- 30 -'!$D45) -> 1135151 | C45: 316047 | D45: 3.591715789
A46: WINNIPEG | B46: =SUM('- 29 -'!$B46,'- 29 -'!$D46,'- 30 -'!$D46) -> 8695530 | C46: 992035 | D46: 8.765345981
A48: PROVINCE | B48: =SUM(B11:B46) -> 117062774 | C48: =SUM(C11:C46) -> 33256151.46 | D48: =B48/C48 -> 3.520033703
A50: WHITESHELL | B50: =SUM('- 29 -'!$B50,'- 29 -'!$D50,'- 30 -'!$D50) -> 69490 | C50: N/A | D50: =IF(AND(CELL("type",C50)="v",C50>0),B50/C50,"") -> 

Sheet - 36 -
A2: ANALYSIS OF OPERATIONS AND MAINTENANCE EXPENSES FOR SCHOOL BUILDINGS
A3: =OPYEAR -> OPERATING FUND 2022/2023 ACTUAL
F6: REPAIRS AND REPLACEMENTS
B7: MAINTENANCE | I7: TOTAL
C8: COST PER PUPIL | D8: COST PER SQ. FT. (1) | E8: SQ. FT. PER PUPIL (2) | G8: COST PER SQ. FT. (1) | I8: AREA
A9: DIVISION / DISTRICT | B9: AMOUNT | F9: AMOUNT | I9: =+Data!AB9 -> at September 30, 2022
A11: BEAUTIFUL PLAINS | B11: ='- 31 -'!D11 -> 2011980 | C11: =B11/'- 7 -'!E11 -> 1003.982036 | D11: =B11/I11 -> 6.563215616 | E11: =I11/'- 7 -'!E11 -> 152.9710579 | F11: ='- 31 -'!F11 -> 290583 | G11: =F11/I11 -> 0.9479015116 | I11: =+Data!AB11 -> 306554
A12: BORDER LAND | B12: ='- 31 -'!D12 -> 2996606 | C12: =B12/'- 7 -'!E12 -> 1468.766113 | D12: =B12/I12 -> 7.028594214 | E12: =I12/'- 7 -'!E12 -> 208.9701111 | F12: ='- 31 -'!F12 -> 340455 | G12: =F12/I12 -> 0.7985434331 | I12: =+Data!AB12 -> 426345
A13: BRANDON | B13: ='- 31 -'!D13 -> 8452152 | C13: =B13/'- 7 -'!E13 -> 931.7362259 | D13: 7.532575217 | E13: =I13/'- 7 -'!E13 -> 123.6942479 | F13: ='- 31 -'!F13 -> 649990 | G13: 0.5792724226 | I13: =+Data!AB13 -> 1122080
A14: DSFM | B14: ='- 31 -'!D14 -> 10803784 | C14: =B14/'- 7 -'!E14 -> 1850.853579 | D14: 9.994295996 | E14: =I14/'- 7 -'!E14 -> 185.1909909 | F14: ='- 31 -'!F14 -> 464724 | G14: 0.4299039311 | I14: =+Data!AB14 -> 1080995
A15: EVERGREEN | B15: ='- 31 -'!D15 -> 3382645 | C15: =B15/'- 7 -'!E15 -> 1636.499758 | D15: 11.61407225 | E15: =I15/'- 7 -'!E15 -> 140.906628 | F15: ='- 31 -'!F15 -> 641705 | G15: 2.203248711 | I15: =+Data!AB15 -> 291254
A16: FLIN FLON | B16: ='- 31 -'!D16 -> 2354792 | C16: =B16/'- 7 -'!E16 -> 2515.534665 | D16: 11.22692794 | E16: =I16/'- 7 -'!E16 -> 224.0626001 | F16: ='- 31 -'!F16 -> 113567 | G16: 0.5414527164 | I16: =+Data!AB16 -> 209745
A17: FORT LA BOSSE | B17: ='- 31 -'!D17 -> 1767377 | C17: =B17/'- 7 -'!E17 -> 1174.727152 | D17: 6.693215429 | E17: =I17/'- 7 -'!E17 -> 175.5101363 | F17: ='- 31 -'!F17 -> 191229 | G17: 0.7242013974 | I17: =+Data!AB17 -> 264055
A18: FRONTIER | B18: ='- 31 -'!D18 -> 22116251 | C18: =B18/'- 7 -'!E18 -> 3487.542537 | D18: =B18/I18 -> 15.44958509 | E18: =I18/'- 7 -'!E18 -> 225.7369707 | F18: ='- 31 -'!F18 -> 2742983 | G18: =F18/I18 -> 1.916145248 | I18: =+Data!AB18 -> 1431511
A19: GARDEN VALLEY | B19: ='- 31 -'!D19 -> 4652991 | C19: =B19/'- 7 -'!E19 -> 1139.601029 | D19: 6.528616949 | E19: =I19/'- 7 -'!E19 -> 174.5547392 | F19: ='- 31 -'!F19 -> 290542 | G19: 0.4076598097 | I19: =+Data!AB19 -> 712707
A20: HANOVER | B20: ='- 31 -'!D20 -> 8175790 | C20: =B20/'- 7 -'!E20 -> 1012.732565 | D20: 7.288859687 | E20: =I20/'- 7 -'!E20 -> 138.9425245 | F20: ='- 31 -'!F20 -> 399545 | G20: 0.356201351 | I20: =+Data!AB20 -> 1121683
A21: INTERLAKE | B21: ='- 31 -'!D21 -> 3216932 | C21: =B21/'- 7 -'!E21 -> 1099.429938 | D21: 7.180667814 | E21: =I21/'- 7 -'!E21 -> 153.1097061 | F21: ='- 31 -'!F21 -> 171081 | G21: 0.3818780845 | I21: =+Data!AB21 -> 447999
A22: KELSEY | B22: ='- 31 -'!D22 -> 2425276 | C22: =B22/'- 7 -'!E22 -> 1642.028436 | D22: 7.114583089 | E22: =I22/'- 7 -'!E22 -> 230.7975626 | F22: ='- 31 -'!F22 -> 98103 | G22: 0.2877866044 | I22: =+Data!AB22 -> 340888
A23: LAKESHORE | B23: ='- 31 -'!D23 -> 1378283 | C23: =B23/'- 7 -'!E23 -> 1512.104224 | D23: 5.908885516 | E23: =I23/'- 7 -'!E23 -> 255.9034558 | F23: ='- 31 -'!F23 -> 82859 | G23: 0.3552277326 | I23: =+Data!AB23 -> 233256
A24: LORD SELKIRK | B24: ='- 31 -'!D24 -> 5836835 | C24: =B24/'- 7 -'!E24 -> 1546.59115 | D24: 8.210325018 | E24: =I24/'- 7 -'!E24 -> 188.3714891 | F24: ='- 31 -'!F24 -> 316030 | G24: 0.4445404085 | I24: =+Data!AB24 -> 710914
A25: LOUIS RIEL | B25: ='- 31 -'!D25 -> 22178683 | C25: =B25/'- 7 -'!E25 -> 1361.23998 | D25: 9.570990065 | E25: =I25/'- 7 -'!E25 -> 142.2256184 | F25: ='- 31 -'!F25 -> 657705 | G25: 0.2838260514 | I25: =+Data!AB25 -> 2317282
A26: MOUNTAIN VIEW | B26: ='- 31 -'!D26 -> 5237303 | C26: =B26/'- 7 -'!E26 -> 1714.057601 | D26: 6.803432826 | E26: =I26/'- 7 -'!E26 -> 251.940108 | F26: ='- 31 -'!F26 -> 147853 | G26: 0.1920660221 | I26: =+Data!AB26 -> 769803
A27: MYSTERY LAKE | B27: ='- 31 -'!D27 -> 5185490 | C27: =B27/'- 7 -'!E27 -> 1899.099066 | D27: 11.08316181 | E27: =I27/'- 7 -'!E27 -> 171.3499359 | F27: ='- 31 -'!F27 -> 441337 | G27: 0.9432877866 | I27: =+Data!AB27 -> 467871
A28: PARK WEST | B28: ='- 31 -'!D28 -> 3382645 | C28: =B28/'- 7 -'!E28 -> 1636.499758 | D28: 7.63109926 | E28: =I28/'- 7 -'!E28 -> 214.4513788 | F28: ='- 31 -'!F28 -> 641705 | G28: 1.44765843 | I28: =+Data!AB28+Data!AC28 -> 443271
A29: PEMBINA TRAILS | B29: ='- 31 -'!D29 -> 16942774 | C29: =B29/'- 7 -'!E29 -> 1118.556414 | D29: 9.164200563 | E29: =I29/'- 7 -'!E29 -> 122.057173 | F29: ='- 31 -'!F29 -> 920531 | G29: 0.4979072912 | I29: =+Data!AB29 -> 1848800
A30: PINE CREEK | B30: ='- 31 -'!D30 -> 1416754 | C30: =B30/'- 7 -'!E30 -> 1297.393773 | D30: 6.752943307 | E30: =I30/'- 7 -'!E30 -> 192.1227106 | F30: ='- 31 -'!F30 -> 79895 | G30: 0.3808186923 | I30: =+Data!AB30 -> 209798
A31: PORTAGE LA PRAIRIE | B31: ='- 31 -'!D31 -> 4069744 | C31: =B31/'- 7 -'!E31 -> 1212.13522 | D31: 6.871271214 | E31: =I31/'- 7 -'!E31 -> 176.4062547 | F31: ='- 31 -'!F31 -> 269635 | G31: 0.4552461319 | I31: =+Data!AB31 -> 592284
A32: PRAIRIE ROSE | B32: ='- 31 -'!D32 -> 2739714 | C32: =B32/'- 7 -'!E32 -> 1203.212121 | D32: 7.147328603 | E32: =I32/'- 7 -'!E32 -> 168.3443127 | F32: ='- 31 -'!F32 -> 111575 | G32: 0.2910753418 | I32: =+Data!AB32 -> 383320
A33: PRAIRIE SPIRIT | B33: ='- 31 -'!D33 -> 3089287 | C33: =B33/'- 7 -'!E33 -> 1483.45114 | D33: 6.382362846 | E33: =I33/'- 7 -'!E33 -> 232.4297719 | F33: ='- 31 -'!F33 -> 190635 | G33: 0.3938454864 | I33: =+Data!AB33 -> 484035
A34: RED RIVER VALLEY | B34: ='- 31 -'!D34 -> 2566117 | C34: =B34/'- 7 -'!E34 -> 1133.193641 | D34: 6.75059453 | E34: =I34/'- 7 -'!E34 -> 167.865754 | F34: ='- 31 -'!F34 -> 394437 | G34: 1.037631665 | I34: =+Data!AB34 -> 380132
A35: RIVER EAST TRANSCONA | B35: ='- 31 -'!D35 -> 20915930 | C35: =B35/'- 7 -'!E35 -> 1238.471741 | D35: 8.438143473 | E35: =I35/'- 7 -'!E35 -> 146.7706427 | F35: ='- 31 -'!F35 -> 332993 | G35: 0.134339841 | I35: =+Data!AB35 -> 2478736
A36: ROLLING RIVER | B36: ='- 31 -'!D36 -> 3498387 | C36: =B36/'- 7 -'!E36 -> 1986.02725 | D36: 10.8963991 | E36: =I36/'- 7 -'!E36 -> 182.2645473 | F36: ='- 31 -'!F36 -> 131831 | G36: 0.4106130026 | I36: =+Data!AB36 -> 321059
A37: SEINE RIVER | B37: ='- 31 -'!D37 -> 5417853 | C37: =B37/'- 7 -'!E37 -> 1214.220753 | D37: 9.239822361 | E37: =I37/'- 7 -'!E37 -> 131.4116988 | F37: ='- 31 -'!F37 -> 230267 | G37: 0.392706516 | I37: =+Data!AB37 -> 586359
A38: SEVEN OAKS | B38: ='- 31 -'!D38 -> 12866617 | C38: =B38/'- 7 -'!E38 -> 1117.815647 | D38: 8.88147329 | E38: =I38/'- 7 -'!E38 -> 125.8592589 | F38: ='- 31 -'!F38 -> 805405 | G38: 0.5559490109 | I38: =+Data!AB38 -> 1448703
A39: SOUTHWEST HORIZON | B39: ='- 31 -'!D39 -> 2147376 | C39: =B39/'- 7 -'!E39 -> 1469.295929 | D39: 6.817434592 | E39: =I39/'- 7 -'!E39 -> 215.5203558 | F39: ='- 31 -'!F39 -> 152085 | G39: 0.4828355816 | I39: =+Data!AB39 -> 314983
A40: ST. JAMES-ASSINIBOIA | B40: ='- 31 -'!D40 -> 9362687 | C40: =B40/'- 7 -'!E40 -> 1162.359185 | D40: 6.416974744 | E40: =I40/'- 7 -'!E40 -> 181.1381892 | F40: ='- 31 -'!F40 -> 1119379 | G40: 0.7671971488 | I40: =+Data!AB40 -> 1459050
A41: SUNRISE | B41: ='- 31 -'!D41 -> 6037394 | C41: =B41/'- 7 -'!E41 -> 1314.763502 | D41: 7.996580119 | E41: =I41/'- 7 -'!E41 -> 164.415723 | F41: ='- 31 -'!F41 -> 279524 | G41: 0.3702319347 | I41: =+Data!AB41 -> 754997
A42: SWAN VALLEY | B42: ='- 31 -'!D42 -> 1938593 | C42: =B42/'- 7 -'!E42 -> 1432.810791 | D42: 6.668545993 | E42: =I42/'- 7 -'!E42 -> 214.8610495 | F42: ='- 31 -'!F42 -> 308377 | G42: 1.06078285 | I42: =+Data!AB42 -> 290707
A43: TURTLE MOUNTAIN | B43: ='- 31 -'!D43 -> 991694 | C43: =B43/'- 7 -'!E43 -> 963.2773191 | D43: 5.431023341 | E43: =I43/'- 7 -'!E43 -> 177.3657115 | F43: ='- 31 -'!F43 -> 102393 | G43: 0.5607564157 | I43: =+Data!AB43 -> 182598
A44: TURTLE RIVER | B44: ='- 31 -'!D44 -> 1038640 | C44: =B44/'- 7 -'!E44 -> 1745.613445 | D44: 5.672311818 | E44: =I44/'- 7 -'!E44 -> 307.7428571 | F44: ='- 31 -'!F44 -> 51753 | G44: 0.2826380204 | I44: =+Data!AB44 -> 183107
A45: WESTERN | B45: ='- 31 -'!D45 -> 1904057 | C45: =B45/'- 7 -'!E45 -> 959.9480716 | D45: 8.595689643 | E45: =I45/'- 7 -'!E45 -> 111.6778422 | F45: ='- 31 -'!F45 -> 464546 | G45: 2.097150054 | I45: =+Data!AB45 -> 221513
A46: WINNIPEG | B46: ='- 31 -'!D46 -> 45404492 | C46: =B46/'- 7 -'!E46 -> 1632.048097 | D46: 8.858377723 | E46: =I46/'- 7 -'!E46 -> 184.2378083 | F46: ='- 31 -'!F46 -> 6350317 | G46: 1.238941439 | I46: =+Data!AB46 -> 5125599
A48: PROVINCE | B48: =SUM(B11:B46) -> 257903925 | C48: =B48/'- 7 -'!E48 -> 1409.886037 | D48: =B48/I48 -> 8.62151452 | E48: =I48/'- 7 -'!E48 -> 163.5311329 | F48: =SUM(F11:F46) -> 20977574 | G48: 0.7012629173 | I48: =+Data!AB48 -> 29913993
A50: WHITESHELL | B50: ='- 31 -'!D50 -> 572714 | C50: =B50/'- 7 -'!E50 -> 2849.323383 | D50: =B50/I50 -> 7.839383487 | E50: =I50/'- 7 -'!E50 -> 363.4626866 | F50: ='- 31 -'!F50 -> 0 | G50: =F50/I50 -> 0 | I50: =+Data!AB50 -> 73056
A52: ="(1) Based on area (square footage) of active school buildings as at September 30, "&FALLYR&". Includes rented and leased space." -> (1) Based on area (square footage) of active school buildings as at September 30, 2022. Includes rented and leased space.
A53: (2) Square footage (as per note above) divided by total FTE enrolment (from page 7).

Sheet - 37 -
B2: ANALYSIS OF INFORMATION TECHNOLOGY EXPENSES
B3: =OPYEAR -> OPERATING FUND 2022/2023 ACTUAL
B6: INFORMATION TECHNOLOGY EXPENSES (1)
B7: SALARIES | E7: SERVICES | H7: EQUIPMENT (2)
D8: PER PUPIL | G8: PER PUPIL | J8: PER PUPIL
A9: DIVISION / DISTRICT | B9: AMOUNT | C9: % | E9: AMOUNT | F9: % | H9: AMOUNT | I9: %
A11: BEAUTIFUL PLAINS | B11: 205939 | C11: =B11/'- 3 -'!$D11*100 -> 0.8189446022 | D11: =B11/'- 7 -'!$E11 -> 102.7639721 | E11: 180939 | F11: =E11/'- 3 -'!$D11*100 -> 0.7195286826 | G11: =E11/'- 7 -'!$E11 -> 90.28892216 | H11: 304951 | I11: =H11/'- 3 -'!$D11*100 -> 1.212679363 | J11: =H11/'- 7 -'!$E11 -> 152.1711577
A12: BORDER LAND | B12: 294743 | C12: =B12/'- 3 -'!$D12*100 -> 0.7906951627 | D12: =B12/'- 7 -'!$E12 -> 144.466283 | E12: 244510 | F12: =E12/'- 3 -'!$D12*100 -> 0.6559371189 | G12: =E12/'- 7 -'!$E12 -> 119.8449187 | H12: 597620 | I12: =H12/'- 3 -'!$D12*100 -> 1.603211079 | J12: =H12/'- 7 -'!$E12 -> 292.919391
A13: BRANDON | B13: 445618 | C13: =B13/'- 3 -'!$D13*100 -> 0.3878781249 | D13: =B13/'- 7 -'!$E13 -> 49.12339881 | E13: 731947 | F13: =E13/'- 3 -'!$D13*100 -> 0.6371067369 | G13: =E13/'- 7 -'!$E13 -> 80.687325 | H13: 1237440 | I13: =H13/'- 3 -'!$D13*100 -> 1.077101703 | J13: =H13/'- 7 -'!$E13 -> 136.4111383
A14: DSFM | B14: 336344 | C14: =B14/'- 3 -'!$D14*100 -> 0.3188406979 | D14: =B14/'- 7 -'!$E14 -> 57.6208758 | E14: 1081044 | F14: =E14/'- 3 -'!$D14*100 -> 1.024786598 | G14: =E14/'- 7 -'!$E14 -> 185.1993853 | H14: 548058 | I14: =H14/'- 3 -'!$D14*100 -> 0.5195371262 | J14: =H14/'- 7 -'!$E14 -> 93.89072482
A15: EVERGREEN | B15: 302014 | C15: =B15/'- 3 -'!$D15*100 -> 0.9272113857 | D15: =B15/'- 7 -'!$E15 -> 146.11224 | E15: 135785 | F15: =E15/'- 3 -'!$D15*100 -> 0.4168727211 | G15: =E15/'- 7 -'!$E15 -> 65.6918239 | H15: 287039 | I15: =H15/'- 3 -'!$D15*100 -> 0.8812367272 | J15: =H15/'- 7 -'!$E15 -> 138.8674407
A16: FLIN FLON | B16: 0 | C16: =B16/'- 3 -'!$D16*100 -> 0 | D16: =B16/'- 7 -'!$E16 -> 0 | E16: 201071 | F16: =E16/'- 3 -'!$D16*100 -> 1.207094175 | G16: =E16/'- 7 -'!$E16 -> 214.7964961 | H16: 38131 | I16: =H16/'- 3 -'!$D16*100 -> 0.2289127123 | J16: =H16/'- 7 -'!$E16 -> 40.73389595
A17: FORT LA BOSSE | B17: 64829 | C17: =B17/'- 3 -'!$D17*100 -> 0.3128460337 | D17: =B17/'- 7 -'!$E17 -> 43.09006314 | E17: 139687 | F17: =E17/'- 3 -'!$D17*100 -> 0.6740891253 | G17: =E17/'- 7 -'!$E17 -> 92.84612828 | H17: 122017 | I17: =H17/'- 3 -'!$D17*100 -> 0.5888188078 | J17: =H17/'- 7 -'!$E17 -> 81.10136258
A18: FRONTIER | B18: 398272 | C18: =B18/'- 3 -'!$D18*100 -> 0.2466871513 | D18: =B18/'- 7 -'!$E18 -> 62.80406844 | E18: 0 | F18: =E18/'- 3 -'!$D18*100 -> 0 | G18: =E18/'- 7 -'!$E18 -> 0 | H18: 2645427 | I18: =H18/'- 3 -'!$D18*100 -> 1.638560709 | J18: =H18/'- 7 -'!$E18 -> 417.1610818
A19: GARDEN VALLEY | B19: 545700 | C19: =B19/'- 3 -'!$D19*100 -> 1.003611438 | D19: =B19/'- 7 -'!$E19 -> 133.6517267 | E19: 303357 | F19: =E19/'- 3 -'!$D19*100 -> 0.5579119571 | G19: =E19/'- 7 -'!$E19 -> 74.29757531 | H19: 1665728 | I19: =H19/'- 3 -'!$D19*100 -> 3.063484833 | J19: =H19/'- 7 -'!$E19 -> 407.9666912
A20: HANOVER | B20: 729837 | C20: =B20/'- 3 -'!$D20*100 -> 0.7151878081 | D20: =B20/'- 7 -'!$E20 -> 90.40468227 | E20: 379025 | F20: =E20/'- 3 -'!$D20*100 -> 0.3714172603 | G20: =E20/'- 7 -'!$E20 -> 46.94970891 | H20: 2200401 | I20: =H20/'- 3 -'!$D20*100 -> 2.156234842 | J20: =H20/'- 7 -'!$E20 -> 272.5629877
A21: INTERLAKE | B21: 348265 | C21: =B21/'- 3 -'!$D21*100 -> 0.8553260758 | D21: =B21/'- 7 -'!$E21 -> 119.0242652 | E21: 128689 | F21: =E21/'- 3 -'!$D21*100 -> 0.3160554674 | G21: =E21/'- 7 -'!$E21 -> 43.98120301 | H21: 440471 | I21: =H21/'- 3 -'!$D21*100 -> 1.081780632 | J21: =H21/'- 7 -'!$E21 -> 150.5369105
A22: KELSEY | B22: 125522 | C22: =B22/'- 3 -'!$D22*100 -> 0.5687101667 | D22: =B22/'- 7 -'!$E22 -> 84.98442789 | E22: 77166 | F22: =E22/'- 3 -'!$D22*100 -> 0.3496206938 | G22: =E22/'- 7 -'!$E22 -> 52.2450914 | H22: 109030 | I22: =H22/'- 3 -'!$D22*100 -> 0.4939888583 | J22: =H22/'- 7 -'!$E22 -> 73.81855112
A23: LAKESHORE | B23: 104185 | C23: =B23/'- 3 -'!$D23*100 -> 0.6319611796 | D23: =B23/'- 7 -'!$E23 -> 114.3006034 | E23: 46034 | F23: =E23/'- 3 -'!$D23*100 -> 0.2792311844 | G23: =E23/'- 7 -'!$E23 -> 50.50356555 | H23: 188592 | I23: =H23/'- 3 -'!$D23*100 -> 1.143953763 | J23: =H23/'- 7 -'!$E23 -> 206.9029073
A24: LORD SELKIRK | B24: 511374 | C24: =B24/'- 3 -'!$D24*100 -> 0.7997194928 | D24: =B24/'- 7 -'!$E24 -> 135.4992051 | E24: 622689 | F24: =E24/'- 3 -'!$D24*100 -> 0.9738010365 | G24: =E24/'- 7 -'!$E24 -> 164.9944356 | H24: 770115 | I24: =H24/'- 3 -'!$D24*100 -> 1.20435528 | J24: =H24/'- 7 -'!$E24 -> 204.0580286
A25: LOUIS RIEL | B25: 986940 | C25: =B25/'- 3 -'!$D25*100 -> 0.4500653243 | D25: =B25/'- 7 -'!$E25 -> 60.57447984 | E25: 1822933 | F25: =E25/'- 3 -'!$D25*100 -> 0.8312956531 | G25: =E25/'- 7 -'!$E25 -> 111.8844289 | H25: 1728917 | I25: =H25/'- 3 -'!$D25*100 -> 0.7884223867 | J25: =H25/'- 7 -'!$E25 -> 106.1140981
A26: MOUNTAIN VIEW | B26: 414264 | C26: =B26/'- 3 -'!$D26*100 -> 0.9036577433 | D26: =B26/'- 7 -'!$E26 -> 135.5797742 | E26: 736590 | F26: =E26/'- 3 -'!$D26*100 -> 1.606765872 | G26: =E26/'- 7 -'!$E26 -> 241.0702013 | H26: 313529 | I26: =H26/'- 3 -'!$D26*100 -> 0.6839187296 | J26: =H26/'- 7 -'!$E26 -> 102.6113566
A27: MYSTERY LAKE | B27: 165818 | C27: =B27/'- 3 -'!$D27*100 -> 0.359817879 | D27: =B27/'- 7 -'!$E27 -> 60.72807178 | E27: 219103 | F27: =E27/'- 3 -'!$D27*100 -> 0.4754440214 | G27: =E27/'- 7 -'!$E27 -> 80.24281267 | H27: 284954 | I27: =H27/'- 3 -'!$D27*100 -> 0.6183378396 | J27: =H27/'- 7 -'!$E27 -> 104.3596411
A28: PARK WEST | B28: 302014 | C28: =B28/'- 3 -'!$D28*100 -> 0.9272113857 | D28: =B28/'- 7 -'!$E28 -> 146.11224 | E28: 135785 | F28: =E28/'- 3 -'!$D28*100 -> 0.4168727211 | G28: =E28/'- 7 -'!$E28 -> 65.6918239 | H28: 287039 | I28: =H28/'- 3 -'!$D28*100 -> 0.8812367272 | J28: =H28/'- 7 -'!$E28 -> 138.8674407
A29: PEMBINA TRAILS | B29: 1558916 | C29: =B29/'- 3 -'!$D29*100 -> 0.797172647 | D29: =B29/'- 7 -'!$E29 -> 102.9191259 | E29: 1407369 | F29: =E29/'- 3 -'!$D29*100 -> 0.7196770519 | G29: =E29/'- 7 -'!$E29 -> 92.91404238 | H29: 1515400 | I29: =H29/'- 3 -'!$D29*100 -> 0.7749201556 | J29: =H29/'- 7 -'!$E29 -> 100.0462138
A30: PINE CREEK | B30: 183830 | C30: =B30/'- 3 -'!$D30*100 -> 1.0627465 | D30: =B30/'- 7 -'!$E30 -> 168.3424908 | E30: 152648 | F30: =E30/'- 3 -'!$D30*100 -> 0.882479072 | G30: =E30/'- 7 -'!$E30 -> 139.7875458 | H30: 101581 | I30: =H30/'- 3 -'!$D30*100 -> 0.587253725 | J30: =H30/'- 7 -'!$E30 -> 93.02289377
A31: PORTAGE LA PRAIRIE | B31: 353585 | C31: =B31/'- 3 -'!$D31*100 -> 0.7678925134 | D31: =B31/'- 7 -'!$E31 -> 105.3119881 | E31: 335708 | F31: =E31/'- 3 -'!$D31*100 -> 0.7290684274 | G31: =E31/'- 7 -'!$E31 -> 99.98749069 | H31: 629953 | I31: =H31/'- 3 -'!$D31*100 -> 1.368090254 | J31: =H31/'- 7 -'!$E31 -> 187.6256143
A32: PRAIRIE ROSE | B32: 290380 | C32: =B32/'- 3 -'!$D32*100 -> 0.8672387093 | D32: =B32/'- 7 -'!$E32 -> 127.5274484 | E32: 165901 | F32: =E32/'- 3 -'!$D32*100 -> 0.4954740999 | G32: =E32/'- 7 -'!$E32 -> 72.85946421 | H32: 286713 | I32: =H32/'- 3 -'!$D32*100 -> 0.8562869759 | J32: =H32/'- 7 -'!$E32 -> 125.916996
A33: PRAIRIE SPIRIT | B33: 315667 | C33: =B33/'- 3 -'!$D33*100 -> 1.031513668 | D33: =B33/'- 7 -'!$E33 -> 151.5807923 | E33: 358791 | F33: =E33/'- 3 -'!$D33*100 -> 1.172431139 | G33: =E33/'- 7 -'!$E33 -> 172.2885954 | H33: 195590 | I33: =H33/'- 3 -'!$D33*100 -> 0.639134779 | J33: =H33/'- 7 -'!$E33 -> 93.92076831
A34: RED RIVER VALLEY | B34: 256854 | C34: =B34/'- 3 -'!$D34*100 -> 0.7260169881 | D34: =B34/'- 7 -'!$E34 -> 113.4263634 | E34: 310117 | F34: =E34/'- 3 -'!$D34*100 -> 0.8765688302 | G34: =E34/'- 7 -'!$E34 -> 136.947229 | H34: 315794 | I34: =H34/'- 3 -'!$D34*100 -> 0.8926152941 | J34: =H34/'- 7 -'!$E34 -> 139.4541841
A35: RIVER EAST TRANSCONA | B35: 1152172 | C35: =B35/'- 3 -'!$D35*100 -> 0.5196931949 | D35: =B35/'- 7 -'!$E35 -> 68.22228143 | E35: 926913 | F35: =E35/'- 3 -'!$D35*100 -> 0.4180889471 | G35: =E35/'- 7 -'!$E35 -> 54.88427036 | H35: -240520 | I35: =H35/'- 3 -'!$D35*100 -> -0.1084878015 | J35: =H35/'- 7 -'!$E35 -> -14.24164372
A36: ROLLING RIVER | B36: 216494 | C36: =B36/'- 3 -'!$D36*100 -> 0.8069271979 | D36: =B36/'- 7 -'!$E36 -> 122.9032075 | E36: 202569 | F36: =E36/'- 3 -'!$D36*100 -> 0.7550252458 | G36: =E36/'- 7 -'!$E36 -> 114.9980131 | H36: 365125 | I36: =H36/'- 3 -'!$D36*100 -> 1.360912049 | J36: =H36/'- 7 -'!$E36 -> 207.2807267
A37: SEINE RIVER | B37: 302610 | C37: =B37/'- 3 -'!$D37*100 -> 0.4749509479 | D37: =B37/'- 7 -'!$E37 -> 67.81936351 | E37: 780362 | F37: =E37/'- 3 -'!$D37*100 -> 1.2247899 | G37: =E37/'- 7 -'!$E37 -> 174.890632 | H37: 882360 | I37: =H37/'- 3 -'!$D37*100 -> 1.384877296 | J37: =H37/'- 7 -'!$E37 -> 197.7498879
A38: SEVEN OAKS | B38: 365671 | C38: =B38/'- 3 -'!$D38*100 -> 0.2199584707 | D38: =B38/'- 7 -'!$E38 -> 31.76847226 | E38: 856586 | F38: =E38/'- 3 -'!$D38*100 -> 0.5152537296 | G38: =E38/'- 7 -'!$E38 -> 74.41779245 | H38: 1301484 | I38: =H38/'- 3 -'!$D38*100 -> 0.7828688364 | J38: =H38/'- 7 -'!$E38 -> 113.0692846
A39: SOUTHWEST HORIZON | B39: 168200 | C39: =B39/'- 3 -'!$D39*100 -> 0.7018441644 | D39: =B39/'- 7 -'!$E39 -> 115.0872391 | E39: 121447 | F39: =E39/'- 3 -'!$D39*100 -> 0.5067590264 | G39: =E39/'- 7 -'!$E39 -> 83.09750257 | H39: 100438 | I39: =H39/'- 3 -'!$D39*100 -> 0.4190952686 | J39: =H39/'- 7 -'!$E39 -> 68.72254533
A40: ST. JAMES-ASSINIBOIA | B40: 670411 | C40: =B40/'- 3 -'!$D40*100 -> 0.5584799698 | D40: =B40/'- 7 -'!$E40 -> 83.2302077 | E40: 683542 | F40: =E40/'- 3 -'!$D40*100 -> 0.5694186335 | G40: =E40/'- 7 -'!$E40 -> 84.86039554 | H40: 925276 | I40: =H40/'- 3 -'!$D40*100 -> 0.7707930098 | J40: =H40/'- 7 -'!$E40 -> 114.8711964
A41: SUNRISE | B41: 445414 | C41: =B41/'- 3 -'!$D41*100 -> 0.6072798375 | D41: =B41/'- 7 -'!$E41 -> 96.9978223 | E41: 774103 | F41: =E41/'- 3 -'!$D41*100 -> 1.055416184 | G41: =E41/'- 7 -'!$E41 -> 168.5764373 | H41: 210399 | I41: =H41/'- 3 -'!$D41*100 -> 0.2868591255 | J41: =H41/'- 7 -'!$E41 -> 45.81859756
A42: SWAN VALLEY | B42: 254787 | C42: =B42/'- 3 -'!$D42*100 -> 1.050180844 | D42: =B42/'- 7 -'!$E42 -> 188.3126386 | E42: 179761 | F42: =E42/'- 3 -'!$D42*100 -> 0.7409387398 | G42: =E42/'- 7 -'!$E42 -> 132.8610495 | H42: 384292 | I42: =H42/'- 3 -'!$D42*100 -> 1.583974445 | J42: =H42/'- 7 -'!$E42 -> 284.0295639
A43: TURTLE MOUNTAIN | B43: 145464 | C43: =B43/'- 3 -'!$D43*100 -> 0.9765132401 | D43: =B43/'- 7 -'!$E43 -> 141.2957746 | E43: 133969 | F43: =E43/'- 3 -'!$D43*100 -> 0.8993462455 | G43: =E43/'- 7 -'!$E43 -> 130.1301603 | H43: 188017 | I43: =H43/'- 3 -'!$D43*100 -> 1.262175451 | J43: =H43/'- 7 -'!$E43 -> 182.6294318
A44: TURTLE RIVER | B44: 134674 | C44: =B44/'- 3 -'!$D44*100 -> 1.117802807 | D44: =B44/'- 7 -'!$E44 -> 226.3428571 | E44: 97868 | F44: =E44/'- 3 -'!$D44*100 -> 0.8123106548 | G44: =E44/'- 7 -'!$E44 -> 164.4840336 | H44: 161382 | I44: =H44/'- 3 -'!$D44*100 -> 1.339480914 | J44: =H44/'- 7 -'!$E44 -> 271.2302521
A45: WESTERN | B45: 267073 | C45: =B45/'- 3 -'!$D45*100 -> 1.053185653 | D45: =B45/'- 7 -'!$E45 -> 134.6473406 | E45: 87783 | F45: =E45/'- 3 -'!$D45*100 -> 0.3461667639 | G45: =E45/'- 7 -'!$E45 -> 44.25661709 | H45: 207514 | I45: =H45/'- 3 -'!$D45*100 -> 0.8183184655 | J45: =H45/'- 7 -'!$E45 -> 104.620116
A46: WINNIPEG | B46: 1941511 | C46: =B46/'- 3 -'!$D46*100 -> 0.4371487148 | D46: =B46/'- 7 -'!$E46 -> 69.78691299 | E46: 1502519 | F46: =E46/'- 3 -'!$D46*100 -> 0.3383057061 | G46: =E46/'- 7 -'!$E46 -> 54.0075038 | H46: 3127494 | I46: =H46/'- 3 -'!$D46*100 -> 0.7041834852 | J46: =H46/'- 7 -'!$E46 -> 112.4166444
A48: PROVINCE | B48: =SUM(B11:B46) -> 15305391 | C48: =B48/'- 3 -'!$D48*100 -> 0.5601179259 | D48: =B48/'- 7 -'!$E48 -> 83.67013826 | E48: =SUM(E11:E46) -> 16264310 | F48: =E48/'- 3 -'!$D48*100 -> 0.5952106407 | G48: =E48/'- 7 -'!$E48 -> 88.91227062 | H48: =SUM(H11:H46) -> 24427751 | I48: =H48/'- 3 -'!$D48*100 -> 0.8939609073 | J48: =H48/'- 7 -'!$E48 -> 133.5394374
A50: WHITESHELL | B50: 0 | C50: =B50/'- 3 -'!$D50*100 -> 0 | D50: =B50/'- 7 -'!$E50 -> 0 | E50: 72795 | F50: =E50/'- 3 -'!$D50*100 -> 1.916604597 | G50: =E50/'- 7 -'!$E50 -> 362.1641791 | H50: 13331 | I50: =H50/'- 3 -'!$D50*100 -> 0.3509891596 | J50: =H50/'- 7 -'!$E50 -> 66.32338308
A52: (1) Excludes information technology expenses in Function 300 (Adult Learning Centres), Function 400 (Community Education and Services) and, Management Information Services in Function 500. Total expenses for Management Information Services are included on page 38 and form part of Total Information Technology Expenses.
A54: (2) Capitalized Information Technology equipment is reported on page 48.

Sheet - 38 -
B2: ANALYSIS OF INFORMATION TECHNOLOGY EXPENSES
B3: =OPYEAR -> OPERATING FUND 2022/2023 ACTUAL
B5: INFORMATION TECHNOLOGY EXPENSES (1)
B6: MANAGEMENT INFORMATION SERVICES (2)
E7: TOTAL
D8: PER PUPIL | G8: PER PUPIL
A9: DIVISION / DISTRICT | B9: AMOUNT | C9: % | E9: AMOUNT | F9: %
A11: BEAUTIFUL PLAINS | B11: ='- 26 -'!B11 -> 10710 | C11: ='- 26 -'!C11 -> 0.04258977993 | D11: ='- 26 -'!D11 -> 5.344311377 | E11: =SUM('- 37 -'!B11,'- 37 -'!E11,'- 37 -'!H11,B11) -> 702539 | F11: =E11/'- 3 -'!D11*100 -> 2.793742428 | G11: =E11/'- 7 -'!E11 -> 350.5683633
A12: BORDER LAND | B12: ='- 26 -'!B12 -> 87469 | C12: ='- 26 -'!C12 -> 0.2346495597 | D12: ='- 26 -'!D12 -> 42.8723373 | E12: =SUM('- 37 -'!B12,'- 37 -'!E12,'- 37 -'!H12,B12) -> 1224342 | F12: =E12/'- 3 -'!D12*100 -> 3.284492921 | G12: =E12/'- 7 -'!E12 -> 600.1029301
